Workbook

Sheet GUIDE
C1: CDM Energy Efficiency Cost Effectiveness Tool
A4: BEFORE YOU BEGIN: ENABLE MACROS WITHIN EXCEL (Option 1: Click the security warning at the top of your worksheet and click "Enable Content", if this warning does not appear click "File" > "Options" > "Trust Center" > "Trust Center Settings" > "Macro Settings" and finally select "Enable all macros" Each section of the tool is grouped, linked, and colour coded for easy navigation. Simply click on the hyperlink to reach the worksheet you are looking for. Module worksheet dividers (i.e., the black tabs) provide high-level instructions for that module. Some tabs are locked or hidden where standard assumptions or key calculations are housed. Instructions are embedded throughout the Tool. Detailed instructions and procedures can be found in the User Guide that accompanies this Tool.
A7: Tool Structure: (click hyperlinks for easy navigation)
B8: Module | C8: Section | D8: Section Description | E8: Worksheet Name | F8: Worksheet Permissions
C9: Consolidated Summaries | D9: Contains summaries of the results of a 2015-2020 portfolio from various perspectives. The summaries reflect the portfolio (programs, measures, budget) specified within the "Program Design" section of the Tool for input into CDM plans | E9: Plan | F9: Tool Output
E10: Budget | F10: Tool Output
E11: Sector | F11: Tool Output
E12: Detail | F12: Tool Output
E13: BMG | F13: Tool Output
B14: PROGRAM DESIGN MODULE
C15: Program Design (User Inputs) | D15: Main input worksheets for the average user for program design purposes. Users create and select measures associated with programs, and input budgets | E15: Measures | F15: User Input
E16: Program Design | F16: User Input
E17: Budget Inputs | F17: User Input
E18: External Inputs | F18: User Input
B19: RESULTS MODULE
C20: Results | D20: Contains the results of the cost effectiveness analysis for the inputs specified by the user in the Program Design module. | E20: CE Results | F20: Tool Output
E21: Savings Results | F21: Tool Output
E22: Summary CE Results | F22: Tool Output
B24: ADMIN INPUT MODULE
C25: OPA/Admin Inputs | D25: Administrative users input assumptions within these worksheets, the average user does not need to interact with this module | E25: ADMIN OPTIONS | F25: Administrative Use only
E26: CE Parameters | F26: Administrative Use only
E27: Rates Table | F27: Administrative Use only
E28: Avoided Cost Table | F28: Administrative Use only
B29: DEFINED INPUTS MODULE
C30: Custom Input | D30: Users can create custom inputs to the Tool (load profiles and measures) that can be used when creating a new program/portfolio/measure. User defined load profiles available building blocks for the program design module are found here. | E30: Custom Load Profile Input | F30: User Input
E31: Custom Measure Input | F31: User Input
E32: Formatted Load Profiles | F32: Tool Output
B34: CALCULATION ENGINE
C35: Calculation Engine | D35: The worksheets in this module are required to calculate the cost effectiveness outputs and contain detailed calculations and reference information. Users do not need to interact with these worksheets. | E35: Measure CE Results | F35: Reference Only
E36: VBA References | F36: Reference Only
E37: Levelized Avoided Cost Table | F37: Reference Only
E38: Levelized Rates Table | F38: Reference Only
A41: Legend: (cells within the Tool are formatted according to the table below)
B42: Code | C42: Code Definition | D42: Description
B43: Blue Text | C43: User input (mandatory) | D43: These cells or columns provide the model with key user inputs required to complete the cost effectiveness calculations. If these cells are not populated, the Tool may return an error or the results will be incomplete.
B44: Black Text | C44: User input (optional) | D44: These cells or columns provide the Tool with parameters that may be populated through a user input form. However, the user can choose to manually override the information provided from the input form within these cells or columns.
B45: Black Text, Italics | C45: Description or Instructions | D45: These cells or columns contain information for the user to better understand the procedures and/or purpose associated with a particular worksheet.
B46: Black Text | C46: Calculated cell | D46: These cells or columns contain formulas that are essential to the calculation of the tool, in most cases these cells are locked and cannot be modified by the user.
B47: White Text | C47: Calculated columns
B48: Red Text | C48: Caution | D48: These instructions indicate a step that is critical or a mistake that is common that may result in an error in the Tool. Special care should be taken when these instructions are encountered.
A50: Cost Effectiveness Acronyms Used in the Tool:
B52: CDM | C52: Conservation And Demand Management
B53: CE | C53: Cost Effectiveness
B54: DR | C54: Demand Response
B55: Dx | C55: Distribution System
B56: EE | C56: Energy Efficiency
B57: EUL | C57: Effective Useful Life
B58: kW | C58: Kilowatt
B59: kWh | C59: Kilowatt Hour
B60: LC | C60: Levelized Delivery Cost
B61: MW | C61: Megawatt
B62: MWh | C62: Megawatt Hour
B63: NPV | C63: Net Present Value
B64: O&M | C64: Operations And Maintenance
B65: PAC | C65: Program Administrator Cost
B66: PV | C66: Present Value
B67: RIM | C67: Rate Impact Measure
B68: RUL | C68: Remaining Useful Life
B69: SC | C69: Societal Cost
B70: TRC | C70: Total Resource Cost
B72: Disclaimer: This Tool is provided solely for informational purposes and based on information currently available to the IESO. The Independent Electricity System Operator (“IESO”) expressly disclaims any responsibility or liability for any other use of the information in the Tool or any methods described. In particular, the information and outputs of the Tool are not meant to be relied on to determine actual electricity or cost savings. The IESO does not warrant the accuracy, reliability, completeness or timeliness of any of the information contained in the Tool, and undertakes no obligation to revise or update the Tool. Users of this Tool rely on the information contained therein at their own risk and remain responsible for seeking appropriate legal, technical or other professional advice with regard to their particular circumstances. The IESO and its respective officers, directors, employees, consultants, agents and subcontractors assume no liability or responsibility whatsoever to any person for damages of whatever kind and nature, which may occur or be suffered as a result of the use of this Tool or reliance on the information therein.

Sheet ARCHITECTURE (hidden)

Sheet SUMMARIES >>

Sheet Plan
A2: CDM Portfolio Summary for Inclusion in CDM Plans
A4: TABLE 1
A5: SUMMARY OF CDM PORTFOLIO COST EFFECTIVENESS
A6: Plan Cost Effectiveness | B6: Program Year | C6: TRC | F6: PACT | I6: Levelized Cost
C7: Benefits ($) | D7: Costs ($) | E7: Ratio | F7: Benefits ($) | G7: Costs ($) | H7: Ratio | I7: Benefits (Energy) | J7: Costs ($) | K7: ($/kWh)
B8: 2015 | C8: =SUMIFS('Program Design'!X:X,'Program Design'!$J:$J,$B8) -> 13111548.67 | D8: =SUMIFS('Program Design'!Y:Y,'Program Design'!$J:$J,$B8)+IFERROR(SUMIFS(INDEX(OFFSET('Budget Inputs'!$A$1,6,1,2000,560),0,MATCH(CONCATENATE($B8," Sub-Total"),OFFSET('Budget Inputs'!$A$1,6,1,1,560),0)),OFFSET('Budget Inputs'!$A$1,6,1,2000,1),"Total")*INDEX(OFFSET('Levelized Avoided Cost Table'!$A$1,7,1,900,20),MATCH(CONCATENATE($B8,"_",1),OFFSET('Levelized Avoided Cost Table'!$A$1,7,1,900,1),0),MATCH("Discount Factor",OFFSET('Levelized Avoided Cost Table'!$A$1,7,1,1,20),0)),0) -> 2755337.095 | E8: =IF(C8=0,"",C8/D8) -> 4.75860057 | F8: =SUMIFS('Program Design'!AF:AF,'Program Design'!$J:$J,$B8) -> 11378132.43 | G8: =SUMIFS('Program Design'!AG:AG,'Program Design'!$J:$J,$B8)+IFERROR(SUMIFS(INDEX(OFFSET('Budget Inputs'!$A$1,6,1,2000,560),0,MATCH(CONCATENATE($B8," Sub-Total"),OFFSET('Budget Inputs'!$A$1,6,1,1,560),0)),OFFSET('Budget Inputs'!$A$1,6,1,2000,1),"Total")*INDEX(OFFSET('Levelized Avoided Cost Table'!$A$1,7,1,900,20),MATCH(CONCATENATE($B8,"_",1),OFFSET('Levelized Avoided Cost Table'!$A$1,7,1,900,1),0),MATCH("Discount Factor",OFFSET('Levelized Avoided Cost Table'!$A$1,7,1,1,20),0)),0) -> 111618 | H8: =IF(F8=0,"",F8/G8) -> 101.93815 | I8: =SUMIFS('Program Design'!AS:AS,'Program Design'!$J:$J,$B8) -> 168327388.9 | J8: =IFERROR(SUMIFS('Program Design'!AT:AT,'Program Design'!$J:$J,$B8)+(SUMIFS(INDEX(OFFSET('Budget Inputs'!$A$1,6,1,2000,560),0,MATCH(CONCATENATE($B8," Sub-Total"),OFFSET('Budget Inputs'!$A$1,6,1,1,560),0)),OFFSET('Budget Inputs'!$A$1,6,1,2000,1),"Total")*INDEX(OFFSET('Levelized Avoided Cost Table'!$A$1,7,1,900,20),MATCH(CONCATENATE($B8,"_",1),OFFSET('Levelized Avoided Cost Table'!$A$1,7,1,900,1),0),MATCH("Discount Factor",OFFSET('Levelized Avoided Cost Table'!$A$1,7,1,1,20),0))),0) -> 111618 | K8: =IF(I8=0,"",J8/I8) -> 0.0006631006441
B9: 2016 | C9: =SUMIFS('Program Design'!X:X,'Program Design'!$J:$J,$B9) -> 21654449.56 | D9: =SUMIFS('Program Design'!Y:Y,'Program Design'!$J:$J,$B9)+IFERROR(SUMIFS(INDEX(OFFSET('Budget Inputs'!$A$1,6,1,2000,560),0,MATCH(CONCATENATE($B9," Sub-Total"),OFFSET('Budget Inputs'!$A$1,6,1,1,560),0)),OFFSET('Budget Inputs'!$A$1,6,1,2000,1),"Total")*INDEX(OFFSET('Levelized Avoided Cost Table'!$A$1,7,1,900,20),MATCH(CONCATENATE($B9,"_",1),OFFSET('Levelized Avoided Cost Table'!$A$1,7,1,900,1),0),MATCH("Discount Factor",OFFSET('Levelized Avoided Cost Table'!$A$1,7,1,1,20),0)),0) -> 12494341.29 | E9: 1.733140551 | F9: =SUMIFS('Program Design'!AF:AF,'Program Design'!$J:$J,$B9) -> 18064946.06 | G9: =SUMIFS('Program Design'!AG:AG,'Program Design'!$J:$J,$B9)+IFERROR(SUMIFS(INDEX(OFFSET('Budget Inputs'!$A$1,6,1,2000,560),0,MATCH(CONCATENATE($B9," Sub-Total"),OFFSET('Budget Inputs'!$A$1,6,1,1,560),0)),OFFSET('Budget Inputs'!$A$1,6,1,2000,1),"Total")*INDEX(OFFSET('Levelized Avoided Cost Table'!$A$1,7,1,900,20),MATCH(CONCATENATE($B9,"_",1),OFFSET('Levelized Avoided Cost Table'!$A$1,7,1,900,1),0),MATCH("Discount Factor",OFFSET('Levelized Avoided Cost Table'!$A$1,7,1,1,20),0)),0) -> 2383579.882 | H9: 7.578913629 | I9: =SUMIFS('Program Design'!AS:AS,'Program Design'!$J:$J,$B9) -> 255137855.2 | J9: =IFERROR(SUMIFS('Program Design'!AT:AT,'Program Design'!$J:$J,$B9)+(SUMIFS(INDEX(OFFSET('Budget Inputs'!$A$1,6,1,2000,560),0,MATCH(CONCATENATE($B9," Sub-Total"),OFFSET('Budget Inputs'!$A$1,6,1,1,560),0)),OFFSET('Budget Inputs'!$A$1,6,1,2000,1),"Total")*INDEX(OFFSET('Levelized Avoided Cost Table'!$A$1,7,1,900,20),MATCH(CONCATENATE($B9,"_",1),OFFSET('Levelized Avoided Cost Table'!$A$1,7,1,900,1),0),MATCH("Discount Factor",OFFSET('Levelized Avoided Cost Table'!$A$1,7,1,1,20),0))),0) -> 2383579.882 | K9: 0.009342321547
B10: 2017 | C10: =SUMIFS('Program Design'!X:X,'Program Design'!$J:$J,$B10) -> 19297220.33 | D10: =SUMIFS('Program Design'!Y:Y,'Program Design'!$J:$J,$B10)+IFERROR(SUMIFS(INDEX(OFFSET('Budget Inputs'!$A$1,6,1,2000,560),0,MATCH(CONCATENATE($B10," Sub-Total"),OFFSET('Budget Inputs'!$A$1,6,1,1,560),0)),OFFSET('Budget Inputs'!$A$1,6,1,2000,1),"Total")*INDEX(OFFSET('Levelized Avoided Cost Table'!$A$1,7,1,900,20),MATCH(CONCATENATE($B10,"_",1),OFFSET('Levelized Avoided Cost Table'!$A$1,7,1,900,1),0),MATCH("Discount Factor",OFFSET('Levelized Avoided Cost Table'!$A$1,7,1,1,20),0)),0) -> 11305229.73 | E10: 1.706928633 | F10: =SUMIFS('Program Design'!AF:AF,'Program Design'!$J:$J,$B10) -> 16504893.36 | G10: =SUMIFS('Program Design'!AG:AG,'Program Design'!$J:$J,$B10)+IFERROR(SUMIFS(INDEX(OFFSET('Budget Inputs'!$A$1,6,1,2000,560),0,MATCH(CONCATENATE($B10," Sub-Total"),OFFSET('Budget Inputs'!$A$1,6,1,1,560),0)),OFFSET('Budget Inputs'!$A$1,6,1,2000,1),"Total")*INDEX(OFFSET('Levelized Avoided Cost Table'!$A$1,7,1,900,20),MATCH(CONCATENATE($B10,"_",1),OFFSET('Levelized Avoided Cost Table'!$A$1,7,1,900,1),0),MATCH("Discount Factor",OFFSET('Levelized Avoided Cost Table'!$A$1,7,1,1,20),0)),0) -> 7330784.314 | H10: 2.251449866 | I10: =SUMIFS('Program Design'!AS:AS,'Program Design'!$J:$J,$B10) -> 212471548.7 | J10: =IFERROR(SUMIFS('Program Design'!AT:AT,'Program Design'!$J:$J,$B10)+(SUMIFS(INDEX(OFFSET('Budget Inputs'!$A$1,6,1,2000,560),0,MATCH(CONCATENATE($B10," Sub-Total"),OFFSET('Budget Inputs'!$A$1,6,1,1,560),0)),OFFSET('Budget Inputs'!$A$1,6,1,2000,1),"Total")*INDEX(OFFSET('Levelized Avoided Cost Table'!$A$1,7,1,900,20),MATCH(CONCATENATE($B10,"_",1),OFFSET('Levelized Avoided Cost Table'!$A$1,7,1,900,1),0),MATCH("Discount Factor",OFFSET('Levelized Avoided Cost Table'!$A$1,7,1,1,20),0))),0) -> 7330784.314 | K10: 0.03450242802
B11: 2018 | C11: =SUMIFS('Program Design'!X:X,'Program Design'!$J:$J,$B11) -> 38031629.76 | D11: =SUMIFS('Program Design'!Y:Y,'Program Design'!$J:$J,$B11)+IFERROR(SUMIFS(INDEX(OFFSET('Budget Inputs'!$A$1,6,1,2000,560),0,MATCH(CONCATENATE($B11," Sub-Total"),OFFSET('Budget Inputs'!$A$1,6,1,1,560),0)),OFFSET('Budget Inputs'!$A$1,6,1,2000,1),"Total")*INDEX(OFFSET('Levelized Avoided Cost Table'!$A$1,7,1,900,20),MATCH(CONCATENATE($B11,"_",1),OFFSET('Levelized Avoided Cost Table'!$A$1,7,1,900,1),0),MATCH("Discount Factor",OFFSET('Levelized Avoided Cost Table'!$A$1,7,1,1,20),0)),0) -> 25015544.27 | E11: 1.5203199 | F11: =SUMIFS('Program Design'!AF:AF,'Program Design'!$J:$J,$B11) -> 32318898.57 | G11: =SUMIFS('Program Design'!AG:AG,'Program Design'!$J:$J,$B11)+IFERROR(SUMIFS(INDEX(OFFSET('Budget Inputs'!$A$1,6,1,2000,560),0,MATCH(CONCATENATE($B11," Sub-Total"),OFFSET('Budget Inputs'!$A$1,6,1,1,560),0)),OFFSET('Budget Inputs'!$A$1,6,1,2000,1),"Total")*INDEX(OFFSET('Levelized Avoided Cost Table'!$A$1,7,1,900,20),MATCH(CONCATENATE($B11,"_",1),OFFSET('Levelized Avoided Cost Table'!$A$1,7,1,900,1),0),MATCH("Discount Factor",OFFSET('Levelized Avoided Cost Table'!$A$1,7,1,1,20),0)),0) -> 14294113.29 | H11: =IF(F11=0,"",F11/G11) -> 2.260993592 | I11: =SUMIFS('Program Design'!AS:AS,'Program Design'!$J:$J,$B11) -> 465124882.6 | J11: =IFERROR(SUMIFS('Program Design'!AT:AT,'Program Design'!$J:$J,$B11)+(SUMIFS(INDEX(OFFSET('Budget Inputs'!$A$1,6,1,2000,560),0,MATCH(CONCATENATE($B11," Sub-Total"),OFFSET('Budget Inputs'!$A$1,6,1,1,560),0)),OFFSET('Budget Inputs'!$A$1,6,1,2000,1),"Total")*INDEX(OFFSET('Levelized Avoided Cost Table'!$A$1,7,1,900,20),MATCH(CONCATENATE($B11,"_",1),OFFSET('Levelized Avoided Cost Table'!$A$1,7,1,900,1),0),MATCH("Discount Factor",OFFSET('Levelized Avoided Cost Table'!$A$1,7,1,1,20),0))),0) -> 14294113.29 | K11: 0.03073177512
B12: 2019 | C12: =SUMIFS('Program Design'!X:X,'Program Design'!$J:$J,$B12) -> 4979094.525 | D12: =SUMIFS('Program Design'!Y:Y,'Program Design'!$J:$J,$B12)+IFERROR(SUMIFS(INDEX(OFFSET('Budget Inputs'!$A$1,6,1,2000,560),0,MATCH(CONCATENATE($B12," Sub-Total"),OFFSET('Budget Inputs'!$A$1,6,1,1,560),0)),OFFSET('Budget Inputs'!$A$1,6,1,2000,1),"Total")*INDEX(OFFSET('Levelized Avoided Cost Table'!$A$1,7,1,900,20),MATCH(CONCATENATE($B12,"_",1),OFFSET('Levelized Avoided Cost Table'!$A$1,7,1,900,1),0),MATCH("Discount Factor",OFFSET('Levelized Avoided Cost Table'!$A$1,7,1,1,20),0)),0) -> 2711592.528 | E12: 1.836225198 | F12: =SUMIFS('Program Design'!AF:AF,'Program Design'!$J:$J,$B12) -> 4326789.307 | G12: =SUMIFS('Program Design'!AG:AG,'Program Design'!$J:$J,$B12)+IFERROR(SUMIFS(INDEX(OFFSET('Budget Inputs'!$A$1,6,1,2000,560),0,MATCH(CONCATENATE($B12," Sub-Total"),OFFSET('Budget Inputs'!$A$1,6,1,1,560),0)),OFFSET('Budget Inputs'!$A$1,6,1,2000,1),"Total")*INDEX(OFFSET('Levelized Avoided Cost Table'!$A$1,7,1,900,20),MATCH(CONCATENATE($B12,"_",1),OFFSET('Levelized Avoided Cost Table'!$A$1,7,1,900,1),0),MATCH("Discount Factor",OFFSET('Levelized Avoided Cost Table'!$A$1,7,1,1,20),0)),0) -> 7994585.037 | H12: 0.5412149957 | I12: =SUMIFS('Program Design'!AS:AS,'Program Design'!$J:$J,$B12) -> 57192833.2 | J12: =IFERROR(SUMIFS('Program Design'!AT:AT,'Program Design'!$J:$J,$B12)+(SUMIFS(INDEX(OFFSET('Budget Inputs'!$A$1,6,1,2000,560),0,MATCH(CONCATENATE($B12," Sub-Total"),OFFSET('Budget Inputs'!$A$1,6,1,1,560),0)),OFFSET('Budget Inputs'!$A$1,6,1,2000,1),"Total")*INDEX(OFFSET('Levelized Avoided Cost Table'!$A$1,7,1,900,20),MATCH(CONCATENATE($B12,"_",1),OFFSET('Levelized Avoided Cost Table'!$A$1,7,1,900,1),0),MATCH("Discount Factor",OFFSET('Levelized Avoided Cost Table'!$A$1,7,1,1,20),0))),0) -> 7994585.037 | K12: 0.1397829866
B13: 2020 | C13: =SUMIFS('Program Design'!X:X,'Program Design'!$J:$J,$B13) -> 54458718.32 | D13: =SUMIFS('Program Design'!Y:Y,'Program Design'!$J:$J,$B13)+IFERROR(SUMIFS(INDEX(OFFSET('Budget Inputs'!$A$1,6,1,2000,560),0,MATCH(CONCATENATE($B13," Sub-Total"),OFFSET('Budget Inputs'!$A$1,6,1,1,560),0)),OFFSET('Budget Inputs'!$A$1,6,1,2000,1),"Total")*INDEX(OFFSET('Levelized Avoided Cost Table'!$A$1,7,1,900,20),MATCH(CONCATENATE($B13,"_",1),OFFSET('Levelized Avoided Cost Table'!$A$1,7,1,900,1),0),MATCH("Discount Factor",OFFSET('Levelized Avoided Cost Table'!$A$1,7,1,1,20),0)),0) -> 16887534.44 | E13: 3.224787995 | F13: =SUMIFS('Program Design'!AF:AF,'Program Design'!$J:$J,$B13) -> 47355407.23 | G13: =SUMIFS('Program Design'!AG:AG,'Program Design'!$J:$J,$B13)+IFERROR(SUMIFS(INDEX(OFFSET('Budget Inputs'!$A$1,6,1,2000,560),0,MATCH(CONCATENATE($B13," Sub-Total"),OFFSET('Budget Inputs'!$A$1,6,1,1,560),0)),OFFSET('Budget Inputs'!$A$1,6,1,2000,1),"Total")*INDEX(OFFSET('Levelized Avoided Cost Table'!$A$1,7,1,900,20),MATCH(CONCATENATE($B13,"_",1),OFFSET('Levelized Avoided Cost Table'!$A$1,7,1,900,1),0),MATCH("Discount Factor",OFFSET('Levelized Avoided Cost Table'!$A$1,7,1,1,20),0)),0) -> 4011924.025 | H13: 11.80366501 | I13: =SUMIFS('Program Design'!AS:AS,'Program Design'!$J:$J,$B13) -> 609352794.4 | J13: =IFERROR(SUMIFS('Program Design'!AT:AT,'Program Design'!$J:$J,$B13)+(SUMIFS(INDEX(OFFSET('Budget Inputs'!$A$1,6,1,2000,560),0,MATCH(CONCATENATE($B13," Sub-Total"),OFFSET('Budget Inputs'!$A$1,6,1,1,560),0)),OFFSET('Budget Inputs'!$A$1,6,1,2000,1),"Total")*INDEX(OFFSET('Levelized Avoided Cost Table'!$A$1,7,1,900,20),MATCH(CONCATENATE($B13,"_",1),OFFSET('Levelized Avoided Cost Table'!$A$1,7,1,900,1),0),MATCH("Discount Factor",OFFSET('Levelized Avoided Cost Table'!$A$1,7,1,1,20),0))),0) -> 4011924.025 | K13: 0.006583910113
B14: Plan Total | C14: =SUM(C8:C13) -> 151532661.2 | D14: =SUM(D8:D13) -> 71169579.35 | E14: =IF(C14="","",C14/D14) -> 2.129177417 | F14: =SUM(F8:F13) -> 129949067 | G14: =SUM(G8:G13) -> 36126604.55 | H14: =IF(F14="","",F14/G14) -> 3.597046237 | I14: =SUM(I8:I13) -> 1767607303 | J14: =SUM(J8:J13) -> 36126604.55 | K14: =IF(I14="","",J14/I14) -> 0.02043813945
A16: TABLE 2
A17: SUMMARY OF PERSISTING CDM PORTFOLIO SAVINGS
A18: Plan Persisting Savings (end-user level) | C18: MW | D18: MWh
B19: 2015 | C19: =SUMIFS(OFFSET('Savings Results'!$A$1,6,16+2020-MIN('Program Design'!J:J),2000),OFFSET('Savings Results'!$A$1,6,6,2000),Plan!$B19,OFFSET('Savings Results'!$A$1,6,4,2000),"Dx")/(1/(1-SUM('CE Parameters'!$F$10:$F$11)))/1000 -> 2.931792973 | D19: =SUMIFS(OFFSET('Savings Results'!$A$1,6,16+2020-MIN('Program Design'!J:J)+2020 -MIN('Program Design'!J:J)+ MAX('Savings Results'!J:J),2000),OFFSET('Savings Results'!$A$1,6,6,2000),Plan!$B19,OFFSET('Savings Results'!$A$1,6,4,2000),"Dx")/(1/(1-SUM('CE Parameters'!$F$10:$F$11)))/1000 -> 19051.51741
B20: 2016 | C20: =SUMIFS(OFFSET('Savings Results'!$A$1,6,16+2020-MIN('Program Design'!J:J),2000),OFFSET('Savings Results'!$A$1,6,6,2000),Plan!$B20,OFFSET('Savings Results'!$A$1,6,4,2000),"Dx")/(1/(1-SUM('CE Parameters'!$F$10:$F$11)))/1000 -> 5.574904522 | D20: =SUMIFS(OFFSET('Savings Results'!$A$1,6,16+2020-MIN('Program Design'!J:J)+2020 -MIN('Program Design'!J:J)+ MAX('Savings Results'!J:J),2000),OFFSET('Savings Results'!$A$1,6,6,2000),Plan!$B20,OFFSET('Savings Results'!$A$1,6,4,2000),"Dx")/(1/(1-SUM('CE Parameters'!$F$10:$F$11)))/1000 -> 34700.16507
B21: 2017 | C21: =SUMIFS(OFFSET('Savings Results'!$A$1,6,16+2020-MIN('Program Design'!J:J),2000),OFFSET('Savings Results'!$A$1,6,6,2000),Plan!$B21,OFFSET('Savings Results'!$A$1,6,4,2000),"Dx")/(1/(1-SUM('CE Parameters'!$F$10:$F$11)))/1000 -> 3.915947447 | D21: =SUMIFS(OFFSET('Savings Results'!$A$1,6,16+2020-MIN('Program Design'!J:J)+2020 -MIN('Program Design'!J:J)+ MAX('Savings Results'!J:J),2000),OFFSET('Savings Results'!$A$1,6,6,2000),Plan!$B21,OFFSET('Savings Results'!$A$1,6,4,2000),"Dx")/(1/(1-SUM('CE Parameters'!$F$10:$F$11)))/1000 -> 26944.42301
B22: 2018 | C22: =SUMIFS(OFFSET('Savings Results'!$A$1,6,16+2020-MIN('Program Design'!J:J),2000),OFFSET('Savings Results'!$A$1,6,6,2000),Plan!$B22,OFFSET('Savings Results'!$A$1,6,4,2000),"Dx")/(1/(1-SUM('CE Parameters'!$F$10:$F$11)))/1000 -> 5.305045651 | D22: =SUMIFS(OFFSET('Savings Results'!$A$1,6,16+2020-MIN('Program Design'!J:J)+2020 -MIN('Program Design'!J:J)+ MAX('Savings Results'!J:J),2000),OFFSET('Savings Results'!$A$1,6,6,2000),Plan!$B22,OFFSET('Savings Results'!$A$1,6,4,2000),"Dx")/(1/(1-SUM('CE Parameters'!$F$10:$F$11)))/1000 -> 51121.87472
B23: 2019 | C23: =SUMIFS(OFFSET('Savings Results'!$A$1,6,16+2020-MIN('Program Design'!J:J),2000),OFFSET('Savings Results'!$A$1,6,6,2000),Plan!$B23,OFFSET('Savings Results'!$A$1,6,4,2000),"Dx")/(1/(1-SUM('CE Parameters'!$F$10:$F$11)))/1000 -> 0.6108070335 | D23: =SUMIFS(OFFSET('Savings Results'!$A$1,6,16+2020-MIN('Program Design'!J:J)+2020 -MIN('Program Design'!J:J)+ MAX('Savings Results'!J:J),2000),OFFSET('Savings Results'!$A$1,6,6,2000),Plan!$B23,OFFSET('Savings Results'!$A$1,6,4,2000),"Dx")/(1/(1-SUM('CE Parameters'!$F$10:$F$11)))/1000 -> 5321.322127
B24: 2020 | C24: =SUMIFS(OFFSET('Savings Results'!$A$1,6,16+2020-MIN('Program Design'!J:J),2000),OFFSET('Savings Results'!$A$1,6,6,2000),Plan!$B24,OFFSET('Savings Results'!$A$1,6,4,2000),"Dx")/(1/(1-SUM('CE Parameters'!$F$10:$F$11)))/1000 -> 6.165 | D24: =SUMIFS(OFFSET('Savings Results'!$A$1,6,16+2020-MIN('Program Design'!J:J)+2020 -MIN('Program Design'!J:J)+ MAX('Savings Results'!J:J),2000),OFFSET('Savings Results'!$A$1,6,6,2000),Plan!$B24,OFFSET('Savings Results'!$A$1,6,4,2000),"Dx")/(1/(1-SUM('CE Parameters'!$F$10:$F$11)))/1000 -> 54001.55944
B25: Plan Total | C25: =SUM(C19:C24) -> 24.50349763 | D25: =SUM(D19:D24) -> 191140.8618
A27: TABLE 3
A28: PROGRAM ROLL OUT SCHEDULE (ANNUAL ANTICIPATED BUDGET & INCREMENTAL ANNUAL ENERGY SAVINGS BY PROGRAM)
C29: 2015 | E29: 2016 | G29: 2017 | I29: 2018 | K29: 2019 | M29: 2020 | O29: Total 2015 - 2020
A31: Sector | B31: Program | C31: Anticipated Annual Budget ($) | D31: Energy Savings (MWh) | E31: Anticipated Annual Budget ($) | F31: Energy Savings (MWh) | G31: Anticipated Annual Budget ($) | H31: Energy Savings (MWh) | I31: Anticipated Annual Budget ($) | J31: Energy Savings (MWh) | K31: Anticipated Annual Budget ($) | L31: Energy Savings (MWh) | M31: Anticipated Annual Budget ($) | N31: Energy Savings (MWh) | O31: Total Plan Budget ($) | P31: Total Persisting Energy Savings in 2020 (MWh)
A32: Non-Residential | B32: 2015 DIL | C32: =IFERROR(SUMIFS('Program Design'!$U:$U,'Program Design'!$C:$C,$A32,'Program Design'!$D:$D,$B32,'Program Design'!$J:$J,C$29)+SUMIFS('Program Design'!$V:$V,'Program Design'!$C:$C,$A32,'Program Design'!$D:$D,$B32,'Program Design'!$J:$J,C$29)+SUMIFS('Program Design'!$W:$W,'Program Design'!$C:$C,$A32,'Program Design'!$D:$D,$B32,'Program Design'!$J:$J,C$29)+SUMIFS(INDEX(OFFSET('Budget Inputs'!$A$1,6,1,2000,560),0,MATCH(CONCATENATE(C$29," Sub-Total"),OFFSET('Budget Inputs'!$A$1,6,1,1,560),0)),OFFSET('Budget Inputs'!$A$1,6,1,2000,1),$A32,OFFSET('Budget Inputs'!$A$1,6,2,2000,1),$B32),0) -> 0 | D32: =(SUMIFS(OFFSET('Savings Results'!$A$1,6,16 +MAX('Savings Results'!$G:$G)-MIN('Savings Results'!$G:$G)+MAX('Savings Results'!$J:$J)+C$29-MIN('Savings Results'!$G:$G),2000),OFFSET('Savings Results'!$A$1,6,6,2000),C$29,OFFSET('Savings Results'!$A$1,6,4,2000),"Dx",OFFSET('Savings Results'!$A$1,6,1,2000),$A32,OFFSET('Savings Results'!$A$1,6,2,2000),$B32)/(1/(1-SUM('CE Parameters'!$F$10:$F$11))))/1000 -> 0.926 | E32: =IFERROR(SUMIFS('Program Design'!$U:$U,'Program Design'!$C:$C,$A32,'Program Design'!$D:$D,$B32,'Program Design'!$J:$J,E$29)+SUMIFS('Program Design'!$V:$V,'Program Design'!$C:$C,$A32,'Program Design'!$D:$D,$B32,'Program Design'!$J:$J,E$29)+SUMIFS('Program Design'!$W:$W,'Program Design'!$C:$C,$A32,'Program Design'!$D:$D,$B32,'Program Design'!$J:$J,E$29)+SUMIFS(INDEX(OFFSET('Budget Inputs'!$A$1,6,1,2000,560),0,MATCH(CONCATENATE(E$29," Sub-Total"),OFFSET('Budget Inputs'!$A$1,6,1,1,560),0)),OFFSET('Budget Inputs'!$A$1,6,1,2000,1),$A32,OFFSET('Budget Inputs'!$A$1,6,2,2000,1),$B32),0) -> 0 | F32: =(SUMIFS(OFFSET('Savings Results'!$A$1,6,16 +MAX('Savings Results'!$G:$G)-MIN('Savings Results'!$G:$G)+MAX('Savings Results'!$J:$J)+E$29-MIN('Savings Results'!$G:$G),2000),OFFSET('Savings Results'!$A$1,6,6,2000),E$29,OFFSET('Savings Results'!$A$1,6,4,2000),"Dx",OFFSET('Savings Results'!$A$1,6,1,2000),$A32,OFFSET('Savings Results'!$A$1,6,2,2000),$B32)/(1/(1-SUM('CE Parameters'!$F$10:$F$11))))/1000 -> 0 | G32: =IFERROR(SUMIFS('Program Design'!$U:$U,'Program Design'!$C:$C,$A32,'Program Design'!$D:$D,$B32,'Program Design'!$J:$J,G$29)+SUMIFS('Program Design'!$V:$V,'Program Design'!$C:$C,$A32,'Program Design'!$D:$D,$B32,'Program Design'!$J:$J,G$29)+SUMIFS('Program Design'!$W:$W,'Program Design'!$C:$C,$A32,'Program Design'!$D:$D,$B32,'Program Design'!$J:$J,G$29)+SUMIFS(INDEX(OFFSET('Budget Inputs'!$A$1,6,1,2000,560),0,MATCH(CONCATENATE(G$29," Sub-Total"),OFFSET('Budget Inputs'!$A$1,6,1,1,560),0)),OFFSET('Budget Inputs'!$A$1,6,1,2000,1),$A32,OFFSET('Budget Inputs'!$A$1,6,2,2000,1),$B32),0) -> 0 | H32: =(SUMIFS(OFFSET('Savings Results'!$A$1,6,16 +MAX('Savings Results'!$G:$G)-MIN('Savings Results'!$G:$G)+MAX('Savings Results'!$J:$J)+G$29-MIN('Savings Results'!$G:$G),2000),OFFSET('Savings Results'!$A$1,6,6,2000),G$29,OFFSET('Savings Results'!$A$1,6,4,2000),"Dx",OFFSET('Savings Results'!$A$1,6,1,2000),$A32,OFFSET('Savings Results'!$A$1,6,2,2000),$B32)/(1/(1-SUM('CE Parameters'!$F$10:$F$11))))/1000 -> 0 | I32: =IFERROR(SUMIFS('Program Design'!$U:$U,'Program Design'!$C:$C,$A32,'Program Design'!$D:$D,$B32,'Program Design'!$J:$J,I$29)+SUMIFS('Program Design'!$V:$V,'Program Design'!$C:$C,$A32,'Program Design'!$D:$D,$B32,'Program Design'!$J:$J,I$29)+SUMIFS('Program Design'!$W:$W,'Program Design'!$C:$C,$A32,'Program Design'!$D:$D,$B32,'Program Design'!$J:$J,I$29)+SUMIFS(INDEX(OFFSET('Budget Inputs'!$A$1,6,1,2000,560),0,MATCH(CONCATENATE(I$29," Sub-Total"),OFFSET('Budget Inputs'!$A$1,6,1,1,560),0)),OFFSET('Budget Inputs'!$A$1,6,1,2000,1),$A32,OFFSET('Budget Inputs'!$A$1,6,2,2000,1),$B32),0) -> 0 | J32: =(SUMIFS(OFFSET('Savings Results'!$A$1,6,16 +MAX('Savings Results'!$G:$G)-MIN('Savings Results'!$G:$G)+MAX('Savings Results'!$J:$J)+I$29-MIN('Savings Results'!$G:$G),2000),OFFSET('Savings Results'!$A$1,6,6,2000),I$29,OFFSET('Savings Results'!$A$1,6,4,2000),"Dx",OFFSET('Savings Results'!$A$1,6,1,2000),$A32,OFFSET('Savings Results'!$A$1,6,2,2000),$B32)/(1/(1-SUM('CE Parameters'!$F$10:$F$11))))/1000 -> 0 | K32: =IFERROR(SUMIFS('Program Design'!$U:$U,'Program Design'!$C:$C,$A32,'Program Design'!$D:$D,$B32,'Program Design'!$J:$J,K$29)+SUMIFS('Program Design'!$V:$V,'Program Design'!$C:$C,$A32,'Program Design'!$D:$D,$B32,'Program Design'!$J:$J,K$29)+SUMIFS('Program Design'!$W:$W,'Program Design'!$C:$C,$A32,'Program Design'!$D:$D,$B32,'Program Design'!$J:$J,K$29)+SUMIFS(INDEX(OFFSET('Budget Inputs'!$A$1,6,1,2000,560),0,MATCH(CONCATENATE(K$29," Sub-Total"),OFFSET('Budget Inputs'!$A$1,6,1,1,560),0)),OFFSET('Budget Inputs'!$A$1,6,1,2000,1),$A32,OFFSET('Budget Inputs'!$A$1,6,2,2000,1),$B32),0) -> 0 | L32: =(SUMIFS(OFFSET('Savings Results'!$A$1,6,16 +MAX('Savings Results'!$G:$G)-MIN('Savings Results'!$G:$G)+MAX('Savings Results'!$J:$J)+K$29-MIN('Savings Results'!$G:$G),2000),OFFSET('Savings Results'!$A$1,6,6,2000),K$29,OFFSET('Savings Results'!$A$1,6,4,2000),"Dx",OFFSET('Savings Results'!$A$1,6,1,2000),$A32,OFFSET('Savings Results'!$A$1,6,2,2000),$B32)/(1/(1-SUM('CE Parameters'!$F$10:$F$11))))/1000 -> 0 | M32: =IFERROR(SUMIFS('Program Design'!$U:$U,'Program Design'!$C:$C,$A32,'Program Design'!$D:$D,$B32,'Program Design'!$J:$J,M$29)+SUMIFS('Program Design'!$V:$V,'Program Design'!$C:$C,$A32,'Program Design'!$D:$D,$B32,'Program Design'!$J:$J,M$29)+SUMIFS('Program Design'!$W:$W,'Program Design'!$C:$C,$A32,'Program Design'!$D:$D,$B32,'Program Design'!$J:$J,M$29)+SUMIFS(INDEX(OFFSET('Budget Inputs'!$A$1,6,1,2000,560),0,MATCH(CONCATENATE(M$29," Sub-Total"),OFFSET('Budget Inputs'!$A$1,6,1,1,560),0)),OFFSET('Budget Inputs'!$A$1,6,1,2000,1),$A32,OFFSET('Budget Inputs'!$A$1,6,2,2000,1),$B32),0) -> 0 | N32: =(SUMIFS(OFFSET('Savings Results'!$A$1,6,16 +MAX('Savings Results'!$G:$G)-MIN('Savings Results'!$G:$G)+MAX('Savings Results'!$J:$J)+M$29-MIN('Savings Results'!$G:$G),2000),OFFSET('Savings Results'!$A$1,6,6,2000),M$29,OFFSET('Savings Results'!$A$1,6,4,2000),"Dx",OFFSET('Savings Results'!$A$1,6,1,2000),$A32,OFFSET('Savings Results'!$A$1,6,2,2000),$B32)/(1/(1-SUM('CE Parameters'!$F$10:$F$11))))/1000 -> 0 | O32: =IFERROR(SUMIFS('Program Design'!$U:$U,'Program Design'!$C:$C,$A32,'Program Design'!$D:$D,$B32)+SUMIFS('Program Design'!$V:$V,'Program Design'!$C:$C,$A32,'Program Design'!$D:$D,$B32)+SUMIFS('Program Design'!$W:$W,'Program Design'!$C:$C,$A32,'Program Design'!$D:$D,$B32)+SUMIFS(INDEX(OFFSET('Budget Inputs'!$A$1,6,1,2000,560),0,MATCH("Total",OFFSET('Budget Inputs'!$A$1,6,1,1,560),0)),OFFSET('Budget Inputs'!$A$1,6,1,2000,1),$A32,OFFSET('Budget Inputs'!$A$1,6,2,2000,1),$B32),0) -> 0 | P32: =(SUMIFS(OFFSET('Savings Results'!$A$1,6,16+2020-MIN('Program Design'!J:J)+2020 -MIN('Program Design'!J:J)+ MAX('Savings Results'!J:J),2000),OFFSET('Savings Results'!$A$1,6,4,2000),"Dx",OFFSET('Savings Results'!$A$1,6,1,2000),$A32,OFFSET('Savings Results'!$A$1,6,2,2000),$B32)/(1/(1-SUM('CE Parameters'!$F$10:$F$11))))/1000 -> 0.926
A33: Non-Residential | B33: Retrofit | C33: =IFERROR(SUMIFS('Program Design'!$U:$U,'Program Design'!$C:$C,$A33,'Program Design'!$D:$D,$B33,'Program Design'!$J:$J,C$29)+SUMIFS('Program Design'!$V:$V,'Program Design'!$C:$C,$A33,'Program Design'!$D:$D,$B33,'Program Design'!$J:$J,C$29)+SUMIFS('Program Design'!$W:$W,'Program Design'!$C:$C,$A33,'Program Design'!$D:$D,$B33,'Program Design'!$J:$J,C$29)+SUMIFS(INDEX(OFFSET('Budget Inputs'!$A$1,6,1,2000,560),0,MATCH(CONCATENATE(C$29," Sub-Total"),OFFSET('Budget Inputs'!$A$1,6,1,1,560),0)),OFFSET('Budget Inputs'!$A$1,6,1,2000,1),$A33,OFFSET('Budget Inputs'!$A$1,6,2,2000,1),$B33),0) -> 93759 | D33: =(SUMIFS(OFFSET('Savings Results'!$A$1,6,16 +MAX('Savings Results'!$G:$G)-MIN('Savings Results'!$G:$G)+MAX('Savings Results'!$J:$J)+C$29-MIN('Savings Results'!$G:$G),2000),OFFSET('Savings Results'!$A$1,6,6,2000),C$29,OFFSET('Savings Results'!$A$1,6,4,2000),"Dx",OFFSET('Savings Results'!$A$1,6,1,2000),$A33,OFFSET('Savings Results'!$A$1,6,2,2000),$B33)/(1/(1-SUM('CE Parameters'!$F$10:$F$11))))/1000 -> 166.2884093 | E33: =IFERROR(SUMIFS('Program Design'!$U:$U,'Program Design'!$C:$C,$A33,'Program Design'!$D:$D,$B33,'Program Design'!$J:$J,E$29)+SUMIFS('Program Design'!$V:$V,'Program Design'!$C:$C,$A33,'Program Design'!$D:$D,$B33,'Program Design'!$J:$J,E$29)+SUMIFS('Program Design'!$W:$W,'Program Design'!$C:$C,$A33,'Program Design'!$D:$D,$B33,'Program Design'!$J:$J,E$29)+SUMIFS(INDEX(OFFSET('Budget Inputs'!$A$1,6,1,2000,560),0,MATCH(CONCATENATE(E$29," Sub-Total"),OFFSET('Budget Inputs'!$A$1,6,1,1,560),0)),OFFSET('Budget Inputs'!$A$1,6,1,2000,1),$A33,OFFSET('Budget Inputs'!$A$1,6,2,2000,1),$B33),0) -> 1705825.48 | F33: =(SUMIFS(OFFSET('Savings Results'!$A$1,6,16 +MAX('Savings Results'!$G:$G)-MIN('Savings Results'!$G:$G)+MAX('Savings Results'!$J:$J)+E$29-MIN('Savings Results'!$G:$G),2000),OFFSET('Savings Results'!$A$1,6,6,2000),E$29,OFFSET('Savings Results'!$A$1,6,4,2000),"Dx",OFFSET('Savings Results'!$A$1,6,1,2000),$A33,OFFSET('Savings Results'!$A$1,6,2,2000),$B33)/(1/(1-SUM('CE Parameters'!$F$10:$F$11))))/1000 -> 24620.50497 | G33: =IFERROR(SUMIFS('Program Design'!$U:$U,'Program Design'!$C:$C,$A33,'Program Design'!$D:$D,$B33,'Program Design'!$J:$J,G$29)+SUMIFS('Program Design'!$V:$V,'Program Design'!$C:$C,$A33,'Program Design'!$D:$D,$B33,'Program Design'!$J:$J,G$29)+SUMIFS('Program Design'!$W:$W,'Program Design'!$C:$C,$A33,'Program Design'!$D:$D,$B33,'Program Design'!$J:$J,G$29)+SUMIFS(INDEX(OFFSET('Budget Inputs'!$A$1,6,1,2000,560),0,MATCH(CONCATENATE(G$29," Sub-Total"),OFFSET('Budget Inputs'!$A$1,6,1,1,560),0)),OFFSET('Budget Inputs'!$A$1,6,1,2000,1),$A33,OFFSET('Budget Inputs'!$A$1,6,2,2000,1),$B33),0) -> 4546172 | H33: =(SUMIFS(OFFSET('Savings Results'!$A$1,6,16 +MAX('Savings Results'!$G:$G)-MIN('Savings Results'!$G:$G)+MAX('Savings Results'!$J:$J)+G$29-MIN('Savings Results'!$G:$G),2000),OFFSET('Savings Results'!$A$1,6,6,2000),G$29,OFFSET('Savings Results'!$A$1,6,4,2000),"Dx",OFFSET('Savings Results'!$A$1,6,1,2000),$A33,OFFSET('Savings Results'!$A$1,6,2,2000),$B33)/(1/(1-SUM('CE Parameters'!$F$10:$F$11))))/1000 -> 9760.154027 | I33: =IFERROR(SUMIFS('Program Design'!$U:$U,'Program Design'!$C:$C,$A33,'Program Design'!$D:$D,$B33,'Program Design'!$J:$J,I$29)+SUMIFS('Program Design'!$V:$V,'Program Design'!$C:$C,$A33,'Program Design'!$D:$D,$B33,'Program Design'!$J:$J,I$29)+SUMIFS('Program Design'!$W:$W,'Program Design'!$C:$C,$A33,'Program Design'!$D:$D,$B33,'Program Design'!$J:$J,I$29)+SUMIFS(INDEX(OFFSET('Budget Inputs'!$A$1,6,1,2000,560),0,MATCH(CONCATENATE(I$29," Sub-Total"),OFFSET('Budget Inputs'!$A$1,6,1,1,560),0)),OFFSET('Budget Inputs'!$A$1,6,1,2000,1),$A33,OFFSET('Budget Inputs'!$A$1,6,2,2000,1),$B33),0) -> 5726810.53 | J33: =(SUMIFS(OFFSET('Savings Results'!$A$1,6,16 +MAX('Savings Results'!$G:$G)-MIN('Savings Results'!$G:$G)+MAX('Savings Results'!$J:$J)+I$29-MIN('Savings Results'!$G:$G),2000),OFFSET('Savings Results'!$A$1,6,6,2000),I$29,OFFSET('Savings Results'!$A$1,6,4,2000),"Dx",OFFSET('Savings Results'!$A$1,6,1,2000),$A33,OFFSET('Savings Results'!$A$1,6,2,2000),$B33)/(1/(1-SUM('CE Parameters'!$F$10:$F$11))))/1000 -> 24593.97648 | K33: =IFERROR(SUMIFS('Program Design'!$U:$U,'Program Design'!$C:$C,$A33,'Program Design'!$D:$D,$B33,'Program Design'!$J:$J,K$29)+SUMIFS('Program Design'!$V:$V,'Program Design'!$C:$C,$A33,'Program Design'!$D:$D,$B33,'Program Design'!$J:$J,K$29)+SUMIFS('Program Design'!$W:$W,'Program Design'!$C:$C,$A33,'Program Design'!$D:$D,$B33,'Program Design'!$J:$J,K$29)+SUMIFS(INDEX(OFFSET('Budget Inputs'!$A$1,6,1,2000,560),0,MATCH(CONCATENATE(K$29," Sub-Total"),OFFSET('Budget Inputs'!$A$1,6,1,1,560),0)),OFFSET('Budget Inputs'!$A$1,6,1,2000,1),$A33,OFFSET('Budget Inputs'!$A$1,6,2,2000,1),$B33),0) -> 1091955.06 | L33: =(SUMIFS(OFFSET('Savings Results'!$A$1,6,16 +MAX('Savings Results'!$G:$G)-MIN('Savings Results'!$G:$G)+MAX('Savings Results'!$J:$J)+K$29-MIN('Savings Results'!$G:$G),2000),OFFSET('Savings Results'!$A$1,6,6,2000),K$29,OFFSET('Savings Results'!$A$1,6,4,2000),"Dx",OFFSET('Savings Results'!$A$1,6,1,2000),$A33,OFFSET('Savings Results'!$A$1,6,2,2000),$B33)/(1/(1-SUM('CE Parameters'!$F$10:$F$11))))/1000 -> 76.44902729 | M33: =IFERROR(SUMIFS('Program Design'!$U:$U,'Program Design'!$C:$C,$A33,'Program Design'!$D:$D,$B33,'Program Design'!$J:$J,M$29)+SUMIFS('Program Design'!$V:$V,'Program Design'!$C:$C,$A33,'Program Design'!$D:$D,$B33,'Program Design'!$J:$J,M$29)+SUMIFS('Program Design'!$W:$W,'Program Design'!$C:$C,$A33,'Program Design'!$D:$D,$B33,'Program Design'!$J:$J,M$29)+SUMIFS(INDEX(OFFSET('Budget Inputs'!$A$1,6,1,2000,560),0,MATCH(CONCATENATE(M$29," Sub-Total"),OFFSET('Budget Inputs'!$A$1,6,1,1,560),0)),OFFSET('Budget Inputs'!$A$1,6,1,2000,1),$A33,OFFSET('Budget Inputs'!$A$1,6,2,2000,1),$B33),0) -> 1074647.41 | N33: =(SUMIFS(OFFSET('Savings Results'!$A$1,6,16 +MAX('Savings Results'!$G:$G)-MIN('Savings Results'!$G:$G)+MAX('Savings Results'!$J:$J)+M$29-MIN('Savings Results'!$G:$G),2000),OFFSET('Savings Results'!$A$1,6,6,2000),M$29,OFFSET('Savings Results'!$A$1,6,4,2000),"Dx",OFFSET('Savings Results'!$A$1,6,1,2000),$A33,OFFSET('Savings Results'!$A$1,6,2,2000),$B33)/(1/(1-SUM('CE Parameters'!$F$10:$F$11))))/1000 -> 0 | O33: =IFERROR(SUMIFS('Program Design'!$U:$U,'Program Design'!$C:$C,$A33,'Program Design'!$D:$D,$B33)+SUMIFS('Program Design'!$V:$V,'Program Design'!$C:$C,$A33,'Program Design'!$D:$D,$B33)+SUMIFS('Program Design'!$W:$W,'Program Design'!$C:$C,$A33,'Program Design'!$D:$D,$B33)+SUMIFS(INDEX(OFFSET('Budget Inputs'!$A$1,6,1,2000,560),0,MATCH("Total",OFFSET('Budget Inputs'!$A$1,6,1,1,560),0)),OFFSET('Budget Inputs'!$A$1,6,1,2000,1),$A33,OFFSET('Budget Inputs'!$A$1,6,2,2000,1),$B33),0) -> 14239169.48 | P33: =(SUMIFS(OFFSET('Savings Results'!$A$1,6,16+2020-MIN('Program Design'!J:J)+2020 -MIN('Program Design'!J:J)+ MAX('Savings Results'!J:J),2000),OFFSET('Savings Results'!$A$1,6,4,2000),"Dx",OFFSET('Savings Results'!$A$1,6,1,2000),$A33,OFFSET('Savings Results'!$A$1,6,2,2000),$B33)/(1/(1-SUM('CE Parameters'!$F$10:$F$11))))/1000 -> 59217.37291
A34: Non-Residential | B34: Small Business Lighting | C34: =IFERROR(SUMIFS('Program Design'!$U:$U,'Program Design'!$C:$C,$A34,'Program Design'!$D:$D,$B34,'Program Design'!$J:$J,C$29)+SUMIFS('Program Design'!$V:$V,'Program Design'!$C:$C,$A34,'Program Design'!$D:$D,$B34,'Program Design'!$J:$J,C$29)+SUMIFS('Program Design'!$W:$W,'Program Design'!$C:$C,$A34,'Program Design'!$D:$D,$B34,'Program Design'!$J:$J,C$29)+SUMIFS(INDEX(OFFSET('Budget Inputs'!$A$1,6,1,2000,560),0,MATCH(CONCATENATE(C$29," Sub-Total"),OFFSET('Budget Inputs'!$A$1,6,1,1,560),0)),OFFSET('Budget Inputs'!$A$1,6,1,2000,1),$A34,OFFSET('Budget Inputs'!$A$1,6,2,2000,1),$B34),0) -> 0 | D34: =(SUMIFS(OFFSET('Savings Results'!$A$1,6,16 +MAX('Savings Results'!$G:$G)-MIN('Savings Results'!$G:$G)+MAX('Savings Results'!$J:$J)+C$29-MIN('Savings Results'!$G:$G),2000),OFFSET('Savings Results'!$A$1,6,6,2000),C$29,OFFSET('Savings Results'!$A$1,6,4,2000),"Dx",OFFSET('Savings Results'!$A$1,6,1,2000),$A34,OFFSET('Savings Results'!$A$1,6,2,2000),$B34)/(1/(1-SUM('CE Parameters'!$F$10:$F$11))))/1000 -> 0 | E34: =IFERROR(SUMIFS('Program Design'!$U:$U,'Program Design'!$C:$C,$A34,'Program Design'!$D:$D,$B34,'Program Design'!$J:$J,E$29)+SUMIFS('Program Design'!$V:$V,'Program Design'!$C:$C,$A34,'Program Design'!$D:$D,$B34,'Program Design'!$J:$J,E$29)+SUMIFS('Program Design'!$W:$W,'Program Design'!$C:$C,$A34,'Program Design'!$D:$D,$B34,'Program Design'!$J:$J,E$29)+SUMIFS(INDEX(OFFSET('Budget Inputs'!$A$1,6,1,2000,560),0,MATCH(CONCATENATE(E$29," Sub-Total"),OFFSET('Budget Inputs'!$A$1,6,1,1,560),0)),OFFSET('Budget Inputs'!$A$1,6,1,2000,1),$A34,OFFSET('Budget Inputs'!$A$1,6,2,2000,1),$B34),0) -> 0 | F34: =(SUMIFS(OFFSET('Savings Results'!$A$1,6,16 +MAX('Savings Results'!$G:$G)-MIN('Savings Results'!$G:$G)+MAX('Savings Results'!$J:$J)+E$29-MIN('Savings Results'!$G:$G),2000),OFFSET('Savings Results'!$A$1,6,6,2000),E$29,OFFSET('Savings Results'!$A$1,6,4,2000),"Dx",OFFSET('Savings Results'!$A$1,6,1,2000),$A34,OFFSET('Savings Results'!$A$1,6,2,2000),$B34)/(1/(1-SUM('CE Parameters'!$F$10:$F$11))))/1000 -> 0 | G34: =IFERROR(SUMIFS('Program Design'!$U:$U,'Program Design'!$C:$C,$A34,'Program Design'!$D:$D,$B34,'Program Design'!$J:$J,G$29)+SUMIFS('Program Design'!$V:$V,'Program Design'!$C:$C,$A34,'Program Design'!$D:$D,$B34,'Program Design'!$J:$J,G$29)+SUMIFS('Program Design'!$W:$W,'Program Design'!$C:$C,$A34,'Program Design'!$D:$D,$B34,'Program Design'!$J:$J,G$29)+SUMIFS(INDEX(OFFSET('Budget Inputs'!$A$1,6,1,2000,560),0,MATCH(CONCATENATE(G$29," Sub-Total"),OFFSET('Budget Inputs'!$A$1,6,1,1,560),0)),OFFSET('Budget Inputs'!$A$1,6,1,2000,1),$A34,OFFSET('Budget Inputs'!$A$1,6,2,2000,1),$B34),0) -> 75552 | H34: =(SUMIFS(OFFSET('Savings Results'!$A$1,6,16 +MAX('Savings Results'!$G:$G)-MIN('Savings Results'!$G:$G)+MAX('Savings Results'!$J:$J)+G$29-MIN('Savings Results'!$G:$G),2000),OFFSET('Savings Results'!$A$1,6,6,2000),G$29,OFFSET('Savings Results'!$A$1,6,4,2000),"Dx",OFFSET('Savings Results'!$A$1,6,1,2000),$A34,OFFSET('Savings Results'!$A$1,6,2,2000),$B34)/(1/(1-SUM('CE Parameters'!$F$10:$F$11))))/1000 -> 306.7871048 | I34: =IFERROR(SUMIFS('Program Design'!$U:$U,'Program Design'!$C:$C,$A34,'Program Design'!$D:$D,$B34,'Program Design'!$J:$J,I$29)+SUMIFS('Program Design'!$V:$V,'Program Design'!$C:$C,$A34,'Program Design'!$D:$D,$B34,'Program Design'!$J:$J,I$29)+SUMIFS('Program Design'!$W:$W,'Program Design'!$C:$C,$A34,'Program Design'!$D:$D,$B34,'Program Design'!$J:$J,I$29)+SUMIFS(INDEX(OFFSET('Budget Inputs'!$A$1,6,1,2000,560),0,MATCH(CONCATENATE(I$29," Sub-Total"),OFFSET('Budget Inputs'!$A$1,6,1,1,560),0)),OFFSET('Budget Inputs'!$A$1,6,1,2000,1),$A34,OFFSET('Budget Inputs'!$A$1,6,2,2000,1),$B34),0) -> 108668.49 | J34: =(SUMIFS(OFFSET('Savings Results'!$A$1,6,16 +MAX('Savings Results'!$G:$G)-MIN('Savings Results'!$G:$G)+MAX('Savings Results'!$J:$J)+I$29-MIN('Savings Results'!$G:$G),2000),OFFSET('Savings Results'!$A$1,6,6,2000),I$29,OFFSET('Savings Results'!$A$1,6,4,2000),"Dx",OFFSET('Savings Results'!$A$1,6,1,2000),$A34,OFFSET('Savings Results'!$A$1,6,2,2000),$B34)/(1/(1-SUM('CE Parameters'!$F$10:$F$11))))/1000 -> 435.166 | K34: =IFERROR(SUMIFS('Program Design'!$U:$U,'Program Design'!$C:$C,$A34,'Program Design'!$D:$D,$B34,'Program Design'!$J:$J,K$29)+SUMIFS('Program Design'!$V:$V,'Program Design'!$C:$C,$A34,'Program Design'!$D:$D,$B34,'Program Design'!$J:$J,K$29)+SUMIFS('Program Design'!$W:$W,'Program Design'!$C:$C,$A34,'Program Design'!$D:$D,$B34,'Program Design'!$J:$J,K$29)+SUMIFS(INDEX(OFFSET('Budget Inputs'!$A$1,6,1,2000,560),0,MATCH(CONCATENATE(K$29," Sub-Total"),OFFSET('Budget Inputs'!$A$1,6,1,1,560),0)),OFFSET('Budget Inputs'!$A$1,6,1,2000,1),$A34,OFFSET('Budget Inputs'!$A$1,6,2,2000,1),$B34),0) -> 0 | L34: =(SUMIFS(OFFSET('Savings Results'!$A$1,6,16 +MAX('Savings Results'!$G:$G)-MIN('Savings Results'!$G:$G)+MAX('Savings Results'!$J:$J)+K$29-MIN('Savings Results'!$G:$G),2000),OFFSET('Savings Results'!$A$1,6,6,2000),K$29,OFFSET('Savings Results'!$A$1,6,4,2000),"Dx",OFFSET('Savings Results'!$A$1,6,1,2000),$A34,OFFSET('Savings Results'!$A$1,6,2,2000),$B34)/(1/(1-SUM('CE Parameters'!$F$10:$F$11))))/1000 -> 0 | M34: =IFERROR(SUMIFS('Program Design'!$U:$U,'Program Design'!$C:$C,$A34,'Program Design'!$D:$D,$B34,'Program Design'!$J:$J,M$29)+SUMIFS('Program Design'!$V:$V,'Program Design'!$C:$C,$A34,'Program Design'!$D:$D,$B34,'Program Design'!$J:$J,M$29)+SUMIFS('Program Design'!$W:$W,'Program Design'!$C:$C,$A34,'Program Design'!$D:$D,$B34,'Program Design'!$J:$J,M$29)+SUMIFS(INDEX(OFFSET('Budget Inputs'!$A$1,6,1,2000,560),0,MATCH(CONCATENATE(M$29," Sub-Total"),OFFSET('Budget Inputs'!$A$1,6,1,1,560),0)),OFFSET('Budget Inputs'!$A$1,6,1,2000,1),$A34,OFFSET('Budget Inputs'!$A$1,6,2,2000,1),$B34),0) -> 0 | N34: =(SUMIFS(OFFSET('Savings Results'!$A$1,6,16 +MAX('Savings Results'!$G:$G)-MIN('Savings Results'!$G:$G)+MAX('Savings Results'!$J:$J)+M$29-MIN('Savings Results'!$G:$G),2000),OFFSET('Savings Results'!$A$1,6,6,2000),M$29,OFFSET('Savings Results'!$A$1,6,4,2000),"Dx",OFFSET('Savings Results'!$A$1,6,1,2000),$A34,OFFSET('Savings Results'!$A$1,6,2,2000),$B34)/(1/(1-SUM('CE Parameters'!$F$10:$F$11))))/1000 -> 0 | O34: =IFERROR(SUMIFS('Program Design'!$U:$U,'Program Design'!$C:$C,$A34,'Program Design'!$D:$D,$B34)+SUMIFS('Program Design'!$V:$V,'Program Design'!$C:$C,$A34,'Program Design'!$D:$D,$B34)+SUMIFS('Program Design'!$W:$W,'Program Design'!$C:$C,$A34,'Program Design'!$D:$D,$B34)+SUMIFS(INDEX(OFFSET('Budget Inputs'!$A$1,6,1,2000,560),0,MATCH("Total",OFFSET('Budget Inputs'!$A$1,6,1,1,560),0)),OFFSET('Budget Inputs'!$A$1,6,1,2000,1),$A34,OFFSET('Budget Inputs'!$A$1,6,2,2000,1),$B34),0) -> 184220.49 | P34: =(SUMIFS(OFFSET('Savings Results'!$A$1,6,16+2020-MIN('Program Design'!J:J)+2020 -MIN('Program Design'!J:J)+ MAX('Savings Results'!J:J),2000),OFFSET('Savings Results'!$A$1,6,4,2000),"Dx",OFFSET('Savings Results'!$A$1,6,1,2000),$A34,OFFSET('Savings Results'!$A$1,6,2,2000),$B34)/(1/(1-SUM('CE Parameters'!$F$10:$F$11))))/1000 -> 741.9531048
A35: Non-Residential | B35: High Performance New Construction | C35: =IFERROR(SUMIFS('Program Design'!$U:$U,'Program Design'!$C:$C,$A35,'Program Design'!$D:$D,$B35,'Program Design'!$J:$J,C$29)+SUMIFS('Program Design'!$V:$V,'Program Design'!$C:$C,$A35,'Program Design'!$D:$D,$B35,'Program Design'!$J:$J,C$29)+SUMIFS('Program Design'!$W:$W,'Program Design'!$C:$C,$A35,'Program Design'!$D:$D,$B35,'Program Design'!$J:$J,C$29)+SUMIFS(INDEX(OFFSET('Budget Inputs'!$A$1,6,1,2000,560),0,MATCH(CONCATENATE(C$29," Sub-Total"),OFFSET('Budget Inputs'!$A$1,6,1,1,560),0)),OFFSET('Budget Inputs'!$A$1,6,1,2000,1),$A35,OFFSET('Budget Inputs'!$A$1,6,2,2000,1),$B35),0) -> 0 | D35: =(SUMIFS(OFFSET('Savings Results'!$A$1,6,16 +MAX('Savings Results'!$G:$G)-MIN('Savings Results'!$G:$G)+MAX('Savings Results'!$J:$J)+C$29-MIN('Savings Results'!$G:$G),2000),OFFSET('Savings Results'!$A$1,6,6,2000),C$29,OFFSET('Savings Results'!$A$1,6,4,2000),"Dx",OFFSET('Savings Results'!$A$1,6,1,2000),$A35,OFFSET('Savings Results'!$A$1,6,2,2000),$B35)/(1/(1-SUM('CE Parameters'!$F$10:$F$11))))/1000 -> 0 | E35: =IFERROR(SUMIFS('Program Design'!$U:$U,'Program Design'!$C:$C,$A35,'Program Design'!$D:$D,$B35,'Program Design'!$J:$J,E$29)+SUMIFS('Program Design'!$V:$V,'Program Design'!$C:$C,$A35,'Program Design'!$D:$D,$B35,'Program Design'!$J:$J,E$29)+SUMIFS('Program Design'!$W:$W,'Program Design'!$C:$C,$A35,'Program Design'!$D:$D,$B35,'Program Design'!$J:$J,E$29)+SUMIFS(INDEX(OFFSET('Budget Inputs'!$A$1,6,1,2000,560),0,MATCH(CONCATENATE(E$29," Sub-Total"),OFFSET('Budget Inputs'!$A$1,6,1,1,560),0)),OFFSET('Budget Inputs'!$A$1,6,1,2000,1),$A35,OFFSET('Budget Inputs'!$A$1,6,2,2000,1),$B35),0) -> 0 | F35: =(SUMIFS(OFFSET('Savings Results'!$A$1,6,16 +MAX('Savings Results'!$G:$G)-MIN('Savings Results'!$G:$G)+MAX('Savings Results'!$J:$J)+E$29-MIN('Savings Results'!$G:$G),2000),OFFSET('Savings Results'!$A$1,6,6,2000),E$29,OFFSET('Savings Results'!$A$1,6,4,2000),"Dx",OFFSET('Savings Results'!$A$1,6,1,2000),$A35,OFFSET('Savings Results'!$A$1,6,2,2000),$B35)/(1/(1-SUM('CE Parameters'!$F$10:$F$11))))/1000 -> 0 | G35: =IFERROR(SUMIFS('Program Design'!$U:$U,'Program Design'!$C:$C,$A35,'Program Design'!$D:$D,$B35,'Program Design'!$J:$J,G$29)+SUMIFS('Program Design'!$V:$V,'Program Design'!$C:$C,$A35,'Program Design'!$D:$D,$B35,'Program Design'!$J:$J,G$29)+SUMIFS('Program Design'!$W:$W,'Program Design'!$C:$C,$A35,'Program Design'!$D:$D,$B35,'Program Design'!$J:$J,G$29)+SUMIFS(INDEX(OFFSET('Budget Inputs'!$A$1,6,1,2000,560),0,MATCH(CONCATENATE(G$29," Sub-Total"),OFFSET('Budget Inputs'!$A$1,6,1,1,560),0)),OFFSET('Budget Inputs'!$A$1,6,1,2000,1),$A35,OFFSET('Budget Inputs'!$A$1,6,2,2000,1),$B35),0) -> 0 | H35: =(SUMIFS(OFFSET('Savings Results'!$A$1,6,16 +MAX('Savings Results'!$G:$G)-MIN('Savings Results'!$G:$G)+MAX('Savings Results'!$J:$J)+G$29-MIN('Savings Results'!$G:$G),2000),OFFSET('Savings Results'!$A$1,6,6,2000),G$29,OFFSET('Savings Results'!$A$1,6,4,2000),"Dx",OFFSET('Savings Results'!$A$1,6,1,2000),$A35,OFFSET('Savings Results'!$A$1,6,2,2000),$B35)/(1/(1-SUM('CE Parameters'!$F$10:$F$11))))/1000 -> 0 | I35: =IFERROR(SUMIFS('Program Design'!$U:$U,'Program Design'!$C:$C,$A35,'Program Design'!$D:$D,$B35,'Program Design'!$J:$J,I$29)+SUMIFS('Program Design'!$V:$V,'Program Design'!$C:$C,$A35,'Program Design'!$D:$D,$B35,'Program Design'!$J:$J,I$29)+SUMIFS('Program Design'!$W:$W,'Program Design'!$C:$C,$A35,'Program Design'!$D:$D,$B35,'Program Design'!$J:$J,I$29)+SUMIFS(INDEX(OFFSET('Budget Inputs'!$A$1,6,1,2000,560),0,MATCH(CONCATENATE(I$29," Sub-Total"),OFFSET('Budget Inputs'!$A$1,6,1,1,560),0)),OFFSET('Budget Inputs'!$A$1,6,1,2000,1),$A35,OFFSET('Budget Inputs'!$A$1,6,2,2000,1),$B35),0) -> 0 | J35: =(SUMIFS(OFFSET('Savings Results'!$A$1,6,16 +MAX('Savings Results'!$G:$G)-MIN('Savings Results'!$G:$G)+MAX('Savings Results'!$J:$J)+I$29-MIN('Savings Results'!$G:$G),2000),OFFSET('Savings Results'!$A$1,6,6,2000),I$29,OFFSET('Savings Results'!$A$1,6,4,2000),"Dx",OFFSET('Savings Results'!$A$1,6,1,2000),$A35,OFFSET('Savings Results'!$A$1,6,2,2000),$B35)/(1/(1-SUM('CE Parameters'!$F$10:$F$11))))/1000 -> 0 | K35: =IFERROR(SUMIFS('Program Design'!$U:$U,'Program Design'!$C:$C,$A35,'Program Design'!$D:$D,$B35,'Program Design'!$J:$J,K$29)+SUMIFS('Program Design'!$V:$V,'Program Design'!$C:$C,$A35,'Program Design'!$D:$D,$B35,'Program Design'!$J:$J,K$29)+SUMIFS('Program Design'!$W:$W,'Program Design'!$C:$C,$A35,'Program Design'!$D:$D,$B35,'Program Design'!$J:$J,K$29)+SUMIFS(INDEX(OFFSET('Budget Inputs'!$A$1,6,1,2000,560),0,MATCH(CONCATENATE(K$29," Sub-Total"),OFFSET('Budget Inputs'!$A$1,6,1,1,560),0)),OFFSET('Budget Inputs'!$A$1,6,1,2000,1),$A35,OFFSET('Budget Inputs'!$A$1,6,2,2000,1),$B35),0) -> 0 | L35: =(SUMIFS(OFFSET('Savings Results'!$A$1,6,16 +MAX('Savings Results'!$G:$G)-MIN('Savings Results'!$G:$G)+MAX('Savings Results'!$J:$J)+K$29-MIN('Savings Results'!$G:$G),2000),OFFSET('Savings Results'!$A$1,6,6,2000),K$29,OFFSET('Savings Results'!$A$1,6,4,2000),"Dx",OFFSET('Savings Results'!$A$1,6,1,2000),$A35,OFFSET('Savings Results'!$A$1,6,2,2000),$B35)/(1/(1-SUM('CE Parameters'!$F$10:$F$11))))/1000 -> 0 | M35: =IFERROR(SUMIFS('Program Design'!$U:$U,'Program Design'!$C:$C,$A35,'Program Design'!$D:$D,$B35,'Program Design'!$J:$J,M$29)+SUMIFS('Program Design'!$V:$V,'Program Design'!$C:$C,$A35,'Program Design'!$D:$D,$B35,'Program Design'!$J:$J,M$29)+SUMIFS('Program Design'!$W:$W,'Program Design'!$C:$C,$A35,'Program Design'!$D:$D,$B35,'Program Design'!$J:$J,M$29)+SUMIFS(INDEX(OFFSET('Budget Inputs'!$A$1,6,1,2000,560),0,MATCH(CONCATENATE(M$29," Sub-Total"),OFFSET('Budget Inputs'!$A$1,6,1,1,560),0)),OFFSET('Budget Inputs'!$A$1,6,1,2000,1),$A35,OFFSET('Budget Inputs'!$A$1,6,2,2000,1),$B35),0) -> 0 | N35: =(SUMIFS(OFFSET('Savings Results'!$A$1,6,16 +MAX('Savings Results'!$G:$G)-MIN('Savings Results'!$G:$G)+MAX('Savings Results'!$J:$J)+M$29-MIN('Savings Results'!$G:$G),2000),OFFSET('Savings Results'!$A$1,6,6,2000),M$29,OFFSET('Savings Results'!$A$1,6,4,2000),"Dx",OFFSET('Savings Results'!$A$1,6,1,2000),$A35,OFFSET('Savings Results'!$A$1,6,2,2000),$B35)/(1/(1-SUM('CE Parameters'!$F$10:$F$11))))/1000 -> 0 | O35: =IFERROR(SUMIFS('Program Design'!$U:$U,'Program Design'!$C:$C,$A35,'Program Design'!$D:$D,$B35)+SUMIFS('Program Design'!$V:$V,'Program Design'!$C:$C,$A35,'Program Design'!$D:$D,$B35)+SUMIFS('Program Design'!$W:$W,'Program Design'!$C:$C,$A35,'Program Design'!$D:$D,$B35)+SUMIFS(INDEX(OFFSET('Budget Inputs'!$A$1,6,1,2000,560),0,MATCH("Total",OFFSET('Budget Inputs'!$A$1,6,1,1,560),0)),OFFSET('Budget Inputs'!$A$1,6,1,2000,1),$A35,OFFSET('Budget Inputs'!$A$1,6,2,2000,1),$B35),0) -> 0 | P35: =(SUMIFS(OFFSET('Savings Results'!$A$1,6,16+2020-MIN('Program Design'!J:J)+2020 -MIN('Program Design'!J:J)+ MAX('Savings Results'!J:J),2000),OFFSET('Savings Results'!$A$1,6,4,2000),"Dx",OFFSET('Savings Results'!$A$1,6,1,2000),$A35,OFFSET('Savings Results'!$A$1,6,2,2000),$B35)/(1/(1-SUM('CE Parameters'!$F$10:$F$11))))/1000 -> 0
A36: Non-Residential | B36: Small Business Refrigeration | C36: =IFERROR(SUMIFS('Program Design'!$U:$U,'Program Design'!$C:$C,$A36,'Program Design'!$D:$D,$B36,'Program Design'!$J:$J,C$29)+SUMIFS('Program Design'!$V:$V,'Program Design'!$C:$C,$A36,'Program Design'!$D:$D,$B36,'Program Design'!$J:$J,C$29)+SUMIFS('Program Design'!$W:$W,'Program Design'!$C:$C,$A36,'Program Design'!$D:$D,$B36,'Program Design'!$J:$J,C$29)+SUMIFS(INDEX(OFFSET('Budget Inputs'!$A$1,6,1,2000,560),0,MATCH(CONCATENATE(C$29," Sub-Total"),OFFSET('Budget Inputs'!$A$1,6,1,1,560),0)),OFFSET('Budget Inputs'!$A$1,6,1,2000,1),$A36,OFFSET('Budget Inputs'!$A$1,6,2,2000,1),$B36),0) -> 0 | D36: =(SUMIFS(OFFSET('Savings Results'!$A$1,6,16 +MAX('Savings Results'!$G:$G)-MIN('Savings Results'!$G:$G)+MAX('Savings Results'!$J:$J)+C$29-MIN('Savings Results'!$G:$G),2000),OFFSET('Savings Results'!$A$1,6,6,2000),C$29,OFFSET('Savings Results'!$A$1,6,4,2000),"Dx",OFFSET('Savings Results'!$A$1,6,1,2000),$A36,OFFSET('Savings Results'!$A$1,6,2,2000),$B36)/(1/(1-SUM('CE Parameters'!$F$10:$F$11))))/1000 -> 0 | E36: =IFERROR(SUMIFS('Program Design'!$U:$U,'Program Design'!$C:$C,$A36,'Program Design'!$D:$D,$B36,'Program Design'!$J:$J,E$29)+SUMIFS('Program Design'!$V:$V,'Program Design'!$C:$C,$A36,'Program Design'!$D:$D,$B36,'Program Design'!$J:$J,E$29)+SUMIFS('Program Design'!$W:$W,'Program Design'!$C:$C,$A36,'Program Design'!$D:$D,$B36,'Program Design'!$J:$J,E$29)+SUMIFS(INDEX(OFFSET('Budget Inputs'!$A$1,6,1,2000,560),0,MATCH(CONCATENATE(E$29," Sub-Total"),OFFSET('Budget Inputs'!$A$1,6,1,1,560),0)),OFFSET('Budget Inputs'!$A$1,6,1,2000,1),$A36,OFFSET('Budget Inputs'!$A$1,6,2,2000,1),$B36),0) -> 0 | F36: =(SUMIFS(OFFSET('Savings Results'!$A$1,6,16 +MAX('Savings Results'!$G:$G)-MIN('Savings Results'!$G:$G)+MAX('Savings Results'!$J:$J)+E$29-MIN('Savings Results'!$G:$G),2000),OFFSET('Savings Results'!$A$1,6,6,2000),E$29,OFFSET('Savings Results'!$A$1,6,4,2000),"Dx",OFFSET('Savings Results'!$A$1,6,1,2000),$A36,OFFSET('Savings Results'!$A$1,6,2,2000),$B36)/(1/(1-SUM('CE Parameters'!$F$10:$F$11))))/1000 -> 0 | G36: =IFERROR(SUMIFS('Program Design'!$U:$U,'Program Design'!$C:$C,$A36,'Program Design'!$D:$D,$B36,'Program Design'!$J:$J,G$29)+SUMIFS('Program Design'!$V:$V,'Program Design'!$C:$C,$A36,'Program Design'!$D:$D,$B36,'Program Design'!$J:$J,G$29)+SUMIFS('Program Design'!$W:$W,'Program Design'!$C:$C,$A36,'Program Design'!$D:$D,$B36,'Program Design'!$J:$J,G$29)+SUMIFS(INDEX(OFFSET('Budget Inputs'!$A$1,6,1,2000,560),0,MATCH(CONCATENATE(G$29," Sub-Total"),OFFSET('Budget Inputs'!$A$1,6,1,1,560),0)),OFFSET('Budget Inputs'!$A$1,6,1,2000,1),$A36,OFFSET('Budget Inputs'!$A$1,6,2,2000,1),$B36),0) -> 0 | H36: =(SUMIFS(OFFSET('Savings Results'!$A$1,6,16 +MAX('Savings Results'!$G:$G)-MIN('Savings Results'!$G:$G)+MAX('Savings Results'!$J:$J)+G$29-MIN('Savings Results'!$G:$G),2000),OFFSET('Savings Results'!$A$1,6,6,2000),G$29,OFFSET('Savings Results'!$A$1,6,4,2000),"Dx",OFFSET('Savings Results'!$A$1,6,1,2000),$A36,OFFSET('Savings Results'!$A$1,6,2,2000),$B36)/(1/(1-SUM('CE Parameters'!$F$10:$F$11))))/1000 -> 0 | I36: =IFERROR(SUMIFS('Program Design'!$U:$U,'Program Design'!$C:$C,$A36,'Program Design'!$D:$D,$B36,'Program Design'!$J:$J,I$29)+SUMIFS('Program Design'!$V:$V,'Program Design'!$C:$C,$A36,'Program Design'!$D:$D,$B36,'Program Design'!$J:$J,I$29)+SUMIFS('Program Design'!$W:$W,'Program Design'!$C:$C,$A36,'Program Design'!$D:$D,$B36,'Program Design'!$J:$J,I$29)+SUMIFS(INDEX(OFFSET('Budget Inputs'!$A$1,6,1,2000,560),0,MATCH(CONCATENATE(I$29," Sub-Total"),OFFSET('Budget Inputs'!$A$1,6,1,1,560),0)),OFFSET('Budget Inputs'!$A$1,6,1,2000,1),$A36,OFFSET('Budget Inputs'!$A$1,6,2,2000,1),$B36),0) -> 0 | J36: =(SUMIFS(OFFSET('Savings Results'!$A$1,6,16 +MAX('Savings Results'!$G:$G)-MIN('Savings Results'!$G:$G)+MAX('Savings Results'!$J:$J)+I$29-MIN('Savings Results'!$G:$G),2000),OFFSET('Savings Results'!$A$1,6,6,2000),I$29,OFFSET('Savings Results'!$A$1,6,4,2000),"Dx",OFFSET('Savings Results'!$A$1,6,1,2000),$A36,OFFSET('Savings Results'!$A$1,6,2,2000),$B36)/(1/(1-SUM('CE Parameters'!$F$10:$F$11))))/1000 -> 0 | K36: =IFERROR(SUMIFS('Program Design'!$U:$U,'Program Design'!$C:$C,$A36,'Program Design'!$D:$D,$B36,'Program Design'!$J:$J,K$29)+SUMIFS('Program Design'!$V:$V,'Program Design'!$C:$C,$A36,'Program Design'!$D:$D,$B36,'Program Design'!$J:$J,K$29)+SUMIFS('Program Design'!$W:$W,'Program Design'!$C:$C,$A36,'Program Design'!$D:$D,$B36,'Program Design'!$J:$J,K$29)+SUMIFS(INDEX(OFFSET('Budget Inputs'!$A$1,6,1,2000,560),0,MATCH(CONCATENATE(K$29," Sub-Total"),OFFSET('Budget Inputs'!$A$1,6,1,1,560),0)),OFFSET('Budget Inputs'!$A$1,6,1,2000,1),$A36,OFFSET('Budget Inputs'!$A$1,6,2,2000,1),$B36),0) -> 0 | L36: =(SUMIFS(OFFSET('Savings Results'!$A$1,6,16 +MAX('Savings Results'!$G:$G)-MIN('Savings Results'!$G:$G)+MAX('Savings Results'!$J:$J)+K$29-MIN('Savings Results'!$G:$G),2000),OFFSET('Savings Results'!$A$1,6,6,2000),K$29,OFFSET('Savings Results'!$A$1,6,4,2000),"Dx",OFFSET('Savings Results'!$A$1,6,1,2000),$A36,OFFSET('Savings Results'!$A$1,6,2,2000),$B36)/(1/(1-SUM('CE Parameters'!$F$10:$F$11))))/1000 -> 0 | M36: =IFERROR(SUMIFS('Program Design'!$U:$U,'Program Design'!$C:$C,$A36,'Program Design'!$D:$D,$B36,'Program Design'!$J:$J,M$29)+SUMIFS('Program Design'!$V:$V,'Program Design'!$C:$C,$A36,'Program Design'!$D:$D,$B36,'Program Design'!$J:$J,M$29)+SUMIFS('Program Design'!$W:$W,'Program Design'!$C:$C,$A36,'Program Design'!$D:$D,$B36,'Program Design'!$J:$J,M$29)+SUMIFS(INDEX(OFFSET('Budget Inputs'!$A$1,6,1,2000,560),0,MATCH(CONCATENATE(M$29," Sub-Total"),OFFSET('Budget Inputs'!$A$1,6,1,1,560),0)),OFFSET('Budget Inputs'!$A$1,6,1,2000,1),$A36,OFFSET('Budget Inputs'!$A$1,6,2,2000,1),$B36),0) -> 0 | N36: =(SUMIFS(OFFSET('Savings Results'!$A$1,6,16 +MAX('Savings Results'!$G:$G)-MIN('Savings Results'!$G:$G)+MAX('Savings Results'!$J:$J)+M$29-MIN('Savings Results'!$G:$G),2000),OFFSET('Savings Results'!$A$1,6,6,2000),M$29,OFFSET('Savings Results'!$A$1,6,4,2000),"Dx",OFFSET('Savings Results'!$A$1,6,1,2000),$A36,OFFSET('Savings Results'!$A$1,6,2,2000),$B36)/(1/(1-SUM('CE Parameters'!$F$10:$F$11))))/1000 -> 0 | O36: =IFERROR(SUMIFS('Program Design'!$U:$U,'Program Design'!$C:$C,$A36,'Program Design'!$D:$D,$B36)+SUMIFS('Program Design'!$V:$V,'Program Design'!$C:$C,$A36,'Program Design'!$D:$D,$B36)+SUMIFS('Program Design'!$W:$W,'Program Design'!$C:$C,$A36,'Program Design'!$D:$D,$B36)+SUMIFS(INDEX(OFFSET('Budget Inputs'!$A$1,6,1,2000,560),0,MATCH("Total",OFFSET('Budget Inputs'!$A$1,6,1,1,560),0)),OFFSET('Budget Inputs'!$A$1,6,1,2000,1),$A36,OFFSET('Budget Inputs'!$A$1,6,2,2000,1),$B36),0) -> 0 | P36: =(SUMIFS(OFFSET('Savings Results'!$A$1,6,16+2020-MIN('Program Design'!J:J)+2020 -MIN('Program Design'!J:J)+ MAX('Savings Results'!J:J),2000),OFFSET('Savings Results'!$A$1,6,4,2000),"Dx",OFFSET('Savings Results'!$A$1,6,1,2000),$A36,OFFSET('Savings Results'!$A$1,6,2,2000),$B36)/(1/(1-SUM('CE Parameters'!$F$10:$F$11))))/1000 -> 0
A37: Non-Residential | B37: Audit Funding | C37: =IFERROR(SUMIFS('Program Design'!$U:$U,'Program Design'!$C:$C,$A37,'Program Design'!$D:$D,$B37,'Program Design'!$J:$J,C$29)+SUMIFS('Program Design'!$V:$V,'Program Design'!$C:$C,$A37,'Program Design'!$D:$D,$B37,'Program Design'!$J:$J,C$29)+SUMIFS('Program Design'!$W:$W,'Program Design'!$C:$C,$A37,'Program Design'!$D:$D,$B37,'Program Design'!$J:$J,C$29)+SUMIFS(INDEX(OFFSET('Budget Inputs'!$A$1,6,1,2000,560),0,MATCH(CONCATENATE(C$29," Sub-Total"),OFFSET('Budget Inputs'!$A$1,6,1,1,560),0)),OFFSET('Budget Inputs'!$A$1,6,1,2000,1),$A37,OFFSET('Budget Inputs'!$A$1,6,2,2000,1),$B37),0) -> 2232 | D37: =(SUMIFS(OFFSET('Savings Results'!$A$1,6,16 +MAX('Savings Results'!$G:$G)-MIN('Savings Results'!$G:$G)+MAX('Savings Results'!$J:$J)+C$29-MIN('Savings Results'!$G:$G),2000),OFFSET('Savings Results'!$A$1,6,6,2000),C$29,OFFSET('Savings Results'!$A$1,6,4,2000),"Dx",OFFSET('Savings Results'!$A$1,6,1,2000),$A37,OFFSET('Savings Results'!$A$1,6,2,2000),$B37)/(1/(1-SUM('CE Parameters'!$F$10:$F$11))))/1000 -> 0 | E37: =IFERROR(SUMIFS('Program Design'!$U:$U,'Program Design'!$C:$C,$A37,'Program Design'!$D:$D,$B37,'Program Design'!$J:$J,E$29)+SUMIFS('Program Design'!$V:$V,'Program Design'!$C:$C,$A37,'Program Design'!$D:$D,$B37,'Program Design'!$J:$J,E$29)+SUMIFS('Program Design'!$W:$W,'Program Design'!$C:$C,$A37,'Program Design'!$D:$D,$B37,'Program Design'!$J:$J,E$29)+SUMIFS(INDEX(OFFSET('Budget Inputs'!$A$1,6,1,2000,560),0,MATCH(CONCATENATE(E$29," Sub-Total"),OFFSET('Budget Inputs'!$A$1,6,1,1,560),0)),OFFSET('Budget Inputs'!$A$1,6,1,2000,1),$A37,OFFSET('Budget Inputs'!$A$1,6,2,2000,1),$B37),0) -> 43420 | F37: =(SUMIFS(OFFSET('Savings Results'!$A$1,6,16 +MAX('Savings Results'!$G:$G)-MIN('Savings Results'!$G:$G)+MAX('Savings Results'!$J:$J)+E$29-MIN('Savings Results'!$G:$G),2000),OFFSET('Savings Results'!$A$1,6,6,2000),E$29,OFFSET('Savings Results'!$A$1,6,4,2000),"Dx",OFFSET('Savings Results'!$A$1,6,1,2000),$A37,OFFSET('Savings Results'!$A$1,6,2,2000),$B37)/(1/(1-SUM('CE Parameters'!$F$10:$F$11))))/1000 -> 275.996103 | G37: =IFERROR(SUMIFS('Program Design'!$U:$U,'Program Design'!$C:$C,$A37,'Program Design'!$D:$D,$B37,'Program Design'!$J:$J,G$29)+SUMIFS('Program Design'!$V:$V,'Program Design'!$C:$C,$A37,'Program Design'!$D:$D,$B37,'Program Design'!$J:$J,G$29)+SUMIFS('Program Design'!$W:$W,'Program Design'!$C:$C,$A37,'Program Design'!$D:$D,$B37,'Program Design'!$J:$J,G$29)+SUMIFS(INDEX(OFFSET('Budget Inputs'!$A$1,6,1,2000,560),0,MATCH(CONCATENATE(G$29," Sub-Total"),OFFSET('Budget Inputs'!$A$1,6,1,1,560),0)),OFFSET('Budget Inputs'!$A$1,6,1,2000,1),$A37,OFFSET('Budget Inputs'!$A$1,6,2,2000,1),$B37),0) -> 47003 | H37: =(SUMIFS(OFFSET('Savings Results'!$A$1,6,16 +MAX('Savings Results'!$G:$G)-MIN('Savings Results'!$G:$G)+MAX('Savings Results'!$J:$J)+G$29-MIN('Savings Results'!$G:$G),2000),OFFSET('Savings Results'!$A$1,6,6,2000),G$29,OFFSET('Savings Results'!$A$1,6,4,2000),"Dx",OFFSET('Savings Results'!$A$1,6,1,2000),$A37,OFFSET('Savings Results'!$A$1,6,2,2000),$B37)/(1/(1-SUM('CE Parameters'!$F$10:$F$11))))/1000 -> 7.585353e-06 | I37: =IFERROR(SUMIFS('Program Design'!$U:$U,'Program Design'!$C:$C,$A37,'Program Design'!$D:$D,$B37,'Program Design'!$J:$J,I$29)+SUMIFS('Program Design'!$V:$V,'Program Design'!$C:$C,$A37,'Program Design'!$D:$D,$B37,'Program Design'!$J:$J,I$29)+SUMIFS('Program Design'!$W:$W,'Program Design'!$C:$C,$A37,'Program Design'!$D:$D,$B37,'Program Design'!$J:$J,I$29)+SUMIFS(INDEX(OFFSET('Budget Inputs'!$A$1,6,1,2000,560),0,MATCH(CONCATENATE(I$29," Sub-Total"),OFFSET('Budget Inputs'!$A$1,6,1,1,560),0)),OFFSET('Budget Inputs'!$A$1,6,1,2000,1),$A37,OFFSET('Budget Inputs'!$A$1,6,2,2000,1),$B37),0) -> 86668.99 | J37: =(SUMIFS(OFFSET('Savings Results'!$A$1,6,16 +MAX('Savings Results'!$G:$G)-MIN('Savings Results'!$G:$G)+MAX('Savings Results'!$J:$J)+I$29-MIN('Savings Results'!$G:$G),2000),OFFSET('Savings Results'!$A$1,6,6,2000),I$29,OFFSET('Savings Results'!$A$1,6,4,2000),"Dx",OFFSET('Savings Results'!$A$1,6,1,2000),$A37,OFFSET('Savings Results'!$A$1,6,2,2000),$B37)/(1/(1-SUM('CE Parameters'!$F$10:$F$11))))/1000 -> 0.007585353 | K37: =IFERROR(SUMIFS('Program Design'!$U:$U,'Program Design'!$C:$C,$A37,'Program Design'!$D:$D,$B37,'Program Design'!$J:$J,K$29)+SUMIFS('Program Design'!$V:$V,'Program Design'!$C:$C,$A37,'Program Design'!$D:$D,$B37,'Program Design'!$J:$J,K$29)+SUMIFS('Program Design'!$W:$W,'Program Design'!$C:$C,$A37,'Program Design'!$D:$D,$B37,'Program Design'!$J:$J,K$29)+SUMIFS(INDEX(OFFSET('Budget Inputs'!$A$1,6,1,2000,560),0,MATCH(CONCATENATE(K$29," Sub-Total"),OFFSET('Budget Inputs'!$A$1,6,1,1,560),0)),OFFSET('Budget Inputs'!$A$1,6,1,2000,1),$A37,OFFSET('Budget Inputs'!$A$1,6,2,2000,1),$B37),0) -> 13802.32 | L37: =(SUMIFS(OFFSET('Savings Results'!$A$1,6,16 +MAX('Savings Results'!$G:$G)-MIN('Savings Results'!$G:$G)+MAX('Savings Results'!$J:$J)+K$29-MIN('Savings Results'!$G:$G),2000),OFFSET('Savings Results'!$A$1,6,6,2000),K$29,OFFSET('Savings Results'!$A$1,6,4,2000),"Dx",OFFSET('Savings Results'!$A$1,6,1,2000),$A37,OFFSET('Savings Results'!$A$1,6,2,2000),$B37)/(1/(1-SUM('CE Parameters'!$F$10:$F$11))))/1000 -> 0 | M37: =IFERROR(SUMIFS('Program Design'!$U:$U,'Program Design'!$C:$C,$A37,'Program Design'!$D:$D,$B37,'Program Design'!$J:$J,M$29)+SUMIFS('Program Design'!$V:$V,'Program Design'!$C:$C,$A37,'Program Design'!$D:$D,$B37,'Program Design'!$J:$J,M$29)+SUMIFS('Program Design'!$W:$W,'Program Design'!$C:$C,$A37,'Program Design'!$D:$D,$B37,'Program Design'!$J:$J,M$29)+SUMIFS(INDEX(OFFSET('Budget Inputs'!$A$1,6,1,2000,560),0,MATCH(CONCATENATE(M$29," Sub-Total"),OFFSET('Budget Inputs'!$A$1,6,1,1,560),0)),OFFSET('Budget Inputs'!$A$1,6,1,2000,1),$A37,OFFSET('Budget Inputs'!$A$1,6,2,2000,1),$B37),0) -> 13802.32 | N37: =(SUMIFS(OFFSET('Savings Results'!$A$1,6,16 +MAX('Savings Results'!$G:$G)-MIN('Savings Results'!$G:$G)+MAX('Savings Results'!$J:$J)+M$29-MIN('Savings Results'!$G:$G),2000),OFFSET('Savings Results'!$A$1,6,6,2000),M$29,OFFSET('Savings Results'!$A$1,6,4,2000),"Dx",OFFSET('Savings Results'!$A$1,6,1,2000),$A37,OFFSET('Savings Results'!$A$1,6,2,2000),$B37)/(1/(1-SUM('CE Parameters'!$F$10:$F$11))))/1000 -> 0 | O37: =IFERROR(SUMIFS('Program Design'!$U:$U,'Program Design'!$C:$C,$A37,'Program Design'!$D:$D,$B37)+SUMIFS('Program Design'!$V:$V,'Program Design'!$C:$C,$A37,'Program Design'!$D:$D,$B37)+SUMIFS('Program Design'!$W:$W,'Program Design'!$C:$C,$A37,'Program Design'!$D:$D,$B37)+SUMIFS(INDEX(OFFSET('Budget Inputs'!$A$1,6,1,2000,560),0,MATCH("Total",OFFSET('Budget Inputs'!$A$1,6,1,1,560),0)),OFFSET('Budget Inputs'!$A$1,6,1,2000,1),$A37,OFFSET('Budget Inputs'!$A$1,6,2,2000,1),$B37),0) -> 206928.63 | P37: =(SUMIFS(OFFSET('Savings Results'!$A$1,6,16+2020-MIN('Program Design'!J:J)+2020 -MIN('Program Design'!J:J)+ MAX('Savings Results'!J:J),2000),OFFSET('Savings Results'!$A$1,6,4,2000),"Dx",OFFSET('Savings Results'!$A$1,6,1,2000),$A37,OFFSET('Savings Results'!$A$1,6,2,2000),$B37)/(1/(1-SUM('CE Parameters'!$F$10:$F$11))))/1000 -> 0.007592938353
A38: Non-Residential | B38: Existing Building Commissioning | C38: =IFERROR(SUMIFS('Program Design'!$U:$U,'Program Design'!$C:$C,$A38,'Program Design'!$D:$D,$B38,'Program Design'!$J:$J,C$29)+SUMIFS('Program Design'!$V:$V,'Program Design'!$C:$C,$A38,'Program Design'!$D:$D,$B38,'Program Design'!$J:$J,C$29)+SUMIFS('Program Design'!$W:$W,'Program Design'!$C:$C,$A38,'Program Design'!$D:$D,$B38,'Program Design'!$J:$J,C$29)+SUMIFS(INDEX(OFFSET('Budget Inputs'!$A$1,6,1,2000,560),0,MATCH(CONCATENATE(C$29," Sub-Total"),OFFSET('Budget Inputs'!$A$1,6,1,1,560),0)),OFFSET('Budget Inputs'!$A$1,6,1,2000,1),$A38,OFFSET('Budget Inputs'!$A$1,6,2,2000,1),$B38),0) -> 0 | D38: =(SUMIFS(OFFSET('Savings Results'!$A$1,6,16 +MAX('Savings Results'!$G:$G)-MIN('Savings Results'!$G:$G)+MAX('Savings Results'!$J:$J)+C$29-MIN('Savings Results'!$G:$G),2000),OFFSET('Savings Results'!$A$1,6,6,2000),C$29,OFFSET('Savings Results'!$A$1,6,4,2000),"Dx",OFFSET('Savings Results'!$A$1,6,1,2000),$A38,OFFSET('Savings Results'!$A$1,6,2,2000),$B38)/(1/(1-SUM('CE Parameters'!$F$10:$F$11))))/1000 -> 0 | E38: =IFERROR(SUMIFS('Program Design'!$U:$U,'Program Design'!$C:$C,$A38,'Program Design'!$D:$D,$B38,'Program Design'!$J:$J,E$29)+SUMIFS('Program Design'!$V:$V,'Program Design'!$C:$C,$A38,'Program Design'!$D:$D,$B38,'Program Design'!$J:$J,E$29)+SUMIFS('Program Design'!$W:$W,'Program Design'!$C:$C,$A38,'Program Design'!$D:$D,$B38,'Program Design'!$J:$J,E$29)+SUMIFS(INDEX(OFFSET('Budget Inputs'!$A$1,6,1,2000,560),0,MATCH(CONCATENATE(E$29," Sub-Total"),OFFSET('Budget Inputs'!$A$1,6,1,1,560),0)),OFFSET('Budget Inputs'!$A$1,6,1,2000,1),$A38,OFFSET('Budget Inputs'!$A$1,6,2,2000,1),$B38),0) -> 0 | F38: =(SUMIFS(OFFSET('Savings Results'!$A$1,6,16 +MAX('Savings Results'!$G:$G)-MIN('Savings Results'!$G:$G)+MAX('Savings Results'!$J:$J)+E$29-MIN('Savings Results'!$G:$G),2000),OFFSET('Savings Results'!$A$1,6,6,2000),E$29,OFFSET('Savings Results'!$A$1,6,4,2000),"Dx",OFFSET('Savings Results'!$A$1,6,1,2000),$A38,OFFSET('Savings Results'!$A$1,6,2,2000),$B38)/(1/(1-SUM('CE Parameters'!$F$10:$F$11))))/1000 -> 0 | G38: =IFERROR(SUMIFS('Program Design'!$U:$U,'Program Design'!$C:$C,$A38,'Program Design'!$D:$D,$B38,'Program Design'!$J:$J,G$29)+SUMIFS('Program Design'!$V:$V,'Program Design'!$C:$C,$A38,'Program Design'!$D:$D,$B38,'Program Design'!$J:$J,G$29)+SUMIFS('Program Design'!$W:$W,'Program Design'!$C:$C,$A38,'Program Design'!$D:$D,$B38,'Program Design'!$J:$J,G$29)+SUMIFS(INDEX(OFFSET('Budget Inputs'!$A$1,6,1,2000,560),0,MATCH(CONCATENATE(G$29," Sub-Total"),OFFSET('Budget Inputs'!$A$1,6,1,1,560),0)),OFFSET('Budget Inputs'!$A$1,6,1,2000,1),$A38,OFFSET('Budget Inputs'!$A$1,6,2,2000,1),$B38),0) -> 0 | H38: =(SUMIFS(OFFSET('Savings Results'!$A$1,6,16 +MAX('Savings Results'!$G:$G)-MIN('Savings Results'!$G:$G)+MAX('Savings Results'!$J:$J)+G$29-MIN('Savings Results'!$G:$G),2000),OFFSET('Savings Results'!$A$1,6,6,2000),G$29,OFFSET('Savings Results'!$A$1,6,4,2000),"Dx",OFFSET('Savings Results'!$A$1,6,1,2000),$A38,OFFSET('Savings Results'!$A$1,6,2,2000),$B38)/(1/(1-SUM('CE Parameters'!$F$10:$F$11))))/1000 -> 0 | I38: =IFERROR(SUMIFS('Program Design'!$U:$U,'Program Design'!$C:$C,$A38,'Program Design'!$D:$D,$B38,'Program Design'!$J:$J,I$29)+SUMIFS('Program Design'!$V:$V,'Program Design'!$C:$C,$A38,'Program Design'!$D:$D,$B38,'Program Design'!$J:$J,I$29)+SUMIFS('Program Design'!$W:$W,'Program Design'!$C:$C,$A38,'Program Design'!$D:$D,$B38,'Program Design'!$J:$J,I$29)+SUMIFS(INDEX(OFFSET('Budget Inputs'!$A$1,6,1,2000,560),0,MATCH(CONCATENATE(I$29," Sub-Total"),OFFSET('Budget Inputs'!$A$1,6,1,1,560),0)),OFFSET('Budget Inputs'!$A$1,6,1,2000,1),$A38,OFFSET('Budget Inputs'!$A$1,6,2,2000,1),$B38),0) -> 0 | J38: =(SUMIFS(OFFSET('Savings Results'!$A$1,6,16 +MAX('Savings Results'!$G:$G)-MIN('Savings Results'!$G:$G)+MAX('Savings Results'!$J:$J)+I$29-MIN('Savings Results'!$G:$G),2000),OFFSET('Savings Results'!$A$1,6,6,2000),I$29,OFFSET('Savings Results'!$A$1,6,4,2000),"Dx",OFFSET('Savings Results'!$A$1,6,1,2000),$A38,OFFSET('Savings Results'!$A$1,6,2,2000),$B38)/(1/(1-SUM('CE Parameters'!$F$10:$F$11))))/1000 -> 0 | K38: =IFERROR(SUMIFS('Program Design'!$U:$U,'Program Design'!$C:$C,$A38,'Program Design'!$D:$D,$B38,'Program Design'!$J:$J,K$29)+SUMIFS('Program Design'!$V:$V,'Program Design'!$C:$C,$A38,'Program Design'!$D:$D,$B38,'Program Design'!$J:$J,K$29)+SUMIFS('Program Design'!$W:$W,'Program Design'!$C:$C,$A38,'Program Design'!$D:$D,$B38,'Program Design'!$J:$J,K$29)+SUMIFS(INDEX(OFFSET('Budget Inputs'!$A$1,6,1,2000,560),0,MATCH(CONCATENATE(K$29," Sub-Total"),OFFSET('Budget Inputs'!$A$1,6,1,1,560),0)),OFFSET('Budget Inputs'!$A$1,6,1,2000,1),$A38,OFFSET('Budget Inputs'!$A$1,6,2,2000,1),$B38),0) -> 0 | L38: =(SUMIFS(OFFSET('Savings Results'!$A$1,6,16 +MAX('Savings Results'!$G:$G)-MIN('Savings Results'!$G:$G)+MAX('Savings Results'!$J:$J)+K$29-MIN('Savings Results'!$G:$G),2000),OFFSET('Savings Results'!$A$1,6,6,2000),K$29,OFFSET('Savings Results'!$A$1,6,4,2000),"Dx",OFFSET('Savings Results'!$A$1,6,1,2000),$A38,OFFSET('Savings Results'!$A$1,6,2,2000),$B38)/(1/(1-SUM('CE Parameters'!$F$10:$F$11))))/1000 -> 0 | M38: =IFERROR(SUMIFS('Program Design'!$U:$U,'Program Design'!$C:$C,$A38,'Program Design'!$D:$D,$B38,'Program Design'!$J:$J,M$29)+SUMIFS('Program Design'!$V:$V,'Program Design'!$C:$C,$A38,'Program Design'!$D:$D,$B38,'Program Design'!$J:$J,M$29)+SUMIFS('Program Design'!$W:$W,'Program Design'!$C:$C,$A38,'Program Design'!$D:$D,$B38,'Program Design'!$J:$J,M$29)+SUMIFS(INDEX(OFFSET('Budget Inputs'!$A$1,6,1,2000,560),0,MATCH(CONCATENATE(M$29," Sub-Total"),OFFSET('Budget Inputs'!$A$1,6,1,1,560),0)),OFFSET('Budget Inputs'!$A$1,6,1,2000,1),$A38,OFFSET('Budget Inputs'!$A$1,6,2,2000,1),$B38),0) -> 0 | N38: =(SUMIFS(OFFSET('Savings Results'!$A$1,6,16 +MAX('Savings Results'!$G:$G)-MIN('Savings Results'!$G:$G)+MAX('Savings Results'!$J:$J)+M$29-MIN('Savings Results'!$G:$G),2000),OFFSET('Savings Results'!$A$1,6,6,2000),M$29,OFFSET('Savings Results'!$A$1,6,4,2000),"Dx",OFFSET('Savings Results'!$A$1,6,1,2000),$A38,OFFSET('Savings Results'!$A$1,6,2,2000),$B38)/(1/(1-SUM('CE Parameters'!$F$10:$F$11))))/1000 -> 0 | O38: =IFERROR(SUMIFS('Program Design'!$U:$U,'Program Design'!$C:$C,$A38,'Program Design'!$D:$D,$B38)+SUMIFS('Program Design'!$V:$V,'Program Design'!$C:$C,$A38,'Program Design'!$D:$D,$B38)+SUMIFS('Program Design'!$W:$W,'Program Design'!$C:$C,$A38,'Program Design'!$D:$D,$B38)+SUMIFS(INDEX(OFFSET('Budget Inputs'!$A$1,6,1,2000,560),0,MATCH("Total",OFFSET('Budget Inputs'!$A$1,6,1,1,560),0)),OFFSET('Budget Inputs'!$A$1,6,1,2000,1),$A38,OFFSET('Budget Inputs'!$A$1,6,2,2000,1),$B38),0) -> 0 | P38: =(SUMIFS(OFFSET('Savings Results'!$A$1,6,16+2020-MIN('Program Design'!J:J)+2020 -MIN('Program Design'!J:J)+ MAX('Savings Results'!J:J),2000),OFFSET('Savings Results'!$A$1,6,4,2000),"Dx",OFFSET('Savings Results'!$A$1,6,1,2000),$A38,OFFSET('Savings Results'!$A$1,6,2,2000),$B38)/(1/(1-SUM('CE Parameters'!$F$10:$F$11))))/1000 -> 0
A39: Non-Residential | B39: Monitoring and Targeting | C39: =IFERROR(SUMIFS('Program Design'!$U:$U,'Program Design'!$C:$C,$A39,'Program Design'!$D:$D,$B39,'Program Design'!$J:$J,C$29)+SUMIFS('Program Design'!$V:$V,'Program Design'!$C:$C,$A39,'Program Design'!$D:$D,$B39,'Program Design'!$J:$J,C$29)+SUMIFS('Program Design'!$W:$W,'Program Design'!$C:$C,$A39,'Program Design'!$D:$D,$B39,'Program Design'!$J:$J,C$29)+SUMIFS(INDEX(OFFSET('Budget Inputs'!$A$1,6,1,2000,560),0,MATCH(CONCATENATE(C$29," Sub-Total"),OFFSET('Budget Inputs'!$A$1,6,1,1,560),0)),OFFSET('Budget Inputs'!$A$1,6,1,2000,1),$A39,OFFSET('Budget Inputs'!$A$1,6,2,2000,1),$B39),0) -> 0 | D39: =(SUMIFS(OFFSET('Savings Results'!$A$1,6,16 +MAX('Savings Results'!$G:$G)-MIN('Savings Results'!$G:$G)+MAX('Savings Results'!$J:$J)+C$29-MIN('Savings Results'!$G:$G),2000),OFFSET('Savings Results'!$A$1,6,6,2000),C$29,OFFSET('Savings Results'!$A$1,6,4,2000),"Dx",OFFSET('Savings Results'!$A$1,6,1,2000),$A39,OFFSET('Savings Results'!$A$1,6,2,2000),$B39)/(1/(1-SUM('CE Parameters'!$F$10:$F$11))))/1000 -> 0 | E39: =IFERROR(SUMIFS('Program Design'!$U:$U,'Program Design'!$C:$C,$A39,'Program Design'!$D:$D,$B39,'Program Design'!$J:$J,E$29)+SUMIFS('Program Design'!$V:$V,'Program Design'!$C:$C,$A39,'Program Design'!$D:$D,$B39,'Program Design'!$J:$J,E$29)+SUMIFS('Program Design'!$W:$W,'Program Design'!$C:$C,$A39,'Program Design'!$D:$D,$B39,'Program Design'!$J:$J,E$29)+SUMIFS(INDEX(OFFSET('Budget Inputs'!$A$1,6,1,2000,560),0,MATCH(CONCATENATE(E$29," Sub-Total"),OFFSET('Budget Inputs'!$A$1,6,1,1,560),0)),OFFSET('Budget Inputs'!$A$1,6,1,2000,1),$A39,OFFSET('Budget Inputs'!$A$1,6,2,2000,1),$B39),0) -> 0 | F39: =(SUMIFS(OFFSET('Savings Results'!$A$1,6,16 +MAX('Savings Results'!$G:$G)-MIN('Savings Results'!$G:$G)+MAX('Savings Results'!$J:$J)+E$29-MIN('Savings Results'!$G:$G),2000),OFFSET('Savings Results'!$A$1,6,6,2000),E$29,OFFSET('Savings Results'!$A$1,6,4,2000),"Dx",OFFSET('Savings Results'!$A$1,6,1,2000),$A39,OFFSET('Savings Results'!$A$1,6,2,2000),$B39)/(1/(1-SUM('CE Parameters'!$F$10:$F$11))))/1000 -> 0 | G39: =IFERROR(SUMIFS('Program Design'!$U:$U,'Program Design'!$C:$C,$A39,'Program Design'!$D:$D,$B39,'Program Design'!$J:$J,G$29)+SUMIFS('Program Design'!$V:$V,'Program Design'!$C:$C,$A39,'Program Design'!$D:$D,$B39,'Program Design'!$J:$J,G$29)+SUMIFS('Program Design'!$W:$W,'Program Design'!$C:$C,$A39,'Program Design'!$D:$D,$B39,'Program Design'!$J:$J,G$29)+SUMIFS(INDEX(OFFSET('Budget Inputs'!$A$1,6,1,2000,560),0,MATCH(CONCATENATE(G$29," Sub-Total"),OFFSET('Budget Inputs'!$A$1,6,1,1,560),0)),OFFSET('Budget Inputs'!$A$1,6,1,2000,1),$A39,OFFSET('Budget Inputs'!$A$1,6,2,2000,1),$B39),0) -> 0 | H39: =(SUMIFS(OFFSET('Savings Results'!$A$1,6,16 +MAX('Savings Results'!$G:$G)-MIN('Savings Results'!$G:$G)+MAX('Savings Results'!$J:$J)+G$29-MIN('Savings Results'!$G:$G),2000),OFFSET('Savings Results'!$A$1,6,6,2000),G$29,OFFSET('Savings Results'!$A$1,6,4,2000),"Dx",OFFSET('Savings Results'!$A$1,6,1,2000),$A39,OFFSET('Savings Results'!$A$1,6,2,2000),$B39)/(1/(1-SUM('CE Parameters'!$F$10:$F$11))))/1000 -> 0 | I39: =IFERROR(SUMIFS('Program Design'!$U:$U,'Program Design'!$C:$C,$A39,'Program Design'!$D:$D,$B39,'Program Design'!$J:$J,I$29)+SUMIFS('Program Design'!$V:$V,'Program Design'!$C:$C,$A39,'Program Design'!$D:$D,$B39,'Program Design'!$J:$J,I$29)+SUMIFS('Program Design'!$W:$W,'Program Design'!$C:$C,$A39,'Program Design'!$D:$D,$B39,'Program Design'!$J:$J,I$29)+SUMIFS(INDEX(OFFSET('Budget Inputs'!$A$1,6,1,2000,560),0,MATCH(CONCATENATE(I$29," Sub-Total"),OFFSET('Budget Inputs'!$A$1,6,1,1,560),0)),OFFSET('Budget Inputs'!$A$1,6,1,2000,1),$A39,OFFSET('Budget Inputs'!$A$1,6,2,2000,1),$B39),0) -> 0 | J39: =(SUMIFS(OFFSET('Savings Results'!$A$1,6,16 +MAX('Savings Results'!$G:$G)-MIN('Savings Results'!$G:$G)+MAX('Savings Results'!$J:$J)+I$29-MIN('Savings Results'!$G:$G),2000),OFFSET('Savings Results'!$A$1,6,6,2000),I$29,OFFSET('Savings Results'!$A$1,6,4,2000),"Dx",OFFSET('Savings Results'!$A$1,6,1,2000),$A39,OFFSET('Savings Results'!$A$1,6,2,2000),$B39)/(1/(1-SUM('CE Parameters'!$F$10:$F$11))))/1000 -> 0 | K39: =IFERROR(SUMIFS('Program Design'!$U:$U,'Program Design'!$C:$C,$A39,'Program Design'!$D:$D,$B39,'Program Design'!$J:$J,K$29)+SUMIFS('Program Design'!$V:$V,'Program Design'!$C:$C,$A39,'Program Design'!$D:$D,$B39,'Program Design'!$J:$J,K$29)+SUMIFS('Program Design'!$W:$W,'Program Design'!$C:$C,$A39,'Program Design'!$D:$D,$B39,'Program Design'!$J:$J,K$29)+SUMIFS(INDEX(OFFSET('Budget Inputs'!$A$1,6,1,2000,560),0,MATCH(CONCATENATE(K$29," Sub-Total"),OFFSET('Budget Inputs'!$A$1,6,1,1,560),0)),OFFSET('Budget Inputs'!$A$1,6,1,2000,1),$A39,OFFSET('Budget Inputs'!$A$1,6,2,2000,1),$B39),0) -> 0 | L39: =(SUMIFS(OFFSET('Savings Results'!$A$1,6,16 +MAX('Savings Results'!$G:$G)-MIN('Savings Results'!$G:$G)+MAX('Savings Results'!$J:$J)+K$29-MIN('Savings Results'!$G:$G),2000),OFFSET('Savings Results'!$A$1,6,6,2000),K$29,OFFSET('Savings Results'!$A$1,6,4,2000),"Dx",OFFSET('Savings Results'!$A$1,6,1,2000),$A39,OFFSET('Savings Results'!$A$1,6,2,2000),$B39)/(1/(1-SUM('CE Parameters'!$F$10:$F$11))))/1000 -> 0 | M39: =IFERROR(SUMIFS('Program Design'!$U:$U,'Program Design'!$C:$C,$A39,'Program Design'!$D:$D,$B39,'Program Design'!$J:$J,M$29)+SUMIFS('Program Design'!$V:$V,'Program Design'!$C:$C,$A39,'Program Design'!$D:$D,$B39,'Program Design'!$J:$J,M$29)+SUMIFS('Program Design'!$W:$W,'Program Design'!$C:$C,$A39,'Program Design'!$D:$D,$B39,'Program Design'!$J:$J,M$29)+SUMIFS(INDEX(OFFSET('Budget Inputs'!$A$1,6,1,2000,560),0,MATCH(CONCATENATE(M$29," Sub-Total"),OFFSET('Budget Inputs'!$A$1,6,1,1,560),0)),OFFSET('Budget Inputs'!$A$1,6,1,2000,1),$A39,OFFSET('Budget Inputs'!$A$1,6,2,2000,1),$B39),0) -> 0 | N39: =(SUMIFS(OFFSET('Savings Results'!$A$1,6,16 +MAX('Savings Results'!$G:$G)-MIN('Savings Results'!$G:$G)+MAX('Savings Results'!$J:$J)+M$29-MIN('Savings Results'!$G:$G),2000),OFFSET('Savings Results'!$A$1,6,6,2000),M$29,OFFSET('Savings Results'!$A$1,6,4,2000),"Dx",OFFSET('Savings Results'!$A$1,6,1,2000),$A39,OFFSET('Savings Results'!$A$1,6,2,2000),$B39)/(1/(1-SUM('CE Parameters'!$F$10:$F$11))))/1000 -> 0 | O39: =IFERROR(SUMIFS('Program Design'!$U:$U,'Program Design'!$C:$C,$A39,'Program Design'!$D:$D,$B39)+SUMIFS('Program Design'!$V:$V,'Program Design'!$C:$C,$A39,'Program Design'!$D:$D,$B39)+SUMIFS('Program Design'!$W:$W,'Program Design'!$C:$C,$A39,'Program Design'!$D:$D,$B39)+SUMIFS(INDEX(OFFSET('Budget Inputs'!$A$1,6,1,2000,560),0,MATCH("Total",OFFSET('Budget Inputs'!$A$1,6,1,1,560),0)),OFFSET('Budget Inputs'!$A$1,6,1,2000,1),$A39,OFFSET('Budget Inputs'!$A$1,6,2,2000,1),$B39),0) -> 0 | P39: =(SUMIFS(OFFSET('Savings Results'!$A$1,6,16+2020-MIN('Program Design'!J:J)+2020 -MIN('Program Design'!J:J)+ MAX('Savings Results'!J:J),2000),OFFSET('Savings Results'!$A$1,6,4,2000),"Dx",OFFSET('Savings Results'!$A$1,6,1,2000),$A39,OFFSET('Savings Results'!$A$1,6,2,2000),$B39)/(1/(1-SUM('CE Parameters'!$F$10:$F$11))))/1000 -> 0
A40: Non-Residential | B40: Energy Manager | C40: =IFERROR(SUMIFS('Program Design'!$U:$U,'Program Design'!$C:$C,$A40,'Program Design'!$D:$D,$B40,'Program Design'!$J:$J,C$29)+SUMIFS('Program Design'!$V:$V,'Program Design'!$C:$C,$A40,'Program Design'!$D:$D,$B40,'Program Design'!$J:$J,C$29)+SUMIFS('Program Design'!$W:$W,'Program Design'!$C:$C,$A40,'Program Design'!$D:$D,$B40,'Program Design'!$J:$J,C$29)+SUMIFS(INDEX(OFFSET('Budget Inputs'!$A$1,6,1,2000,560),0,MATCH(CONCATENATE(C$29," Sub-Total"),OFFSET('Budget Inputs'!$A$1,6,1,1,560),0)),OFFSET('Budget Inputs'!$A$1,6,1,2000,1),$A40,OFFSET('Budget Inputs'!$A$1,6,2,2000,1),$B40),0) -> 4465 | D40: =(SUMIFS(OFFSET('Savings Results'!$A$1,6,16 +MAX('Savings Results'!$G:$G)-MIN('Savings Results'!$G:$G)+MAX('Savings Results'!$J:$J)+C$29-MIN('Savings Results'!$G:$G),2000),OFFSET('Savings Results'!$A$1,6,6,2000),C$29,OFFSET('Savings Results'!$A$1,6,4,2000),"Dx",OFFSET('Savings Results'!$A$1,6,1,2000),$A40,OFFSET('Savings Results'!$A$1,6,2,2000),$B40)/(1/(1-SUM('CE Parameters'!$F$10:$F$11))))/1000 -> 0 | E40: =IFERROR(SUMIFS('Program Design'!$U:$U,'Program Design'!$C:$C,$A40,'Program Design'!$D:$D,$B40,'Program Design'!$J:$J,E$29)+SUMIFS('Program Design'!$V:$V,'Program Design'!$C:$C,$A40,'Program Design'!$D:$D,$B40,'Program Design'!$J:$J,E$29)+SUMIFS('Program Design'!$W:$W,'Program Design'!$C:$C,$A40,'Program Design'!$D:$D,$B40,'Program Design'!$J:$J,E$29)+SUMIFS(INDEX(OFFSET('Budget Inputs'!$A$1,6,1,2000,560),0,MATCH(CONCATENATE(E$29," Sub-Total"),OFFSET('Budget Inputs'!$A$1,6,1,1,560),0)),OFFSET('Budget Inputs'!$A$1,6,1,2000,1),$A40,OFFSET('Budget Inputs'!$A$1,6,2,2000,1),$B40),0) -> 107513 | F40: =(SUMIFS(OFFSET('Savings Results'!$A$1,6,16 +MAX('Savings Results'!$G:$G)-MIN('Savings Results'!$G:$G)+MAX('Savings Results'!$J:$J)+E$29-MIN('Savings Results'!$G:$G),2000),OFFSET('Savings Results'!$A$1,6,6,2000),E$29,OFFSET('Savings Results'!$A$1,6,4,2000),"Dx",OFFSET('Savings Results'!$A$1,6,1,2000),$A40,OFFSET('Savings Results'!$A$1,6,2,2000),$B40)/(1/(1-SUM('CE Parameters'!$F$10:$F$11))))/1000 -> 1124.174 | G40: =IFERROR(SUMIFS('Program Design'!$U:$U,'Program Design'!$C:$C,$A40,'Program Design'!$D:$D,$B40,'Program Design'!$J:$J,G$29)+SUMIFS('Program Design'!$V:$V,'Program Design'!$C:$C,$A40,'Program Design'!$D:$D,$B40,'Program Design'!$J:$J,G$29)+SUMIFS('Program Design'!$W:$W,'Program Design'!$C:$C,$A40,'Program Design'!$D:$D,$B40,'Program Design'!$J:$J,G$29)+SUMIFS(INDEX(OFFSET('Budget Inputs'!$A$1,6,1,2000,560),0,MATCH(CONCATENATE(G$29," Sub-Total"),OFFSET('Budget Inputs'!$A$1,6,1,1,560),0)),OFFSET('Budget Inputs'!$A$1,6,1,2000,1),$A40,OFFSET('Budget Inputs'!$A$1,6,2,2000,1),$B40),0) -> 538305 | H40: =(SUMIFS(OFFSET('Savings Results'!$A$1,6,16 +MAX('Savings Results'!$G:$G)-MIN('Savings Results'!$G:$G)+MAX('Savings Results'!$J:$J)+G$29-MIN('Savings Results'!$G:$G),2000),OFFSET('Savings Results'!$A$1,6,6,2000),G$29,OFFSET('Savings Results'!$A$1,6,4,2000),"Dx",OFFSET('Savings Results'!$A$1,6,1,2000),$A40,OFFSET('Savings Results'!$A$1,6,2,2000),$B40)/(1/(1-SUM('CE Parameters'!$F$10:$F$11))))/1000 -> 356.0989996 | I40: =IFERROR(SUMIFS('Program Design'!$U:$U,'Program Design'!$C:$C,$A40,'Program Design'!$D:$D,$B40,'Program Design'!$J:$J,I$29)+SUMIFS('Program Design'!$V:$V,'Program Design'!$C:$C,$A40,'Program Design'!$D:$D,$B40,'Program Design'!$J:$J,I$29)+SUMIFS('Program Design'!$W:$W,'Program Design'!$C:$C,$A40,'Program Design'!$D:$D,$B40,'Program Design'!$J:$J,I$29)+SUMIFS(INDEX(OFFSET('Budget Inputs'!$A$1,6,1,2000,560),0,MATCH(CONCATENATE(I$29," Sub-Total"),OFFSET('Budget Inputs'!$A$1,6,1,1,560),0)),OFFSET('Budget Inputs'!$A$1,6,1,2000,1),$A40,OFFSET('Budget Inputs'!$A$1,6,2,2000,1),$B40),0) -> 525595.96 | J40: =(SUMIFS(OFFSET('Savings Results'!$A$1,6,16 +MAX('Savings Results'!$G:$G)-MIN('Savings Results'!$G:$G)+MAX('Savings Results'!$J:$J)+I$29-MIN('Savings Results'!$G:$G),2000),OFFSET('Savings Results'!$A$1,6,6,2000),I$29,OFFSET('Savings Results'!$A$1,6,4,2000),"Dx",OFFSET('Savings Results'!$A$1,6,1,2000),$A40,OFFSET('Savings Results'!$A$1,6,2,2000),$B40)/(1/(1-SUM('CE Parameters'!$F$10:$F$11))))/1000 -> 858 | K40: =IFERROR(SUMIFS('Program Design'!$U:$U,'Program Design'!$C:$C,$A40,'Program Design'!$D:$D,$B40,'Program Design'!$J:$J,K$29)+SUMIFS('Program Design'!$V:$V,'Program Design'!$C:$C,$A40,'Program Design'!$D:$D,$B40,'Program Design'!$J:$J,K$29)+SUMIFS('Program Design'!$W:$W,'Program Design'!$C:$C,$A40,'Program Design'!$D:$D,$B40,'Program Design'!$J:$J,K$29)+SUMIFS(INDEX(OFFSET('Budget Inputs'!$A$1,6,1,2000,560),0,MATCH(CONCATENATE(K$29," Sub-Total"),OFFSET('Budget Inputs'!$A$1,6,1,1,560),0)),OFFSET('Budget Inputs'!$A$1,6,1,2000,1),$A40,OFFSET('Budget Inputs'!$A$1,6,2,2000,1),$B40),0) -> 276463.2 | L40: =(SUMIFS(OFFSET('Savings Results'!$A$1,6,16 +MAX('Savings Results'!$G:$G)-MIN('Savings Results'!$G:$G)+MAX('Savings Results'!$J:$J)+K$29-MIN('Savings Results'!$G:$G),2000),OFFSET('Savings Results'!$A$1,6,6,2000),K$29,OFFSET('Savings Results'!$A$1,6,4,2000),"Dx",OFFSET('Savings Results'!$A$1,6,1,2000),$A40,OFFSET('Savings Results'!$A$1,6,2,2000),$B40)/(1/(1-SUM('CE Parameters'!$F$10:$F$11))))/1000 -> 572 | M40: =IFERROR(SUMIFS('Program Design'!$U:$U,'Program Design'!$C:$C,$A40,'Program Design'!$D:$D,$B40,'Program Design'!$J:$J,M$29)+SUMIFS('Program Design'!$V:$V,'Program Design'!$C:$C,$A40,'Program Design'!$D:$D,$B40,'Program Design'!$J:$J,M$29)+SUMIFS('Program Design'!$W:$W,'Program Design'!$C:$C,$A40,'Program Design'!$D:$D,$B40,'Program Design'!$J:$J,M$29)+SUMIFS(INDEX(OFFSET('Budget Inputs'!$A$1,6,1,2000,560),0,MATCH(CONCATENATE(M$29," Sub-Total"),OFFSET('Budget Inputs'!$A$1,6,1,1,560),0)),OFFSET('Budget Inputs'!$A$1,6,1,2000,1),$A40,OFFSET('Budget Inputs'!$A$1,6,2,2000,1),$B40),0) -> 26463.2 | N40: =(SUMIFS(OFFSET('Savings Results'!$A$1,6,16 +MAX('Savings Results'!$G:$G)-MIN('Savings Results'!$G:$G)+MAX('Savings Results'!$J:$J)+M$29-MIN('Savings Results'!$G:$G),2000),OFFSET('Savings Results'!$A$1,6,6,2000),M$29,OFFSET('Savings Results'!$A$1,6,4,2000),"Dx",OFFSET('Savings Results'!$A$1,6,1,2000),$A40,OFFSET('Savings Results'!$A$1,6,2,2000),$B40)/(1/(1-SUM('CE Parameters'!$F$10:$F$11))))/1000 -> 0 | O40: =IFERROR(SUMIFS('Program Design'!$U:$U,'Program Design'!$C:$C,$A40,'Program Design'!$D:$D,$B40)+SUMIFS('Program Design'!$V:$V,'Program Design'!$C:$C,$A40,'Program Design'!$D:$D,$B40)+SUMIFS('Program Design'!$W:$W,'Program Design'!$C:$C,$A40,'Program Design'!$D:$D,$B40)+SUMIFS(INDEX(OFFSET('Budget Inputs'!$A$1,6,1,2000,560),0,MATCH("Total",OFFSET('Budget Inputs'!$A$1,6,1,1,560),0)),OFFSET('Budget Inputs'!$A$1,6,1,2000,1),$A40,OFFSET('Budget Inputs'!$A$1,6,2,2000,1),$B40),0) -> 1478805.36 | P40: =(SUMIFS(OFFSET('Savings Results'!$A$1,6,16+2020-MIN('Program Design'!J:J)+2020 -MIN('Program Design'!J:J)+ MAX('Savings Results'!J:J),2000),OFFSET('Savings Results'!$A$1,6,4,2000),"Dx",OFFSET('Savings Results'!$A$1,6,1,2000),$A40,OFFSET('Savings Results'!$A$1,6,2,2000),$B40)/(1/(1-SUM('CE Parameters'!$F$10:$F$11))))/1000 -> 2910.273
A41: Non-Residential | B41: 2015 PSUI Energy Manager Initiative | C41: =IFERROR(SUMIFS('Program Design'!$U:$U,'Program Design'!$C:$C,$A41,'Program Design'!$D:$D,$B41,'Program Design'!$J:$J,C$29)+SUMIFS('Program Design'!$V:$V,'Program Design'!$C:$C,$A41,'Program Design'!$D:$D,$B41,'Program Design'!$J:$J,C$29)+SUMIFS('Program Design'!$W:$W,'Program Design'!$C:$C,$A41,'Program Design'!$D:$D,$B41,'Program Design'!$J:$J,C$29)+SUMIFS(INDEX(OFFSET('Budget Inputs'!$A$1,6,1,2000,560),0,MATCH(CONCATENATE(C$29," Sub-Total"),OFFSET('Budget Inputs'!$A$1,6,1,1,560),0)),OFFSET('Budget Inputs'!$A$1,6,1,2000,1),$A41,OFFSET('Budget Inputs'!$A$1,6,2,2000,1),$B41),0) -> 0 | D41: =(SUMIFS(OFFSET('Savings Results'!$A$1,6,16 +MAX('Savings Results'!$G:$G)-MIN('Savings Results'!$G:$G)+MAX('Savings Results'!$J:$J)+C$29-MIN('Savings Results'!$G:$G),2000),OFFSET('Savings Results'!$A$1,6,6,2000),C$29,OFFSET('Savings Results'!$A$1,6,4,2000),"Dx",OFFSET('Savings Results'!$A$1,6,1,2000),$A41,OFFSET('Savings Results'!$A$1,6,2,2000),$B41)/(1/(1-SUM('CE Parameters'!$F$10:$F$11))))/1000 -> 162.019 | E41: =IFERROR(SUMIFS('Program Design'!$U:$U,'Program Design'!$C:$C,$A41,'Program Design'!$D:$D,$B41,'Program Design'!$J:$J,E$29)+SUMIFS('Program Design'!$V:$V,'Program Design'!$C:$C,$A41,'Program Design'!$D:$D,$B41,'Program Design'!$J:$J,E$29)+SUMIFS('Program Design'!$W:$W,'Program Design'!$C:$C,$A41,'Program Design'!$D:$D,$B41,'Program Design'!$J:$J,E$29)+SUMIFS(INDEX(OFFSET('Budget Inputs'!$A$1,6,1,2000,560),0,MATCH(CONCATENATE(E$29," Sub-Total"),OFFSET('Budget Inputs'!$A$1,6,1,1,560),0)),OFFSET('Budget Inputs'!$A$1,6,1,2000,1),$A41,OFFSET('Budget Inputs'!$A$1,6,2,2000,1),$B41),0) -> 0 | F41: =(SUMIFS(OFFSET('Savings Results'!$A$1,6,16 +MAX('Savings Results'!$G:$G)-MIN('Savings Results'!$G:$G)+MAX('Savings Results'!$J:$J)+E$29-MIN('Savings Results'!$G:$G),2000),OFFSET('Savings Results'!$A$1,6,6,2000),E$29,OFFSET('Savings Results'!$A$1,6,4,2000),"Dx",OFFSET('Savings Results'!$A$1,6,1,2000),$A41,OFFSET('Savings Results'!$A$1,6,2,2000),$B41)/(1/(1-SUM('CE Parameters'!$F$10:$F$11))))/1000 -> 0 | G41: =IFERROR(SUMIFS('Program Design'!$U:$U,'Program Design'!$C:$C,$A41,'Program Design'!$D:$D,$B41,'Program Design'!$J:$J,G$29)+SUMIFS('Program Design'!$V:$V,'Program Design'!$C:$C,$A41,'Program Design'!$D:$D,$B41,'Program Design'!$J:$J,G$29)+SUMIFS('Program Design'!$W:$W,'Program Design'!$C:$C,$A41,'Program Design'!$D:$D,$B41,'Program Design'!$J:$J,G$29)+SUMIFS(INDEX(OFFSET('Budget Inputs'!$A$1,6,1,2000,560),0,MATCH(CONCATENATE(G$29," Sub-Total"),OFFSET('Budget Inputs'!$A$1,6,1,1,560),0)),OFFSET('Budget Inputs'!$A$1,6,1,2000,1),$A41,OFFSET('Budget Inputs'!$A$1,6,2,2000,1),$B41),0) -> 0 | H41: =(SUMIFS(OFFSET('Savings Results'!$A$1,6,16 +MAX('Savings Results'!$G:$G)-MIN('Savings Results'!$G:$G)+MAX('Savings Results'!$J:$J)+G$29-MIN('Savings Results'!$G:$G),2000),OFFSET('Savings Results'!$A$1,6,6,2000),G$29,OFFSET('Savings Results'!$A$1,6,4,2000),"Dx",OFFSET('Savings Results'!$A$1,6,1,2000),$A41,OFFSET('Savings Results'!$A$1,6,2,2000),$B41)/(1/(1-SUM('CE Parameters'!$F$10:$F$11))))/1000 -> 0 | I41: =IFERROR(SUMIFS('Program Design'!$U:$U,'Program Design'!$C:$C,$A41,'Program Design'!$D:$D,$B41,'Program Design'!$J:$J,I$29)+SUMIFS('Program Design'!$V:$V,'Program Design'!$C:$C,$A41,'Program Design'!$D:$D,$B41,'Program Design'!$J:$J,I$29)+SUMIFS('Program Design'!$W:$W,'Program Design'!$C:$C,$A41,'Program Design'!$D:$D,$B41,'Program Design'!$J:$J,I$29)+SUMIFS(INDEX(OFFSET('Budget Inputs'!$A$1,6,1,2000,560),0,MATCH(CONCATENATE(I$29," Sub-Total"),OFFSET('Budget Inputs'!$A$1,6,1,1,560),0)),OFFSET('Budget Inputs'!$A$1,6,1,2000,1),$A41,OFFSET('Budget Inputs'!$A$1,6,2,2000,1),$B41),0) -> 0 | J41: =(SUMIFS(OFFSET('Savings Results'!$A$1,6,16 +MAX('Savings Results'!$G:$G)-MIN('Savings Results'!$G:$G)+MAX('Savings Results'!$J:$J)+I$29-MIN('Savings Results'!$G:$G),2000),OFFSET('Savings Results'!$A$1,6,6,2000),I$29,OFFSET('Savings Results'!$A$1,6,4,2000),"Dx",OFFSET('Savings Results'!$A$1,6,1,2000),$A41,OFFSET('Savings Results'!$A$1,6,2,2000),$B41)/(1/(1-SUM('CE Parameters'!$F$10:$F$11))))/1000 -> 0 | K41: =IFERROR(SUMIFS('Program Design'!$U:$U,'Program Design'!$C:$C,$A41,'Program Design'!$D:$D,$B41,'Program Design'!$J:$J,K$29)+SUMIFS('Program Design'!$V:$V,'Program Design'!$C:$C,$A41,'Program Design'!$D:$D,$B41,'Program Design'!$J:$J,K$29)+SUMIFS('Program Design'!$W:$W,'Program Design'!$C:$C,$A41,'Program Design'!$D:$D,$B41,'Program Design'!$J:$J,K$29)+SUMIFS(INDEX(OFFSET('Budget Inputs'!$A$1,6,1,2000,560),0,MATCH(CONCATENATE(K$29," Sub-Total"),OFFSET('Budget Inputs'!$A$1,6,1,1,560),0)),OFFSET('Budget Inputs'!$A$1,6,1,2000,1),$A41,OFFSET('Budget Inputs'!$A$1,6,2,2000,1),$B41),0) -> 0 | L41: =(SUMIFS(OFFSET('Savings Results'!$A$1,6,16 +MAX('Savings Results'!$G:$G)-MIN('Savings Results'!$G:$G)+MAX('Savings Results'!$J:$J)+K$29-MIN('Savings Results'!$G:$G),2000),OFFSET('Savings Results'!$A$1,6,6,2000),K$29,OFFSET('Savings Results'!$A$1,6,4,2000),"Dx",OFFSET('Savings Results'!$A$1,6,1,2000),$A41,OFFSET('Savings Results'!$A$1,6,2,2000),$B41)/(1/(1-SUM('CE Parameters'!$F$10:$F$11))))/1000 -> 0 | M41: =IFERROR(SUMIFS('Program Design'!$U:$U,'Program Design'!$C:$C,$A41,'Program Design'!$D:$D,$B41,'Program Design'!$J:$J,M$29)+SUMIFS('Program Design'!$V:$V,'Program Design'!$C:$C,$A41,'Program Design'!$D:$D,$B41,'Program Design'!$J:$J,M$29)+SUMIFS('Program Design'!$W:$W,'Program Design'!$C:$C,$A41,'Program Design'!$D:$D,$B41,'Program Design'!$J:$J,M$29)+SUMIFS(INDEX(OFFSET('Budget Inputs'!$A$1,6,1,2000,560),0,MATCH(CONCATENATE(M$29," Sub-Total"),OFFSET('Budget Inputs'!$A$1,6,1,1,560),0)),OFFSET('Budget Inputs'!$A$1,6,1,2000,1),$A41,OFFSET('Budget Inputs'!$A$1,6,2,2000,1),$B41),0) -> 0 | N41: =(SUMIFS(OFFSET('Savings Results'!$A$1,6,16 +MAX('Savings Results'!$G:$G)-MIN('Savings Results'!$G:$G)+MAX('Savings Results'!$J:$J)+M$29-MIN('Savings Results'!$G:$G),2000),OFFSET('Savings Results'!$A$1,6,6,2000),M$29,OFFSET('Savings Results'!$A$1,6,4,2000),"Dx",OFFSET('Savings Results'!$A$1,6,1,2000),$A41,OFFSET('Savings Results'!$A$1,6,2,2000),$B41)/(1/(1-SUM('CE Parameters'!$F$10:$F$11))))/1000 -> 0 | O41: =IFERROR(SUMIFS('Program Design'!$U:$U,'Program Design'!$C:$C,$A41,'Program Design'!$D:$D,$B41)+SUMIFS('Program Design'!$V:$V,'Program Design'!$C:$C,$A41,'Program Design'!$D:$D,$B41)+SUMIFS('Program Design'!$W:$W,'Program Design'!$C:$C,$A41,'Program Design'!$D:$D,$B41)+SUMIFS(INDEX(OFFSET('Budget Inputs'!$A$1,6,1,2000,560),0,MATCH("Total",OFFSET('Budget Inputs'!$A$1,6,1,1,560),0)),OFFSET('Budget Inputs'!$A$1,6,1,2000,1),$A41,OFFSET('Budget Inputs'!$A$1,6,2,2000,1),$B41),0) -> 0 | P41: =(SUMIFS(OFFSET('Savings Results'!$A$1,6,16+2020-MIN('Program Design'!J:J)+2020 -MIN('Program Design'!J:J)+ MAX('Savings Results'!J:J),2000),OFFSET('Savings Results'!$A$1,6,4,2000),"Dx",OFFSET('Savings Results'!$A$1,6,1,2000),$A41,OFFSET('Savings Results'!$A$1,6,2,2000),$B41)/(1/(1-SUM('CE Parameters'!$F$10:$F$11))))/1000 -> 162.019
A42: Non-Residential | B42: 2015 Audit Funding | C42: =IFERROR(SUMIFS('Program Design'!$U:$U,'Program Design'!$C:$C,$A42,'Program Design'!$D:$D,$B42,'Program Design'!$J:$J,C$29)+SUMIFS('Program Design'!$V:$V,'Program Design'!$C:$C,$A42,'Program Design'!$D:$D,$B42,'Program Design'!$J:$J,C$29)+SUMIFS('Program Design'!$W:$W,'Program Design'!$C:$C,$A42,'Program Design'!$D:$D,$B42,'Program Design'!$J:$J,C$29)+SUMIFS(INDEX(OFFSET('Budget Inputs'!$A$1,6,1,2000,560),0,MATCH(CONCATENATE(C$29," Sub-Total"),OFFSET('Budget Inputs'!$A$1,6,1,1,560),0)),OFFSET('Budget Inputs'!$A$1,6,1,2000,1),$A42,OFFSET('Budget Inputs'!$A$1,6,2,2000,1),$B42),0) -> 0 | D42: =(SUMIFS(OFFSET('Savings Results'!$A$1,6,16 +MAX('Savings Results'!$G:$G)-MIN('Savings Results'!$G:$G)+MAX('Savings Results'!$J:$J)+C$29-MIN('Savings Results'!$G:$G),2000),OFFSET('Savings Results'!$A$1,6,6,2000),C$29,OFFSET('Savings Results'!$A$1,6,4,2000),"Dx",OFFSET('Savings Results'!$A$1,6,1,2000),$A42,OFFSET('Savings Results'!$A$1,6,2,2000),$B42)/(1/(1-SUM('CE Parameters'!$F$10:$F$11))))/1000 -> 152.318 | E42: =IFERROR(SUMIFS('Program Design'!$U:$U,'Program Design'!$C:$C,$A42,'Program Design'!$D:$D,$B42,'Program Design'!$J:$J,E$29)+SUMIFS('Program Design'!$V:$V,'Program Design'!$C:$C,$A42,'Program Design'!$D:$D,$B42,'Program Design'!$J:$J,E$29)+SUMIFS('Program Design'!$W:$W,'Program Design'!$C:$C,$A42,'Program Design'!$D:$D,$B42,'Program Design'!$J:$J,E$29)+SUMIFS(INDEX(OFFSET('Budget Inputs'!$A$1,6,1,2000,560),0,MATCH(CONCATENATE(E$29," Sub-Total"),OFFSET('Budget Inputs'!$A$1,6,1,1,560),0)),OFFSET('Budget Inputs'!$A$1,6,1,2000,1),$A42,OFFSET('Budget Inputs'!$A$1,6,2,2000,1),$B42),0) -> 0 | F42: =(SUMIFS(OFFSET('Savings Results'!$A$1,6,16 +MAX('Savings Results'!$G:$G)-MIN('Savings Results'!$G:$G)+MAX('Savings Results'!$J:$J)+E$29-MIN('Savings Results'!$G:$G),2000),OFFSET('Savings Results'!$A$1,6,6,2000),E$29,OFFSET('Savings Results'!$A$1,6,4,2000),"Dx",OFFSET('Savings Results'!$A$1,6,1,2000),$A42,OFFSET('Savings Results'!$A$1,6,2,2000),$B42)/(1/(1-SUM('CE Parameters'!$F$10:$F$11))))/1000 -> 0 | G42: =IFERROR(SUMIFS('Program Design'!$U:$U,'Program Design'!$C:$C,$A42,'Program Design'!$D:$D,$B42,'Program Design'!$J:$J,G$29)+SUMIFS('Program Design'!$V:$V,'Program Design'!$C:$C,$A42,'Program Design'!$D:$D,$B42,'Program Design'!$J:$J,G$29)+SUMIFS('Program Design'!$W:$W,'Program Design'!$C:$C,$A42,'Program Design'!$D:$D,$B42,'Program Design'!$J:$J,G$29)+SUMIFS(INDEX(OFFSET('Budget Inputs'!$A$1,6,1,2000,560),0,MATCH(CONCATENATE(G$29," Sub-Total"),OFFSET('Budget Inputs'!$A$1,6,1,1,560),0)),OFFSET('Budget Inputs'!$A$1,6,1,2000,1),$A42,OFFSET('Budget Inputs'!$A$1,6,2,2000,1),$B42),0) -> 0 | H42: =(SUMIFS(OFFSET('Savings Results'!$A$1,6,16 +MAX('Savings Results'!$G:$G)-MIN('Savings Results'!$G:$G)+MAX('Savings Results'!$J:$J)+G$29-MIN('Savings Results'!$G:$G),2000),OFFSET('Savings Results'!$A$1,6,6,2000),G$29,OFFSET('Savings Results'!$A$1,6,4,2000),"Dx",OFFSET('Savings Results'!$A$1,6,1,2000),$A42,OFFSET('Savings Results'!$A$1,6,2,2000),$B42)/(1/(1-SUM('CE Parameters'!$F$10:$F$11))))/1000 -> 0 | I42: =IFERROR(SUMIFS('Program Design'!$U:$U,'Program Design'!$C:$C,$A42,'Program Design'!$D:$D,$B42,'Program Design'!$J:$J,I$29)+SUMIFS('Program Design'!$V:$V,'Program Design'!$C:$C,$A42,'Program Design'!$D:$D,$B42,'Program Design'!$J:$J,I$29)+SUMIFS('Program Design'!$W:$W,'Program Design'!$C:$C,$A42,'Program Design'!$D:$D,$B42,'Program Design'!$J:$J,I$29)+SUMIFS(INDEX(OFFSET('Budget Inputs'!$A$1,6,1,2000,560),0,MATCH(CONCATENATE(I$29," Sub-Total"),OFFSET('Budget Inputs'!$A$1,6,1,1,560),0)),OFFSET('Budget Inputs'!$A$1,6,1,2000,1),$A42,OFFSET('Budget Inputs'!$A$1,6,2,2000,1),$B42),0) -> 0 | J42: =(SUMIFS(OFFSET('Savings Results'!$A$1,6,16 +MAX('Savings Results'!$G:$G)-MIN('Savings Results'!$G:$G)+MAX('Savings Results'!$J:$J)+I$29-MIN('Savings Results'!$G:$G),2000),OFFSET('Savings Results'!$A$1,6,6,2000),I$29,OFFSET('Savings Results'!$A$1,6,4,2000),"Dx",OFFSET('Savings Results'!$A$1,6,1,2000),$A42,OFFSET('Savings Results'!$A$1,6,2,2000),$B42)/(1/(1-SUM('CE Parameters'!$F$10:$F$11))))/1000 -> 0 | K42: =IFERROR(SUMIFS('Program Design'!$U:$U,'Program Design'!$C:$C,$A42,'Program Design'!$D:$D,$B42,'Program Design'!$J:$J,K$29)+SUMIFS('Program Design'!$V:$V,'Program Design'!$C:$C,$A42,'Program Design'!$D:$D,$B42,'Program Design'!$J:$J,K$29)+SUMIFS('Program Design'!$W:$W,'Program Design'!$C:$C,$A42,'Program Design'!$D:$D,$B42,'Program Design'!$J:$J,K$29)+SUMIFS(INDEX(OFFSET('Budget Inputs'!$A$1,6,1,2000,560),0,MATCH(CONCATENATE(K$29," Sub-Total"),OFFSET('Budget Inputs'!$A$1,6,1,1,560),0)),OFFSET('Budget Inputs'!$A$1,6,1,2000,1),$A42,OFFSET('Budget Inputs'!$A$1,6,2,2000,1),$B42),0) -> 0 | L42: =(SUMIFS(OFFSET('Savings Results'!$A$1,6,16 +MAX('Savings Results'!$G:$G)-MIN('Savings Results'!$G:$G)+MAX('Savings Results'!$J:$J)+K$29-MIN('Savings Results'!$G:$G),2000),OFFSET('Savings Results'!$A$1,6,6,2000),K$29,OFFSET('Savings Results'!$A$1,6,4,2000),"Dx",OFFSET('Savings Results'!$A$1,6,1,2000),$A42,OFFSET('Savings Results'!$A$1,6,2,2000),$B42)/(1/(1-SUM('CE Parameters'!$F$10:$F$11))))/1000 -> 0 | M42: =IFERROR(SUMIFS('Program Design'!$U:$U,'Program Design'!$C:$C,$A42,'Program Design'!$D:$D,$B42,'Program Design'!$J:$J,M$29)+SUMIFS('Program Design'!$V:$V,'Program Design'!$C:$C,$A42,'Program Design'!$D:$D,$B42,'Program Design'!$J:$J,M$29)+SUMIFS('Program Design'!$W:$W,'Program Design'!$C:$C,$A42,'Program Design'!$D:$D,$B42,'Program Design'!$J:$J,M$29)+SUMIFS(INDEX(OFFSET('Budget Inputs'!$A$1,6,1,2000,560),0,MATCH(CONCATENATE(M$29," Sub-Total"),OFFSET('Budget Inputs'!$A$1,6,1,1,560),0)),OFFSET('Budget Inputs'!$A$1,6,1,2000,1),$A42,OFFSET('Budget Inputs'!$A$1,6,2,2000,1),$B42),0) -> 0 | N42: =(SUMIFS(OFFSET('Savings Results'!$A$1,6,16 +MAX('Savings Results'!$G:$G)-MIN('Savings Results'!$G:$G)+MAX('Savings Results'!$J:$J)+M$29-MIN('Savings Results'!$G:$G),2000),OFFSET('Savings Results'!$A$1,6,6,2000),M$29,OFFSET('Savings Results'!$A$1,6,4,2000),"Dx",OFFSET('Savings Results'!$A$1,6,1,2000),$A42,OFFSET('Savings Results'!$A$1,6,2,2000),$B42)/(1/(1-SUM('CE Parameters'!$F$10:$F$11))))/1000 -> 0 | O42: =IFERROR(SUMIFS('Program Design'!$U:$U,'Program Design'!$C:$C,$A42,'Program Design'!$D:$D,$B42)+SUMIFS('Program Design'!$V:$V,'Program Design'!$C:$C,$A42,'Program Design'!$D:$D,$B42)+SUMIFS('Program Design'!$W:$W,'Program Design'!$C:$C,$A42,'Program Design'!$D:$D,$B42)+SUMIFS(INDEX(OFFSET('Budget Inputs'!$A$1,6,1,2000,560),0,MATCH("Total",OFFSET('Budget Inputs'!$A$1,6,1,1,560),0)),OFFSET('Budget Inputs'!$A$1,6,1,2000,1),$A42,OFFSET('Budget Inputs'!$A$1,6,2,2000,1),$B42),0) -> 0 | P42: =(SUMIFS(OFFSET('Savings Results'!$A$1,6,16+2020-MIN('Program Design'!J:J)+2020 -MIN('Program Design'!J:J)+ MAX('Savings Results'!J:J),2000),OFFSET('Savings Results'!$A$1,6,4,2000),"Dx",OFFSET('Savings Results'!$A$1,6,1,2000),$A42,OFFSET('Savings Results'!$A$1,6,2,2000),$B42)/(1/(1-SUM('CE Parameters'!$F$10:$F$11))))/1000 -> 152.318
A43: Non-Residential | B43: 2015 ERII Retrofit | C43: =IFERROR(SUMIFS('Program Design'!$U:$U,'Program Design'!$C:$C,$A43,'Program Design'!$D:$D,$B43,'Program Design'!$J:$J,C$29)+SUMIFS('Program Design'!$V:$V,'Program Design'!$C:$C,$A43,'Program Design'!$D:$D,$B43,'Program Design'!$J:$J,C$29)+SUMIFS('Program Design'!$W:$W,'Program Design'!$C:$C,$A43,'Program Design'!$D:$D,$B43,'Program Design'!$J:$J,C$29)+SUMIFS(INDEX(OFFSET('Budget Inputs'!$A$1,6,1,2000,560),0,MATCH(CONCATENATE(C$29," Sub-Total"),OFFSET('Budget Inputs'!$A$1,6,1,1,560),0)),OFFSET('Budget Inputs'!$A$1,6,1,2000,1),$A43,OFFSET('Budget Inputs'!$A$1,6,2,2000,1),$B43),0) -> 0 | D43: =(SUMIFS(OFFSET('Savings Results'!$A$1,6,16 +MAX('Savings Results'!$G:$G)-MIN('Savings Results'!$G:$G)+MAX('Savings Results'!$J:$J)+C$29-MIN('Savings Results'!$G:$G),2000),OFFSET('Savings Results'!$A$1,6,6,2000),C$29,OFFSET('Savings Results'!$A$1,6,4,2000),"Dx",OFFSET('Savings Results'!$A$1,6,1,2000),$A43,OFFSET('Savings Results'!$A$1,6,2,2000),$B43)/(1/(1-SUM('CE Parameters'!$F$10:$F$11))))/1000 -> 13523.896 | E43: =IFERROR(SUMIFS('Program Design'!$U:$U,'Program Design'!$C:$C,$A43,'Program Design'!$D:$D,$B43,'Program Design'!$J:$J,E$29)+SUMIFS('Program Design'!$V:$V,'Program Design'!$C:$C,$A43,'Program Design'!$D:$D,$B43,'Program Design'!$J:$J,E$29)+SUMIFS('Program Design'!$W:$W,'Program Design'!$C:$C,$A43,'Program Design'!$D:$D,$B43,'Program Design'!$J:$J,E$29)+SUMIFS(INDEX(OFFSET('Budget Inputs'!$A$1,6,1,2000,560),0,MATCH(CONCATENATE(E$29," Sub-Total"),OFFSET('Budget Inputs'!$A$1,6,1,1,560),0)),OFFSET('Budget Inputs'!$A$1,6,1,2000,1),$A43,OFFSET('Budget Inputs'!$A$1,6,2,2000,1),$B43),0) -> 0 | F43: =(SUMIFS(OFFSET('Savings Results'!$A$1,6,16 +MAX('Savings Results'!$G:$G)-MIN('Savings Results'!$G:$G)+MAX('Savings Results'!$J:$J)+E$29-MIN('Savings Results'!$G:$G),2000),OFFSET('Savings Results'!$A$1,6,6,2000),E$29,OFFSET('Savings Results'!$A$1,6,4,2000),"Dx",OFFSET('Savings Results'!$A$1,6,1,2000),$A43,OFFSET('Savings Results'!$A$1,6,2,2000),$B43)/(1/(1-SUM('CE Parameters'!$F$10:$F$11))))/1000 -> 0 | G43: =IFERROR(SUMIFS('Program Design'!$U:$U,'Program Design'!$C:$C,$A43,'Program Design'!$D:$D,$B43,'Program Design'!$J:$J,G$29)+SUMIFS('Program Design'!$V:$V,'Program Design'!$C:$C,$A43,'Program Design'!$D:$D,$B43,'Program Design'!$J:$J,G$29)+SUMIFS('Program Design'!$W:$W,'Program Design'!$C:$C,$A43,'Program Design'!$D:$D,$B43,'Program Design'!$J:$J,G$29)+SUMIFS(INDEX(OFFSET('Budget Inputs'!$A$1,6,1,2000,560),0,MATCH(CONCATENATE(G$29," Sub-Total"),OFFSET('Budget Inputs'!$A$1,6,1,1,560),0)),OFFSET('Budget Inputs'!$A$1,6,1,2000,1),$A43,OFFSET('Budget Inputs'!$A$1,6,2,2000,1),$B43),0) -> 0 | H43: =(SUMIFS(OFFSET('Savings Results'!$A$1,6,16 +MAX('Savings Results'!$G:$G)-MIN('Savings Results'!$G:$G)+MAX('Savings Results'!$J:$J)+G$29-MIN('Savings Results'!$G:$G),2000),OFFSET('Savings Results'!$A$1,6,6,2000),G$29,OFFSET('Savings Results'!$A$1,6,4,2000),"Dx",OFFSET('Savings Results'!$A$1,6,1,2000),$A43,OFFSET('Savings Results'!$A$1,6,2,2000),$B43)/(1/(1-SUM('CE Parameters'!$F$10:$F$11))))/1000 -> 0 | I43: =IFERROR(SUMIFS('Program Design'!$U:$U,'Program Design'!$C:$C,$A43,'Program Design'!$D:$D,$B43,'Program Design'!$J:$J,I$29)+SUMIFS('Program Design'!$V:$V,'Program Design'!$C:$C,$A43,'Program Design'!$D:$D,$B43,'Program Design'!$J:$J,I$29)+SUMIFS('Program Design'!$W:$W,'Program Design'!$C:$C,$A43,'Program Design'!$D:$D,$B43,'Program Design'!$J:$J,I$29)+SUMIFS(INDEX(OFFSET('Budget Inputs'!$A$1,6,1,2000,560),0,MATCH(CONCATENATE(I$29," Sub-Total"),OFFSET('Budget Inputs'!$A$1,6,1,1,560),0)),OFFSET('Budget Inputs'!$A$1,6,1,2000,1),$A43,OFFSET('Budget Inputs'!$A$1,6,2,2000,1),$B43),0) -> 0 | J43: =(SUMIFS(OFFSET('Savings Results'!$A$1,6,16 +MAX('Savings Results'!$G:$G)-MIN('Savings Results'!$G:$G)+MAX('Savings Results'!$J:$J)+I$29-MIN('Savings Results'!$G:$G),2000),OFFSET('Savings Results'!$A$1,6,6,2000),I$29,OFFSET('Savings Results'!$A$1,6,4,2000),"Dx",OFFSET('Savings Results'!$A$1,6,1,2000),$A43,OFFSET('Savings Results'!$A$1,6,2,2000),$B43)/(1/(1-SUM('CE Parameters'!$F$10:$F$11))))/1000 -> 0 | K43: =IFERROR(SUMIFS('Program Design'!$U:$U,'Program Design'!$C:$C,$A43,'Program Design'!$D:$D,$B43,'Program Design'!$J:$J,K$29)+SUMIFS('Program Design'!$V:$V,'Program Design'!$C:$C,$A43,'Program Design'!$D:$D,$B43,'Program Design'!$J:$J,K$29)+SUMIFS('Program Design'!$W:$W,'Program Design'!$C:$C,$A43,'Program Design'!$D:$D,$B43,'Program Design'!$J:$J,K$29)+SUMIFS(INDEX(OFFSET('Budget Inputs'!$A$1,6,1,2000,560),0,MATCH(CONCATENATE(K$29," Sub-Total"),OFFSET('Budget Inputs'!$A$1,6,1,1,560),0)),OFFSET('Budget Inputs'!$A$1,6,1,2000,1),$A43,OFFSET('Budget Inputs'!$A$1,6,2,2000,1),$B43),0) -> 0 | L43: =(SUMIFS(OFFSET('Savings Results'!$A$1,6,16 +MAX('Savings Results'!$G:$G)-MIN('Savings Results'!$G:$G)+MAX('Savings Results'!$J:$J)+K$29-MIN('Savings Results'!$G:$G),2000),OFFSET('Savings Results'!$A$1,6,6,2000),K$29,OFFSET('Savings Results'!$A$1,6,4,2000),"Dx",OFFSET('Savings Results'!$A$1,6,1,2000),$A43,OFFSET('Savings Results'!$A$1,6,2,2000),$B43)/(1/(1-SUM('CE Parameters'!$F$10:$F$11))))/1000 -> 0 | M43: =IFERROR(SUMIFS('Program Design'!$U:$U,'Program Design'!$C:$C,$A43,'Program Design'!$D:$D,$B43,'Program Design'!$J:$J,M$29)+SUMIFS('Program Design'!$V:$V,'Program Design'!$C:$C,$A43,'Program Design'!$D:$D,$B43,'Program Design'!$J:$J,M$29)+SUMIFS('Program Design'!$W:$W,'Program Design'!$C:$C,$A43,'Program Design'!$D:$D,$B43,'Program Design'!$J:$J,M$29)+SUMIFS(INDEX(OFFSET('Budget Inputs'!$A$1,6,1,2000,560),0,MATCH(CONCATENATE(M$29," Sub-Total"),OFFSET('Budget Inputs'!$A$1,6,1,1,560),0)),OFFSET('Budget Inputs'!$A$1,6,1,2000,1),$A43,OFFSET('Budget Inputs'!$A$1,6,2,2000,1),$B43),0) -> 0 | N43: =(SUMIFS(OFFSET('Savings Results'!$A$1,6,16 +MAX('Savings Results'!$G:$G)-MIN('Savings Results'!$G:$G)+MAX('Savings Results'!$J:$J)+M$29-MIN('Savings Results'!$G:$G),2000),OFFSET('Savings Results'!$A$1,6,6,2000),M$29,OFFSET('Savings Results'!$A$1,6,4,2000),"Dx",OFFSET('Savings Results'!$A$1,6,1,2000),$A43,OFFSET('Savings Results'!$A$1,6,2,2000),$B43)/(1/(1-SUM('CE Parameters'!$F$10:$F$11))))/1000 -> 0 | O43: =IFERROR(SUMIFS('Program Design'!$U:$U,'Program Design'!$C:$C,$A43,'Program Design'!$D:$D,$B43)+SUMIFS('Program Design'!$V:$V,'Program Design'!$C:$C,$A43,'Program Design'!$D:$D,$B43)+SUMIFS('Program Design'!$W:$W,'Program Design'!$C:$C,$A43,'Program Design'!$D:$D,$B43)+SUMIFS(INDEX(OFFSET('Budget Inputs'!$A$1,6,1,2000,560),0,MATCH("Total",OFFSET('Budget Inputs'!$A$1,6,1,1,560),0)),OFFSET('Budget Inputs'!$A$1,6,1,2000,1),$A43,OFFSET('Budget Inputs'!$A$1,6,2,2000,1),$B43),0) -> 0 | P43: =(SUMIFS(OFFSET('Savings Results'!$A$1,6,16+2020-MIN('Program Design'!J:J)+2020 -MIN('Program Design'!J:J)+ MAX('Savings Results'!J:J),2000),OFFSET('Savings Results'!$A$1,6,4,2000),"Dx",OFFSET('Savings Results'!$A$1,6,1,2000),$A43,OFFSET('Savings Results'!$A$1,6,2,2000),$B43)/(1/(1-SUM('CE Parameters'!$F$10:$F$11))))/1000 -> 13523.896
A44: Non-Residential | B44: 2015 PSUI Capital Incentive | C44: =IFERROR(SUMIFS('Program Design'!$U:$U,'Program Design'!$C:$C,$A44,'Program Design'!$D:$D,$B44,'Program Design'!$J:$J,C$29)+SUMIFS('Program Design'!$V:$V,'Program Design'!$C:$C,$A44,'Program Design'!$D:$D,$B44,'Program Design'!$J:$J,C$29)+SUMIFS('Program Design'!$W:$W,'Program Design'!$C:$C,$A44,'Program Design'!$D:$D,$B44,'Program Design'!$J:$J,C$29)+SUMIFS(INDEX(OFFSET('Budget Inputs'!$A$1,6,1,2000,560),0,MATCH(CONCATENATE(C$29," Sub-Total"),OFFSET('Budget Inputs'!$A$1,6,1,1,560),0)),OFFSET('Budget Inputs'!$A$1,6,1,2000,1),$A44,OFFSET('Budget Inputs'!$A$1,6,2,2000,1),$B44),0) -> 0 | D44: =(SUMIFS(OFFSET('Savings Results'!$A$1,6,16 +MAX('Savings Results'!$G:$G)-MIN('Savings Results'!$G:$G)+MAX('Savings Results'!$J:$J)+C$29-MIN('Savings Results'!$G:$G),2000),OFFSET('Savings Results'!$A$1,6,6,2000),C$29,OFFSET('Savings Results'!$A$1,6,4,2000),"Dx",OFFSET('Savings Results'!$A$1,6,1,2000),$A44,OFFSET('Savings Results'!$A$1,6,2,2000),$B44)/(1/(1-SUM('CE Parameters'!$F$10:$F$11))))/1000 -> 1654.892 | E44: =IFERROR(SUMIFS('Program Design'!$U:$U,'Program Design'!$C:$C,$A44,'Program Design'!$D:$D,$B44,'Program Design'!$J:$J,E$29)+SUMIFS('Program Design'!$V:$V,'Program Design'!$C:$C,$A44,'Program Design'!$D:$D,$B44,'Program Design'!$J:$J,E$29)+SUMIFS('Program Design'!$W:$W,'Program Design'!$C:$C,$A44,'Program Design'!$D:$D,$B44,'Program Design'!$J:$J,E$29)+SUMIFS(INDEX(OFFSET('Budget Inputs'!$A$1,6,1,2000,560),0,MATCH(CONCATENATE(E$29," Sub-Total"),OFFSET('Budget Inputs'!$A$1,6,1,1,560),0)),OFFSET('Budget Inputs'!$A$1,6,1,2000,1),$A44,OFFSET('Budget Inputs'!$A$1,6,2,2000,1),$B44),0) -> 0 | F44: =(SUMIFS(OFFSET('Savings Results'!$A$1,6,16 +MAX('Savings Results'!$G:$G)-MIN('Savings Results'!$G:$G)+MAX('Savings Results'!$J:$J)+E$29-MIN('Savings Results'!$G:$G),2000),OFFSET('Savings Results'!$A$1,6,6,2000),E$29,OFFSET('Savings Results'!$A$1,6,4,2000),"Dx",OFFSET('Savings Results'!$A$1,6,1,2000),$A44,OFFSET('Savings Results'!$A$1,6,2,2000),$B44)/(1/(1-SUM('CE Parameters'!$F$10:$F$11))))/1000 -> 0 | G44: =IFERROR(SUMIFS('Program Design'!$U:$U,'Program Design'!$C:$C,$A44,'Program Design'!$D:$D,$B44,'Program Design'!$J:$J,G$29)+SUMIFS('Program Design'!$V:$V,'Program Design'!$C:$C,$A44,'Program Design'!$D:$D,$B44,'Program Design'!$J:$J,G$29)+SUMIFS('Program Design'!$W:$W,'Program Design'!$C:$C,$A44,'Program Design'!$D:$D,$B44,'Program Design'!$J:$J,G$29)+SUMIFS(INDEX(OFFSET('Budget Inputs'!$A$1,6,1,2000,560),0,MATCH(CONCATENATE(G$29," Sub-Total"),OFFSET('Budget Inputs'!$A$1,6,1,1,560),0)),OFFSET('Budget Inputs'!$A$1,6,1,2000,1),$A44,OFFSET('Budget Inputs'!$A$1,6,2,2000,1),$B44),0) -> 0 | H44: =(SUMIFS(OFFSET('Savings Results'!$A$1,6,16 +MAX('Savings Results'!$G:$G)-MIN('Savings Results'!$G:$G)+MAX('Savings Results'!$J:$J)+G$29-MIN('Savings Results'!$G:$G),2000),OFFSET('Savings Results'!$A$1,6,6,2000),G$29,OFFSET('Savings Results'!$A$1,6,4,2000),"Dx",OFFSET('Savings Results'!$A$1,6,1,2000),$A44,OFFSET('Savings Results'!$A$1,6,2,2000),$B44)/(1/(1-SUM('CE Parameters'!$F$10:$F$11))))/1000 -> 0 | I44: =IFERROR(SUMIFS('Program Design'!$U:$U,'Program Design'!$C:$C,$A44,'Program Design'!$D:$D,$B44,'Program Design'!$J:$J,I$29)+SUMIFS('Program Design'!$V:$V,'Program Design'!$C:$C,$A44,'Program Design'!$D:$D,$B44,'Program Design'!$J:$J,I$29)+SUMIFS('Program Design'!$W:$W,'Program Design'!$C:$C,$A44,'Program Design'!$D:$D,$B44,'Program Design'!$J:$J,I$29)+SUMIFS(INDEX(OFFSET('Budget Inputs'!$A$1,6,1,2000,560),0,MATCH(CONCATENATE(I$29," Sub-Total"),OFFSET('Budget Inputs'!$A$1,6,1,1,560),0)),OFFSET('Budget Inputs'!$A$1,6,1,2000,1),$A44,OFFSET('Budget Inputs'!$A$1,6,2,2000,1),$B44),0) -> 0 | J44: =(SUMIFS(OFFSET('Savings Results'!$A$1,6,16 +MAX('Savings Results'!$G:$G)-MIN('Savings Results'!$G:$G)+MAX('Savings Results'!$J:$J)+I$29-MIN('Savings Results'!$G:$G),2000),OFFSET('Savings Results'!$A$1,6,6,2000),I$29,OFFSET('Savings Results'!$A$1,6,4,2000),"Dx",OFFSET('Savings Results'!$A$1,6,1,2000),$A44,OFFSET('Savings Results'!$A$1,6,2,2000),$B44)/(1/(1-SUM('CE Parameters'!$F$10:$F$11))))/1000 -> 0 | K44: =IFERROR(SUMIFS('Program Design'!$U:$U,'Program Design'!$C:$C,$A44,'Program Design'!$D:$D,$B44,'Program Design'!$J:$J,K$29)+SUMIFS('Program Design'!$V:$V,'Program Design'!$C:$C,$A44,'Program Design'!$D:$D,$B44,'Program Design'!$J:$J,K$29)+SUMIFS('Program Design'!$W:$W,'Program Design'!$C:$C,$A44,'Program Design'!$D:$D,$B44,'Program Design'!$J:$J,K$29)+SUMIFS(INDEX(OFFSET('Budget Inputs'!$A$1,6,1,2000,560),0,MATCH(CONCATENATE(K$29," Sub-Total"),OFFSET('Budget Inputs'!$A$1,6,1,1,560),0)),OFFSET('Budget Inputs'!$A$1,6,1,2000,1),$A44,OFFSET('Budget Inputs'!$A$1,6,2,2000,1),$B44),0) -> 0 | L44: =(SUMIFS(OFFSET('Savings Results'!$A$1,6,16 +MAX('Savings Results'!$G:$G)-MIN('Savings Results'!$G:$G)+MAX('Savings Results'!$J:$J)+K$29-MIN('Savings Results'!$G:$G),2000),OFFSET('Savings Results'!$A$1,6,6,2000),K$29,OFFSET('Savings Results'!$A$1,6,4,2000),"Dx",OFFSET('Savings Results'!$A$1,6,1,2000),$A44,OFFSET('Savings Results'!$A$1,6,2,2000),$B44)/(1/(1-SUM('CE Parameters'!$F$10:$F$11))))/1000 -> 0 | M44: =IFERROR(SUMIFS('Program Design'!$U:$U,'Program Design'!$C:$C,$A44,'Program Design'!$D:$D,$B44,'Program Design'!$J:$J,M$29)+SUMIFS('Program Design'!$V:$V,'Program Design'!$C:$C,$A44,'Program Design'!$D:$D,$B44,'Program Design'!$J:$J,M$29)+SUMIFS('Program Design'!$W:$W,'Program Design'!$C:$C,$A44,'Program Design'!$D:$D,$B44,'Program Design'!$J:$J,M$29)+SUMIFS(INDEX(OFFSET('Budget Inputs'!$A$1,6,1,2000,560),0,MATCH(CONCATENATE(M$29," Sub-Total"),OFFSET('Budget Inputs'!$A$1,6,1,1,560),0)),OFFSET('Budget Inputs'!$A$1,6,1,2000,1),$A44,OFFSET('Budget Inputs'!$A$1,6,2,2000,1),$B44),0) -> 0 | N44: =(SUMIFS(OFFSET('Savings Results'!$A$1,6,16 +MAX('Savings Results'!$G:$G)-MIN('Savings Results'!$G:$G)+MAX('Savings Results'!$J:$J)+M$29-MIN('Savings Results'!$G:$G),2000),OFFSET('Savings Results'!$A$1,6,6,2000),M$29,OFFSET('Savings Results'!$A$1,6,4,2000),"Dx",OFFSET('Savings Results'!$A$1,6,1,2000),$A44,OFFSET('Savings Results'!$A$1,6,2,2000),$B44)/(1/(1-SUM('CE Parameters'!$F$10:$F$11))))/1000 -> 0 | O44: =IFERROR(SUMIFS('Program Design'!$U:$U,'Program Design'!$C:$C,$A44,'Program Design'!$D:$D,$B44)+SUMIFS('Program Design'!$V:$V,'Program Design'!$C:$C,$A44,'Program Design'!$D:$D,$B44)+SUMIFS('Program Design'!$W:$W,'Program Design'!$C:$C,$A44,'Program Design'!$D:$D,$B44)+SUMIFS(INDEX(OFFSET('Budget Inputs'!$A$1,6,1,2000,560),0,MATCH("Total",OFFSET('Budget Inputs'!$A$1,6,1,1,560),0)),OFFSET('Budget Inputs'!$A$1,6,1,2000,1),$A44,OFFSET('Budget Inputs'!$A$1,6,2,2000,1),$B44),0) -> 0 | P44: =(SUMIFS(OFFSET('Savings Results'!$A$1,6,16+2020-MIN('Program Design'!J:J)+2020 -MIN('Program Design'!J:J)+ MAX('Savings Results'!J:J),2000),OFFSET('Savings Results'!$A$1,6,4,2000),"Dx",OFFSET('Savings Results'!$A$1,6,1,2000),$A44,OFFSET('Savings Results'!$A$1,6,2,2000),$B44)/(1/(1-SUM('CE Parameters'!$F$10:$F$11))))/1000 -> 1654.892
A45: Non-Residential | B45: Process and Systems Upgrades Program | C45: =IFERROR(SUMIFS('Program Design'!$U:$U,'Program Design'!$C:$C,$A45,'Program Design'!$D:$D,$B45,'Program Design'!$J:$J,C$29)+SUMIFS('Program Design'!$V:$V,'Program Design'!$C:$C,$A45,'Program Design'!$D:$D,$B45,'Program Design'!$J:$J,C$29)+SUMIFS('Program Design'!$W:$W,'Program Design'!$C:$C,$A45,'Program Design'!$D:$D,$B45,'Program Design'!$J:$J,C$29)+SUMIFS(INDEX(OFFSET('Budget Inputs'!$A$1,6,1,2000,560),0,MATCH(CONCATENATE(C$29," Sub-Total"),OFFSET('Budget Inputs'!$A$1,6,1,1,560),0)),OFFSET('Budget Inputs'!$A$1,6,1,2000,1),$A45,OFFSET('Budget Inputs'!$A$1,6,2,2000,1),$B45),0) -> 10046 | D45: =(SUMIFS(OFFSET('Savings Results'!$A$1,6,16 +MAX('Savings Results'!$G:$G)-MIN('Savings Results'!$G:$G)+MAX('Savings Results'!$J:$J)+C$29-MIN('Savings Results'!$G:$G),2000),OFFSET('Savings Results'!$A$1,6,6,2000),C$29,OFFSET('Savings Results'!$A$1,6,4,2000),"Dx",OFFSET('Savings Results'!$A$1,6,1,2000),$A45,OFFSET('Savings Results'!$A$1,6,2,2000),$B45)/(1/(1-SUM('CE Parameters'!$F$10:$F$11))))/1000 -> 0 | E45: =IFERROR(SUMIFS('Program Design'!$U:$U,'Program Design'!$C:$C,$A45,'Program Design'!$D:$D,$B45,'Program Design'!$J:$J,E$29)+SUMIFS('Program Design'!$V:$V,'Program Design'!$C:$C,$A45,'Program Design'!$D:$D,$B45,'Program Design'!$J:$J,E$29)+SUMIFS('Program Design'!$W:$W,'Program Design'!$C:$C,$A45,'Program Design'!$D:$D,$B45,'Program Design'!$J:$J,E$29)+SUMIFS(INDEX(OFFSET('Budget Inputs'!$A$1,6,1,2000,560),0,MATCH(CONCATENATE(E$29," Sub-Total"),OFFSET('Budget Inputs'!$A$1,6,1,1,560),0)),OFFSET('Budget Inputs'!$A$1,6,1,2000,1),$A45,OFFSET('Budget Inputs'!$A$1,6,2,2000,1),$B45),0) -> 119967 | F45: =(SUMIFS(OFFSET('Savings Results'!$A$1,6,16 +MAX('Savings Results'!$G:$G)-MIN('Savings Results'!$G:$G)+MAX('Savings Results'!$J:$J)+E$29-MIN('Savings Results'!$G:$G),2000),OFFSET('Savings Results'!$A$1,6,6,2000),E$29,OFFSET('Savings Results'!$A$1,6,4,2000),"Dx",OFFSET('Savings Results'!$A$1,6,1,2000),$A45,OFFSET('Savings Results'!$A$1,6,2,2000),$B45)/(1/(1-SUM('CE Parameters'!$F$10:$F$11))))/1000 -> 0.0001 | G45: =IFERROR(SUMIFS('Program Design'!$U:$U,'Program Design'!$C:$C,$A45,'Program Design'!$D:$D,$B45,'Program Design'!$J:$J,G$29)+SUMIFS('Program Design'!$V:$V,'Program Design'!$C:$C,$A45,'Program Design'!$D:$D,$B45,'Program Design'!$J:$J,G$29)+SUMIFS('Program Design'!$W:$W,'Program Design'!$C:$C,$A45,'Program Design'!$D:$D,$B45,'Program Design'!$J:$J,G$29)+SUMIFS(INDEX(OFFSET('Budget Inputs'!$A$1,6,1,2000,560),0,MATCH(CONCATENATE(G$29," Sub-Total"),OFFSET('Budget Inputs'!$A$1,6,1,1,560),0)),OFFSET('Budget Inputs'!$A$1,6,1,2000,1),$A45,OFFSET('Budget Inputs'!$A$1,6,2,2000,1),$B45),0) -> 1065953 | H45: =(SUMIFS(OFFSET('Savings Results'!$A$1,6,16 +MAX('Savings Results'!$G:$G)-MIN('Savings Results'!$G:$G)+MAX('Savings Results'!$J:$J)+G$29-MIN('Savings Results'!$G:$G),2000),OFFSET('Savings Results'!$A$1,6,6,2000),G$29,OFFSET('Savings Results'!$A$1,6,4,2000),"Dx",OFFSET('Savings Results'!$A$1,6,1,2000),$A45,OFFSET('Savings Results'!$A$1,6,2,2000),$B45)/(1/(1-SUM('CE Parameters'!$F$10:$F$11))))/1000 -> 5008.1556 | I45: =IFERROR(SUMIFS('Program Design'!$U:$U,'Program Design'!$C:$C,$A45,'Program Design'!$D:$D,$B45,'Program Design'!$J:$J,I$29)+SUMIFS('Program Design'!$V:$V,'Program Design'!$C:$C,$A45,'Program Design'!$D:$D,$B45,'Program Design'!$J:$J,I$29)+SUMIFS('Program Design'!$W:$W,'Program Design'!$C:$C,$A45,'Program Design'!$D:$D,$B45,'Program Design'!$J:$J,I$29)+SUMIFS(INDEX(OFFSET('Budget Inputs'!$A$1,6,1,2000,560),0,MATCH(CONCATENATE(I$29," Sub-Total"),OFFSET('Budget Inputs'!$A$1,6,1,1,560),0)),OFFSET('Budget Inputs'!$A$1,6,1,2000,1),$A45,OFFSET('Budget Inputs'!$A$1,6,2,2000,1),$B45),0) -> 8342099.41 | J45: =(SUMIFS(OFFSET('Savings Results'!$A$1,6,16 +MAX('Savings Results'!$G:$G)-MIN('Savings Results'!$G:$G)+MAX('Savings Results'!$J:$J)+I$29-MIN('Savings Results'!$G:$G),2000),OFFSET('Savings Results'!$A$1,6,6,2000),I$29,OFFSET('Savings Results'!$A$1,6,4,2000),"Dx",OFFSET('Savings Results'!$A$1,6,1,2000),$A45,OFFSET('Savings Results'!$A$1,6,2,2000),$B45)/(1/(1-SUM('CE Parameters'!$F$10:$F$11))))/1000 -> 20446.42266 | K45: =IFERROR(SUMIFS('Program Design'!$U:$U,'Program Design'!$C:$C,$A45,'Program Design'!$D:$D,$B45,'Program Design'!$J:$J,K$29)+SUMIFS('Program Design'!$V:$V,'Program Design'!$C:$C,$A45,'Program Design'!$D:$D,$B45,'Program Design'!$J:$J,K$29)+SUMIFS('Program Design'!$W:$W,'Program Design'!$C:$C,$A45,'Program Design'!$D:$D,$B45,'Program Design'!$J:$J,K$29)+SUMIFS(INDEX(OFFSET('Budget Inputs'!$A$1,6,1,2000,560),0,MATCH(CONCATENATE(K$29," Sub-Total"),OFFSET('Budget Inputs'!$A$1,6,1,1,560),0)),OFFSET('Budget Inputs'!$A$1,6,1,2000,1),$A45,OFFSET('Budget Inputs'!$A$1,6,2,2000,1),$B45),0) -> 7271375.37 | L45: =(SUMIFS(OFFSET('Savings Results'!$A$1,6,16 +MAX('Savings Results'!$G:$G)-MIN('Savings Results'!$G:$G)+MAX('Savings Results'!$J:$J)+K$29-MIN('Savings Results'!$G:$G),2000),OFFSET('Savings Results'!$A$1,6,6,2000),K$29,OFFSET('Savings Results'!$A$1,6,4,2000),"Dx",OFFSET('Savings Results'!$A$1,6,1,2000),$A45,OFFSET('Savings Results'!$A$1,6,2,2000),$B45)/(1/(1-SUM('CE Parameters'!$F$10:$F$11))))/1000 -> 4672.8731 | M45: =IFERROR(SUMIFS('Program Design'!$U:$U,'Program Design'!$C:$C,$A45,'Program Design'!$D:$D,$B45,'Program Design'!$J:$J,M$29)+SUMIFS('Program Design'!$V:$V,'Program Design'!$C:$C,$A45,'Program Design'!$D:$D,$B45,'Program Design'!$J:$J,M$29)+SUMIFS('Program Design'!$W:$W,'Program Design'!$C:$C,$A45,'Program Design'!$D:$D,$B45,'Program Design'!$J:$J,M$29)+SUMIFS(INDEX(OFFSET('Budget Inputs'!$A$1,6,1,2000,560),0,MATCH(CONCATENATE(M$29," Sub-Total"),OFFSET('Budget Inputs'!$A$1,6,1,1,560),0)),OFFSET('Budget Inputs'!$A$1,6,1,2000,1),$A45,OFFSET('Budget Inputs'!$A$1,6,2,2000,1),$B45),0) -> 3314575.37 | N45: =(SUMIFS(OFFSET('Savings Results'!$A$1,6,16 +MAX('Savings Results'!$G:$G)-MIN('Savings Results'!$G:$G)+MAX('Savings Results'!$J:$J)+M$29-MIN('Savings Results'!$G:$G),2000),OFFSET('Savings Results'!$A$1,6,6,2000),M$29,OFFSET('Savings Results'!$A$1,6,4,2000),"Dx",OFFSET('Savings Results'!$A$1,6,1,2000),$A45,OFFSET('Savings Results'!$A$1,6,2,2000),$B45)/(1/(1-SUM('CE Parameters'!$F$10:$F$11))))/1000 -> 54001.55944 | O45: =IFERROR(SUMIFS('Program Design'!$U:$U,'Program Design'!$C:$C,$A45,'Program Design'!$D:$D,$B45)+SUMIFS('Program Design'!$V:$V,'Program Design'!$C:$C,$A45,'Program Design'!$D:$D,$B45)+SUMIFS('Program Design'!$W:$W,'Program Design'!$C:$C,$A45,'Program Design'!$D:$D,$B45)+SUMIFS(INDEX(OFFSET('Budget Inputs'!$A$1,6,1,2000,560),0,MATCH("Total",OFFSET('Budget Inputs'!$A$1,6,1,1,560),0)),OFFSET('Budget Inputs'!$A$1,6,1,2000,1),$A45,OFFSET('Budget Inputs'!$A$1,6,2,2000,1),$B45),0) -> 20124016.15 | P45: =(SUMIFS(OFFSET('Savings Results'!$A$1,6,16+2020-MIN('Program Design'!J:J)+2020 -MIN('Program Design'!J:J)+ MAX('Savings Results'!J:J),2000),OFFSET('Savings Results'!$A$1,6,4,2000),"Dx",OFFSET('Savings Results'!$A$1,6,1,2000),$A45,OFFSET('Savings Results'!$A$1,6,2,2000),$B45)/(1/(1-SUM('CE Parameters'!$F$10:$F$11))))/1000 -> 84129.0109
A46: Non-Residential | B46: Retrocommissioning LDC Innovation Pilot | C46: =IFERROR(SUMIFS('Program Design'!$U:$U,'Program Design'!$C:$C,$A46,'Program Design'!$D:$D,$B46,'Program Design'!$J:$J,C$29)+SUMIFS('Program Design'!$V:$V,'Program Design'!$C:$C,$A46,'Program Design'!$D:$D,$B46,'Program Design'!$J:$J,C$29)+SUMIFS('Program Design'!$W:$W,'Program Design'!$C:$C,$A46,'Program Design'!$D:$D,$B46,'Program Design'!$J:$J,C$29)+SUMIFS(INDEX(OFFSET('Budget Inputs'!$A$1,6,1,2000,560),0,MATCH(CONCATENATE(C$29," Sub-Total"),OFFSET('Budget Inputs'!$A$1,6,1,1,560),0)),OFFSET('Budget Inputs'!$A$1,6,1,2000,1),$A46,OFFSET('Budget Inputs'!$A$1,6,2,2000,1),$B46),0) -> 0 | D46: =(SUMIFS(OFFSET('Savings Results'!$A$1,6,16 +MAX('Savings Results'!$G:$G)-MIN('Savings Results'!$G:$G)+MAX('Savings Results'!$J:$J)+C$29-MIN('Savings Results'!$G:$G),2000),OFFSET('Savings Results'!$A$1,6,6,2000),C$29,OFFSET('Savings Results'!$A$1,6,4,2000),"Dx",OFFSET('Savings Results'!$A$1,6,1,2000),$A46,OFFSET('Savings Results'!$A$1,6,2,2000),$B46)/(1/(1-SUM('CE Parameters'!$F$10:$F$11))))/1000 -> 0 | E46: =IFERROR(SUMIFS('Program Design'!$U:$U,'Program Design'!$C:$C,$A46,'Program Design'!$D:$D,$B46,'Program Design'!$J:$J,E$29)+SUMIFS('Program Design'!$V:$V,'Program Design'!$C:$C,$A46,'Program Design'!$D:$D,$B46,'Program Design'!$J:$J,E$29)+SUMIFS('Program Design'!$W:$W,'Program Design'!$C:$C,$A46,'Program Design'!$D:$D,$B46,'Program Design'!$J:$J,E$29)+SUMIFS(INDEX(OFFSET('Budget Inputs'!$A$1,6,1,2000,560),0,MATCH(CONCATENATE(E$29," Sub-Total"),OFFSET('Budget Inputs'!$A$1,6,1,1,560),0)),OFFSET('Budget Inputs'!$A$1,6,1,2000,1),$A46,OFFSET('Budget Inputs'!$A$1,6,2,2000,1),$B46),0) -> 0 | F46: =(SUMIFS(OFFSET('Savings Results'!$A$1,6,16 +MAX('Savings Results'!$G:$G)-MIN('Savings Results'!$G:$G)+MAX('Savings Results'!$J:$J)+E$29-MIN('Savings Results'!$G:$G),2000),OFFSET('Savings Results'!$A$1,6,6,2000),E$29,OFFSET('Savings Results'!$A$1,6,4,2000),"Dx",OFFSET('Savings Results'!$A$1,6,1,2000),$A46,OFFSET('Savings Results'!$A$1,6,2,2000),$B46)/(1/(1-SUM('CE Parameters'!$F$10:$F$11))))/1000 -> 1799.96 | G46: =IFERROR(SUMIFS('Program Design'!$U:$U,'Program Design'!$C:$C,$A46,'Program Design'!$D:$D,$B46,'Program Design'!$J:$J,G$29)+SUMIFS('Program Design'!$V:$V,'Program Design'!$C:$C,$A46,'Program Design'!$D:$D,$B46,'Program Design'!$J:$J,G$29)+SUMIFS('Program Design'!$W:$W,'Program Design'!$C:$C,$A46,'Program Design'!$D:$D,$B46,'Program Design'!$J:$J,G$29)+SUMIFS(INDEX(OFFSET('Budget Inputs'!$A$1,6,1,2000,560),0,MATCH(CONCATENATE(G$29," Sub-Total"),OFFSET('Budget Inputs'!$A$1,6,1,1,560),0)),OFFSET('Budget Inputs'!$A$1,6,1,2000,1),$A46,OFFSET('Budget Inputs'!$A$1,6,2,2000,1),$B46),0) -> 0 | H46: =(SUMIFS(OFFSET('Savings Results'!$A$1,6,16 +MAX('Savings Results'!$G:$G)-MIN('Savings Results'!$G:$G)+MAX('Savings Results'!$J:$J)+G$29-MIN('Savings Results'!$G:$G),2000),OFFSET('Savings Results'!$A$1,6,6,2000),G$29,OFFSET('Savings Results'!$A$1,6,4,2000),"Dx",OFFSET('Savings Results'!$A$1,6,1,2000),$A46,OFFSET('Savings Results'!$A$1,6,2,2000),$B46)/(1/(1-SUM('CE Parameters'!$F$10:$F$11))))/1000 -> 0 | I46: =IFERROR(SUMIFS('Program Design'!$U:$U,'Program Design'!$C:$C,$A46,'Program Design'!$D:$D,$B46,'Program Design'!$J:$J,I$29)+SUMIFS('Program Design'!$V:$V,'Program Design'!$C:$C,$A46,'Program Design'!$D:$D,$B46,'Program Design'!$J:$J,I$29)+SUMIFS('Program Design'!$W:$W,'Program Design'!$C:$C,$A46,'Program Design'!$D:$D,$B46,'Program Design'!$J:$J,I$29)+SUMIFS(INDEX(OFFSET('Budget Inputs'!$A$1,6,1,2000,560),0,MATCH(CONCATENATE(I$29," Sub-Total"),OFFSET('Budget Inputs'!$A$1,6,1,1,560),0)),OFFSET('Budget Inputs'!$A$1,6,1,2000,1),$A46,OFFSET('Budget Inputs'!$A$1,6,2,2000,1),$B46),0) -> 0 | J46: =(SUMIFS(OFFSET('Savings Results'!$A$1,6,16 +MAX('Savings Results'!$G:$G)-MIN('Savings Results'!$G:$G)+MAX('Savings Results'!$J:$J)+I$29-MIN('Savings Results'!$G:$G),2000),OFFSET('Savings Results'!$A$1,6,6,2000),I$29,OFFSET('Savings Results'!$A$1,6,4,2000),"Dx",OFFSET('Savings Results'!$A$1,6,1,2000),$A46,OFFSET('Savings Results'!$A$1,6,2,2000),$B46)/(1/(1-SUM('CE Parameters'!$F$10:$F$11))))/1000 -> 0 | K46: =IFERROR(SUMIFS('Program Design'!$U:$U,'Program Design'!$C:$C,$A46,'Program Design'!$D:$D,$B46,'Program Design'!$J:$J,K$29)+SUMIFS('Program Design'!$V:$V,'Program Design'!$C:$C,$A46,'Program Design'!$D:$D,$B46,'Program Design'!$J:$J,K$29)+SUMIFS('Program Design'!$W:$W,'Program Design'!$C:$C,$A46,'Program Design'!$D:$D,$B46,'Program Design'!$J:$J,K$29)+SUMIFS(INDEX(OFFSET('Budget Inputs'!$A$1,6,1,2000,560),0,MATCH(CONCATENATE(K$29," Sub-Total"),OFFSET('Budget Inputs'!$A$1,6,1,1,560),0)),OFFSET('Budget Inputs'!$A$1,6,1,2000,1),$A46,OFFSET('Budget Inputs'!$A$1,6,2,2000,1),$B46),0) -> 0 | L46: =(SUMIFS(OFFSET('Savings Results'!$A$1,6,16 +MAX('Savings Results'!$G:$G)-MIN('Savings Results'!$G:$G)+MAX('Savings Results'!$J:$J)+K$29-MIN('Savings Results'!$G:$G),2000),OFFSET('Savings Results'!$A$1,6,6,2000),K$29,OFFSET('Savings Results'!$A$1,6,4,2000),"Dx",OFFSET('Savings Results'!$A$1,6,1,2000),$A46,OFFSET('Savings Results'!$A$1,6,2,2000),$B46)/(1/(1-SUM('CE Parameters'!$F$10:$F$11))))/1000 -> 0 | M46: =IFERROR(SUMIFS('Program Design'!$U:$U,'Program Design'!$C:$C,$A46,'Program Design'!$D:$D,$B46,'Program Design'!$J:$J,M$29)+SUMIFS('Program Design'!$V:$V,'Program Design'!$C:$C,$A46,'Program Design'!$D:$D,$B46,'Program Design'!$J:$J,M$29)+SUMIFS('Program Design'!$W:$W,'Program Design'!$C:$C,$A46,'Program Design'!$D:$D,$B46,'Program Design'!$J:$J,M$29)+SUMIFS(INDEX(OFFSET('Budget Inputs'!$A$1,6,1,2000,560),0,MATCH(CONCATENATE(M$29," Sub-Total"),OFFSET('Budget Inputs'!$A$1,6,1,1,560),0)),OFFSET('Budget Inputs'!$A$1,6,1,2000,1),$A46,OFFSET('Budget Inputs'!$A$1,6,2,2000,1),$B46),0) -> 0 | N46: =(SUMIFS(OFFSET('Savings Results'!$A$1,6,16 +MAX('Savings Results'!$G:$G)-MIN('Savings Results'!$G:$G)+MAX('Savings Results'!$J:$J)+M$29-MIN('Savings Results'!$G:$G),2000),OFFSET('Savings Results'!$A$1,6,6,2000),M$29,OFFSET('Savings Results'!$A$1,6,4,2000),"Dx",OFFSET('Savings Results'!$A$1,6,1,2000),$A46,OFFSET('Savings Results'!$A$1,6,2,2000),$B46)/(1/(1-SUM('CE Parameters'!$F$10:$F$11))))/1000 -> 0 | O46: =IFERROR(SUMIFS('Program Design'!$U:$U,'Program Design'!$C:$C,$A46,'Program Design'!$D:$D,$B46)+SUMIFS('Program Design'!$V:$V,'Program Design'!$C:$C,$A46,'Program Design'!$D:$D,$B46)+SUMIFS('Program Design'!$W:$W,'Program Design'!$C:$C,$A46,'Program Design'!$D:$D,$B46)+SUMIFS(INDEX(OFFSET('Budget Inputs'!$A$1,6,1,2000,560),0,MATCH("Total",OFFSET('Budget Inputs'!$A$1,6,1,1,560),0)),OFFSET('Budget Inputs'!$A$1,6,1,2000,1),$A46,OFFSET('Budget Inputs'!$A$1,6,2,2000,1),$B46),0) -> 0 | P46: =(SUMIFS(OFFSET('Savings Results'!$A$1,6,16+2020-MIN('Program Design'!J:J)+2020 -MIN('Program Design'!J:J)+ MAX('Savings Results'!J:J),2000),OFFSET('Savings Results'!$A$1,6,4,2000),"Dx",OFFSET('Savings Results'!$A$1,6,1,2000),$A46,OFFSET('Savings Results'!$A$1,6,2,2000),$B46)/(1/(1-SUM('CE Parameters'!$F$10:$F$11))))/1000 -> 1799.96
A47: Non-Residential | B47: SOE Energy Performance Pilot | C47: =IFERROR(SUMIFS('Program Design'!$U:$U,'Program Design'!$C:$C,$A47,'Program Design'!$D:$D,$B47,'Program Design'!$J:$J,C$29)+SUMIFS('Program Design'!$V:$V,'Program Design'!$C:$C,$A47,'Program Design'!$D:$D,$B47,'Program Design'!$J:$J,C$29)+SUMIFS('Program Design'!$W:$W,'Program Design'!$C:$C,$A47,'Program Design'!$D:$D,$B47,'Program Design'!$J:$J,C$29)+SUMIFS(INDEX(OFFSET('Budget Inputs'!$A$1,6,1,2000,560),0,MATCH(CONCATENATE(C$29," Sub-Total"),OFFSET('Budget Inputs'!$A$1,6,1,1,560),0)),OFFSET('Budget Inputs'!$A$1,6,1,2000,1),$A47,OFFSET('Budget Inputs'!$A$1,6,2,2000,1),$B47),0) -> 0 | D47: =(SUMIFS(OFFSET('Savings Results'!$A$1,6,16 +MAX('Savings Results'!$G:$G)-MIN('Savings Results'!$G:$G)+MAX('Savings Results'!$J:$J)+C$29-MIN('Savings Results'!$G:$G),2000),OFFSET('Savings Results'!$A$1,6,6,2000),C$29,OFFSET('Savings Results'!$A$1,6,4,2000),"Dx",OFFSET('Savings Results'!$A$1,6,1,2000),$A47,OFFSET('Savings Results'!$A$1,6,2,2000),$B47)/(1/(1-SUM('CE Parameters'!$F$10:$F$11))))/1000 -> 0 | E47: =IFERROR(SUMIFS('Program Design'!$U:$U,'Program Design'!$C:$C,$A47,'Program Design'!$D:$D,$B47,'Program Design'!$J:$J,E$29)+SUMIFS('Program Design'!$V:$V,'Program Design'!$C:$C,$A47,'Program Design'!$D:$D,$B47,'Program Design'!$J:$J,E$29)+SUMIFS('Program Design'!$W:$W,'Program Design'!$C:$C,$A47,'Program Design'!$D:$D,$B47,'Program Design'!$J:$J,E$29)+SUMIFS(INDEX(OFFSET('Budget Inputs'!$A$1,6,1,2000,560),0,MATCH(CONCATENATE(E$29," Sub-Total"),OFFSET('Budget Inputs'!$A$1,6,1,1,560),0)),OFFSET('Budget Inputs'!$A$1,6,1,2000,1),$A47,OFFSET('Budget Inputs'!$A$1,6,2,2000,1),$B47),0) -> 0 | F47: =(SUMIFS(OFFSET('Savings Results'!$A$1,6,16 +MAX('Savings Results'!$G:$G)-MIN('Savings Results'!$G:$G)+MAX('Savings Results'!$J:$J)+E$29-MIN('Savings Results'!$G:$G),2000),OFFSET('Savings Results'!$A$1,6,6,2000),E$29,OFFSET('Savings Results'!$A$1,6,4,2000),"Dx",OFFSET('Savings Results'!$A$1,6,1,2000),$A47,OFFSET('Savings Results'!$A$1,6,2,2000),$B47)/(1/(1-SUM('CE Parameters'!$F$10:$F$11))))/1000 -> 0 | G47: =IFERROR(SUMIFS('Program Design'!$U:$U,'Program Design'!$C:$C,$A47,'Program Design'!$D:$D,$B47,'Program Design'!$J:$J,G$29)+SUMIFS('Program Design'!$V:$V,'Program Design'!$C:$C,$A47,'Program Design'!$D:$D,$B47,'Program Design'!$J:$J,G$29)+SUMIFS('Program Design'!$W:$W,'Program Design'!$C:$C,$A47,'Program Design'!$D:$D,$B47,'Program Design'!$J:$J,G$29)+SUMIFS(INDEX(OFFSET('Budget Inputs'!$A$1,6,1,2000,560),0,MATCH(CONCATENATE(G$29," Sub-Total"),OFFSET('Budget Inputs'!$A$1,6,1,1,560),0)),OFFSET('Budget Inputs'!$A$1,6,1,2000,1),$A47,OFFSET('Budget Inputs'!$A$1,6,2,2000,1),$B47),0) -> 0 | H47: =(SUMIFS(OFFSET('Savings Results'!$A$1,6,16 +MAX('Savings Results'!$G:$G)-MIN('Savings Results'!$G:$G)+MAX('Savings Results'!$J:$J)+G$29-MIN('Savings Results'!$G:$G),2000),OFFSET('Savings Results'!$A$1,6,6,2000),G$29,OFFSET('Savings Results'!$A$1,6,4,2000),"Dx",OFFSET('Savings Results'!$A$1,6,1,2000),$A47,OFFSET('Savings Results'!$A$1,6,2,2000),$B47)/(1/(1-SUM('CE Parameters'!$F$10:$F$11))))/1000 -> 786.718 | I47: =IFERROR(SUMIFS('Program Design'!$U:$U,'Program Design'!$C:$C,$A47,'Program Design'!$D:$D,$B47,'Program Design'!$J:$J,I$29)+SUMIFS('Program Design'!$V:$V,'Program Design'!$C:$C,$A47,'Program Design'!$D:$D,$B47,'Program Design'!$J:$J,I$29)+SUMIFS('Program Design'!$W:$W,'Program Design'!$C:$C,$A47,'Program Design'!$D:$D,$B47,'Program Design'!$J:$J,I$29)+SUMIFS(INDEX(OFFSET('Budget Inputs'!$A$1,6,1,2000,560),0,MATCH(CONCATENATE(I$29," Sub-Total"),OFFSET('Budget Inputs'!$A$1,6,1,1,560),0)),OFFSET('Budget Inputs'!$A$1,6,1,2000,1),$A47,OFFSET('Budget Inputs'!$A$1,6,2,2000,1),$B47),0) -> 0 | J47: =(SUMIFS(OFFSET('Savings Results'!$A$1,6,16 +MAX('Savings Results'!$G:$G)-MIN('Savings Results'!$G:$G)+MAX('Savings Results'!$J:$J)+I$29-MIN('Savings Results'!$G:$G),2000),OFFSET('Savings Results'!$A$1,6,6,2000),I$29,OFFSET('Savings Results'!$A$1,6,4,2000),"Dx",OFFSET('Savings Results'!$A$1,6,1,2000),$A47,OFFSET('Savings Results'!$A$1,6,2,2000),$B47)/(1/(1-SUM('CE Parameters'!$F$10:$F$11))))/1000 -> 0 | K47: =IFERROR(SUMIFS('Program Design'!$U:$U,'Program Design'!$C:$C,$A47,'Program Design'!$D:$D,$B47,'Program Design'!$J:$J,K$29)+SUMIFS('Program Design'!$V:$V,'Program Design'!$C:$C,$A47,'Program Design'!$D:$D,$B47,'Program Design'!$J:$J,K$29)+SUMIFS('Program Design'!$W:$W,'Program Design'!$C:$C,$A47,'Program Design'!$D:$D,$B47,'Program Design'!$J:$J,K$29)+SUMIFS(INDEX(OFFSET('Budget Inputs'!$A$1,6,1,2000,560),0,MATCH(CONCATENATE(K$29," Sub-Total"),OFFSET('Budget Inputs'!$A$1,6,1,1,560),0)),OFFSET('Budget Inputs'!$A$1,6,1,2000,1),$A47,OFFSET('Budget Inputs'!$A$1,6,2,2000,1),$B47),0) -> 0 | L47: =(SUMIFS(OFFSET('Savings Results'!$A$1,6,16 +MAX('Savings Results'!$G:$G)-MIN('Savings Results'!$G:$G)+MAX('Savings Results'!$J:$J)+K$29-MIN('Savings Results'!$G:$G),2000),OFFSET('Savings Results'!$A$1,6,6,2000),K$29,OFFSET('Savings Results'!$A$1,6,4,2000),"Dx",OFFSET('Savings Results'!$A$1,6,1,2000),$A47,OFFSET('Savings Results'!$A$1,6,2,2000),$B47)/(1/(1-SUM('CE Parameters'!$F$10:$F$11))))/1000 -> 0 | M47: =IFERROR(SUMIFS('Program Design'!$U:$U,'Program Design'!$C:$C,$A47,'Program Design'!$D:$D,$B47,'Program Design'!$J:$J,M$29)+SUMIFS('Program Design'!$V:$V,'Program Design'!$C:$C,$A47,'Program Design'!$D:$D,$B47,'Program Design'!$J:$J,M$29)+SUMIFS('Program Design'!$W:$W,'Program Design'!$C:$C,$A47,'Program Design'!$D:$D,$B47,'Program Design'!$J:$J,M$29)+SUMIFS(INDEX(OFFSET('Budget Inputs'!$A$1,6,1,2000,560),0,MATCH(CONCATENATE(M$29," Sub-Total"),OFFSET('Budget Inputs'!$A$1,6,1,1,560),0)),OFFSET('Budget Inputs'!$A$1,6,1,2000,1),$A47,OFFSET('Budget Inputs'!$A$1,6,2,2000,1),$B47),0) -> 0 | N47: =(SUMIFS(OFFSET('Savings Results'!$A$1,6,16 +MAX('Savings Results'!$G:$G)-MIN('Savings Results'!$G:$G)+MAX('Savings Results'!$J:$J)+M$29-MIN('Savings Results'!$G:$G),2000),OFFSET('Savings Results'!$A$1,6,6,2000),M$29,OFFSET('Savings Results'!$A$1,6,4,2000),"Dx",OFFSET('Savings Results'!$A$1,6,1,2000),$A47,OFFSET('Savings Results'!$A$1,6,2,2000),$B47)/(1/(1-SUM('CE Parameters'!$F$10:$F$11))))/1000 -> 0 | O47: =IFERROR(SUMIFS('Program Design'!$U:$U,'Program Design'!$C:$C,$A47,'Program Design'!$D:$D,$B47)+SUMIFS('Program Design'!$V:$V,'Program Design'!$C:$C,$A47,'Program Design'!$D:$D,$B47)+SUMIFS('Program Design'!$W:$W,'Program Design'!$C:$C,$A47,'Program Design'!$D:$D,$B47)+SUMIFS(INDEX(OFFSET('Budget Inputs'!$A$1,6,1,2000,560),0,MATCH("Total",OFFSET('Budget Inputs'!$A$1,6,1,1,560),0)),OFFSET('Budget Inputs'!$A$1,6,1,2000,1),$A47,OFFSET('Budget Inputs'!$A$1,6,2,2000,1),$B47),0) -> 0 | P47: =(SUMIFS(OFFSET('Savings Results'!$A$1,6,16+2020-MIN('Program Design'!J:J)+2020 -MIN('Program Design'!J:J)+ MAX('Savings Results'!J:J),2000),OFFSET('Savings Results'!$A$1,6,4,2000),"Dx",OFFSET('Savings Results'!$A$1,6,1,2000),$A47,OFFSET('Savings Results'!$A$1,6,2,2000),$B47)/(1/(1-SUM('CE Parameters'!$F$10:$F$11))))/1000 -> 786.718
A48: Residential | B48: 2015 Heating and Cooling Program | C48: =IFERROR(SUMIFS('Program Design'!$U:$U,'Program Design'!$C:$C,$A48,'Program Design'!$D:$D,$B48,'Program Design'!$J:$J,C$29)+SUMIFS('Program Design'!$V:$V,'Program Design'!$C:$C,$A48,'Program Design'!$D:$D,$B48,'Program Design'!$J:$J,C$29)+SUMIFS('Program Design'!$W:$W,'Program Design'!$C:$C,$A48,'Program Design'!$D:$D,$B48,'Program Design'!$J:$J,C$29)+SUMIFS(INDEX(OFFSET('Budget Inputs'!$A$1,6,1,2000,560),0,MATCH(CONCATENATE(C$29," Sub-Total"),OFFSET('Budget Inputs'!$A$1,6,1,1,560),0)),OFFSET('Budget Inputs'!$A$1,6,1,2000,1),$A48,OFFSET('Budget Inputs'!$A$1,6,2,2000,1),$B48),0) -> 0 | D48: =(SUMIFS(OFFSET('Savings Results'!$A$1,6,16 +MAX('Savings Results'!$G:$G)-MIN('Savings Results'!$G:$G)+MAX('Savings Results'!$J:$J)+C$29-MIN('Savings Results'!$G:$G),2000),OFFSET('Savings Results'!$A$1,6,6,2000),C$29,OFFSET('Savings Results'!$A$1,6,4,2000),"Dx",OFFSET('Savings Results'!$A$1,6,1,2000),$A48,OFFSET('Savings Results'!$A$1,6,2,2000),$B48)/(1/(1-SUM('CE Parameters'!$F$10:$F$11))))/1000 -> 834.967 | E48: =IFERROR(SUMIFS('Program Design'!$U:$U,'Program Design'!$C:$C,$A48,'Program Design'!$D:$D,$B48,'Program Design'!$J:$J,E$29)+SUMIFS('Program Design'!$V:$V,'Program Design'!$C:$C,$A48,'Program Design'!$D:$D,$B48,'Program Design'!$J:$J,E$29)+SUMIFS('Program Design'!$W:$W,'Program Design'!$C:$C,$A48,'Program Design'!$D:$D,$B48,'Program Design'!$J:$J,E$29)+SUMIFS(INDEX(OFFSET('Budget Inputs'!$A$1,6,1,2000,560),0,MATCH(CONCATENATE(E$29," Sub-Total"),OFFSET('Budget Inputs'!$A$1,6,1,1,560),0)),OFFSET('Budget Inputs'!$A$1,6,1,2000,1),$A48,OFFSET('Budget Inputs'!$A$1,6,2,2000,1),$B48),0) -> 0 | F48: =(SUMIFS(OFFSET('Savings Results'!$A$1,6,16 +MAX('Savings Results'!$G:$G)-MIN('Savings Results'!$G:$G)+MAX('Savings Results'!$J:$J)+E$29-MIN('Savings Results'!$G:$G),2000),OFFSET('Savings Results'!$A$1,6,6,2000),E$29,OFFSET('Savings Results'!$A$1,6,4,2000),"Dx",OFFSET('Savings Results'!$A$1,6,1,2000),$A48,OFFSET('Savings Results'!$A$1,6,2,2000),$B48)/(1/(1-SUM('CE Parameters'!$F$10:$F$11))))/1000 -> 0 | G48: =IFERROR(SUMIFS('Program Design'!$U:$U,'Program Design'!$C:$C,$A48,'Program Design'!$D:$D,$B48,'Program Design'!$J:$J,G$29)+SUMIFS('Program Design'!$V:$V,'Program Design'!$C:$C,$A48,'Program Design'!$D:$D,$B48,'Program Design'!$J:$J,G$29)+SUMIFS('Program Design'!$W:$W,'Program Design'!$C:$C,$A48,'Program Design'!$D:$D,$B48,'Program Design'!$J:$J,G$29)+SUMIFS(INDEX(OFFSET('Budget Inputs'!$A$1,6,1,2000,560),0,MATCH(CONCATENATE(G$29," Sub-Total"),OFFSET('Budget Inputs'!$A$1,6,1,1,560),0)),OFFSET('Budget Inputs'!$A$1,6,1,2000,1),$A48,OFFSET('Budget Inputs'!$A$1,6,2,2000,1),$B48),0) -> 0 | H48: =(SUMIFS(OFFSET('Savings Results'!$A$1,6,16 +MAX('Savings Results'!$G:$G)-MIN('Savings Results'!$G:$G)+MAX('Savings Results'!$J:$J)+G$29-MIN('Savings Results'!$G:$G),2000),OFFSET('Savings Results'!$A$1,6,6,2000),G$29,OFFSET('Savings Results'!$A$1,6,4,2000),"Dx",OFFSET('Savings Results'!$A$1,6,1,2000),$A48,OFFSET('Savings Results'!$A$1,6,2,2000),$B48)/(1/(1-SUM('CE Parameters'!$F$10:$F$11))))/1000 -> 0 | I48: =IFERROR(SUMIFS('Program Design'!$U:$U,'Program Design'!$C:$C,$A48,'Program Design'!$D:$D,$B48,'Program Design'!$J:$J,I$29)+SUMIFS('Program Design'!$V:$V,'Program Design'!$C:$C,$A48,'Program Design'!$D:$D,$B48,'Program Design'!$J:$J,I$29)+SUMIFS('Program Design'!$W:$W,'Program Design'!$C:$C,$A48,'Program Design'!$D:$D,$B48,'Program Design'!$J:$J,I$29)+SUMIFS(INDEX(OFFSET('Budget Inputs'!$A$1,6,1,2000,560),0,MATCH(CONCATENATE(I$29," Sub-Total"),OFFSET('Budget Inputs'!$A$1,6,1,1,560),0)),OFFSET('Budget Inputs'!$A$1,6,1,2000,1),$A48,OFFSET('Budget Inputs'!$A$1,6,2,2000,1),$B48),0) -> 0 | J48: =(SUMIFS(OFFSET('Savings Results'!$A$1,6,16 +MAX('Savings Results'!$G:$G)-MIN('Savings Results'!$G:$G)+MAX('Savings Results'!$J:$J)+I$29-MIN('Savings Results'!$G:$G),2000),OFFSET('Savings Results'!$A$1,6,6,2000),I$29,OFFSET('Savings Results'!$A$1,6,4,2000),"Dx",OFFSET('Savings Results'!$A$1,6,1,2000),$A48,OFFSET('Savings Results'!$A$1,6,2,2000),$B48)/(1/(1-SUM('CE Parameters'!$F$10:$F$11))))/1000 -> 0 | K48: =IFERROR(SUMIFS('Program Design'!$U:$U,'Program Design'!$C:$C,$A48,'Program Design'!$D:$D,$B48,'Program Design'!$J:$J,K$29)+SUMIFS('Program Design'!$V:$V,'Program Design'!$C:$C,$A48,'Program Design'!$D:$D,$B48,'Program Design'!$J:$J,K$29)+SUMIFS('Program Design'!$W:$W,'Program Design'!$C:$C,$A48,'Program Design'!$D:$D,$B48,'Program Design'!$J:$J,K$29)+SUMIFS(INDEX(OFFSET('Budget Inputs'!$A$1,6,1,2000,560),0,MATCH(CONCATENATE(K$29," Sub-Total"),OFFSET('Budget Inputs'!$A$1,6,1,1,560),0)),OFFSET('Budget Inputs'!$A$1,6,1,2000,1),$A48,OFFSET('Budget Inputs'!$A$1,6,2,2000,1),$B48),0) -> 0 | L48: =(SUMIFS(OFFSET('Savings Results'!$A$1,6,16 +MAX('Savings Results'!$G:$G)-MIN('Savings Results'!$G:$G)+MAX('Savings Results'!$J:$J)+K$29-MIN('Savings Results'!$G:$G),2000),OFFSET('Savings Results'!$A$1,6,6,2000),K$29,OFFSET('Savings Results'!$A$1,6,4,2000),"Dx",OFFSET('Savings Results'!$A$1,6,1,2000),$A48,OFFSET('Savings Results'!$A$1,6,2,2000),$B48)/(1/(1-SUM('CE Parameters'!$F$10:$F$11))))/1000 -> 0 | M48: =IFERROR(SUMIFS('Program Design'!$U:$U,'Program Design'!$C:$C,$A48,'Program Design'!$D:$D,$B48,'Program Design'!$J:$J,M$29)+SUMIFS('Program Design'!$V:$V,'Program Design'!$C:$C,$A48,'Program Design'!$D:$D,$B48,'Program Design'!$J:$J,M$29)+SUMIFS('Program Design'!$W:$W,'Program Design'!$C:$C,$A48,'Program Design'!$D:$D,$B48,'Program Design'!$J:$J,M$29)+SUMIFS(INDEX(OFFSET('Budget Inputs'!$A$1,6,1,2000,560),0,MATCH(CONCATENATE(M$29," Sub-Total"),OFFSET('Budget Inputs'!$A$1,6,1,1,560),0)),OFFSET('Budget Inputs'!$A$1,6,1,2000,1),$A48,OFFSET('Budget Inputs'!$A$1,6,2,2000,1),$B48),0) -> 0 | N48: =(SUMIFS(OFFSET('Savings Results'!$A$1,6,16 +MAX('Savings Results'!$G:$G)-MIN('Savings Results'!$G:$G)+MAX('Savings Results'!$J:$J)+M$29-MIN('Savings Results'!$G:$G),2000),OFFSET('Savings Results'!$A$1,6,6,2000),M$29,OFFSET('Savings Results'!$A$1,6,4,2000),"Dx",OFFSET('Savings Results'!$A$1,6,1,2000),$A48,OFFSET('Savings Results'!$A$1,6,2,2000),$B48)/(1/(1-SUM('CE Parameters'!$F$10:$F$11))))/1000 -> 0 | O48: =IFERROR(SUMIFS('Program Design'!$U:$U,'Program Design'!$C:$C,$A48,'Program Design'!$D:$D,$B48)+SUMIFS('Program Design'!$V:$V,'Program Design'!$C:$C,$A48,'Program Design'!$D:$D,$B48)+SUMIFS('Program Design'!$W:$W,'Program Design'!$C:$C,$A48,'Program Design'!$D:$D,$B48)+SUMIFS(INDEX(OFFSET('Budget Inputs'!$A$1,6,1,2000,560),0,MATCH("Total",OFFSET('Budget Inputs'!$A$1,6,1,1,560),0)),OFFSET('Budget Inputs'!$A$1,6,1,2000,1),$A48,OFFSET('Budget Inputs'!$A$1,6,2,2000,1),$B48),0) -> 0 | P48: =(SUMIFS(OFFSET('Savings Results'!$A$1,6,16+2020-MIN('Program Design'!J:J)+2020 -MIN('Program Design'!J:J)+ MAX('Savings Results'!J:J),2000),OFFSET('Savings Results'!$A$1,6,4,2000),"Dx",OFFSET('Savings Results'!$A$1,6,1,2000),$A48,OFFSET('Savings Results'!$A$1,6,2,2000),$B48)/(1/(1-SUM('CE Parameters'!$F$10:$F$11))))/1000 -> 834.967
A49: Residential | B49: 2015 Residential New Construction | C49: =IFERROR(SUMIFS('Program Design'!$U:$U,'Program Design'!$C:$C,$A49,'Program Design'!$D:$D,$B49,'Program Design'!$J:$J,C$29)+SUMIFS('Program Design'!$V:$V,'Program Design'!$C:$C,$A49,'Program Design'!$D:$D,$B49,'Program Design'!$J:$J,C$29)+SUMIFS('Program Design'!$W:$W,'Program Design'!$C:$C,$A49,'Program Design'!$D:$D,$B49,'Program Design'!$J:$J,C$29)+SUMIFS(INDEX(OFFSET('Budget Inputs'!$A$1,6,1,2000,560),0,MATCH(CONCATENATE(C$29," Sub-Total"),OFFSET('Budget Inputs'!$A$1,6,1,1,560),0)),OFFSET('Budget Inputs'!$A$1,6,1,2000,1),$A49,OFFSET('Budget Inputs'!$A$1,6,2,2000,1),$B49),0) -> 0 | D49: =(SUMIFS(OFFSET('Savings Results'!$A$1,6,16 +MAX('Savings Results'!$G:$G)-MIN('Savings Results'!$G:$G)+MAX('Savings Results'!$J:$J)+C$29-MIN('Savings Results'!$G:$G),2000),OFFSET('Savings Results'!$A$1,6,6,2000),C$29,OFFSET('Savings Results'!$A$1,6,4,2000),"Dx",OFFSET('Savings Results'!$A$1,6,1,2000),$A49,OFFSET('Savings Results'!$A$1,6,2,2000),$B49)/(1/(1-SUM('CE Parameters'!$F$10:$F$11))))/1000 -> 10.827 | E49: =IFERROR(SUMIFS('Program Design'!$U:$U,'Program Design'!$C:$C,$A49,'Program Design'!$D:$D,$B49,'Program Design'!$J:$J,E$29)+SUMIFS('Program Design'!$V:$V,'Program Design'!$C:$C,$A49,'Program Design'!$D:$D,$B49,'Program Design'!$J:$J,E$29)+SUMIFS('Program Design'!$W:$W,'Program Design'!$C:$C,$A49,'Program Design'!$D:$D,$B49,'Program Design'!$J:$J,E$29)+SUMIFS(INDEX(OFFSET('Budget Inputs'!$A$1,6,1,2000,560),0,MATCH(CONCATENATE(E$29," Sub-Total"),OFFSET('Budget Inputs'!$A$1,6,1,1,560),0)),OFFSET('Budget Inputs'!$A$1,6,1,2000,1),$A49,OFFSET('Budget Inputs'!$A$1,6,2,2000,1),$B49),0) -> 0 | F49: =(SUMIFS(OFFSET('Savings Results'!$A$1,6,16 +MAX('Savings Results'!$G:$G)-MIN('Savings Results'!$G:$G)+MAX('Savings Results'!$J:$J)+E$29-MIN('Savings Results'!$G:$G),2000),OFFSET('Savings Results'!$A$1,6,6,2000),E$29,OFFSET('Savings Results'!$A$1,6,4,2000),"Dx",OFFSET('Savings Results'!$A$1,6,1,2000),$A49,OFFSET('Savings Results'!$A$1,6,2,2000),$B49)/(1/(1-SUM('CE Parameters'!$F$10:$F$11))))/1000 -> 0 | G49: =IFERROR(SUMIFS('Program Design'!$U:$U,'Program Design'!$C:$C,$A49,'Program Design'!$D:$D,$B49,'Program Design'!$J:$J,G$29)+SUMIFS('Program Design'!$V:$V,'Program Design'!$C:$C,$A49,'Program Design'!$D:$D,$B49,'Program Design'!$J:$J,G$29)+SUMIFS('Program Design'!$W:$W,'Program Design'!$C:$C,$A49,'Program Design'!$D:$D,$B49,'Program Design'!$J:$J,G$29)+SUMIFS(INDEX(OFFSET('Budget Inputs'!$A$1,6,1,2000,560),0,MATCH(CONCATENATE(G$29," Sub-Total"),OFFSET('Budget Inputs'!$A$1,6,1,1,560),0)),OFFSET('Budget Inputs'!$A$1,6,1,2000,1),$A49,OFFSET('Budget Inputs'!$A$1,6,2,2000,1),$B49),0) -> 0 | H49: =(SUMIFS(OFFSET('Savings Results'!$A$1,6,16 +MAX('Savings Results'!$G:$G)-MIN('Savings Results'!$G:$G)+MAX('Savings Results'!$J:$J)+G$29-MIN('Savings Results'!$G:$G),2000),OFFSET('Savings Results'!$A$1,6,6,2000),G$29,OFFSET('Savings Results'!$A$1,6,4,2000),"Dx",OFFSET('Savings Results'!$A$1,6,1,2000),$A49,OFFSET('Savings Results'!$A$1,6,2,2000),$B49)/(1/(1-SUM('CE Parameters'!$F$10:$F$11))))/1000 -> 0 | I49: =IFERROR(SUMIFS('Program Design'!$U:$U,'Program Design'!$C:$C,$A49,'Program Design'!$D:$D,$B49,'Program Design'!$J:$J,I$29)+SUMIFS('Program Design'!$V:$V,'Program Design'!$C:$C,$A49,'Program Design'!$D:$D,$B49,'Program Design'!$J:$J,I$29)+SUMIFS('Program Design'!$W:$W,'Program Design'!$C:$C,$A49,'Program Design'!$D:$D,$B49,'Program Design'!$J:$J,I$29)+SUMIFS(INDEX(OFFSET('Budget Inputs'!$A$1,6,1,2000,560),0,MATCH(CONCATENATE(I$29," Sub-Total"),OFFSET('Budget Inputs'!$A$1,6,1,1,560),0)),OFFSET('Budget Inputs'!$A$1,6,1,2000,1),$A49,OFFSET('Budget Inputs'!$A$1,6,2,2000,1),$B49),0) -> 0 | J49: =(SUMIFS(OFFSET('Savings Results'!$A$1,6,16 +MAX('Savings Results'!$G:$G)-MIN('Savings Results'!$G:$G)+MAX('Savings Results'!$J:$J)+I$29-MIN('Savings Results'!$G:$G),2000),OFFSET('Savings Results'!$A$1,6,6,2000),I$29,OFFSET('Savings Results'!$A$1,6,4,2000),"Dx",OFFSET('Savings Results'!$A$1,6,1,2000),$A49,OFFSET('Savings Results'!$A$1,6,2,2000),$B49)/(1/(1-SUM('CE Parameters'!$F$10:$F$11))))/1000 -> 0 | K49: =IFERROR(SUMIFS('Program Design'!$U:$U,'Program Design'!$C:$C,$A49,'Program Design'!$D:$D,$B49,'Program Design'!$J:$J,K$29)+SUMIFS('Program Design'!$V:$V,'Program Design'!$C:$C,$A49,'Program Design'!$D:$D,$B49,'Program Design'!$J:$J,K$29)+SUMIFS('Program Design'!$W:$W,'Program Design'!$C:$C,$A49,'Program Design'!$D:$D,$B49,'Program Design'!$J:$J,K$29)+SUMIFS(INDEX(OFFSET('Budget Inputs'!$A$1,6,1,2000,560),0,MATCH(CONCATENATE(K$29," Sub-Total"),OFFSET('Budget Inputs'!$A$1,6,1,1,560),0)),OFFSET('Budget Inputs'!$A$1,6,1,2000,1),$A49,OFFSET('Budget Inputs'!$A$1,6,2,2000,1),$B49),0) -> 0 | L49: =(SUMIFS(OFFSET('Savings Results'!$A$1,6,16 +MAX('Savings Results'!$G:$G)-MIN('Savings Results'!$G:$G)+MAX('Savings Results'!$J:$J)+K$29-MIN('Savings Results'!$G:$G),2000),OFFSET('Savings Results'!$A$1,6,6,2000),K$29,OFFSET('Savings Results'!$A$1,6,4,2000),"Dx",OFFSET('Savings Results'!$A$1,6,1,2000),$A49,OFFSET('Savings Results'!$A$1,6,2,2000),$B49)/(1/(1-SUM('CE Parameters'!$F$10:$F$11))))/1000 -> 0 | M49: =IFERROR(SUMIFS('Program Design'!$U:$U,'Program Design'!$C:$C,$A49,'Program Design'!$D:$D,$B49,'Program Design'!$J:$J,M$29)+SUMIFS('Program Design'!$V:$V,'Program Design'!$C:$C,$A49,'Program Design'!$D:$D,$B49,'Program Design'!$J:$J,M$29)+SUMIFS('Program Design'!$W:$W,'Program Design'!$C:$C,$A49,'Program Design'!$D:$D,$B49,'Program Design'!$J:$J,M$29)+SUMIFS(INDEX(OFFSET('Budget Inputs'!$A$1,6,1,2000,560),0,MATCH(CONCATENATE(M$29," Sub-Total"),OFFSET('Budget Inputs'!$A$1,6,1,1,560),0)),OFFSET('Budget Inputs'!$A$1,6,1,2000,1),$A49,OFFSET('Budget Inputs'!$A$1,6,2,2000,1),$B49),0) -> 0 | N49: =(SUMIFS(OFFSET('Savings Results'!$A$1,6,16 +MAX('Savings Results'!$G:$G)-MIN('Savings Results'!$G:$G)+MAX('Savings Results'!$J:$J)+M$29-MIN('Savings Results'!$G:$G),2000),OFFSET('Savings Results'!$A$1,6,6,2000),M$29,OFFSET('Savings Results'!$A$1,6,4,2000),"Dx",OFFSET('Savings Results'!$A$1,6,1,2000),$A49,OFFSET('Savings Results'!$A$1,6,2,2000),$B49)/(1/(1-SUM('CE Parameters'!$F$10:$F$11))))/1000 -> 0 | O49: =IFERROR(SUMIFS('Program Design'!$U:$U,'Program Design'!$C:$C,$A49,'Program Design'!$D:$D,$B49)+SUMIFS('Program Design'!$V:$V,'Program Design'!$C:$C,$A49,'Program Design'!$D:$D,$B49)+SUMIFS('Program Design'!$W:$W,'Program Design'!$C:$C,$A49,'Program Design'!$D:$D,$B49)+SUMIFS(INDEX(OFFSET('Budget Inputs'!$A$1,6,1,2000,560),0,MATCH("Total",OFFSET('Budget Inputs'!$A$1,6,1,1,560),0)),OFFSET('Budget Inputs'!$A$1,6,1,2000,1),$A49,OFFSET('Budget Inputs'!$A$1,6,2,2000,1),$B49),0) -> 0 | P49: =(SUMIFS(OFFSET('Savings Results'!$A$1,6,16+2020-MIN('Program Design'!J:J)+2020 -MIN('Program Design'!J:J)+ MAX('Savings Results'!J:J),2000),OFFSET('Savings Results'!$A$1,6,4,2000),"Dx",OFFSET('Savings Results'!$A$1,6,1,2000),$A49,OFFSET('Savings Results'!$A$1,6,2,2000),$B49)/(1/(1-SUM('CE Parameters'!$F$10:$F$11))))/1000 -> 10.827
A50: Residential | B50: 2015 Low Income Initiative | C50: =IFERROR(SUMIFS('Program Design'!$U:$U,'Program Design'!$C:$C,$A50,'Program Design'!$D:$D,$B50,'Program Design'!$J:$J,C$29)+SUMIFS('Program Design'!$V:$V,'Program Design'!$C:$C,$A50,'Program Design'!$D:$D,$B50,'Program Design'!$J:$J,C$29)+SUMIFS('Program Design'!$W:$W,'Program Design'!$C:$C,$A50,'Program Design'!$D:$D,$B50,'Program Design'!$J:$J,C$29)+SUMIFS(INDEX(OFFSET('Budget Inputs'!$A$1,6,1,2000,560),0,MATCH(CONCATENATE(C$29," Sub-Total"),OFFSET('Budget Inputs'!$A$1,6,1,1,560),0)),OFFSET('Budget Inputs'!$A$1,6,1,2000,1),$A50,OFFSET('Budget Inputs'!$A$1,6,2,2000,1),$B50),0) -> 0 | D50: =(SUMIFS(OFFSET('Savings Results'!$A$1,6,16 +MAX('Savings Results'!$G:$G)-MIN('Savings Results'!$G:$G)+MAX('Savings Results'!$J:$J)+C$29-MIN('Savings Results'!$G:$G),2000),OFFSET('Savings Results'!$A$1,6,6,2000),C$29,OFFSET('Savings Results'!$A$1,6,4,2000),"Dx",OFFSET('Savings Results'!$A$1,6,1,2000),$A50,OFFSET('Savings Results'!$A$1,6,2,2000),$B50)/(1/(1-SUM('CE Parameters'!$F$10:$F$11))))/1000 -> 219.928 | E50: =IFERROR(SUMIFS('Program Design'!$U:$U,'Program Design'!$C:$C,$A50,'Program Design'!$D:$D,$B50,'Program Design'!$J:$J,E$29)+SUMIFS('Program Design'!$V:$V,'Program Design'!$C:$C,$A50,'Program Design'!$D:$D,$B50,'Program Design'!$J:$J,E$29)+SUMIFS('Program Design'!$W:$W,'Program Design'!$C:$C,$A50,'Program Design'!$D:$D,$B50,'Program Design'!$J:$J,E$29)+SUMIFS(INDEX(OFFSET('Budget Inputs'!$A$1,6,1,2000,560),0,MATCH(CONCATENATE(E$29," Sub-Total"),OFFSET('Budget Inputs'!$A$1,6,1,1,560),0)),OFFSET('Budget Inputs'!$A$1,6,1,2000,1),$A50,OFFSET('Budget Inputs'!$A$1,6,2,2000,1),$B50),0) -> 0 | F50: =(SUMIFS(OFFSET('Savings Results'!$A$1,6,16 +MAX('Savings Results'!$G:$G)-MIN('Savings Results'!$G:$G)+MAX('Savings Results'!$J:$J)+E$29-MIN('Savings Results'!$G:$G),2000),OFFSET('Savings Results'!$A$1,6,6,2000),E$29,OFFSET('Savings Results'!$A$1,6,4,2000),"Dx",OFFSET('Savings Results'!$A$1,6,1,2000),$A50,OFFSET('Savings Results'!$A$1,6,2,2000),$B50)/(1/(1-SUM('CE Parameters'!$F$10:$F$11))))/1000 -> 0 | G50: =IFERROR(SUMIFS('Program Design'!$U:$U,'Program Design'!$C:$C,$A50,'Program Design'!$D:$D,$B50,'Program Design'!$J:$J,G$29)+SUMIFS('Program Design'!$V:$V,'Program Design'!$C:$C,$A50,'Program Design'!$D:$D,$B50,'Program Design'!$J:$J,G$29)+SUMIFS('Program Design'!$W:$W,'Program Design'!$C:$C,$A50,'Program Design'!$D:$D,$B50,'Program Design'!$J:$J,G$29)+SUMIFS(INDEX(OFFSET('Budget Inputs'!$A$1,6,1,2000,560),0,MATCH(CONCATENATE(G$29," Sub-Total"),OFFSET('Budget Inputs'!$A$1,6,1,1,560),0)),OFFSET('Budget Inputs'!$A$1,6,1,2000,1),$A50,OFFSET('Budget Inputs'!$A$1,6,2,2000,1),$B50),0) -> 0 | H50: =(SUMIFS(OFFSET('Savings Results'!$A$1,6,16 +MAX('Savings Results'!$G:$G)-MIN('Savings Results'!$G:$G)+MAX('Savings Results'!$J:$J)+G$29-MIN('Savings Results'!$G:$G),2000),OFFSET('Savings Results'!$A$1,6,6,2000),G$29,OFFSET('Savings Results'!$A$1,6,4,2000),"Dx",OFFSET('Savings Results'!$A$1,6,1,2000),$A50,OFFSET('Savings Results'!$A$1,6,2,2000),$B50)/(1/(1-SUM('CE Parameters'!$F$10:$F$11))))/1000 -> 0 | I50: =IFERROR(SUMIFS('Program Design'!$U:$U,'Program Design'!$C:$C,$A50,'Program Design'!$D:$D,$B50,'Program Design'!$J:$J,I$29)+SUMIFS('Program Design'!$V:$V,'Program Design'!$C:$C,$A50,'Program Design'!$D:$D,$B50,'Program Design'!$J:$J,I$29)+SUMIFS('Program Design'!$W:$W,'Program Design'!$C:$C,$A50,'Program Design'!$D:$D,$B50,'Program Design'!$J:$J,I$29)+SUMIFS(INDEX(OFFSET('Budget Inputs'!$A$1,6,1,2000,560),0,MATCH(CONCATENATE(I$29," Sub-Total"),OFFSET('Budget Inputs'!$A$1,6,1,1,560),0)),OFFSET('Budget Inputs'!$A$1,6,1,2000,1),$A50,OFFSET('Budget Inputs'!$A$1,6,2,2000,1),$B50),0) -> 0 | J50: =(SUMIFS(OFFSET('Savings Results'!$A$1,6,16 +MAX('Savings Results'!$G:$G)-MIN('Savings Results'!$G:$G)+MAX('Savings Results'!$J:$J)+I$29-MIN('Savings Results'!$G:$G),2000),OFFSET('Savings Results'!$A$1,6,6,2000),I$29,OFFSET('Savings Results'!$A$1,6,4,2000),"Dx",OFFSET('Savings Results'!$A$1,6,1,2000),$A50,OFFSET('Savings Results'!$A$1,6,2,2000),$B50)/(1/(1-SUM('CE Parameters'!$F$10:$F$11))))/1000 -> 0 | K50: =IFERROR(SUMIFS('Program Design'!$U:$U,'Program Design'!$C:$C,$A50,'Program Design'!$D:$D,$B50,'Program Design'!$J:$J,K$29)+SUMIFS('Program Design'!$V:$V,'Program Design'!$C:$C,$A50,'Program Design'!$D:$D,$B50,'Program Design'!$J:$J,K$29)+SUMIFS('Program Design'!$W:$W,'Program Design'!$C:$C,$A50,'Program Design'!$D:$D,$B50,'Program Design'!$J:$J,K$29)+SUMIFS(INDEX(OFFSET('Budget Inputs'!$A$1,6,1,2000,560),0,MATCH(CONCATENATE(K$29," Sub-Total"),OFFSET('Budget Inputs'!$A$1,6,1,1,560),0)),OFFSET('Budget Inputs'!$A$1,6,1,2000,1),$A50,OFFSET('Budget Inputs'!$A$1,6,2,2000,1),$B50),0) -> 0 | L50: =(SUMIFS(OFFSET('Savings Results'!$A$1,6,16 +MAX('Savings Results'!$G:$G)-MIN('Savings Results'!$G:$G)+MAX('Savings Results'!$J:$J)+K$29-MIN('Savings Results'!$G:$G),2000),OFFSET('Savings Results'!$A$1,6,6,2000),K$29,OFFSET('Savings Results'!$A$1,6,4,2000),"Dx",OFFSET('Savings Results'!$A$1,6,1,2000),$A50,OFFSET('Savings Results'!$A$1,6,2,2000),$B50)/(1/(1-SUM('CE Parameters'!$F$10:$F$11))))/1000 -> 0 | M50: =IFERROR(SUMIFS('Program Design'!$U:$U,'Program Design'!$C:$C,$A50,'Program Design'!$D:$D,$B50,'Program Design'!$J:$J,M$29)+SUMIFS('Program Design'!$V:$V,'Program Design'!$C:$C,$A50,'Program Design'!$D:$D,$B50,'Program Design'!$J:$J,M$29)+SUMIFS('Program Design'!$W:$W,'Program Design'!$C:$C,$A50,'Program Design'!$D:$D,$B50,'Program Design'!$J:$J,M$29)+SUMIFS(INDEX(OFFSET('Budget Inputs'!$A$1,6,1,2000,560),0,MATCH(CONCATENATE(M$29," Sub-Total"),OFFSET('Budget Inputs'!$A$1,6,1,1,560),0)),OFFSET('Budget Inputs'!$A$1,6,1,2000,1),$A50,OFFSET('Budget Inputs'!$A$1,6,2,2000,1),$B50),0) -> 0 | N50: =(SUMIFS(OFFSET('Savings Results'!$A$1,6,16 +MAX('Savings Results'!$G:$G)-MIN('Savings Results'!$G:$G)+MAX('Savings Results'!$J:$J)+M$29-MIN('Savings Results'!$G:$G),2000),OFFSET('Savings Results'!$A$1,6,6,2000),M$29,OFFSET('Savings Results'!$A$1,6,4,2000),"Dx",OFFSET('Savings Results'!$A$1,6,1,2000),$A50,OFFSET('Savings Results'!$A$1,6,2,2000),$B50)/(1/(1-SUM('CE Parameters'!$F$10:$F$11))))/1000 -> 0 | O50: =IFERROR(SUMIFS('Program Design'!$U:$U,'Program Design'!$C:$C,$A50,'Program Design'!$D:$D,$B50)+SUMIFS('Program Design'!$V:$V,'Program Design'!$C:$C,$A50,'Program Design'!$D:$D,$B50)+SUMIFS('Program Design'!$W:$W,'Program Design'!$C:$C,$A50,'Program Design'!$D:$D,$B50)+SUMIFS(INDEX(OFFSET('Budget Inputs'!$A$1,6,1,2000,560),0,MATCH("Total",OFFSET('Budget Inputs'!$A$1,6,1,1,560),0)),OFFSET('Budget Inputs'!$A$1,6,1,2000,1),$A50,OFFSET('Budget Inputs'!$A$1,6,2,2000,1),$B50),0) -> 0 | P50: =(SUMIFS(OFFSET('Savings Results'!$A$1,6,16+2020-MIN('Program Design'!J:J)+2020 -MIN('Program Design'!J:J)+ MAX('Savings Results'!J:J),2000),OFFSET('Savings Results'!$A$1,6,4,2000),"Dx",OFFSET('Savings Results'!$A$1,6,1,2000),$A50,OFFSET('Savings Results'!$A$1,6,2,2000),$B50)/(1/(1-SUM('CE Parameters'!$F$10:$F$11))))/1000 -> 219.928
A51: Residential | B51: Heating and Cooling Program | C51: =IFERROR(SUMIFS('Program Design'!$U:$U,'Program Design'!$C:$C,$A51,'Program Design'!$D:$D,$B51,'Program Design'!$J:$J,C$29)+SUMIFS('Program Design'!$V:$V,'Program Design'!$C:$C,$A51,'Program Design'!$D:$D,$B51,'Program Design'!$J:$J,C$29)+SUMIFS('Program Design'!$W:$W,'Program Design'!$C:$C,$A51,'Program Design'!$D:$D,$B51,'Program Design'!$J:$J,C$29)+SUMIFS(INDEX(OFFSET('Budget Inputs'!$A$1,6,1,2000,560),0,MATCH(CONCATENATE(C$29," Sub-Total"),OFFSET('Budget Inputs'!$A$1,6,1,1,560),0)),OFFSET('Budget Inputs'!$A$1,6,1,2000,1),$A51,OFFSET('Budget Inputs'!$A$1,6,2,2000,1),$B51),0) -> 0 | D51: =(SUMIFS(OFFSET('Savings Results'!$A$1,6,16 +MAX('Savings Results'!$G:$G)-MIN('Savings Results'!$G:$G)+MAX('Savings Results'!$J:$J)+C$29-MIN('Savings Results'!$G:$G),2000),OFFSET('Savings Results'!$A$1,6,6,2000),C$29,OFFSET('Savings Results'!$A$1,6,4,2000),"Dx",OFFSET('Savings Results'!$A$1,6,1,2000),$A51,OFFSET('Savings Results'!$A$1,6,2,2000),$B51)/(1/(1-SUM('CE Parameters'!$F$10:$F$11))))/1000 -> 0 | E51: =IFERROR(SUMIFS('Program Design'!$U:$U,'Program Design'!$C:$C,$A51,'Program Design'!$D:$D,$B51,'Program Design'!$J:$J,E$29)+SUMIFS('Program Design'!$V:$V,'Program Design'!$C:$C,$A51,'Program Design'!$D:$D,$B51,'Program Design'!$J:$J,E$29)+SUMIFS('Program Design'!$W:$W,'Program Design'!$C:$C,$A51,'Program Design'!$D:$D,$B51,'Program Design'!$J:$J,E$29)+SUMIFS(INDEX(OFFSET('Budget Inputs'!$A$1,6,1,2000,560),0,MATCH(CONCATENATE(E$29," Sub-Total"),OFFSET('Budget Inputs'!$A$1,6,1,1,560),0)),OFFSET('Budget Inputs'!$A$1,6,1,2000,1),$A51,OFFSET('Budget Inputs'!$A$1,6,2,2000,1),$B51),0) -> 0 | F51: =(SUMIFS(OFFSET('Savings Results'!$A$1,6,16 +MAX('Savings Results'!$G:$G)-MIN('Savings Results'!$G:$G)+MAX('Savings Results'!$J:$J)+E$29-MIN('Savings Results'!$G:$G),2000),OFFSET('Savings Results'!$A$1,6,6,2000),E$29,OFFSET('Savings Results'!$A$1,6,4,2000),"Dx",OFFSET('Savings Results'!$A$1,6,1,2000),$A51,OFFSET('Savings Results'!$A$1,6,2,2000),$B51)/(1/(1-SUM('CE Parameters'!$F$10:$F$11))))/1000 -> 0 | G51: =IFERROR(SUMIFS('Program Design'!$U:$U,'Program Design'!$C:$C,$A51,'Program Design'!$D:$D,$B51,'Program Design'!$J:$J,G$29)+SUMIFS('Program Design'!$V:$V,'Program Design'!$C:$C,$A51,'Program Design'!$D:$D,$B51,'Program Design'!$J:$J,G$29)+SUMIFS('Program Design'!$W:$W,'Program Design'!$C:$C,$A51,'Program Design'!$D:$D,$B51,'Program Design'!$J:$J,G$29)+SUMIFS(INDEX(OFFSET('Budget Inputs'!$A$1,6,1,2000,560),0,MATCH(CONCATENATE(G$29," Sub-Total"),OFFSET('Budget Inputs'!$A$1,6,1,1,560),0)),OFFSET('Budget Inputs'!$A$1,6,1,2000,1),$A51,OFFSET('Budget Inputs'!$A$1,6,2,2000,1),$B51),0) -> 0 | H51: =(SUMIFS(OFFSET('Savings Results'!$A$1,6,16 +MAX('Savings Results'!$G:$G)-MIN('Savings Results'!$G:$G)+MAX('Savings Results'!$J:$J)+G$29-MIN('Savings Results'!$G:$G),2000),OFFSET('Savings Results'!$A$1,6,6,2000),G$29,OFFSET('Savings Results'!$A$1,6,4,2000),"Dx",OFFSET('Savings Results'!$A$1,6,1,2000),$A51,OFFSET('Savings Results'!$A$1,6,2,2000),$B51)/(1/(1-SUM('CE Parameters'!$F$10:$F$11))))/1000 -> 0 | I51: =IFERROR(SUMIFS('Program Design'!$U:$U,'Program Design'!$C:$C,$A51,'Program Design'!$D:$D,$B51,'Program Design'!$J:$J,I$29)+SUMIFS('Program Design'!$V:$V,'Program Design'!$C:$C,$A51,'Program Design'!$D:$D,$B51,'Program Design'!$J:$J,I$29)+SUMIFS('Program Design'!$W:$W,'Program Design'!$C:$C,$A51,'Program Design'!$D:$D,$B51,'Program Design'!$J:$J,I$29)+SUMIFS(INDEX(OFFSET('Budget Inputs'!$A$1,6,1,2000,560),0,MATCH(CONCATENATE(I$29," Sub-Total"),OFFSET('Budget Inputs'!$A$1,6,1,1,560),0)),OFFSET('Budget Inputs'!$A$1,6,1,2000,1),$A51,OFFSET('Budget Inputs'!$A$1,6,2,2000,1),$B51),0) -> 0 | J51: =(SUMIFS(OFFSET('Savings Results'!$A$1,6,16 +MAX('Savings Results'!$G:$G)-MIN('Savings Results'!$G:$G)+MAX('Savings Results'!$J:$J)+I$29-MIN('Savings Results'!$G:$G),2000),OFFSET('Savings Results'!$A$1,6,6,2000),I$29,OFFSET('Savings Results'!$A$1,6,4,2000),"Dx",OFFSET('Savings Results'!$A$1,6,1,2000),$A51,OFFSET('Savings Results'!$A$1,6,2,2000),$B51)/(1/(1-SUM('CE Parameters'!$F$10:$F$11))))/1000 -> 0 | K51: =IFERROR(SUMIFS('Program Design'!$U:$U,'Program Design'!$C:$C,$A51,'Program Design'!$D:$D,$B51,'Program Design'!$J:$J,K$29)+SUMIFS('Program Design'!$V:$V,'Program Design'!$C:$C,$A51,'Program Design'!$D:$D,$B51,'Program Design'!$J:$J,K$29)+SUMIFS('Program Design'!$W:$W,'Program Design'!$C:$C,$A51,'Program Design'!$D:$D,$B51,'Program Design'!$J:$J,K$29)+SUMIFS(INDEX(OFFSET('Budget Inputs'!$A$1,6,1,2000,560),0,MATCH(CONCATENATE(K$29," Sub-Total"),OFFSET('Budget Inputs'!$A$1,6,1,1,560),0)),OFFSET('Budget Inputs'!$A$1,6,1,2000,1),$A51,OFFSET('Budget Inputs'!$A$1,6,2,2000,1),$B51),0) -> 0 | L51: =(SUMIFS(OFFSET('Savings Results'!$A$1,6,16 +MAX('Savings Results'!$G:$G)-MIN('Savings Results'!$G:$G)+MAX('Savings Results'!$J:$J)+K$29-MIN('Savings Results'!$G:$G),2000),OFFSET('Savings Results'!$A$1,6,6,2000),K$29,OFFSET('Savings Results'!$A$1,6,4,2000),"Dx",OFFSET('Savings Results'!$A$1,6,1,2000),$A51,OFFSET('Savings Results'!$A$1,6,2,2000),$B51)/(1/(1-SUM('CE Parameters'!$F$10:$F$11))))/1000 -> 0 | M51: =IFERROR(SUMIFS('Program Design'!$U:$U,'Program Design'!$C:$C,$A51,'Program Design'!$D:$D,$B51,'Program Design'!$J:$J,M$29)+SUMIFS('Program Design'!$V:$V,'Program Design'!$C:$C,$A51,'Program Design'!$D:$D,$B51,'Program Design'!$J:$J,M$29)+SUMIFS('Program Design'!$W:$W,'Program Design'!$C:$C,$A51,'Program Design'!$D:$D,$B51,'Program Design'!$J:$J,M$29)+SUMIFS(INDEX(OFFSET('Budget Inputs'!$A$1,6,1,2000,560),0,MATCH(CONCATENATE(M$29," Sub-Total"),OFFSET('Budget Inputs'!$A$1,6,1,1,560),0)),OFFSET('Budget Inputs'!$A$1,6,1,2000,1),$A51,OFFSET('Budget Inputs'!$A$1,6,2,2000,1),$B51),0) -> 0 | N51: =(SUMIFS(OFFSET('Savings Results'!$A$1,6,16 +MAX('Savings Results'!$G:$G)-MIN('Savings Results'!$G:$G)+MAX('Savings Results'!$J:$J)+M$29-MIN('Savings Results'!$G:$G),2000),OFFSET('Savings Results'!$A$1,6,6,2000),M$29,OFFSET('Savings Results'!$A$1,6,4,2000),"Dx",OFFSET('Savings Results'!$A$1,6,1,2000),$A51,OFFSET('Savings Results'!$A$1,6,2,2000),$B51)/(1/(1-SUM('CE Parameters'!$F$10:$F$11))))/1000 -> 0 | O51: =IFERROR(SUMIFS('Program Design'!$U:$U,'Program Design'!$C:$C,$A51,'Program Design'!$D:$D,$B51)+SUMIFS('Program Design'!$V:$V,'Program Design'!$C:$C,$A51,'Program Design'!$D:$D,$B51)+SUMIFS('Program Design'!$W:$W,'Program Design'!$C:$C,$A51,'Program Design'!$D:$D,$B51)+SUMIFS(INDEX(OFFSET('Budget Inputs'!$A$1,6,1,2000,560),0,MATCH("Total",OFFSET('Budget Inputs'!$A$1,6,1,1,560),0)),OFFSET('Budget Inputs'!$A$1,6,1,2000,1),$A51,OFFSET('Budget Inputs'!$A$1,6,2,2000,1),$B51),0) -> 0 | P51: =(SUMIFS(OFFSET('Savings Results'!$A$1,6,16+2020-MIN('Program Design'!J:J)+2020 -MIN('Program Design'!J:J)+ MAX('Savings Results'!J:J),2000),OFFSET('Savings Results'!$A$1,6,4,2000),"Dx",OFFSET('Savings Results'!$A$1,6,1,2000),$A51,OFFSET('Savings Results'!$A$1,6,2,2000),$B51)/(1/(1-SUM('CE Parameters'!$F$10:$F$11))))/1000 -> 0
A52: Residential | B52: Home Depot Appliance Market Uplift | C52: =IFERROR(SUMIFS('Program Design'!$U:$U,'Program Design'!$C:$C,$A52,'Program Design'!$D:$D,$B52,'Program Design'!$J:$J,C$29)+SUMIFS('Program Design'!$V:$V,'Program Design'!$C:$C,$A52,'Program Design'!$D:$D,$B52,'Program Design'!$J:$J,C$29)+SUMIFS('Program Design'!$W:$W,'Program Design'!$C:$C,$A52,'Program Design'!$D:$D,$B52,'Program Design'!$J:$J,C$29)+SUMIFS(INDEX(OFFSET('Budget Inputs'!$A$1,6,1,2000,560),0,MATCH(CONCATENATE(C$29," Sub-Total"),OFFSET('Budget Inputs'!$A$1,6,1,1,560),0)),OFFSET('Budget Inputs'!$A$1,6,1,2000,1),$A52,OFFSET('Budget Inputs'!$A$1,6,2,2000,1),$B52),0) -> 0 | D52: =(SUMIFS(OFFSET('Savings Results'!$A$1,6,16 +MAX('Savings Results'!$G:$G)-MIN('Savings Results'!$G:$G)+MAX('Savings Results'!$J:$J)+C$29-MIN('Savings Results'!$G:$G),2000),OFFSET('Savings Results'!$A$1,6,6,2000),C$29,OFFSET('Savings Results'!$A$1,6,4,2000),"Dx",OFFSET('Savings Results'!$A$1,6,1,2000),$A52,OFFSET('Savings Results'!$A$1,6,2,2000),$B52)/(1/(1-SUM('CE Parameters'!$F$10:$F$11))))/1000 -> 0 | E52: =IFERROR(SUMIFS('Program Design'!$U:$U,'Program Design'!$C:$C,$A52,'Program Design'!$D:$D,$B52,'Program Design'!$J:$J,E$29)+SUMIFS('Program Design'!$V:$V,'Program Design'!$C:$C,$A52,'Program Design'!$D:$D,$B52,'Program Design'!$J:$J,E$29)+SUMIFS('Program Design'!$W:$W,'Program Design'!$C:$C,$A52,'Program Design'!$D:$D,$B52,'Program Design'!$J:$J,E$29)+SUMIFS(INDEX(OFFSET('Budget Inputs'!$A$1,6,1,2000,560),0,MATCH(CONCATENATE(E$29," Sub-Total"),OFFSET('Budget Inputs'!$A$1,6,1,1,560),0)),OFFSET('Budget Inputs'!$A$1,6,1,2000,1),$A52,OFFSET('Budget Inputs'!$A$1,6,2,2000,1),$B52),0) -> 0 | F52: =(SUMIFS(OFFSET('Savings Results'!$A$1,6,16 +MAX('Savings Results'!$G:$G)-MIN('Savings Results'!$G:$G)+MAX('Savings Results'!$J:$J)+E$29-MIN('Savings Results'!$G:$G),2000),OFFSET('Savings Results'!$A$1,6,6,2000),E$29,OFFSET('Savings Results'!$A$1,6,4,2000),"Dx",OFFSET('Savings Results'!$A$1,6,1,2000),$A52,OFFSET('Savings Results'!$A$1,6,2,2000),$B52)/(1/(1-SUM('CE Parameters'!$F$10:$F$11))))/1000 -> 0.8269999999 | G52: =IFERROR(SUMIFS('Program Design'!$U:$U,'Program Design'!$C:$C,$A52,'Program Design'!$D:$D,$B52,'Program Design'!$J:$J,G$29)+SUMIFS('Program Design'!$V:$V,'Program Design'!$C:$C,$A52,'Program Design'!$D:$D,$B52,'Program Design'!$J:$J,G$29)+SUMIFS('Program Design'!$W:$W,'Program Design'!$C:$C,$A52,'Program Design'!$D:$D,$B52,'Program Design'!$J:$J,G$29)+SUMIFS(INDEX(OFFSET('Budget Inputs'!$A$1,6,1,2000,560),0,MATCH(CONCATENATE(G$29," Sub-Total"),OFFSET('Budget Inputs'!$A$1,6,1,1,560),0)),OFFSET('Budget Inputs'!$A$1,6,1,2000,1),$A52,OFFSET('Budget Inputs'!$A$1,6,2,2000,1),$B52),0) -> 0 | H52: =(SUMIFS(OFFSET('Savings Results'!$A$1,6,16 +MAX('Savings Results'!$G:$G)-MIN('Savings Results'!$G:$G)+MAX('Savings Results'!$J:$J)+G$29-MIN('Savings Results'!$G:$G),2000),OFFSET('Savings Results'!$A$1,6,6,2000),G$29,OFFSET('Savings Results'!$A$1,6,4,2000),"Dx",OFFSET('Savings Results'!$A$1,6,1,2000),$A52,OFFSET('Savings Results'!$A$1,6,2,2000),$B52)/(1/(1-SUM('CE Parameters'!$F$10:$F$11))))/1000 -> 0 | I52: =IFERROR(SUMIFS('Program Design'!$U:$U,'Program Design'!$C:$C,$A52,'Program Design'!$D:$D,$B52,'Program Design'!$J:$J,I$29)+SUMIFS('Program Design'!$V:$V,'Program Design'!$C:$C,$A52,'Program Design'!$D:$D,$B52,'Program Design'!$J:$J,I$29)+SUMIFS('Program Design'!$W:$W,'Program Design'!$C:$C,$A52,'Program Design'!$D:$D,$B52,'Program Design'!$J:$J,I$29)+SUMIFS(INDEX(OFFSET('Budget Inputs'!$A$1,6,1,2000,560),0,MATCH(CONCATENATE(I$29," Sub-Total"),OFFSET('Budget Inputs'!$A$1,6,1,1,560),0)),OFFSET('Budget Inputs'!$A$1,6,1,2000,1),$A52,OFFSET('Budget Inputs'!$A$1,6,2,2000,1),$B52),0) -> 0 | J52: =(SUMIFS(OFFSET('Savings Results'!$A$1,6,16 +MAX('Savings Results'!$G:$G)-MIN('Savings Results'!$G:$G)+MAX('Savings Results'!$J:$J)+I$29-MIN('Savings Results'!$G:$G),2000),OFFSET('Savings Results'!$A$1,6,6,2000),I$29,OFFSET('Savings Results'!$A$1,6,4,2000),"Dx",OFFSET('Savings Results'!$A$1,6,1,2000),$A52,OFFSET('Savings Results'!$A$1,6,2,2000),$B52)/(1/(1-SUM('CE Parameters'!$F$10:$F$11))))/1000 -> 0 | K52: =IFERROR(SUMIFS('Program Design'!$U:$U,'Program Design'!$C:$C,$A52,'Program Design'!$D:$D,$B52,'Program Design'!$J:$J,K$29)+SUMIFS('Program Design'!$V:$V,'Program Design'!$C:$C,$A52,'Program Design'!$D:$D,$B52,'Program Design'!$J:$J,K$29)+SUMIFS('Program Design'!$W:$W,'Program Design'!$C:$C,$A52,'Program Design'!$D:$D,$B52,'Program Design'!$J:$J,K$29)+SUMIFS(INDEX(OFFSET('Budget Inputs'!$A$1,6,1,2000,560),0,MATCH(CONCATENATE(K$29," Sub-Total"),OFFSET('Budget Inputs'!$A$1,6,1,1,560),0)),OFFSET('Budget Inputs'!$A$1,6,1,2000,1),$A52,OFFSET('Budget Inputs'!$A$1,6,2,2000,1),$B52),0) -> 0 | L52: =(SUMIFS(OFFSET('Savings Results'!$A$1,6,16 +MAX('Savings Results'!$G:$G)-MIN('Savings Results'!$G:$G)+MAX('Savings Results'!$J:$J)+K$29-MIN('Savings Results'!$G:$G),2000),OFFSET('Savings Results'!$A$1,6,6,2000),K$29,OFFSET('Savings Results'!$A$1,6,4,2000),"Dx",OFFSET('Savings Results'!$A$1,6,1,2000),$A52,OFFSET('Savings Results'!$A$1,6,2,2000),$B52)/(1/(1-SUM('CE Parameters'!$F$10:$F$11))))/1000 -> 0 | M52: =IFERROR(SUMIFS('Program Design'!$U:$U,'Program Design'!$C:$C,$A52,'Program Design'!$D:$D,$B52,'Program Design'!$J:$J,M$29)+SUMIFS('Program Design'!$V:$V,'Program Design'!$C:$C,$A52,'Program Design'!$D:$D,$B52,'Program Design'!$J:$J,M$29)+SUMIFS('Program Design'!$W:$W,'Program Design'!$C:$C,$A52,'Program Design'!$D:$D,$B52,'Program Design'!$J:$J,M$29)+SUMIFS(INDEX(OFFSET('Budget Inputs'!$A$1,6,1,2000,560),0,MATCH(CONCATENATE(M$29," Sub-Total"),OFFSET('Budget Inputs'!$A$1,6,1,1,560),0)),OFFSET('Budget Inputs'!$A$1,6,1,2000,1),$A52,OFFSET('Budget Inputs'!$A$1,6,2,2000,1),$B52),0) -> 0 | N52: =(SUMIFS(OFFSET('Savings Results'!$A$1,6,16 +MAX('Savings Results'!$G:$G)-MIN('Savings Results'!$G:$G)+MAX('Savings Results'!$J:$J)+M$29-MIN('Savings Results'!$G:$G),2000),OFFSET('Savings Results'!$A$1,6,6,2000),M$29,OFFSET('Savings Results'!$A$1,6,4,2000),"Dx",OFFSET('Savings Results'!$A$1,6,1,2000),$A52,OFFSET('Savings Results'!$A$1,6,2,2000),$B52)/(1/(1-SUM('CE Parameters'!$F$10:$F$11))))/1000 -> 0 | O52: =IFERROR(SUMIFS('Program Design'!$U:$U,'Program Design'!$C:$C,$A52,'Program Design'!$D:$D,$B52)+SUMIFS('Program Design'!$V:$V,'Program Design'!$C:$C,$A52,'Program Design'!$D:$D,$B52)+SUMIFS('Program Design'!$W:$W,'Program Design'!$C:$C,$A52,'Program Design'!$D:$D,$B52)+SUMIFS(INDEX(OFFSET('Budget Inputs'!$A$1,6,1,2000,560),0,MATCH("Total",OFFSET('Budget Inputs'!$A$1,6,1,1,560),0)),OFFSET('Budget Inputs'!$A$1,6,1,2000,1),$A52,OFFSET('Budget Inputs'!$A$1,6,2,2000,1),$B52),0) -> 0 | P52: =(SUMIFS(OFFSET('Savings Results'!$A$1,6,16+2020-MIN('Program Design'!J:J)+2020 -MIN('Program Design'!J:J)+ MAX('Savings Results'!J:J),2000),OFFSET('Savings Results'!$A$1,6,4,2000),"Dx",OFFSET('Savings Results'!$A$1,6,1,2000),$A52,OFFSET('Savings Results'!$A$1,6,2,2000),$B52)/(1/(1-SUM('CE Parameters'!$F$10:$F$11))))/1000 -> 0.8269999999
A53: Residential | B53: New Construction Program | C53: =IFERROR(SUMIFS('Program Design'!$U:$U,'Program Design'!$C:$C,$A53,'Program Design'!$D:$D,$B53,'Program Design'!$J:$J,C$29)+SUMIFS('Program Design'!$V:$V,'Program Design'!$C:$C,$A53,'Program Design'!$D:$D,$B53,'Program Design'!$J:$J,C$29)+SUMIFS('Program Design'!$W:$W,'Program Design'!$C:$C,$A53,'Program Design'!$D:$D,$B53,'Program Design'!$J:$J,C$29)+SUMIFS(INDEX(OFFSET('Budget Inputs'!$A$1,6,1,2000,560),0,MATCH(CONCATENATE(C$29," Sub-Total"),OFFSET('Budget Inputs'!$A$1,6,1,1,560),0)),OFFSET('Budget Inputs'!$A$1,6,1,2000,1),$A53,OFFSET('Budget Inputs'!$A$1,6,2,2000,1),$B53),0) -> 0 | D53: =(SUMIFS(OFFSET('Savings Results'!$A$1,6,16 +MAX('Savings Results'!$G:$G)-MIN('Savings Results'!$G:$G)+MAX('Savings Results'!$J:$J)+C$29-MIN('Savings Results'!$G:$G),2000),OFFSET('Savings Results'!$A$1,6,6,2000),C$29,OFFSET('Savings Results'!$A$1,6,4,2000),"Dx",OFFSET('Savings Results'!$A$1,6,1,2000),$A53,OFFSET('Savings Results'!$A$1,6,2,2000),$B53)/(1/(1-SUM('CE Parameters'!$F$10:$F$11))))/1000 -> 0 | E53: =IFERROR(SUMIFS('Program Design'!$U:$U,'Program Design'!$C:$C,$A53,'Program Design'!$D:$D,$B53,'Program Design'!$J:$J,E$29)+SUMIFS('Program Design'!$V:$V,'Program Design'!$C:$C,$A53,'Program Design'!$D:$D,$B53,'Program Design'!$J:$J,E$29)+SUMIFS('Program Design'!$W:$W,'Program Design'!$C:$C,$A53,'Program Design'!$D:$D,$B53,'Program Design'!$J:$J,E$29)+SUMIFS(INDEX(OFFSET('Budget Inputs'!$A$1,6,1,2000,560),0,MATCH(CONCATENATE(E$29," Sub-Total"),OFFSET('Budget Inputs'!$A$1,6,1,1,560),0)),OFFSET('Budget Inputs'!$A$1,6,1,2000,1),$A53,OFFSET('Budget Inputs'!$A$1,6,2,2000,1),$B53),0) -> 0 | F53: =(SUMIFS(OFFSET('Savings Results'!$A$1,6,16 +MAX('Savings Results'!$G:$G)-MIN('Savings Results'!$G:$G)+MAX('Savings Results'!$J:$J)+E$29-MIN('Savings Results'!$G:$G),2000),OFFSET('Savings Results'!$A$1,6,6,2000),E$29,OFFSET('Savings Results'!$A$1,6,4,2000),"Dx",OFFSET('Savings Results'!$A$1,6,1,2000),$A53,OFFSET('Savings Results'!$A$1,6,2,2000),$B53)/(1/(1-SUM('CE Parameters'!$F$10:$F$11))))/1000 -> 0 | G53: =IFERROR(SUMIFS('Program Design'!$U:$U,'Program Design'!$C:$C,$A53,'Program Design'!$D:$D,$B53,'Program Design'!$J:$J,G$29)+SUMIFS('Program Design'!$V:$V,'Program Design'!$C:$C,$A53,'Program Design'!$D:$D,$B53,'Program Design'!$J:$J,G$29)+SUMIFS('Program Design'!$W:$W,'Program Design'!$C:$C,$A53,'Program Design'!$D:$D,$B53,'Program Design'!$J:$J,G$29)+SUMIFS(INDEX(OFFSET('Budget Inputs'!$A$1,6,1,2000,560),0,MATCH(CONCATENATE(G$29," Sub-Total"),OFFSET('Budget Inputs'!$A$1,6,1,1,560),0)),OFFSET('Budget Inputs'!$A$1,6,1,2000,1),$A53,OFFSET('Budget Inputs'!$A$1,6,2,2000,1),$B53),0) -> 0 | H53: =(SUMIFS(OFFSET('Savings Results'!$A$1,6,16 +MAX('Savings Results'!$G:$G)-MIN('Savings Results'!$G:$G)+MAX('Savings Results'!$J:$J)+G$29-MIN('Savings Results'!$G:$G),2000),OFFSET('Savings Results'!$A$1,6,6,2000),G$29,OFFSET('Savings Results'!$A$1,6,4,2000),"Dx",OFFSET('Savings Results'!$A$1,6,1,2000),$A53,OFFSET('Savings Results'!$A$1,6,2,2000),$B53)/(1/(1-SUM('CE Parameters'!$F$10:$F$11))))/1000 -> 0 | I53: =IFERROR(SUMIFS('Program Design'!$U:$U,'Program Design'!$C:$C,$A53,'Program Design'!$D:$D,$B53,'Program Design'!$J:$J,I$29)+SUMIFS('Program Design'!$V:$V,'Program Design'!$C:$C,$A53,'Program Design'!$D:$D,$B53,'Program Design'!$J:$J,I$29)+SUMIFS('Program Design'!$W:$W,'Program Design'!$C:$C,$A53,'Program Design'!$D:$D,$B53,'Program Design'!$J:$J,I$29)+SUMIFS(INDEX(OFFSET('Budget Inputs'!$A$1,6,1,2000,560),0,MATCH(CONCATENATE(I$29," Sub-Total"),OFFSET('Budget Inputs'!$A$1,6,1,1,560),0)),OFFSET('Budget Inputs'!$A$1,6,1,2000,1),$A53,OFFSET('Budget Inputs'!$A$1,6,2,2000,1),$B53),0) -> 0 | J53: =(SUMIFS(OFFSET('Savings Results'!$A$1,6,16 +MAX('Savings Results'!$G:$G)-MIN('Savings Results'!$G:$G)+MAX('Savings Results'!$J:$J)+I$29-MIN('Savings Results'!$G:$G),2000),OFFSET('Savings Results'!$A$1,6,6,2000),I$29,OFFSET('Savings Results'!$A$1,6,4,2000),"Dx",OFFSET('Savings Results'!$A$1,6,1,2000),$A53,OFFSET('Savings Results'!$A$1,6,2,2000),$B53)/(1/(1-SUM('CE Parameters'!$F$10:$F$11))))/1000 -> 0 | K53: =IFERROR(SUMIFS('Program Design'!$U:$U,'Program Design'!$C:$C,$A53,'Program Design'!$D:$D,$B53,'Program Design'!$J:$J,K$29)+SUMIFS('Program Design'!$V:$V,'Program Design'!$C:$C,$A53,'Program Design'!$D:$D,$B53,'Program Design'!$J:$J,K$29)+SUMIFS('Program Design'!$W:$W,'Program Design'!$C:$C,$A53,'Program Design'!$D:$D,$B53,'Program Design'!$J:$J,K$29)+SUMIFS(INDEX(OFFSET('Budget Inputs'!$A$1,6,1,2000,560),0,MATCH(CONCATENATE(K$29," Sub-Total"),OFFSET('Budget Inputs'!$A$1,6,1,1,560),0)),OFFSET('Budget Inputs'!$A$1,6,1,2000,1),$A53,OFFSET('Budget Inputs'!$A$1,6,2,2000,1),$B53),0) -> 0 | L53: =(SUMIFS(OFFSET('Savings Results'!$A$1,6,16 +MAX('Savings Results'!$G:$G)-MIN('Savings Results'!$G:$G)+MAX('Savings Results'!$J:$J)+K$29-MIN('Savings Results'!$G:$G),2000),OFFSET('Savings Results'!$A$1,6,6,2000),K$29,OFFSET('Savings Results'!$A$1,6,4,2000),"Dx",OFFSET('Savings Results'!$A$1,6,1,2000),$A53,OFFSET('Savings Results'!$A$1,6,2,2000),$B53)/(1/(1-SUM('CE Parameters'!$F$10:$F$11))))/1000 -> 0 | M53: =IFERROR(SUMIFS('Program Design'!$U:$U,'Program Design'!$C:$C,$A53,'Program Design'!$D:$D,$B53,'Program Design'!$J:$J,M$29)+SUMIFS('Program Design'!$V:$V,'Program Design'!$C:$C,$A53,'Program Design'!$D:$D,$B53,'Program Design'!$J:$J,M$29)+SUMIFS('Program Design'!$W:$W,'Program Design'!$C:$C,$A53,'Program Design'!$D:$D,$B53,'Program Design'!$J:$J,M$29)+SUMIFS(INDEX(OFFSET('Budget Inputs'!$A$1,6,1,2000,560),0,MATCH(CONCATENATE(M$29," Sub-Total"),OFFSET('Budget Inputs'!$A$1,6,1,1,560),0)),OFFSET('Budget Inputs'!$A$1,6,1,2000,1),$A53,OFFSET('Budget Inputs'!$A$1,6,2,2000,1),$B53),0) -> 0 | N53: =(SUMIFS(OFFSET('Savings Results'!$A$1,6,16 +MAX('Savings Results'!$G:$G)-MIN('Savings Results'!$G:$G)+MAX('Savings Results'!$J:$J)+M$29-MIN('Savings Results'!$G:$G),2000),OFFSET('Savings Results'!$A$1,6,6,2000),M$29,OFFSET('Savings Results'!$A$1,6,4,2000),"Dx",OFFSET('Savings Results'!$A$1,6,1,2000),$A53,OFFSET('Savings Results'!$A$1,6,2,2000),$B53)/(1/(1-SUM('CE Parameters'!$F$10:$F$11))))/1000 -> 0 | O53: =IFERROR(SUMIFS('Program Design'!$U:$U,'Program Design'!$C:$C,$A53,'Program Design'!$D:$D,$B53)+SUMIFS('Program Design'!$V:$V,'Program Design'!$C:$C,$A53,'Program Design'!$D:$D,$B53)+SUMIFS('Program Design'!$W:$W,'Program Design'!$C:$C,$A53,'Program Design'!$D:$D,$B53)+SUMIFS(INDEX(OFFSET('Budget Inputs'!$A$1,6,1,2000,560),0,MATCH("Total",OFFSET('Budget Inputs'!$A$1,6,1,1,560),0)),OFFSET('Budget Inputs'!$A$1,6,1,2000,1),$A53,OFFSET('Budget Inputs'!$A$1,6,2,2000,1),$B53),0) -> 0 | P53: =(SUMIFS(OFFSET('Savings Results'!$A$1,6,16+2020-MIN('Program Design'!J:J)+2020 -MIN('Program Design'!J:J)+ MAX('Savings Results'!J:J),2000),OFFSET('Savings Results'!$A$1,6,4,2000),"Dx",OFFSET('Savings Results'!$A$1,6,1,2000),$A53,OFFSET('Savings Results'!$A$1,6,2,2000),$B53)/(1/(1-SUM('CE Parameters'!$F$10:$F$11))))/1000 -> 0
A54: Residential | B54: Home Assistance Program | C54: =IFERROR(SUMIFS('Program Design'!$U:$U,'Program Design'!$C:$C,$A54,'Program Design'!$D:$D,$B54,'Program Design'!$J:$J,C$29)+SUMIFS('Program Design'!$V:$V,'Program Design'!$C:$C,$A54,'Program Design'!$D:$D,$B54,'Program Design'!$J:$J,C$29)+SUMIFS('Program Design'!$W:$W,'Program Design'!$C:$C,$A54,'Program Design'!$D:$D,$B54,'Program Design'!$J:$J,C$29)+SUMIFS(INDEX(OFFSET('Budget Inputs'!$A$1,6,1,2000,560),0,MATCH(CONCATENATE(C$29," Sub-Total"),OFFSET('Budget Inputs'!$A$1,6,1,1,560),0)),OFFSET('Budget Inputs'!$A$1,6,1,2000,1),$A54,OFFSET('Budget Inputs'!$A$1,6,2,2000,1),$B54),0) -> 0 | D54: =(SUMIFS(OFFSET('Savings Results'!$A$1,6,16 +MAX('Savings Results'!$G:$G)-MIN('Savings Results'!$G:$G)+MAX('Savings Results'!$J:$J)+C$29-MIN('Savings Results'!$G:$G),2000),OFFSET('Savings Results'!$A$1,6,6,2000),C$29,OFFSET('Savings Results'!$A$1,6,4,2000),"Dx",OFFSET('Savings Results'!$A$1,6,1,2000),$A54,OFFSET('Savings Results'!$A$1,6,2,2000),$B54)/(1/(1-SUM('CE Parameters'!$F$10:$F$11))))/1000 -> 0 | E54: =IFERROR(SUMIFS('Program Design'!$U:$U,'Program Design'!$C:$C,$A54,'Program Design'!$D:$D,$B54,'Program Design'!$J:$J,E$29)+SUMIFS('Program Design'!$V:$V,'Program Design'!$C:$C,$A54,'Program Design'!$D:$D,$B54,'Program Design'!$J:$J,E$29)+SUMIFS('Program Design'!$W:$W,'Program Design'!$C:$C,$A54,'Program Design'!$D:$D,$B54,'Program Design'!$J:$J,E$29)+SUMIFS(INDEX(OFFSET('Budget Inputs'!$A$1,6,1,2000,560),0,MATCH(CONCATENATE(E$29," Sub-Total"),OFFSET('Budget Inputs'!$A$1,6,1,1,560),0)),OFFSET('Budget Inputs'!$A$1,6,1,2000,1),$A54,OFFSET('Budget Inputs'!$A$1,6,2,2000,1),$B54),0) -> 5511 | F54: =(SUMIFS(OFFSET('Savings Results'!$A$1,6,16 +MAX('Savings Results'!$G:$G)-MIN('Savings Results'!$G:$G)+MAX('Savings Results'!$J:$J)+E$29-MIN('Savings Results'!$G:$G),2000),OFFSET('Savings Results'!$A$1,6,6,2000),E$29,OFFSET('Savings Results'!$A$1,6,4,2000),"Dx",OFFSET('Savings Results'!$A$1,6,1,2000),$A54,OFFSET('Savings Results'!$A$1,6,2,2000),$B54)/(1/(1-SUM('CE Parameters'!$F$10:$F$11))))/1000 -> 0 | G54: =IFERROR(SUMIFS('Program Design'!$U:$U,'Program Design'!$C:$C,$A54,'Program Design'!$D:$D,$B54,'Program Design'!$J:$J,G$29)+SUMIFS('Program Design'!$V:$V,'Program Design'!$C:$C,$A54,'Program Design'!$D:$D,$B54,'Program Design'!$J:$J,G$29)+SUMIFS('Program Design'!$W:$W,'Program Design'!$C:$C,$A54,'Program Design'!$D:$D,$B54,'Program Design'!$J:$J,G$29)+SUMIFS(INDEX(OFFSET('Budget Inputs'!$A$1,6,1,2000,560),0,MATCH(CONCATENATE(G$29," Sub-Total"),OFFSET('Budget Inputs'!$A$1,6,1,1,560),0)),OFFSET('Budget Inputs'!$A$1,6,1,2000,1),$A54,OFFSET('Budget Inputs'!$A$1,6,2,2000,1),$B54),0) -> 42285 | H54: =(SUMIFS(OFFSET('Savings Results'!$A$1,6,16 +MAX('Savings Results'!$G:$G)-MIN('Savings Results'!$G:$G)+MAX('Savings Results'!$J:$J)+G$29-MIN('Savings Results'!$G:$G),2000),OFFSET('Savings Results'!$A$1,6,6,2000),G$29,OFFSET('Savings Results'!$A$1,6,4,2000),"Dx",OFFSET('Savings Results'!$A$1,6,1,2000),$A54,OFFSET('Savings Results'!$A$1,6,2,2000),$B54)/(1/(1-SUM('CE Parameters'!$F$10:$F$11))))/1000 -> 47.06527379 | I54: =IFERROR(SUMIFS('Program Design'!$U:$U,'Program Design'!$C:$C,$A54,'Program Design'!$D:$D,$B54,'Program Design'!$J:$J,I$29)+SUMIFS('Program Design'!$V:$V,'Program Design'!$C:$C,$A54,'Program Design'!$D:$D,$B54,'Program Design'!$J:$J,I$29)+SUMIFS('Program Design'!$W:$W,'Program Design'!$C:$C,$A54,'Program Design'!$D:$D,$B54,'Program Design'!$J:$J,I$29)+SUMIFS(INDEX(OFFSET('Budget Inputs'!$A$1,6,1,2000,560),0,MATCH(CONCATENATE(I$29," Sub-Total"),OFFSET('Budget Inputs'!$A$1,6,1,1,560),0)),OFFSET('Budget Inputs'!$A$1,6,1,2000,1),$A54,OFFSET('Budget Inputs'!$A$1,6,2,2000,1),$B54),0) -> 15863 | J54: =(SUMIFS(OFFSET('Savings Results'!$A$1,6,16 +MAX('Savings Results'!$G:$G)-MIN('Savings Results'!$G:$G)+MAX('Savings Results'!$J:$J)+I$29-MIN('Savings Results'!$G:$G),2000),OFFSET('Savings Results'!$A$1,6,6,2000),I$29,OFFSET('Savings Results'!$A$1,6,4,2000),"Dx",OFFSET('Savings Results'!$A$1,6,1,2000),$A54,OFFSET('Savings Results'!$A$1,6,2,2000),$B54)/(1/(1-SUM('CE Parameters'!$F$10:$F$11))))/1000 -> 7.412 | K54: =IFERROR(SUMIFS('Program Design'!$U:$U,'Program Design'!$C:$C,$A54,'Program Design'!$D:$D,$B54,'Program Design'!$J:$J,K$29)+SUMIFS('Program Design'!$V:$V,'Program Design'!$C:$C,$A54,'Program Design'!$D:$D,$B54,'Program Design'!$J:$J,K$29)+SUMIFS('Program Design'!$W:$W,'Program Design'!$C:$C,$A54,'Program Design'!$D:$D,$B54,'Program Design'!$J:$J,K$29)+SUMIFS(INDEX(OFFSET('Budget Inputs'!$A$1,6,1,2000,560),0,MATCH(CONCATENATE(K$29," Sub-Total"),OFFSET('Budget Inputs'!$A$1,6,1,1,560),0)),OFFSET('Budget Inputs'!$A$1,6,1,2000,1),$A54,OFFSET('Budget Inputs'!$A$1,6,2,2000,1),$B54),0) -> 0 | L54: =(SUMIFS(OFFSET('Savings Results'!$A$1,6,16 +MAX('Savings Results'!$G:$G)-MIN('Savings Results'!$G:$G)+MAX('Savings Results'!$J:$J)+K$29-MIN('Savings Results'!$G:$G),2000),OFFSET('Savings Results'!$A$1,6,6,2000),K$29,OFFSET('Savings Results'!$A$1,6,4,2000),"Dx",OFFSET('Savings Results'!$A$1,6,1,2000),$A54,OFFSET('Savings Results'!$A$1,6,2,2000),$B54)/(1/(1-SUM('CE Parameters'!$F$10:$F$11))))/1000 -> 0 | M54: =IFERROR(SUMIFS('Program Design'!$U:$U,'Program Design'!$C:$C,$A54,'Program Design'!$D:$D,$B54,'Program Design'!$J:$J,M$29)+SUMIFS('Program Design'!$V:$V,'Program Design'!$C:$C,$A54,'Program Design'!$D:$D,$B54,'Program Design'!$J:$J,M$29)+SUMIFS('Program Design'!$W:$W,'Program Design'!$C:$C,$A54,'Program Design'!$D:$D,$B54,'Program Design'!$J:$J,M$29)+SUMIFS(INDEX(OFFSET('Budget Inputs'!$A$1,6,1,2000,560),0,MATCH(CONCATENATE(M$29," Sub-Total"),OFFSET('Budget Inputs'!$A$1,6,1,1,560),0)),OFFSET('Budget Inputs'!$A$1,6,1,2000,1),$A54,OFFSET('Budget Inputs'!$A$1,6,2,2000,1),$B54),0) -> 0 | N54: =(SUMIFS(OFFSET('Savings Results'!$A$1,6,16 +MAX('Savings Results'!$G:$G)-MIN('Savings Results'!$G:$G)+MAX('Savings Results'!$J:$J)+M$29-MIN('Savings Results'!$G:$G),2000),OFFSET('Savings Results'!$A$1,6,6,2000),M$29,OFFSET('Savings Results'!$A$1,6,4,2000),"Dx",OFFSET('Savings Results'!$A$1,6,1,2000),$A54,OFFSET('Savings Results'!$A$1,6,2,2000),$B54)/(1/(1-SUM('CE Parameters'!$F$10:$F$11))))/1000 -> 0 | O54: =IFERROR(SUMIFS('Program Design'!$U:$U,'Program Design'!$C:$C,$A54,'Program Design'!$D:$D,$B54)+SUMIFS('Program Design'!$V:$V,'Program Design'!$C:$C,$A54,'Program Design'!$D:$D,$B54)+SUMIFS('Program Design'!$W:$W,'Program Design'!$C:$C,$A54,'Program Design'!$D:$D,$B54)+SUMIFS(INDEX(OFFSET('Budget Inputs'!$A$1,6,1,2000,560),0,MATCH("Total",OFFSET('Budget Inputs'!$A$1,6,1,1,560),0)),OFFSET('Budget Inputs'!$A$1,6,1,2000,1),$A54,OFFSET('Budget Inputs'!$A$1,6,2,2000,1),$B54),0) -> 63659 | P54: =(SUMIFS(OFFSET('Savings Results'!$A$1,6,16+2020-MIN('Program Design'!J:J)+2020 -MIN('Program Design'!J:J)+ MAX('Savings Results'!J:J),2000),OFFSET('Savings Results'!$A$1,6,4,2000),"Dx",OFFSET('Savings Results'!$A$1,6,1,2000),$A54,OFFSET('Savings Results'!$A$1,6,2,2000),$B54)/(1/(1-SUM('CE Parameters'!$F$10:$F$11))))/1000 -> 54.47727379
A55: Residential | B55: Coupon Program | C55: =IFERROR(SUMIFS('Program Design'!$U:$U,'Program Design'!$C:$C,$A55,'Program Design'!$D:$D,$B55,'Program Design'!$J:$J,C$29)+SUMIFS('Program Design'!$V:$V,'Program Design'!$C:$C,$A55,'Program Design'!$D:$D,$B55,'Program Design'!$J:$J,C$29)+SUMIFS('Program Design'!$W:$W,'Program Design'!$C:$C,$A55,'Program Design'!$D:$D,$B55,'Program Design'!$J:$J,C$29)+SUMIFS(INDEX(OFFSET('Budget Inputs'!$A$1,6,1,2000,560),0,MATCH(CONCATENATE(C$29," Sub-Total"),OFFSET('Budget Inputs'!$A$1,6,1,1,560),0)),OFFSET('Budget Inputs'!$A$1,6,1,2000,1),$A55,OFFSET('Budget Inputs'!$A$1,6,2,2000,1),$B55),0) -> 1116 | D55: =(SUMIFS(OFFSET('Savings Results'!$A$1,6,16 +MAX('Savings Results'!$G:$G)-MIN('Savings Results'!$G:$G)+MAX('Savings Results'!$J:$J)+C$29-MIN('Savings Results'!$G:$G),2000),OFFSET('Savings Results'!$A$1,6,6,2000),C$29,OFFSET('Savings Results'!$A$1,6,4,2000),"Dx",OFFSET('Savings Results'!$A$1,6,1,2000),$A55,OFFSET('Savings Results'!$A$1,6,2,2000),$B55)/(1/(1-SUM('CE Parameters'!$F$10:$F$11))))/1000 -> 0 | E55: =IFERROR(SUMIFS('Program Design'!$U:$U,'Program Design'!$C:$C,$A55,'Program Design'!$D:$D,$B55,'Program Design'!$J:$J,E$29)+SUMIFS('Program Design'!$V:$V,'Program Design'!$C:$C,$A55,'Program Design'!$D:$D,$B55,'Program Design'!$J:$J,E$29)+SUMIFS('Program Design'!$W:$W,'Program Design'!$C:$C,$A55,'Program Design'!$D:$D,$B55,'Program Design'!$J:$J,E$29)+SUMIFS(INDEX(OFFSET('Budget Inputs'!$A$1,6,1,2000,560),0,MATCH(CONCATENATE(E$29," Sub-Total"),OFFSET('Budget Inputs'!$A$1,6,1,1,560),0)),OFFSET('Budget Inputs'!$A$1,6,1,2000,1),$A55,OFFSET('Budget Inputs'!$A$1,6,2,2000,1),$B55),0) -> 449015 | F55: =(SUMIFS(OFFSET('Savings Results'!$A$1,6,16 +MAX('Savings Results'!$G:$G)-MIN('Savings Results'!$G:$G)+MAX('Savings Results'!$J:$J)+E$29-MIN('Savings Results'!$G:$G),2000),OFFSET('Savings Results'!$A$1,6,6,2000),E$29,OFFSET('Savings Results'!$A$1,6,4,2000),"Dx",OFFSET('Savings Results'!$A$1,6,1,2000),$A55,OFFSET('Savings Results'!$A$1,6,2,2000),$B55)/(1/(1-SUM('CE Parameters'!$F$10:$F$11))))/1000 -> 6996.736 | G55: =IFERROR(SUMIFS('Program Design'!$U:$U,'Program Design'!$C:$C,$A55,'Program Design'!$D:$D,$B55,'Program Design'!$J:$J,G$29)+SUMIFS('Program Design'!$V:$V,'Program Design'!$C:$C,$A55,'Program Design'!$D:$D,$B55,'Program Design'!$J:$J,G$29)+SUMIFS('Program Design'!$W:$W,'Program Design'!$C:$C,$A55,'Program Design'!$D:$D,$B55,'Program Design'!$J:$J,G$29)+SUMIFS(INDEX(OFFSET('Budget Inputs'!$A$1,6,1,2000,560),0,MATCH(CONCATENATE(G$29," Sub-Total"),OFFSET('Budget Inputs'!$A$1,6,1,1,560),0)),OFFSET('Budget Inputs'!$A$1,6,1,2000,1),$A55,OFFSET('Budget Inputs'!$A$1,6,2,2000,1),$B55),0) -> 1073896 | H55: =(SUMIFS(OFFSET('Savings Results'!$A$1,6,16 +MAX('Savings Results'!$G:$G)-MIN('Savings Results'!$G:$G)+MAX('Savings Results'!$J:$J)+G$29-MIN('Savings Results'!$G:$G),2000),OFFSET('Savings Results'!$A$1,6,6,2000),G$29,OFFSET('Savings Results'!$A$1,6,4,2000),"Dx",OFFSET('Savings Results'!$A$1,6,1,2000),$A55,OFFSET('Savings Results'!$A$1,6,2,2000),$B55)/(1/(1-SUM('CE Parameters'!$F$10:$F$11))))/1000 -> 5638.884 | I55: =IFERROR(SUMIFS('Program Design'!$U:$U,'Program Design'!$C:$C,$A55,'Program Design'!$D:$D,$B55,'Program Design'!$J:$J,I$29)+SUMIFS('Program Design'!$V:$V,'Program Design'!$C:$C,$A55,'Program Design'!$D:$D,$B55,'Program Design'!$J:$J,I$29)+SUMIFS('Program Design'!$W:$W,'Program Design'!$C:$C,$A55,'Program Design'!$D:$D,$B55,'Program Design'!$J:$J,I$29)+SUMIFS(INDEX(OFFSET('Budget Inputs'!$A$1,6,1,2000,560),0,MATCH(CONCATENATE(I$29," Sub-Total"),OFFSET('Budget Inputs'!$A$1,6,1,1,560),0)),OFFSET('Budget Inputs'!$A$1,6,1,2000,1),$A55,OFFSET('Budget Inputs'!$A$1,6,2,2000,1),$B55),0) -> 0 | J55: =(SUMIFS(OFFSET('Savings Results'!$A$1,6,16 +MAX('Savings Results'!$G:$G)-MIN('Savings Results'!$G:$G)+MAX('Savings Results'!$J:$J)+I$29-MIN('Savings Results'!$G:$G),2000),OFFSET('Savings Results'!$A$1,6,6,2000),I$29,OFFSET('Savings Results'!$A$1,6,4,2000),"Dx",OFFSET('Savings Results'!$A$1,6,1,2000),$A55,OFFSET('Savings Results'!$A$1,6,2,2000),$B55)/(1/(1-SUM('CE Parameters'!$F$10:$F$11))))/1000 -> 0 | K55: =IFERROR(SUMIFS('Program Design'!$U:$U,'Program Design'!$C:$C,$A55,'Program Design'!$D:$D,$B55,'Program Design'!$J:$J,K$29)+SUMIFS('Program Design'!$V:$V,'Program Design'!$C:$C,$A55,'Program Design'!$D:$D,$B55,'Program Design'!$J:$J,K$29)+SUMIFS('Program Design'!$W:$W,'Program Design'!$C:$C,$A55,'Program Design'!$D:$D,$B55,'Program Design'!$J:$J,K$29)+SUMIFS(INDEX(OFFSET('Budget Inputs'!$A$1,6,1,2000,560),0,MATCH(CONCATENATE(K$29," Sub-Total"),OFFSET('Budget Inputs'!$A$1,6,1,1,560),0)),OFFSET('Budget Inputs'!$A$1,6,1,2000,1),$A55,OFFSET('Budget Inputs'!$A$1,6,2,2000,1),$B55),0) -> 0 | L55: =(SUMIFS(OFFSET('Savings Results'!$A$1,6,16 +MAX('Savings Results'!$G:$G)-MIN('Savings Results'!$G:$G)+MAX('Savings Results'!$J:$J)+K$29-MIN('Savings Results'!$G:$G),2000),OFFSET('Savings Results'!$A$1,6,6,2000),K$29,OFFSET('Savings Results'!$A$1,6,4,2000),"Dx",OFFSET('Savings Results'!$A$1,6,1,2000),$A55,OFFSET('Savings Results'!$A$1,6,2,2000),$B55)/(1/(1-SUM('CE Parameters'!$F$10:$F$11))))/1000 -> 0 | M55: =IFERROR(SUMIFS('Program Design'!$U:$U,'Program Design'!$C:$C,$A55,'Program Design'!$D:$D,$B55,'Program Design'!$J:$J,M$29)+SUMIFS('Program Design'!$V:$V,'Program Design'!$C:$C,$A55,'Program Design'!$D:$D,$B55,'Program Design'!$J:$J,M$29)+SUMIFS('Program Design'!$W:$W,'Program Design'!$C:$C,$A55,'Program Design'!$D:$D,$B55,'Program Design'!$J:$J,M$29)+SUMIFS(INDEX(OFFSET('Budget Inputs'!$A$1,6,1,2000,560),0,MATCH(CONCATENATE(M$29," Sub-Total"),OFFSET('Budget Inputs'!$A$1,6,1,1,560),0)),OFFSET('Budget Inputs'!$A$1,6,1,2000,1),$A55,OFFSET('Budget Inputs'!$A$1,6,2,2000,1),$B55),0) -> 0 | N55: =(SUMIFS(OFFSET('Savings Results'!$A$1,6,16 +MAX('Savings Results'!$G:$G)-MIN('Savings Results'!$G:$G)+MAX('Savings Results'!$J:$J)+M$29-MIN('Savings Results'!$G:$G),2000),OFFSET('Savings Results'!$A$1,6,6,2000),M$29,OFFSET('Savings Results'!$A$1,6,4,2000),"Dx",OFFSET('Savings Results'!$A$1,6,1,2000),$A55,OFFSET('Savings Results'!$A$1,6,2,2000),$B55)/(1/(1-SUM('CE Parameters'!$F$10:$F$11))))/1000 -> 0 | O55: =IFERROR(SUMIFS('Program Design'!$U:$U,'Program Design'!$C:$C,$A55,'Program Design'!$D:$D,$B55)+SUMIFS('Program Design'!$V:$V,'Program Design'!$C:$C,$A55,'Program Design'!$D:$D,$B55)+SUMIFS('Program Design'!$W:$W,'Program Design'!$C:$C,$A55,'Program Design'!$D:$D,$B55)+SUMIFS(INDEX(OFFSET('Budget Inputs'!$A$1,6,1,2000,560),0,MATCH("Total",OFFSET('Budget Inputs'!$A$1,6,1,1,560),0)),OFFSET('Budget Inputs'!$A$1,6,1,2000,1),$A55,OFFSET('Budget Inputs'!$A$1,6,2,2000,1),$B55),0) -> 1524027 | P55: =(SUMIFS(OFFSET('Savings Results'!$A$1,6,16+2020-MIN('Program Design'!J:J)+2020 -MIN('Program Design'!J:J)+ MAX('Savings Results'!J:J),2000),OFFSET('Savings Results'!$A$1,6,4,2000),"Dx",OFFSET('Savings Results'!$A$1,6,1,2000),$A55,OFFSET('Savings Results'!$A$1,6,2,2000),$B55)/(1/(1-SUM('CE Parameters'!$F$10:$F$11))))/1000 -> 12635.62
A56: Residential | B56: 2015 Bi-Annual Retailer Event | C56: =IFERROR(SUMIFS('Program Design'!$U:$U,'Program Design'!$C:$C,$A56,'Program Design'!$D:$D,$B56,'Program Design'!$J:$J,C$29)+SUMIFS('Program Design'!$V:$V,'Program Design'!$C:$C,$A56,'Program Design'!$D:$D,$B56,'Program Design'!$J:$J,C$29)+SUMIFS('Program Design'!$W:$W,'Program Design'!$C:$C,$A56,'Program Design'!$D:$D,$B56,'Program Design'!$J:$J,C$29)+SUMIFS(INDEX(OFFSET('Budget Inputs'!$A$1,6,1,2000,560),0,MATCH(CONCATENATE(C$29," Sub-Total"),OFFSET('Budget Inputs'!$A$1,6,1,1,560),0)),OFFSET('Budget Inputs'!$A$1,6,1,2000,1),$A56,OFFSET('Budget Inputs'!$A$1,6,2,2000,1),$B56),0) -> 0 | D56: =(SUMIFS(OFFSET('Savings Results'!$A$1,6,16 +MAX('Savings Results'!$G:$G)-MIN('Savings Results'!$G:$G)+MAX('Savings Results'!$J:$J)+C$29-MIN('Savings Results'!$G:$G),2000),OFFSET('Savings Results'!$A$1,6,6,2000),C$29,OFFSET('Savings Results'!$A$1,6,4,2000),"Dx",OFFSET('Savings Results'!$A$1,6,1,2000),$A56,OFFSET('Savings Results'!$A$1,6,2,2000),$B56)/(1/(1-SUM('CE Parameters'!$F$10:$F$11))))/1000 -> 1423.383 | E56: =IFERROR(SUMIFS('Program Design'!$U:$U,'Program Design'!$C:$C,$A56,'Program Design'!$D:$D,$B56,'Program Design'!$J:$J,E$29)+SUMIFS('Program Design'!$V:$V,'Program Design'!$C:$C,$A56,'Program Design'!$D:$D,$B56,'Program Design'!$J:$J,E$29)+SUMIFS('Program Design'!$W:$W,'Program Design'!$C:$C,$A56,'Program Design'!$D:$D,$B56,'Program Design'!$J:$J,E$29)+SUMIFS(INDEX(OFFSET('Budget Inputs'!$A$1,6,1,2000,560),0,MATCH(CONCATENATE(E$29," Sub-Total"),OFFSET('Budget Inputs'!$A$1,6,1,1,560),0)),OFFSET('Budget Inputs'!$A$1,6,1,2000,1),$A56,OFFSET('Budget Inputs'!$A$1,6,2,2000,1),$B56),0) -> 0 | F56: =(SUMIFS(OFFSET('Savings Results'!$A$1,6,16 +MAX('Savings Results'!$G:$G)-MIN('Savings Results'!$G:$G)+MAX('Savings Results'!$J:$J)+E$29-MIN('Savings Results'!$G:$G),2000),OFFSET('Savings Results'!$A$1,6,6,2000),E$29,OFFSET('Savings Results'!$A$1,6,4,2000),"Dx",OFFSET('Savings Results'!$A$1,6,1,2000),$A56,OFFSET('Savings Results'!$A$1,6,2,2000),$B56)/(1/(1-SUM('CE Parameters'!$F$10:$F$11))))/1000 -> 0 | G56: =IFERROR(SUMIFS('Program Design'!$U:$U,'Program Design'!$C:$C,$A56,'Program Design'!$D:$D,$B56,'Program Design'!$J:$J,G$29)+SUMIFS('Program Design'!$V:$V,'Program Design'!$C:$C,$A56,'Program Design'!$D:$D,$B56,'Program Design'!$J:$J,G$29)+SUMIFS('Program Design'!$W:$W,'Program Design'!$C:$C,$A56,'Program Design'!$D:$D,$B56,'Program Design'!$J:$J,G$29)+SUMIFS(INDEX(OFFSET('Budget Inputs'!$A$1,6,1,2000,560),0,MATCH(CONCATENATE(G$29," Sub-Total"),OFFSET('Budget Inputs'!$A$1,6,1,1,560),0)),OFFSET('Budget Inputs'!$A$1,6,1,2000,1),$A56,OFFSET('Budget Inputs'!$A$1,6,2,2000,1),$B56),0) -> 0 | H56: =(SUMIFS(OFFSET('Savings Results'!$A$1,6,16 +MAX('Savings Results'!$G:$G)-MIN('Savings Results'!$G:$G)+MAX('Savings Results'!$J:$J)+G$29-MIN('Savings Results'!$G:$G),2000),OFFSET('Savings Results'!$A$1,6,6,2000),G$29,OFFSET('Savings Results'!$A$1,6,4,2000),"Dx",OFFSET('Savings Results'!$A$1,6,1,2000),$A56,OFFSET('Savings Results'!$A$1,6,2,2000),$B56)/(1/(1-SUM('CE Parameters'!$F$10:$F$11))))/1000 -> 0 | I56: =IFERROR(SUMIFS('Program Design'!$U:$U,'Program Design'!$C:$C,$A56,'Program Design'!$D:$D,$B56,'Program Design'!$J:$J,I$29)+SUMIFS('Program Design'!$V:$V,'Program Design'!$C:$C,$A56,'Program Design'!$D:$D,$B56,'Program Design'!$J:$J,I$29)+SUMIFS('Program Design'!$W:$W,'Program Design'!$C:$C,$A56,'Program Design'!$D:$D,$B56,'Program Design'!$J:$J,I$29)+SUMIFS(INDEX(OFFSET('Budget Inputs'!$A$1,6,1,2000,560),0,MATCH(CONCATENATE(I$29," Sub-Total"),OFFSET('Budget Inputs'!$A$1,6,1,1,560),0)),OFFSET('Budget Inputs'!$A$1,6,1,2000,1),$A56,OFFSET('Budget Inputs'!$A$1,6,2,2000,1),$B56),0) -> 0 | J56: =(SUMIFS(OFFSET('Savings Results'!$A$1,6,16 +MAX('Savings Results'!$G:$G)-MIN('Savings Results'!$G:$G)+MAX('Savings Results'!$J:$J)+I$29-MIN('Savings Results'!$G:$G),2000),OFFSET('Savings Results'!$A$1,6,6,2000),I$29,OFFSET('Savings Results'!$A$1,6,4,2000),"Dx",OFFSET('Savings Results'!$A$1,6,1,2000),$A56,OFFSET('Savings Results'!$A$1,6,2,2000),$B56)/(1/(1-SUM('CE Parameters'!$F$10:$F$11))))/1000 -> 0 | K56: =IFERROR(SUMIFS('Program Design'!$U:$U,'Program Design'!$C:$C,$A56,'Program Design'!$D:$D,$B56,'Program Design'!$J:$J,K$29)+SUMIFS('Program Design'!$V:$V,'Program Design'!$C:$C,$A56,'Program Design'!$D:$D,$B56,'Program Design'!$J:$J,K$29)+SUMIFS('Program Design'!$W:$W,'Program Design'!$C:$C,$A56,'Program Design'!$D:$D,$B56,'Program Design'!$J:$J,K$29)+SUMIFS(INDEX(OFFSET('Budget Inputs'!$A$1,6,1,2000,560),0,MATCH(CONCATENATE(K$29," Sub-Total"),OFFSET('Budget Inputs'!$A$1,6,1,1,560),0)),OFFSET('Budget Inputs'!$A$1,6,1,2000,1),$A56,OFFSET('Budget Inputs'!$A$1,6,2,2000,1),$B56),0) -> 0 | L56: =(SUMIFS(OFFSET('Savings Results'!$A$1,6,16 +MAX('Savings Results'!$G:$G)-MIN('Savings Results'!$G:$G)+MAX('Savings Results'!$J:$J)+K$29-MIN('Savings Results'!$G:$G),2000),OFFSET('Savings Results'!$A$1,6,6,2000),K$29,OFFSET('Savings Results'!$A$1,6,4,2000),"Dx",OFFSET('Savings Results'!$A$1,6,1,2000),$A56,OFFSET('Savings Results'!$A$1,6,2,2000),$B56)/(1/(1-SUM('CE Parameters'!$F$10:$F$11))))/1000 -> 0 | M56: =IFERROR(SUMIFS('Program Design'!$U:$U,'Program Design'!$C:$C,$A56,'Program Design'!$D:$D,$B56,'Program Design'!$J:$J,M$29)+SUMIFS('Program Design'!$V:$V,'Program Design'!$C:$C,$A56,'Program Design'!$D:$D,$B56,'Program Design'!$J:$J,M$29)+SUMIFS('Program Design'!$W:$W,'Program Design'!$C:$C,$A56,'Program Design'!$D:$D,$B56,'Program Design'!$J:$J,M$29)+SUMIFS(INDEX(OFFSET('Budget Inputs'!$A$1,6,1,2000,560),0,MATCH(CONCATENATE(M$29," Sub-Total"),OFFSET('Budget Inputs'!$A$1,6,1,1,560),0)),OFFSET('Budget Inputs'!$A$1,6,1,2000,1),$A56,OFFSET('Budget Inputs'!$A$1,6,2,2000,1),$B56),0) -> 0 | N56: =(SUMIFS(OFFSET('Savings Results'!$A$1,6,16 +MAX('Savings Results'!$G:$G)-MIN('Savings Results'!$G:$G)+MAX('Savings Results'!$J:$J)+M$29-MIN('Savings Results'!$G:$G),2000),OFFSET('Savings Results'!$A$1,6,6,2000),M$29,OFFSET('Savings Results'!$A$1,6,4,2000),"Dx",OFFSET('Savings Results'!$A$1,6,1,2000),$A56,OFFSET('Savings Results'!$A$1,6,2,2000),$B56)/(1/(1-SUM('CE Parameters'!$F$10:$F$11))))/1000 -> 0 | O56: =IFERROR(SUMIFS('Program Design'!$U:$U,'Program Design'!$C:$C,$A56,'Program Design'!$D:$D,$B56)+SUMIFS('Program Design'!$V:$V,'Program Design'!$C:$C,$A56,'Program Design'!$D:$D,$B56)+SUMIFS('Program Design'!$W:$W,'Program Design'!$C:$C,$A56,'Program Design'!$D:$D,$B56)+SUMIFS(INDEX(OFFSET('Budget Inputs'!$A$1,6,1,2000,560),0,MATCH("Total",OFFSET('Budget Inputs'!$A$1,6,1,1,560),0)),OFFSET('Budget Inputs'!$A$1,6,1,2000,1),$A56,OFFSET('Budget Inputs'!$A$1,6,2,2000,1),$B56),0) -> 0 | P56: =(SUMIFS(OFFSET('Savings Results'!$A$1,6,16+2020-MIN('Program Design'!J:J)+2020 -MIN('Program Design'!J:J)+ MAX('Savings Results'!J:J),2000),OFFSET('Savings Results'!$A$1,6,4,2000),"Dx",OFFSET('Savings Results'!$A$1,6,1,2000),$A56,OFFSET('Savings Results'!$A$1,6,2,2000),$B56)/(1/(1-SUM('CE Parameters'!$F$10:$F$11))))/1000 -> 1423.383
A57: Residential | B57: 2015 Coupon Program | C57: =IFERROR(SUMIFS('Program Design'!$U:$U,'Program Design'!$C:$C,$A57,'Program Design'!$D:$D,$B57,'Program Design'!$J:$J,C$29)+SUMIFS('Program Design'!$V:$V,'Program Design'!$C:$C,$A57,'Program Design'!$D:$D,$B57,'Program Design'!$J:$J,C$29)+SUMIFS('Program Design'!$W:$W,'Program Design'!$C:$C,$A57,'Program Design'!$D:$D,$B57,'Program Design'!$J:$J,C$29)+SUMIFS(INDEX(OFFSET('Budget Inputs'!$A$1,6,1,2000,560),0,MATCH(CONCATENATE(C$29," Sub-Total"),OFFSET('Budget Inputs'!$A$1,6,1,1,560),0)),OFFSET('Budget Inputs'!$A$1,6,1,2000,1),$A57,OFFSET('Budget Inputs'!$A$1,6,2,2000,1),$B57),0) -> 0 | D57: =(SUMIFS(OFFSET('Savings Results'!$A$1,6,16 +MAX('Savings Results'!$G:$G)-MIN('Savings Results'!$G:$G)+MAX('Savings Results'!$J:$J)+C$29-MIN('Savings Results'!$G:$G),2000),OFFSET('Savings Results'!$A$1,6,6,2000),C$29,OFFSET('Savings Results'!$A$1,6,4,2000),"Dx",OFFSET('Savings Results'!$A$1,6,1,2000),$A57,OFFSET('Savings Results'!$A$1,6,2,2000),$B57)/(1/(1-SUM('CE Parameters'!$F$10:$F$11))))/1000 -> 902.073 | E57: =IFERROR(SUMIFS('Program Design'!$U:$U,'Program Design'!$C:$C,$A57,'Program Design'!$D:$D,$B57,'Program Design'!$J:$J,E$29)+SUMIFS('Program Design'!$V:$V,'Program Design'!$C:$C,$A57,'Program Design'!$D:$D,$B57,'Program Design'!$J:$J,E$29)+SUMIFS('Program Design'!$W:$W,'Program Design'!$C:$C,$A57,'Program Design'!$D:$D,$B57,'Program Design'!$J:$J,E$29)+SUMIFS(INDEX(OFFSET('Budget Inputs'!$A$1,6,1,2000,560),0,MATCH(CONCATENATE(E$29," Sub-Total"),OFFSET('Budget Inputs'!$A$1,6,1,1,560),0)),OFFSET('Budget Inputs'!$A$1,6,1,2000,1),$A57,OFFSET('Budget Inputs'!$A$1,6,2,2000,1),$B57),0) -> 0 | F57: =(SUMIFS(OFFSET('Savings Results'!$A$1,6,16 +MAX('Savings Results'!$G:$G)-MIN('Savings Results'!$G:$G)+MAX('Savings Results'!$J:$J)+E$29-MIN('Savings Results'!$G:$G),2000),OFFSET('Savings Results'!$A$1,6,6,2000),E$29,OFFSET('Savings Results'!$A$1,6,4,2000),"Dx",OFFSET('Savings Results'!$A$1,6,1,2000),$A57,OFFSET('Savings Results'!$A$1,6,2,2000),$B57)/(1/(1-SUM('CE Parameters'!$F$10:$F$11))))/1000 -> 0 | G57: =IFERROR(SUMIFS('Program Design'!$U:$U,'Program Design'!$C:$C,$A57,'Program Design'!$D:$D,$B57,'Program Design'!$J:$J,G$29)+SUMIFS('Program Design'!$V:$V,'Program Design'!$C:$C,$A57,'Program Design'!$D:$D,$B57,'Program Design'!$J:$J,G$29)+SUMIFS('Program Design'!$W:$W,'Program Design'!$C:$C,$A57,'Program Design'!$D:$D,$B57,'Program Design'!$J:$J,G$29)+SUMIFS(INDEX(OFFSET('Budget Inputs'!$A$1,6,1,2000,560),0,MATCH(CONCATENATE(G$29," Sub-Total"),OFFSET('Budget Inputs'!$A$1,6,1,1,560),0)),OFFSET('Budget Inputs'!$A$1,6,1,2000,1),$A57,OFFSET('Budget Inputs'!$A$1,6,2,2000,1),$B57),0) -> 0 | H57: =(SUMIFS(OFFSET('Savings Results'!$A$1,6,16 +MAX('Savings Results'!$G:$G)-MIN('Savings Results'!$G:$G)+MAX('Savings Results'!$J:$J)+G$29-MIN('Savings Results'!$G:$G),2000),OFFSET('Savings Results'!$A$1,6,6,2000),G$29,OFFSET('Savings Results'!$A$1,6,4,2000),"Dx",OFFSET('Savings Results'!$A$1,6,1,2000),$A57,OFFSET('Savings Results'!$A$1,6,2,2000),$B57)/(1/(1-SUM('CE Parameters'!$F$10:$F$11))))/1000 -> 0 | I57: =IFERROR(SUMIFS('Program Design'!$U:$U,'Program Design'!$C:$C,$A57,'Program Design'!$D:$D,$B57,'Program Design'!$J:$J,I$29)+SUMIFS('Program Design'!$V:$V,'Program Design'!$C:$C,$A57,'Program Design'!$D:$D,$B57,'Program Design'!$J:$J,I$29)+SUMIFS('Program Design'!$W:$W,'Program Design'!$C:$C,$A57,'Program Design'!$D:$D,$B57,'Program Design'!$J:$J,I$29)+SUMIFS(INDEX(OFFSET('Budget Inputs'!$A$1,6,1,2000,560),0,MATCH(CONCATENATE(I$29," Sub-Total"),OFFSET('Budget Inputs'!$A$1,6,1,1,560),0)),OFFSET('Budget Inputs'!$A$1,6,1,2000,1),$A57,OFFSET('Budget Inputs'!$A$1,6,2,2000,1),$B57),0) -> 0 | J57: =(SUMIFS(OFFSET('Savings Results'!$A$1,6,16 +MAX('Savings Results'!$G:$G)-MIN('Savings Results'!$G:$G)+MAX('Savings Results'!$J:$J)+I$29-MIN('Savings Results'!$G:$G),2000),OFFSET('Savings Results'!$A$1,6,6,2000),I$29,OFFSET('Savings Results'!$A$1,6,4,2000),"Dx",OFFSET('Savings Results'!$A$1,6,1,2000),$A57,OFFSET('Savings Results'!$A$1,6,2,2000),$B57)/(1/(1-SUM('CE Parameters'!$F$10:$F$11))))/1000 -> 0 | K57: =IFERROR(SUMIFS('Program Design'!$U:$U,'Program Design'!$C:$C,$A57,'Program Design'!$D:$D,$B57,'Program Design'!$J:$J,K$29)+SUMIFS('Program Design'!$V:$V,'Program Design'!$C:$C,$A57,'Program Design'!$D:$D,$B57,'Program Design'!$J:$J,K$29)+SUMIFS('Program Design'!$W:$W,'Program Design'!$C:$C,$A57,'Program Design'!$D:$D,$B57,'Program Design'!$J:$J,K$29)+SUMIFS(INDEX(OFFSET('Budget Inputs'!$A$1,6,1,2000,560),0,MATCH(CONCATENATE(K$29," Sub-Total"),OFFSET('Budget Inputs'!$A$1,6,1,1,560),0)),OFFSET('Budget Inputs'!$A$1,6,1,2000,1),$A57,OFFSET('Budget Inputs'!$A$1,6,2,2000,1),$B57),0) -> 0 | L57: =(SUMIFS(OFFSET('Savings Results'!$A$1,6,16 +MAX('Savings Results'!$G:$G)-MIN('Savings Results'!$G:$G)+MAX('Savings Results'!$J:$J)+K$29-MIN('Savings Results'!$G:$G),2000),OFFSET('Savings Results'!$A$1,6,6,2000),K$29,OFFSET('Savings Results'!$A$1,6,4,2000),"Dx",OFFSET('Savings Results'!$A$1,6,1,2000),$A57,OFFSET('Savings Results'!$A$1,6,2,2000),$B57)/(1/(1-SUM('CE Parameters'!$F$10:$F$11))))/1000 -> 0 | M57: =IFERROR(SUMIFS('Program Design'!$U:$U,'Program Design'!$C:$C,$A57,'Program Design'!$D:$D,$B57,'Program Design'!$J:$J,M$29)+SUMIFS('Program Design'!$V:$V,'Program Design'!$C:$C,$A57,'Program Design'!$D:$D,$B57,'Program Design'!$J:$J,M$29)+SUMIFS('Program Design'!$W:$W,'Program Design'!$C:$C,$A57,'Program Design'!$D:$D,$B57,'Program Design'!$J:$J,M$29)+SUMIFS(INDEX(OFFSET('Budget Inputs'!$A$1,6,1,2000,560),0,MATCH(CONCATENATE(M$29," Sub-Total"),OFFSET('Budget Inputs'!$A$1,6,1,1,560),0)),OFFSET('Budget Inputs'!$A$1,6,1,2000,1),$A57,OFFSET('Budget Inputs'!$A$1,6,2,2000,1),$B57),0) -> 0 | N57: =(SUMIFS(OFFSET('Savings Results'!$A$1,6,16 +MAX('Savings Results'!$G:$G)-MIN('Savings Results'!$G:$G)+MAX('Savings Results'!$J:$J)+M$29-MIN('Savings Results'!$G:$G),2000),OFFSET('Savings Results'!$A$1,6,6,2000),M$29,OFFSET('Savings Results'!$A$1,6,4,2000),"Dx",OFFSET('Savings Results'!$A$1,6,1,2000),$A57,OFFSET('Savings Results'!$A$1,6,2,2000),$B57)/(1/(1-SUM('CE Parameters'!$F$10:$F$11))))/1000 -> 0 | O57: =IFERROR(SUMIFS('Program Design'!$U:$U,'Program Design'!$C:$C,$A57,'Program Design'!$D:$D,$B57)+SUMIFS('Program Design'!$V:$V,'Program Design'!$C:$C,$A57,'Program Design'!$D:$D,$B57)+SUMIFS('Program Design'!$W:$W,'Program Design'!$C:$C,$A57,'Program Design'!$D:$D,$B57)+SUMIFS(INDEX(OFFSET('Budget Inputs'!$A$1,6,1,2000,560),0,MATCH("Total",OFFSET('Budget Inputs'!$A$1,6,1,1,560),0)),OFFSET('Budget Inputs'!$A$1,6,1,2000,1),$A57,OFFSET('Budget Inputs'!$A$1,6,2,2000,1),$B57),0) -> 0 | P57: =(SUMIFS(OFFSET('Savings Results'!$A$1,6,16+2020-MIN('Program Design'!J:J)+2020 -MIN('Program Design'!J:J)+ MAX('Savings Results'!J:J),2000),OFFSET('Savings Results'!$A$1,6,4,2000),"Dx",OFFSET('Savings Results'!$A$1,6,1,2000),$A57,OFFSET('Savings Results'!$A$1,6,2,2000),$B57)/(1/(1-SUM('CE Parameters'!$F$10:$F$11))))/1000 -> 902.073
A58: Residential | B58: Instant Discount Program | C58: =IFERROR(SUMIFS('Program Design'!$U:$U,'Program Design'!$C:$C,$A58,'Program Design'!$D:$D,$B58,'Program Design'!$J:$J,C$29)+SUMIFS('Program Design'!$V:$V,'Program Design'!$C:$C,$A58,'Program Design'!$D:$D,$B58,'Program Design'!$J:$J,C$29)+SUMIFS('Program Design'!$W:$W,'Program Design'!$C:$C,$A58,'Program Design'!$D:$D,$B58,'Program Design'!$J:$J,C$29)+SUMIFS(INDEX(OFFSET('Budget Inputs'!$A$1,6,1,2000,560),0,MATCH(CONCATENATE(C$29," Sub-Total"),OFFSET('Budget Inputs'!$A$1,6,1,1,560),0)),OFFSET('Budget Inputs'!$A$1,6,1,2000,1),$A58,OFFSET('Budget Inputs'!$A$1,6,2,2000,1),$B58),0) -> 0 | D58: =(SUMIFS(OFFSET('Savings Results'!$A$1,6,16 +MAX('Savings Results'!$G:$G)-MIN('Savings Results'!$G:$G)+MAX('Savings Results'!$J:$J)+C$29-MIN('Savings Results'!$G:$G),2000),OFFSET('Savings Results'!$A$1,6,6,2000),C$29,OFFSET('Savings Results'!$A$1,6,4,2000),"Dx",OFFSET('Savings Results'!$A$1,6,1,2000),$A58,OFFSET('Savings Results'!$A$1,6,2,2000),$B58)/(1/(1-SUM('CE Parameters'!$F$10:$F$11))))/1000 -> 0 | E58: =IFERROR(SUMIFS('Program Design'!$U:$U,'Program Design'!$C:$C,$A58,'Program Design'!$D:$D,$B58,'Program Design'!$J:$J,E$29)+SUMIFS('Program Design'!$V:$V,'Program Design'!$C:$C,$A58,'Program Design'!$D:$D,$B58,'Program Design'!$J:$J,E$29)+SUMIFS('Program Design'!$W:$W,'Program Design'!$C:$C,$A58,'Program Design'!$D:$D,$B58,'Program Design'!$J:$J,E$29)+SUMIFS(INDEX(OFFSET('Budget Inputs'!$A$1,6,1,2000,560),0,MATCH(CONCATENATE(E$29," Sub-Total"),OFFSET('Budget Inputs'!$A$1,6,1,1,560),0)),OFFSET('Budget Inputs'!$A$1,6,1,2000,1),$A58,OFFSET('Budget Inputs'!$A$1,6,2,2000,1),$B58),0) -> 0 | F58: =(SUMIFS(OFFSET('Savings Results'!$A$1,6,16 +MAX('Savings Results'!$G:$G)-MIN('Savings Results'!$G:$G)+MAX('Savings Results'!$J:$J)+E$29-MIN('Savings Results'!$G:$G),2000),OFFSET('Savings Results'!$A$1,6,6,2000),E$29,OFFSET('Savings Results'!$A$1,6,4,2000),"Dx",OFFSET('Savings Results'!$A$1,6,1,2000),$A58,OFFSET('Savings Results'!$A$1,6,2,2000),$B58)/(1/(1-SUM('CE Parameters'!$F$10:$F$11))))/1000 -> 0 | G58: =IFERROR(SUMIFS('Program Design'!$U:$U,'Program Design'!$C:$C,$A58,'Program Design'!$D:$D,$B58,'Program Design'!$J:$J,G$29)+SUMIFS('Program Design'!$V:$V,'Program Design'!$C:$C,$A58,'Program Design'!$D:$D,$B58,'Program Design'!$J:$J,G$29)+SUMIFS('Program Design'!$W:$W,'Program Design'!$C:$C,$A58,'Program Design'!$D:$D,$B58,'Program Design'!$J:$J,G$29)+SUMIFS(INDEX(OFFSET('Budget Inputs'!$A$1,6,1,2000,560),0,MATCH(CONCATENATE(G$29," Sub-Total"),OFFSET('Budget Inputs'!$A$1,6,1,1,560),0)),OFFSET('Budget Inputs'!$A$1,6,1,2000,1),$A58,OFFSET('Budget Inputs'!$A$1,6,2,2000,1),$B58),0) -> 237782 | H58: =(SUMIFS(OFFSET('Savings Results'!$A$1,6,16 +MAX('Savings Results'!$G:$G)-MIN('Savings Results'!$G:$G)+MAX('Savings Results'!$J:$J)+G$29-MIN('Savings Results'!$G:$G),2000),OFFSET('Savings Results'!$A$1,6,6,2000),G$29,OFFSET('Savings Results'!$A$1,6,4,2000),"Dx",OFFSET('Savings Results'!$A$1,6,1,2000),$A58,OFFSET('Savings Results'!$A$1,6,2,2000),$B58)/(1/(1-SUM('CE Parameters'!$F$10:$F$11))))/1000 -> 4780.89 | I58: =IFERROR(SUMIFS('Program Design'!$U:$U,'Program Design'!$C:$C,$A58,'Program Design'!$D:$D,$B58,'Program Design'!$J:$J,I$29)+SUMIFS('Program Design'!$V:$V,'Program Design'!$C:$C,$A58,'Program Design'!$D:$D,$B58,'Program Design'!$J:$J,I$29)+SUMIFS('Program Design'!$W:$W,'Program Design'!$C:$C,$A58,'Program Design'!$D:$D,$B58,'Program Design'!$J:$J,I$29)+SUMIFS(INDEX(OFFSET('Budget Inputs'!$A$1,6,1,2000,560),0,MATCH(CONCATENATE(I$29," Sub-Total"),OFFSET('Budget Inputs'!$A$1,6,1,1,560),0)),OFFSET('Budget Inputs'!$A$1,6,1,2000,1),$A58,OFFSET('Budget Inputs'!$A$1,6,2,2000,1),$B58),0) -> 363321 | J58: =(SUMIFS(OFFSET('Savings Results'!$A$1,6,16 +MAX('Savings Results'!$G:$G)-MIN('Savings Results'!$G:$G)+MAX('Savings Results'!$J:$J)+I$29-MIN('Savings Results'!$G:$G),2000),OFFSET('Savings Results'!$A$1,6,6,2000),I$29,OFFSET('Savings Results'!$A$1,6,4,2000),"Dx",OFFSET('Savings Results'!$A$1,6,1,2000),$A58,OFFSET('Savings Results'!$A$1,6,2,2000),$B58)/(1/(1-SUM('CE Parameters'!$F$10:$F$11))))/1000 -> 4780.89 | K58: =IFERROR(SUMIFS('Program Design'!$U:$U,'Program Design'!$C:$C,$A58,'Program Design'!$D:$D,$B58,'Program Design'!$J:$J,K$29)+SUMIFS('Program Design'!$V:$V,'Program Design'!$C:$C,$A58,'Program Design'!$D:$D,$B58,'Program Design'!$J:$J,K$29)+SUMIFS('Program Design'!$W:$W,'Program Design'!$C:$C,$A58,'Program Design'!$D:$D,$B58,'Program Design'!$J:$J,K$29)+SUMIFS(INDEX(OFFSET('Budget Inputs'!$A$1,6,1,2000,560),0,MATCH(CONCATENATE(K$29," Sub-Total"),OFFSET('Budget Inputs'!$A$1,6,1,1,560),0)),OFFSET('Budget Inputs'!$A$1,6,1,2000,1),$A58,OFFSET('Budget Inputs'!$A$1,6,2,2000,1),$B58),0) -> 0 | L58: =(SUMIFS(OFFSET('Savings Results'!$A$1,6,16 +MAX('Savings Results'!$G:$G)-MIN('Savings Results'!$G:$G)+MAX('Savings Results'!$J:$J)+K$29-MIN('Savings Results'!$G:$G),2000),OFFSET('Savings Results'!$A$1,6,6,2000),K$29,OFFSET('Savings Results'!$A$1,6,4,2000),"Dx",OFFSET('Savings Results'!$A$1,6,1,2000),$A58,OFFSET('Savings Results'!$A$1,6,2,2000),$B58)/(1/(1-SUM('CE Parameters'!$F$10:$F$11))))/1000 -> 0 | M58: =IFERROR(SUMIFS('Program Design'!$U:$U,'Program Design'!$C:$C,$A58,'Program Design'!$D:$D,$B58,'Program Design'!$J:$J,M$29)+SUMIFS('Program Design'!$V:$V,'Program Design'!$C:$C,$A58,'Program Design'!$D:$D,$B58,'Program Design'!$J:$J,M$29)+SUMIFS('Program Design'!$W:$W,'Program Design'!$C:$C,$A58,'Program Design'!$D:$D,$B58,'Program Design'!$J:$J,M$29)+SUMIFS(INDEX(OFFSET('Budget Inputs'!$A$1,6,1,2000,560),0,MATCH(CONCATENATE(M$29," Sub-Total"),OFFSET('Budget Inputs'!$A$1,6,1,1,560),0)),OFFSET('Budget Inputs'!$A$1,6,1,2000,1),$A58,OFFSET('Budget Inputs'!$A$1,6,2,2000,1),$B58),0) -> 0 | N58: =(SUMIFS(OFFSET('Savings Results'!$A$1,6,16 +MAX('Savings Results'!$G:$G)-MIN('Savings Results'!$G:$G)+MAX('Savings Results'!$J:$J)+M$29-MIN('Savings Results'!$G:$G),2000),OFFSET('Savings Results'!$A$1,6,6,2000),M$29,OFFSET('Savings Results'!$A$1,6,4,2000),"Dx",OFFSET('Savings Results'!$A$1,6,1,2000),$A58,OFFSET('Savings Results'!$A$1,6,2,2000),$B58)/(1/(1-SUM('CE Parameters'!$F$10:$F$11))))/1000 -> 0 | O58: =IFERROR(SUMIFS('Program Design'!$U:$U,'Program Design'!$C:$C,$A58,'Program Design'!$D:$D,$B58)+SUMIFS('Program Design'!$V:$V,'Program Design'!$C:$C,$A58,'Program Design'!$D:$D,$B58)+SUMIFS('Program Design'!$W:$W,'Program Design'!$C:$C,$A58,'Program Design'!$D:$D,$B58)+SUMIFS(INDEX(OFFSET('Budget Inputs'!$A$1,6,1,2000,560),0,MATCH("Total",OFFSET('Budget Inputs'!$A$1,6,1,1,560),0)),OFFSET('Budget Inputs'!$A$1,6,1,2000,1),$A58,OFFSET('Budget Inputs'!$A$1,6,2,2000,1),$B58),0) -> 601103 | P58: =(SUMIFS(OFFSET('Savings Results'!$A$1,6,16+2020-MIN('Program Design'!J:J)+2020 -MIN('Program Design'!J:J)+ MAX('Savings Results'!J:J),2000),OFFSET('Savings Results'!$A$1,6,4,2000),"Dx",OFFSET('Savings Results'!$A$1,6,1,2000),$A58,OFFSET('Savings Results'!$A$1,6,2,2000),$B58)/(1/(1-SUM('CE Parameters'!$F$10:$F$11))))/1000 -> 9561.78
A59: Residential | B59: ASHP - Ductless Pilot | C59: =IFERROR(SUMIFS('Program Design'!$U:$U,'Program Design'!$C:$C,$A59,'Program Design'!$D:$D,$B59,'Program Design'!$J:$J,C$29)+SUMIFS('Program Design'!$V:$V,'Program Design'!$C:$C,$A59,'Program Design'!$D:$D,$B59,'Program Design'!$J:$J,C$29)+SUMIFS('Program Design'!$W:$W,'Program Design'!$C:$C,$A59,'Program Design'!$D:$D,$B59,'Program Design'!$J:$J,C$29)+SUMIFS(INDEX(OFFSET('Budget Inputs'!$A$1,6,1,2000,560),0,MATCH(CONCATENATE(C$29," Sub-Total"),OFFSET('Budget Inputs'!$A$1,6,1,1,560),0)),OFFSET('Budget Inputs'!$A$1,6,1,2000,1),$A59,OFFSET('Budget Inputs'!$A$1,6,2,2000,1),$B59),0) -> 0 | D59: =(SUMIFS(OFFSET('Savings Results'!$A$1,6,16 +MAX('Savings Results'!$G:$G)-MIN('Savings Results'!$G:$G)+MAX('Savings Results'!$J:$J)+C$29-MIN('Savings Results'!$G:$G),2000),OFFSET('Savings Results'!$A$1,6,6,2000),C$29,OFFSET('Savings Results'!$A$1,6,4,2000),"Dx",OFFSET('Savings Results'!$A$1,6,1,2000),$A59,OFFSET('Savings Results'!$A$1,6,2,2000),$B59)/(1/(1-SUM('CE Parameters'!$F$10:$F$11))))/1000 -> 0 | E59: =IFERROR(SUMIFS('Program Design'!$U:$U,'Program Design'!$C:$C,$A59,'Program Design'!$D:$D,$B59,'Program Design'!$J:$J,E$29)+SUMIFS('Program Design'!$V:$V,'Program Design'!$C:$C,$A59,'Program Design'!$D:$D,$B59,'Program Design'!$J:$J,E$29)+SUMIFS('Program Design'!$W:$W,'Program Design'!$C:$C,$A59,'Program Design'!$D:$D,$B59,'Program Design'!$J:$J,E$29)+SUMIFS(INDEX(OFFSET('Budget Inputs'!$A$1,6,1,2000,560),0,MATCH(CONCATENATE(E$29," Sub-Total"),OFFSET('Budget Inputs'!$A$1,6,1,1,560),0)),OFFSET('Budget Inputs'!$A$1,6,1,2000,1),$A59,OFFSET('Budget Inputs'!$A$1,6,2,2000,1),$B59),0) -> 0 | F59: =(SUMIFS(OFFSET('Savings Results'!$A$1,6,16 +MAX('Savings Results'!$G:$G)-MIN('Savings Results'!$G:$G)+MAX('Savings Results'!$J:$J)+E$29-MIN('Savings Results'!$G:$G),2000),OFFSET('Savings Results'!$A$1,6,6,2000),E$29,OFFSET('Savings Results'!$A$1,6,4,2000),"Dx",OFFSET('Savings Results'!$A$1,6,1,2000),$A59,OFFSET('Savings Results'!$A$1,6,2,2000),$B59)/(1/(1-SUM('CE Parameters'!$F$10:$F$11))))/1000 -> 157.963 | G59: =IFERROR(SUMIFS('Program Design'!$U:$U,'Program Design'!$C:$C,$A59,'Program Design'!$D:$D,$B59,'Program Design'!$J:$J,G$29)+SUMIFS('Program Design'!$V:$V,'Program Design'!$C:$C,$A59,'Program Design'!$D:$D,$B59,'Program Design'!$J:$J,G$29)+SUMIFS('Program Design'!$W:$W,'Program Design'!$C:$C,$A59,'Program Design'!$D:$D,$B59,'Program Design'!$J:$J,G$29)+SUMIFS(INDEX(OFFSET('Budget Inputs'!$A$1,6,1,2000,560),0,MATCH(CONCATENATE(G$29," Sub-Total"),OFFSET('Budget Inputs'!$A$1,6,1,1,560),0)),OFFSET('Budget Inputs'!$A$1,6,1,2000,1),$A59,OFFSET('Budget Inputs'!$A$1,6,2,2000,1),$B59),0) -> 0 | H59: =(SUMIFS(OFFSET('Savings Results'!$A$1,6,16 +MAX('Savings Results'!$G:$G)-MIN('Savings Results'!$G:$G)+MAX('Savings Results'!$J:$J)+G$29-MIN('Savings Results'!$G:$G),2000),OFFSET('Savings Results'!$A$1,6,6,2000),G$29,OFFSET('Savings Results'!$A$1,6,4,2000),"Dx",OFFSET('Savings Results'!$A$1,6,1,2000),$A59,OFFSET('Savings Results'!$A$1,6,2,2000),$B59)/(1/(1-SUM('CE Parameters'!$F$10:$F$11))))/1000 -> 0 | I59: =IFERROR(SUMIFS('Program Design'!$U:$U,'Program Design'!$C:$C,$A59,'Program Design'!$D:$D,$B59,'Program Design'!$J:$J,I$29)+SUMIFS('Program Design'!$V:$V,'Program Design'!$C:$C,$A59,'Program Design'!$D:$D,$B59,'Program Design'!$J:$J,I$29)+SUMIFS('Program Design'!$W:$W,'Program Design'!$C:$C,$A59,'Program Design'!$D:$D,$B59,'Program Design'!$J:$J,I$29)+SUMIFS(INDEX(OFFSET('Budget Inputs'!$A$1,6,1,2000,560),0,MATCH(CONCATENATE(I$29," Sub-Total"),OFFSET('Budget Inputs'!$A$1,6,1,1,560),0)),OFFSET('Budget Inputs'!$A$1,6,1,2000,1),$A59,OFFSET('Budget Inputs'!$A$1,6,2,2000,1),$B59),0) -> 0 | J59: =(SUMIFS(OFFSET('Savings Results'!$A$1,6,16 +MAX('Savings Results'!$G:$G)-MIN('Savings Results'!$G:$G)+MAX('Savings Results'!$J:$J)+I$29-MIN('Savings Results'!$G:$G),2000),OFFSET('Savings Results'!$A$1,6,6,2000),I$29,OFFSET('Savings Results'!$A$1,6,4,2000),"Dx",OFFSET('Savings Results'!$A$1,6,1,2000),$A59,OFFSET('Savings Results'!$A$1,6,2,2000),$B59)/(1/(1-SUM('CE Parameters'!$F$10:$F$11))))/1000 -> 0 | K59: =IFERROR(SUMIFS('Program Design'!$U:$U,'Program Design'!$C:$C,$A59,'Program Design'!$D:$D,$B59,'Program Design'!$J:$J,K$29)+SUMIFS('Program Design'!$V:$V,'Program Design'!$C:$C,$A59,'Program Design'!$D:$D,$B59,'Program Design'!$J:$J,K$29)+SUMIFS('Program Design'!$W:$W,'Program Design'!$C:$C,$A59,'Program Design'!$D:$D,$B59,'Program Design'!$J:$J,K$29)+SUMIFS(INDEX(OFFSET('Budget Inputs'!$A$1,6,1,2000,560),0,MATCH(CONCATENATE(K$29," Sub-Total"),OFFSET('Budget Inputs'!$A$1,6,1,1,560),0)),OFFSET('Budget Inputs'!$A$1,6,1,2000,1),$A59,OFFSET('Budget Inputs'!$A$1,6,2,2000,1),$B59),0) -> 0 | L59: =(SUMIFS(OFFSET('Savings Results'!$A$1,6,16 +MAX('Savings Results'!$G:$G)-MIN('Savings Results'!$G:$G)+MAX('Savings Results'!$J:$J)+K$29-MIN('Savings Results'!$G:$G),2000),OFFSET('Savings Results'!$A$1,6,6,2000),K$29,OFFSET('Savings Results'!$A$1,6,4,2000),"Dx",OFFSET('Savings Results'!$A$1,6,1,2000),$A59,OFFSET('Savings Results'!$A$1,6,2,2000),$B59)/(1/(1-SUM('CE Parameters'!$F$10:$F$11))))/1000 -> 0 | M59: =IFERROR(SUMIFS('Program Design'!$U:$U,'Program Design'!$C:$C,$A59,'Program Design'!$D:$D,$B59,'Program Design'!$J:$J,M$29)+SUMIFS('Program Design'!$V:$V,'Program Design'!$C:$C,$A59,'Program Design'!$D:$D,$B59,'Program Design'!$J:$J,M$29)+SUMIFS('Program Design'!$W:$W,'Program Design'!$C:$C,$A59,'Program Design'!$D:$D,$B59,'Program Design'!$J:$J,M$29)+SUMIFS(INDEX(OFFSET('Budget Inputs'!$A$1,6,1,2000,560),0,MATCH(CONCATENATE(M$29," Sub-Total"),OFFSET('Budget Inputs'!$A$1,6,1,1,560),0)),OFFSET('Budget Inputs'!$A$1,6,1,2000,1),$A59,OFFSET('Budget Inputs'!$A$1,6,2,2000,1),$B59),0) -> 0 | N59: =(SUMIFS(OFFSET('Savings Results'!$A$1,6,16 +MAX('Savings Results'!$G:$G)-MIN('Savings Results'!$G:$G)+MAX('Savings Results'!$J:$J)+M$29-MIN('Savings Results'!$G:$G),2000),OFFSET('Savings Results'!$A$1,6,6,2000),M$29,OFFSET('Savings Results'!$A$1,6,4,2000),"Dx",OFFSET('Savings Results'!$A$1,6,1,2000),$A59,OFFSET('Savings Results'!$A$1,6,2,2000),$B59)/(1/(1-SUM('CE Parameters'!$F$10:$F$11))))/1000 -> 0 | O59: =IFERROR(SUMIFS('Program Design'!$U:$U,'Program Design'!$C:$C,$A59,'Program Design'!$D:$D,$B59)+SUMIFS('Program Design'!$V:$V,'Program Design'!$C:$C,$A59,'Program Design'!$D:$D,$B59)+SUMIFS('Program Design'!$W:$W,'Program Design'!$C:$C,$A59,'Program Design'!$D:$D,$B59)+SUMIFS(INDEX(OFFSET('Budget Inputs'!$A$1,6,1,2000,560),0,MATCH("Total",OFFSET('Budget Inputs'!$A$1,6,1,1,560),0)),OFFSET('Budget Inputs'!$A$1,6,1,2000,1),$A59,OFFSET('Budget Inputs'!$A$1,6,2,2000,1),$B59),0) -> 0 | P59: =(SUMIFS(OFFSET('Savings Results'!$A$1,6,16+2020-MIN('Program Design'!J:J)+2020 -MIN('Program Design'!J:J)+ MAX('Savings Results'!J:J),2000),OFFSET('Savings Results'!$A$1,6,4,2000),"Dx",OFFSET('Savings Results'!$A$1,6,1,2000),$A59,OFFSET('Savings Results'!$A$1,6,2,2000),$B59)/(1/(1-SUM('CE Parameters'!$F$10:$F$11))))/1000 -> 157.963
A60: Residential | B60: Whole Home Pilot Program | C60: =IFERROR(SUMIFS('Program Design'!$U:$U,'Program Design'!$C:$C,$A60,'Program Design'!$D:$D,$B60,'Program Design'!$J:$J,C$29)+SUMIFS('Program Design'!$V:$V,'Program Design'!$C:$C,$A60,'Program Design'!$D:$D,$B60,'Program Design'!$J:$J,C$29)+SUMIFS('Program Design'!$W:$W,'Program Design'!$C:$C,$A60,'Program Design'!$D:$D,$B60,'Program Design'!$J:$J,C$29)+SUMIFS(INDEX(OFFSET('Budget Inputs'!$A$1,6,1,2000,560),0,MATCH(CONCATENATE(C$29," Sub-Total"),OFFSET('Budget Inputs'!$A$1,6,1,1,560),0)),OFFSET('Budget Inputs'!$A$1,6,1,2000,1),$A60,OFFSET('Budget Inputs'!$A$1,6,2,2000,1),$B60),0) -> 0 | D60: =(SUMIFS(OFFSET('Savings Results'!$A$1,6,16 +MAX('Savings Results'!$G:$G)-MIN('Savings Results'!$G:$G)+MAX('Savings Results'!$J:$J)+C$29-MIN('Savings Results'!$G:$G),2000),OFFSET('Savings Results'!$A$1,6,6,2000),C$29,OFFSET('Savings Results'!$A$1,6,4,2000),"Dx",OFFSET('Savings Results'!$A$1,6,1,2000),$A60,OFFSET('Savings Results'!$A$1,6,2,2000),$B60)/(1/(1-SUM('CE Parameters'!$F$10:$F$11))))/1000 -> 0 | E60: =IFERROR(SUMIFS('Program Design'!$U:$U,'Program Design'!$C:$C,$A60,'Program Design'!$D:$D,$B60,'Program Design'!$J:$J,E$29)+SUMIFS('Program Design'!$V:$V,'Program Design'!$C:$C,$A60,'Program Design'!$D:$D,$B60,'Program Design'!$J:$J,E$29)+SUMIFS('Program Design'!$W:$W,'Program Design'!$C:$C,$A60,'Program Design'!$D:$D,$B60,'Program Design'!$J:$J,E$29)+SUMIFS(INDEX(OFFSET('Budget Inputs'!$A$1,6,1,2000,560),0,MATCH(CONCATENATE(E$29," Sub-Total"),OFFSET('Budget Inputs'!$A$1,6,1,1,560),0)),OFFSET('Budget Inputs'!$A$1,6,1,2000,1),$A60,OFFSET('Budget Inputs'!$A$1,6,2,2000,1),$B60),0) -> 0 | F60: =(SUMIFS(OFFSET('Savings Results'!$A$1,6,16 +MAX('Savings Results'!$G:$G)-MIN('Savings Results'!$G:$G)+MAX('Savings Results'!$J:$J)+E$29-MIN('Savings Results'!$G:$G),2000),OFFSET('Savings Results'!$A$1,6,6,2000),E$29,OFFSET('Savings Results'!$A$1,6,4,2000),"Dx",OFFSET('Savings Results'!$A$1,6,1,2000),$A60,OFFSET('Savings Results'!$A$1,6,2,2000),$B60)/(1/(1-SUM('CE Parameters'!$F$10:$F$11))))/1000 -> 0 | G60: =IFERROR(SUMIFS('Program Design'!$U:$U,'Program Design'!$C:$C,$A60,'Program Design'!$D:$D,$B60,'Program Design'!$J:$J,G$29)+SUMIFS('Program Design'!$V:$V,'Program Design'!$C:$C,$A60,'Program Design'!$D:$D,$B60,'Program Design'!$J:$J,G$29)+SUMIFS('Program Design'!$W:$W,'Program Design'!$C:$C,$A60,'Program Design'!$D:$D,$B60,'Program Design'!$J:$J,G$29)+SUMIFS(INDEX(OFFSET('Budget Inputs'!$A$1,6,1,2000,560),0,MATCH(CONCATENATE(G$29," Sub-Total"),OFFSET('Budget Inputs'!$A$1,6,1,1,560),0)),OFFSET('Budget Inputs'!$A$1,6,1,2000,1),$A60,OFFSET('Budget Inputs'!$A$1,6,2,2000,1),$B60),0) -> 0 | H60: =(SUMIFS(OFFSET('Savings Results'!$A$1,6,16 +MAX('Savings Results'!$G:$G)-MIN('Savings Results'!$G:$G)+MAX('Savings Results'!$J:$J)+G$29-MIN('Savings Results'!$G:$G),2000),OFFSET('Savings Results'!$A$1,6,6,2000),G$29,OFFSET('Savings Results'!$A$1,6,4,2000),"Dx",OFFSET('Savings Results'!$A$1,6,1,2000),$A60,OFFSET('Savings Results'!$A$1,6,2,2000),$B60)/(1/(1-SUM('CE Parameters'!$F$10:$F$11))))/1000 -> 259.67 | I60: =IFERROR(SUMIFS('Program Design'!$U:$U,'Program Design'!$C:$C,$A60,'Program Design'!$D:$D,$B60,'Program Design'!$J:$J,I$29)+SUMIFS('Program Design'!$V:$V,'Program Design'!$C:$C,$A60,'Program Design'!$D:$D,$B60,'Program Design'!$J:$J,I$29)+SUMIFS('Program Design'!$W:$W,'Program Design'!$C:$C,$A60,'Program Design'!$D:$D,$B60,'Program Design'!$J:$J,I$29)+SUMIFS(INDEX(OFFSET('Budget Inputs'!$A$1,6,1,2000,560),0,MATCH(CONCATENATE(I$29," Sub-Total"),OFFSET('Budget Inputs'!$A$1,6,1,1,560),0)),OFFSET('Budget Inputs'!$A$1,6,1,2000,1),$A60,OFFSET('Budget Inputs'!$A$1,6,2,2000,1),$B60),0) -> 0 | J60: =(SUMIFS(OFFSET('Savings Results'!$A$1,6,16 +MAX('Savings Results'!$G:$G)-MIN('Savings Results'!$G:$G)+MAX('Savings Results'!$J:$J)+I$29-MIN('Savings Results'!$G:$G),2000),OFFSET('Savings Results'!$A$1,6,6,2000),I$29,OFFSET('Savings Results'!$A$1,6,4,2000),"Dx",OFFSET('Savings Results'!$A$1,6,1,2000),$A60,OFFSET('Savings Results'!$A$1,6,2,2000),$B60)/(1/(1-SUM('CE Parameters'!$F$10:$F$11))))/1000 -> 0 | K60: =IFERROR(SUMIFS('Program Design'!$U:$U,'Program Design'!$C:$C,$A60,'Program Design'!$D:$D,$B60,'Program Design'!$J:$J,K$29)+SUMIFS('Program Design'!$V:$V,'Program Design'!$C:$C,$A60,'Program Design'!$D:$D,$B60,'Program Design'!$J:$J,K$29)+SUMIFS('Program Design'!$W:$W,'Program Design'!$C:$C,$A60,'Program Design'!$D:$D,$B60,'Program Design'!$J:$J,K$29)+SUMIFS(INDEX(OFFSET('Budget Inputs'!$A$1,6,1,2000,560),0,MATCH(CONCATENATE(K$29," Sub-Total"),OFFSET('Budget Inputs'!$A$1,6,1,1,560),0)),OFFSET('Budget Inputs'!$A$1,6,1,2000,1),$A60,OFFSET('Budget Inputs'!$A$1,6,2,2000,1),$B60),0) -> 0 | L60: =(SUMIFS(OFFSET('Savings Results'!$A$1,6,16 +MAX('Savings Results'!$G:$G)-MIN('Savings Results'!$G:$G)+MAX('Savings Results'!$J:$J)+K$29-MIN('Savings Results'!$G:$G),2000),OFFSET('Savings Results'!$A$1,6,6,2000),K$29,OFFSET('Savings Results'!$A$1,6,4,2000),"Dx",OFFSET('Savings Results'!$A$1,6,1,2000),$A60,OFFSET('Savings Results'!$A$1,6,2,2000),$B60)/(1/(1-SUM('CE Parameters'!$F$10:$F$11))))/1000 -> 0 | M60: =IFERROR(SUMIFS('Program Design'!$U:$U,'Program Design'!$C:$C,$A60,'Program Design'!$D:$D,$B60,'Program Design'!$J:$J,M$29)+SUMIFS('Program Design'!$V:$V,'Program Design'!$C:$C,$A60,'Program Design'!$D:$D,$B60,'Program Design'!$J:$J,M$29)+SUMIFS('Program Design'!$W:$W,'Program Design'!$C:$C,$A60,'Program Design'!$D:$D,$B60,'Program Design'!$J:$J,M$29)+SUMIFS(INDEX(OFFSET('Budget Inputs'!$A$1,6,1,2000,560),0,MATCH(CONCATENATE(M$29," Sub-Total"),OFFSET('Budget Inputs'!$A$1,6,1,1,560),0)),OFFSET('Budget Inputs'!$A$1,6,1,2000,1),$A60,OFFSET('Budget Inputs'!$A$1,6,2,2000,1),$B60),0) -> 0 | N60: =(SUMIFS(OFFSET('Savings Results'!$A$1,6,16 +MAX('Savings Results'!$G:$G)-MIN('Savings Results'!$G:$G)+MAX('Savings Results'!$J:$J)+M$29-MIN('Savings Results'!$G:$G),2000),OFFSET('Savings Results'!$A$1,6,6,2000),M$29,OFFSET('Savings Results'!$A$1,6,4,2000),"Dx",OFFSET('Savings Results'!$A$1,6,1,2000),$A60,OFFSET('Savings Results'!$A$1,6,2,2000),$B60)/(1/(1-SUM('CE Parameters'!$F$10:$F$11))))/1000 -> 0 | O60: =IFERROR(SUMIFS('Program Design'!$U:$U,'Program Design'!$C:$C,$A60,'Program Design'!$D:$D,$B60)+SUMIFS('Program Design'!$V:$V,'Program Design'!$C:$C,$A60,'Program Design'!$D:$D,$B60)+SUMIFS('Program Design'!$W:$W,'Program Design'!$C:$C,$A60,'Program Design'!$D:$D,$B60)+SUMIFS(INDEX(OFFSET('Budget Inputs'!$A$1,6,1,2000,560),0,MATCH("Total",OFFSET('Budget Inputs'!$A$1,6,1,1,560),0)),OFFSET('Budget Inputs'!$A$1,6,1,2000,1),$A60,OFFSET('Budget Inputs'!$A$1,6,2,2000,1),$B60),0) -> 0 | P60: =(SUMIFS(OFFSET('Savings Results'!$A$1,6,16+2020-MIN('Program Design'!J:J)+2020 -MIN('Program Design'!J:J)+ MAX('Savings Results'!J:J),2000),OFFSET('Savings Results'!$A$1,6,4,2000),"Dx",OFFSET('Savings Results'!$A$1,6,1,2000),$A60,OFFSET('Savings Results'!$A$1,6,2,2000),$B60)/(1/(1-SUM('CE Parameters'!$F$10:$F$11))))/1000 -> 259.67
A61: TOTAL | C61: =SUM($C32:$C60) -> 111618 | D61: =SUM($D32:$D60) -> 19051.51741 | E61: =SUM($E32:$E60) -> 2431251.48 | F61: =SUM($F32:$F60) -> 34976.16117 | G61: =SUM($G32:$G60) -> 7626948 | H61: =SUM($H32:$H60) -> 26944.42301 | I61: =SUM($I32:$I60) -> 15169027.38 | J61: =SUM($J32:$J60) -> 51121.87472 | K61: =SUM($K32:$K60) -> 8653595.95 | L61: =SUM($L32:$L60) -> 5321.322127 | M61: =SUM($M32:$M60) -> 4429488.3 | N61: =SUM($N32:$N60) -> 54001.55944 | O61: =SUM($O32:$O60) -> 38421929.11 | P61: =SUM($P32:$P60) -> 191140.8618

Sheet Budget
B3: TABLE 4
B4: Budget Result Summary
D5: PROGRAM YEAR
D6: 2015 | E6: 2015 | F6: 2015 | G6: 2015 | H6: 2015 | I6: 2016 | J6: 2016 | K6: 2016 | L6: 2016 | M6: 2016 | N6: 2017 | O6: 2017 | P6: 2017 | Q6: 2017 | R6: 2017 | S6: 2018 | T6: 2018 | U6: 2018 | V6: 2018 | W6: 2018 | X6: 2019 | Y6: 2019 | Z6: 2019 | AA6: 2019 | AB6: 2019 | AC6: 2020 | AD6: 2020 | AE6: 2020 | AF6: 2020 | AG6: 2020
B7: SECTOR | C7: PROGRAM | D7: Incentives | E7: Program Admin | F7: LDC Variable Costs | G7: Central Service Costs | H7: 2015 Sub-Total | I7: Incentives | J7: Program Admin | K7: LDC Variable Costs | L7: Central Service Costs | M7: 2016 Sub-Total | N7: Incentives | O7: Program Admin | P7: LDC Variable Costs | Q7: Central Service Costs | R7: 2017 Sub-Total | S7: Incentives | T7: Program Admin | U7: LDC Variable Costs | V7: Central Service Costs | W7: 2018 Sub-Total | X7: Incentives | Y7: Program Admin | Z7: LDC Variable Costs | AA7: Central Service Costs | AB7: 2019 Sub-Total | AC7: Incentives | AD7: Program Admin | AE7: LDC Variable Costs | AF7: Central Service Costs | AG7: 2020 Sub-Total | AH7: Total
B8: Non-Residential | C8: 2015 DIL | D8: 0 | E8: 0 | F8: 0 | G8: 0 | H8: =SUM($D8:$G8) -> 0 | J8: 0 | M8: =SUM($I8:$L8) -> 0 | O8: 0 | R8: =SUM($N8:$Q8) -> 0 | T8: 0 | W8: =SUM($S8:$V8) -> 0 | Y8: 0 | AB8: =SUM($X8:$AA8) -> 0 | AD8: 0 | AG8: =SUM($AC8:$AF8) -> 0 | AH8: =SUM($D8:$AG8)/2 -> 0
B9: Non-Residential | C9: Retrofit | D9: 0 | E9: 93759 | F9: 0 | G9: 0 | H9: =SUM($D9:$G9) -> 93759 | I9: 614255.48 | J9: 1091570 | K9: 0 | L9: 0 | M9: =SUM($I9:$L9) -> 1705825.48 | N9: 3754193 | O9: 791979 | P9: 0 | Q9: 0 | R9: =SUM($N9:$Q9) -> 4546172 | S9: 4687382.47 | T9: 1039428.06 | U9: 0 | V9: 0 | W9: =SUM($S9:$V9) -> 5726810.53 | X9: 17307.65 | Y9: 1074647.41 | Z9: 0 | AA9: 0 | AB9: =SUM($X9:$AA9) -> 1091955.06 | AD9: 1074647.41 | AG9: =SUM($AC9:$AF9) -> 1074647.41 | AH9: 14239169.48
B10: Non-Residential | C10: Small Business Lighting | E10: 0 | H10: 0 | I10: 0 | J10: 0 | K10: 0 | L10: 0 | M10: 0 | N10: 51188 | O10: 24364 | P10: 0 | Q10: 0 | R10: 75552 | S10: 67391.62 | T10: 41276.87 | U10: 0 | V10: 0 | W10: 108668.49 | X10: 0 | Y10: 0 | Z10: 0 | AA10: 0 | AB10: 0 | AC10: 0 | AD10: 0 | AE10: 0 | AF10: 0 | AG10: 0 | AH10: 184220.49
B11: Non-Residential | C11: High Performance New Construction | E11: 0 | H11: 0 | I11: 0 | J11: 0 | K11: 0 | L11: 0 | M11: 0 | N11: 0 | O11: 0 | P11: 0 | Q11: 0 | R11: 0 | S11: 0 | T11: 0 | U11: 0 | V11: 0 | W11: 0 | X11: 0 | Y11: 0 | Z11: 0 | AA11: 0 | AB11: 0 | AC11: 0 | AD11: 0 | AE11: 0 | AF11: 0 | AG11: 0 | AH11: 0
B12: Non-Residential | C12: Small Business Refrigeration | E12: 0 | H12: 0 | J12: 0 | M12: 0 | O12: 0 | R12: 0 | S12: 0 | T12: 0 | U12: 0 | V12: 0 | W12: 0 | X12: 0 | Y12: 0 | Z12: 0 | AA12: 0 | AB12: 0 | AC12: 0 | AD12: 0 | AE12: 0 | AF12: 0 | AG12: 0 | AH12: 0
B13: Non-Residential | C13: Audit Funding | E13: 2232 | H13: 2232 | I13: 51787 | J13: -8367 | K13: 0 | L13: 0 | M13: 43420 | N13: 2900 | O13: 44103 | P13: 0 | Q13: 0 | R13: 47003 | S13: 73319 | T13: 13349.99 | U13: 0 | V13: 0 | W13: 86668.99 | X13: 0 | Y13: 13802.32 | Z13: 0 | AA13: 0 | AB13: 13802.32 | AC13: 0 | AD13: 13802.32 | AE13: 0 | AF13: 0 | AG13: 13802.32 | AH13: 206928.63
B14: Non-Residential | C14: Existing Building Commissioning | E14: 0 | H14: 0 | J14: 0 | M14: 0 | O14: 0 | R14: 0 | S14: 0 | T14: 0 | U14: 0 | V14: 0 | W14: 0 | X14: 0 | Y14: 0 | Z14: 0 | AA14: 0 | AB14: 0 | AC14: 0 | AD14: 0 | AE14: 0 | AF14: 0 | AG14: 0 | AH14: 0
B15: Non-Residential | C15: Monitoring and Targeting | E15: 0 | H15: 0 | I15: 0 | J15: 0 | K15: 0 | L15: 0 | M15: 0 | N15: 0 | O15: 0 | P15: 0 | Q15: 0 | R15: 0 | S15: 0 | T15: 0 | U15: 0 | V15: 0 | W15: 0 | X15: 0 | Y15: 0 | Z15: 0 | AA15: 0 | AB15: 0 | AC15: 0 | AD15: 0 | AE15: 0 | AF15: 0 | AG15: 0 | AH15: 0
B16: Non-Residential | C16: Energy Manager | E16: 4465 | H16: 4465 | I16: 90000 | J16: 17513 | K16: 0 | L16: 0 | M16: 107513 | N16: 489842 | O16: 48463 | P16: 0 | Q16: 0 | R16: 538305 | S16: 500000 | T16: 25595.96 | U16: 0 | V16: 0 | W16: 525595.96 | X16: 250000 | Y16: 26463.2 | Z16: 0 | AA16: 0 | AB16: 276463.2 | AC16: 0 | AD16: 26463.2 | AE16: 0 | AF16: 0 | AG16: 26463.2 | AH16: 1478805.36
B17: Non-Residential | C17: 2015 PSUI Energy Manager Initiative | D17: 0 | E17: 0 | F17: 0 | G17: 0 | H17: 0 | J17: 0 | M17: 0 | O17: 0 | R17: 0 | T17: 0 | W17: 0 | Y17: 0 | AB17: 0 | AD17: 0 | AG17: 0 | AH17: 0
B18: Non-Residential | C18: 2015 Audit Funding | D18: 0 | E18: 0 | F18: 0 | G18: 0 | H18: 0 | J18: 0 | M18: 0 | O18: 0 | R18: 0 | T18: 0 | W18: 0 | Y18: 0 | AB18: 0 | AD18: 0 | AG18: 0 | AH18: 0
B19: Non-Residential | C19: 2015 ERII Retrofit | D19: 0 | E19: 0 | F19: 0 | G19: 0 | H19: 0 | J19: 0 | M19: 0 | O19: 0 | R19: 0 | T19: 0 | W19: 0 | Y19: 0 | AB19: 0 | AD19: 0 | AG19: 0 | AH19: 0
B20: Non-Residential | C20: 2015 PSUI Capital Incentive | D20: 0 | E20: 0 | F20: 0 | G20: 0 | H20: 0 | J20: 0 | M20: 0 | O20: 0 | R20: 0 | T20: 0 | W20: 0 | Y20: 0 | AB20: 0 | AD20: 0 | AG20: 0 | AH20: 0
B21: Non-Residential | C21: Process and Systems Upgrades Program | E21: 10046 | H21: 10046 | I21: 46570 | J21: 73397 | K21: 0 | L21: 0 | M21: 119967 | N21: 893866 | O21: 172087 | P21: 0 | Q21: 0 | R21: 1065953 | S21: 8202262 | T21: 139837.41 | U21: 0 | V21: 0 | W21: 8342099.41 | X21: 7126800 | Y21: 144575.37 | Z21: 0 | AA21: 0 | AB21: 7271375.37 | AC21: 3170000 | AD21: 144575.37 | AE21: 0 | AF21: 0 | AG21: 3314575.37 | AH21: 20124016.15
B22: Non-Residential | C22: Retrocommissioning LDC Innovation Pilot | E22: 0 | H22: 0 | I22: 0 | J22: 0 | K22: 0 | L22: 0 | M22: 0 | O22: 0 | R22: 0 | T22: 0 | W22: 0 | Y22: 0 | AB22: 0 | AD22: 0 | AG22: 0 | AH22: 0
B23: Non-Residential | C23: SOE Energy Performance Pilot | E23: 0 | H23: 0 | J23: 0 | M23: 0 | N23: 0 | O23: 0 | P23: 0 | Q23: 0 | R23: 0 | T23: 0 | W23: 0 | Y23: 0 | AB23: 0 | AD23: 0 | AG23: 0 | AH23: 0
B24: Residential | C24: 2015 Heating and Cooling Program | D24: 0 | E24: 0 | F24: 0 | G24: 0 | H24: 0 | J24: 0 | M24: 0 | O24: 0 | R24: 0 | T24: 0 | W24: 0 | Y24: 0 | AB24: 0 | AD24: 0 | AG24: 0 | AH24: 0
B25: Residential | C25: 2015 Residential New Construction | D25: 0 | E25: 0 | F25: 0 | G25: 0 | H25: 0 | J25: 0 | M25: 0 | O25: 0 | R25: 0 | T25: 0 | W25: 0 | Y25: 0 | AB25: 0 | AD25: 0 | AG25: 0 | AH25: 0
B26: Residential | C26: 2015 Low Income Initiative | D26: 0 | E26: 0 | F26: 0 | G26: 0 | H26: 0 | J26: 0 | M26: 0 | O26: 0 | R26: 0 | T26: 0 | W26: 0 | Y26: 0 | AB26: 0 | AD26: 0 | AG26: 0 | AH26: 0
B27: Residential | C27: Heating and Cooling Program | E27: 0 | H27: 0 | I27: 0 | J27: 0 | K27: 0 | L27: 0 | M27: 0 | N27: 0 | O27: 0 | P27: 0 | Q27: 0 | R27: 0 | S27: 0 | T27: 0 | U27: 0 | V27: 0 | W27: 0 | X27: 0 | Y27: 0 | Z27: 0 | AA27: 0 | AB27: 0 | AC27: 0 | AD27: 0 | AE27: 0 | AF27: 0 | AG27: 0 | AH27: 0
B28: Residential | C28: Home Depot Appliance Market Uplift | E28: 0 | H28: 0 | I28: 0 | J28: 0 | K28: 0 | L28: 0 | M28: 0 | O28: 0 | R28: 0 | T28: 0 | W28: 0 | Y28: 0 | AB28: 0 | AD28: 0 | AG28: 0 | AH28: 0
B29: Residential | C29: New Construction Program | E29: 0 | H29: 0 | J29: 0 | M29: 0 | N29: 0 | O29: 0 | P29: 0 | Q29: 0 | R29: 0 | S29: 0 | T29: 0 | U29: 0 | V29: 0 | W29: 0 | X29: 0 | Y29: 0 | Z29: 0 | AA29: 0 | AB29: 0 | AC29: 0 | AD29: 0 | AE29: 0 | AF29: 0 | AG29: 0 | AH29: 0
B30: Residential | C30: Home Assistance Program | E30: 0 | H30: 0 | I30: 0 | J30: 5511 | K30: 0 | L30: 0 | M30: 5511 | N30: 24685 | O30: 17600 | P30: 0 | Q30: 0 | R30: 42285 | S30: 15863 | T30: 0 | U30: 0 | V30: 0 | W30: 15863 | Y30: 0 | AB30: 0 | AD30: 0 | AG30: 0 | AH30: 63659
B31: Residential | C31: Coupon Program | E31: 1116 | H31: 1116 | I31: 376624 | J31: 35515 | K31: 0 | L31: 36876 | M31: 449015 | N31: 922707 | O31: 66642 | P31: 0 | Q31: 84547 | R31: 1073896 | T31: 0 | W31: 0 | X31: 0 | Y31: 0 | Z31: 0 | AA31: 0 | AB31: 0 | AC31: 0 | AD31: 0 | AE31: 0 | AF31: 0 | AG31: 0 | AH31: 1524027
B32: Residential | C32: 2015 Bi-Annual Retailer Event | D32: 0 | E32: 0 | F32: 0 | G32: 0 | H32: 0 | J32: 0 | M32: 0 | O32: 0 | R32: 0 | T32: 0 | W32: 0 | Y32: 0 | AB32: 0 | AD32: 0 | AG32: 0 | AH32: 0
B33: Residential | C33: 2015 Coupon Program | D33: 0 | E33: 0 | F33: 0 | G33: 0 | H33: 0 | J33: 0 | M33: 0 | O33: 0 | R33: 0 | T33: 0 | W33: 0 | Y33: 0 | AB33: 0 | AD33: 0 | AG33: 0 | AH33: 0
B34: Residential | C34: Instant Discount Program | E34: 0 | H34: 0 | J34: 0 | M34: 0 | N34: 227145 | O34: 0 | P34: 0 | Q34: 10637 | R34: 237782 | S34: 331157 | T34: 17257 | U34: 0 | V34: 14907 | W34: 363321 | Y34: 0 | AB34: 0 | AD34: 0 | AG34: 0 | AH34: 601103
B35: Residential | C35: ASHP - Ductless Pilot | E35: 0 | H35: 0 | I35: 0 | J35: 0 | K35: 0 | L35: 0 | M35: 0 | O35: 0 | R35: 0 | T35: 0 | W35: 0 | Y35: 0 | AB35: 0 | AD35: 0 | AG35: 0 | AH35: 0
B36: Residential | C36: Whole Home Pilot Program | E36: 0 | H36: 0 | J36: 0 | M36: 0 | N36: 0 | O36: 0 | P36: 0 | Q36: 0 | R36: 0 | T36: 0 | W36: 0 | Y36: 0 | AB36: 0 | AD36: 0 | AG36: 0 | AH36: 0
B37: Total | D37: =SUM(D8:D36) -> 0 | E37: =SUM(E8:E36) -> 111618 | F37: 0 | G37: 0 | H37: 111618 | I37: 1179236.48 | J37: 1215139 | K37: 0 | L37: 36876 | M37: 2431251.48 | N37: 6366526 | O37: 1165238 | P37: 0 | Q37: 95184 | R37: 7626948 | S37: 13877375.09 | T37: 1276745.29 | U37: 0 | V37: 14907 | W37: 15169027.38 | X37: 7394107.65 | Y37: 1259488.3 | Z37: 0 | AA37: 0 | AB37: 8653595.95 | AC37: 3170000 | AD37: 1259488.3 | AE37: 0 | AF37: 0 | AG37: 4429488.3 | AH37: 38421929.11

Sheet Sector
A1: TABLE 5: Sector Summary
A2: Metric | B2: Residential | C2: Non-Residential
A3: % of 2020 Annual Savings (target) | B3: =G9/G21 -> 0.1363471684 | C3: =G15/G21 -> 0.8636528316 | D3: =IFERROR(IF(SUM(B3:C3)=100%,"","FLAG: some programs are not correctly assigned to either Residential or Non-Residential Sector"),"") -> 
A4: % of Total Incentives | B4: =SUM(B10:G10)/SUM(B22:G22) -> 0.05934180912 | C4: =SUM(B16:G16)/SUM(B22:G22) -> 0.9406581909
A5: % of Total Budget | B5: =SUM(B11:G11)/SUM(B23:G23) -> 0.05696718126 | C5: =SUM(B17:G17)/SUM(B23:G23) -> 0.9430328187
A7: TABLE 6: Residential Sector Summary
A8: Metric | B8: 2015 | C8: 2016 | D8: 2017 | E8: 2018 | F8: 2019 | G8: 2020
A9: Annual Savings (kWh) | B9: =IF(MIN('Savings Results'!$G:$G)<=B8,(SUMIFS(OFFSET('Savings Results'!$A$1,6,16+MAX('Savings Results'!$G:$G)-MIN('Savings Results'!$G:$G)+MAX('Savings Results'!$J:$J)+B$8-MIN('Savings Results'!$G:$G),2000),OFFSET('Savings Results'!$A$1,6,1,2000),"Residential")/(1/(1-SUM('CE Parameters'!$F$10:$F$11)))),0)/1000 -> 3391.178 | C9: =IF(MIN('Savings Results'!$G:$G)<=C8,(SUMIFS(OFFSET('Savings Results'!$A$1,6,16+MAX('Savings Results'!$G:$G)-MIN('Savings Results'!$G:$G)+MAX('Savings Results'!$J:$J)+C$8-MIN('Savings Results'!$G:$G),2000),OFFSET('Savings Results'!$A$1,6,1,2000),"Residential")/(1/(1-SUM('CE Parameters'!$F$10:$F$11)))),0)/1000 -> 10546.704 | D9: =IF(MIN('Savings Results'!$G:$G)<=D8,(SUMIFS(OFFSET('Savings Results'!$A$1,6,16+MAX('Savings Results'!$G:$G)-MIN('Savings Results'!$G:$G)+MAX('Savings Results'!$J:$J)+D$8-MIN('Savings Results'!$G:$G),2000),OFFSET('Savings Results'!$A$1,6,1,2000),"Residential")/(1/(1-SUM('CE Parameters'!$F$10:$F$11)))),0)/1000 -> 21273.21327 | E9: =IF(MIN('Savings Results'!$G:$G)<=E8,(SUMIFS(OFFSET('Savings Results'!$A$1,6,16+MAX('Savings Results'!$G:$G)-MIN('Savings Results'!$G:$G)+MAX('Savings Results'!$J:$J)+E$8-MIN('Savings Results'!$G:$G),2000),OFFSET('Savings Results'!$A$1,6,1,2000),"Residential")/(1/(1-SUM('CE Parameters'!$F$10:$F$11)))),0)/1000 -> 26061.51527 | F9: =IF(MIN('Savings Results'!$G:$G)<=F8,(SUMIFS(OFFSET('Savings Results'!$A$1,6,16+MAX('Savings Results'!$G:$G)-MIN('Savings Results'!$G:$G)+MAX('Savings Results'!$J:$J)+F$8-MIN('Savings Results'!$G:$G),2000),OFFSET('Savings Results'!$A$1,6,1,2000),"Residential")/(1/(1-SUM('CE Parameters'!$F$10:$F$11)))),0)/1000 -> 26061.51527 | G9: =IF(MIN('Savings Results'!$G:$G)<=G8,(SUMIFS(OFFSET('Savings Results'!$A$1,6,16+MAX('Savings Results'!$G:$G)-MIN('Savings Results'!$G:$G)+MAX('Savings Results'!$J:$J)+G$8-MIN('Savings Results'!$G:$G),2000),OFFSET('Savings Results'!$A$1,6,1,2000),"Residential")/(1/(1-SUM('CE Parameters'!$F$10:$F$11)))),0)/1000 -> 26061.51527
A10: Incentive Costs ($) | B10: =SUMIFS('Program Design'!$U:$U,'Program Design'!$C:$C,Sector!$B$2,'Program Design'!$J:$J,Sector!B$8) -> 0 | C10: =SUMIFS('Program Design'!$U:$U,'Program Design'!$C:$C,Sector!$B$2,'Program Design'!$J:$J,Sector!C$8) -> 376624 | D10: =SUMIFS('Program Design'!$U:$U,'Program Design'!$C:$C,Sector!$B$2,'Program Design'!$J:$J,Sector!D$8) -> 1174537 | E10: =SUMIFS('Program Design'!$U:$U,'Program Design'!$C:$C,Sector!$B$2,'Program Design'!$J:$J,Sector!E$8) -> 347020 | F10: =SUMIFS('Program Design'!$U:$U,'Program Design'!$C:$C,Sector!$B$2,'Program Design'!$J:$J,Sector!F$8) -> 0 | G10: =SUMIFS('Program Design'!$U:$U,'Program Design'!$C:$C,Sector!$B$2,'Program Design'!$J:$J,Sector!G$8) -> 0
A11: Total Budget ($) | B11: =IFERROR(SUMIF(Budget!$B:$B,Sector!$B$2,INDEX(Budget!$B:$AAO,0,MATCH(Sector!B$8&" Sub-Total",Budget!$B7:$AAO7,0))),0) -> 1116 | C11: =IFERROR(SUMIF(Budget!$B:$B,Sector!$B$2,INDEX(Budget!$B:$AAO,0,MATCH(Sector!C$8&" Sub-Total",Budget!$B7:$AAO7,0))),0) -> 454526 | D11: =IFERROR(SUMIF(Budget!$B:$B,Sector!$B$2,INDEX(Budget!$B:$AAO,0,MATCH(Sector!D$8&" Sub-Total",Budget!$B7:$AAO7,0))),0) -> 1353963 | E11: =IFERROR(SUMIF(Budget!$B:$B,Sector!$B$2,INDEX(Budget!$B:$AAO,0,MATCH(Sector!E$8&" Sub-Total",Budget!$B7:$AAO7,0))),0) -> 379184 | F11: =IFERROR(SUMIF(Budget!$B:$B,Sector!$B$2,INDEX(Budget!$B:$AAO,0,MATCH(Sector!F$8&" Sub-Total",Budget!$B7:$AAO7,0))),0) -> 0 | G11: =IFERROR(SUMIF(Budget!$B:$B,Sector!$B$2,INDEX(Budget!$B:$AAO,0,MATCH(Sector!G$8&" Sub-Total",Budget!$B7:$AAO7,0))),0) -> 0
A13: TABLE 7: Non-Residential Sector Summary
A14: Metric | B14: 2015 | C14: 2016 | D14: 2017 | E14: 2018 | F14: 2019 | G14: 2020
A15: Annual Savings (kWh) | B15: =IF(MIN('Savings Results'!$G:$G)<=B14,(SUMIFS(OFFSET('Savings Results'!$A$1,6,16+MAX('Savings Results'!$G:$G)-MIN('Savings Results'!$G:$G)+MAX('Savings Results'!$J:$J)+B$14-MIN('Savings Results'!$G:$G),2000),OFFSET('Savings Results'!$A$1,6,1,2000),"Non-Residential")/(1/(1-SUM('CE Parameters'!$F$10:$F$11)))),0)/1000 -> 15660.33941 | C15: =IF(MIN('Savings Results'!$G:$G)<=C14,(SUMIFS(OFFSET('Savings Results'!$A$1,6,16+MAX('Savings Results'!$G:$G)-MIN('Savings Results'!$G:$G)+MAX('Savings Results'!$J:$J)+C$14-MIN('Savings Results'!$G:$G),2000),OFFSET('Savings Results'!$A$1,6,1,2000),"Non-Residential")/(1/(1-SUM('CE Parameters'!$F$10:$F$11)))),0)/1000 -> 43480.97458 | D15: =IF(MIN('Savings Results'!$G:$G)<=D14,(SUMIFS(OFFSET('Savings Results'!$A$1,6,16+MAX('Savings Results'!$G:$G)-MIN('Savings Results'!$G:$G)+MAX('Savings Results'!$J:$J)+D$14-MIN('Savings Results'!$G:$G),2000),OFFSET('Savings Results'!$A$1,6,1,2000),"Non-Residential")/(1/(1-SUM('CE Parameters'!$F$10:$F$11)))),0)/1000 -> 59698.88832 | E15: =IF(MIN('Savings Results'!$G:$G)<=E14,(SUMIFS(OFFSET('Savings Results'!$A$1,6,16+MAX('Savings Results'!$G:$G)-MIN('Savings Results'!$G:$G)+MAX('Savings Results'!$J:$J)+E$14-MIN('Savings Results'!$G:$G),2000),OFFSET('Savings Results'!$A$1,6,1,2000),"Non-Residential")/(1/(1-SUM('CE Parameters'!$F$10:$F$11)))),0)/1000 -> 106032.461 | F15: =IF(MIN('Savings Results'!$G:$G)<=F14,(SUMIFS(OFFSET('Savings Results'!$A$1,6,16+MAX('Savings Results'!$G:$G)-MIN('Savings Results'!$G:$G)+MAX('Savings Results'!$J:$J)+F$14-MIN('Savings Results'!$G:$G),2000),OFFSET('Savings Results'!$A$1,6,1,2000),"Non-Residential")/(1/(1-SUM('CE Parameters'!$F$10:$F$11)))),0)/1000 -> 111353.7832 | G15: =IF(MIN('Savings Results'!$G:$G)<=G14,(SUMIFS(OFFSET('Savings Results'!$A$1,6,16+MAX('Savings Results'!$G:$G)-MIN('Savings Results'!$G:$G)+MAX('Savings Results'!$J:$J)+G$14-MIN('Savings Results'!$G:$G),2000),OFFSET('Savings Results'!$A$1,6,1,2000),"Non-Residential")/(1/(1-SUM('CE Parameters'!$F$10:$F$11)))),0)/1000 -> 165079.3465
A16: Incentive Costs ($) | B16: =SUMIFS('Program Design'!$U:$U,'Program Design'!$C:$C,Sector!$C$2,'Program Design'!$J:$J,Sector!B$8) -> 0 | C16: =SUMIFS('Program Design'!$U:$U,'Program Design'!$C:$C,Sector!$C$2,'Program Design'!$J:$J,Sector!C$8) -> 802612.48 | D16: =SUMIFS('Program Design'!$U:$U,'Program Design'!$C:$C,Sector!$C$2,'Program Design'!$J:$J,Sector!D$8) -> 5191989 | E16: =SUMIFS('Program Design'!$U:$U,'Program Design'!$C:$C,Sector!$C$2,'Program Design'!$J:$J,Sector!E$8) -> 13530355.09 | F16: =SUMIFS('Program Design'!$U:$U,'Program Design'!$C:$C,Sector!$C$2,'Program Design'!$J:$J,Sector!F$8) -> 7394107.65 | G16: =SUMIFS('Program Design'!$U:$U,'Program Design'!$C:$C,Sector!$C$2,'Program Design'!$J:$J,Sector!G$8) -> 3170000
A17: Total Budget ($) | B17: =IFERROR(SUMIF(Budget!$B:$B,Sector!$C$2,INDEX(Budget!$B:$AAO,0,MATCH(Sector!B$8&" Sub-Total",Budget!$B7:$AAO7,0))),0) -> 110502 | C17: =IFERROR(SUMIF(Budget!$B:$B,Sector!$C$2,INDEX(Budget!$B:$AAO,0,MATCH(Sector!C$8&" Sub-Total",Budget!$B7:$AAO7,0))),0) -> 1976725.48 | D17: =IFERROR(SUMIF(Budget!$B:$B,Sector!$C$2,INDEX(Budget!$B:$AAO,0,MATCH(Sector!D$8&" Sub-Total",Budget!$B7:$AAO7,0))),0) -> 6272985 | E17: =IFERROR(SUMIF(Budget!$B:$B,Sector!$C$2,INDEX(Budget!$B:$AAO,0,MATCH(Sector!E$8&" Sub-Total",Budget!$B7:$AAO7,0))),0) -> 14789843.38 | F17: =IFERROR(SUMIF(Budget!$B:$B,Sector!$C$2,INDEX(Budget!$B:$AAO,0,MATCH(Sector!F$8&" Sub-Total",Budget!$B7:$AAO7,0))),0) -> 8653595.95 | G17: =IFERROR(SUMIF(Budget!$B:$B,Sector!$C$2,INDEX(Budget!$B:$AAO,0,MATCH(Sector!G$8&" Sub-Total",Budget!$B7:$AAO7,0))),0) -> 4429488.3
A19: TABLE 8: Total Portfolio Summary
A20: Metric | B20: 2015 | C20: 2016 | D20: 2017 | E20: 2018 | F20: 2019 | G20: 2020
A21: Annual Savings (kWh) | B21: =B9+B15 -> 19051.51741 | C21: 54027.67858 | D21: 80972.10159 | E21: 132093.9763 | F21: 137415.2984 | G21: 191140.8618
A22: Incentive Costs ($) | B22: =B10+B16 -> 0 | C22: 1179236.48 | D22: 6366526 | E22: 13877375.09 | F22: 7394107.65 | G22: 3170000
A23: Total Budget ($) | B23: 111618 | C23: 2431251.48 | D23: 7626948 | E23: 15169027.38 | F23: 8653595.95 | G23: 4429488.3
A25: TABLE 9: Home Assistance Program Summary
A26: Metric | B26: Home Assistance Program (HAP)
A27: % of 2020 Annual Savings (target) | B27: =G34/G21 -> 0
A28: % of Total Incentives | B28: =SUM(B35:G35)/SUM(B22:G22) -> 0
A29: % of Total Budget | B29: =SUM(B36:G36)/SUM(B23:G23) -> 0
A31: TABLE 10: Home Assistance Program by Year
A32: Metric | B32: 2015 | C32: 2016 | D32: 2017 | E32: 2018 | F32: 2019 | G32: 2020
A33: Number of Projects | B33: =SUMIFS('Program Design'!$K:$K,'Program Design'!$J:$J,Sector!B$8,'Program Design'!$D:$D,$B26) -> 0 | C33: =SUMIFS('Program Design'!$K:$K,'Program Design'!$J:$J,Sector!C$8,'Program Design'!$D:$D,$B26) -> 0 | D33: =SUMIFS('Program Design'!$K:$K,'Program Design'!$J:$J,Sector!D$8,'Program Design'!$D:$D,$B26) -> 0 | E33: =SUMIFS('Program Design'!$K:$K,'Program Design'!$J:$J,Sector!E$8,'Program Design'!$D:$D,$B26) -> 0 | F33: =SUMIFS('Program Design'!$K:$K,'Program Design'!$J:$J,Sector!F$8,'Program Design'!$D:$D,$B26) -> 0 | G33: =SUMIFS('Program Design'!$K:$K,'Program Design'!$J:$J,Sector!G$8,'Program Design'!$D:$D,$B26) -> 0
A34: Annual Savings (kWh) | B34: =IF(MIN('Savings Results'!$G:$G)<=B32,(SUMIFS(OFFSET('Savings Results'!$A$1,6,16+MAX('Savings Results'!$G:$G)-MIN('Savings Results'!$G:$G)+MAX('Savings Results'!$J:$J)+B$32-MIN('Savings Results'!$G:$G),2000),OFFSET('Savings Results'!$A$1,6,2,2000),$B$26)/(1/(1-SUM('CE Parameters'!$F$10:$F$11)))),0)/1000 -> 0 | C34: =IF(MIN('Savings Results'!$G:$G)<=C32,(SUMIFS(OFFSET('Savings Results'!$A$1,6,16+MAX('Savings Results'!$G:$G)-MIN('Savings Results'!$G:$G)+MAX('Savings Results'!$J:$J)+C$32-MIN('Savings Results'!$G:$G),2000),OFFSET('Savings Results'!$A$1,6,2,2000),$B$26)/(1/(1-SUM('CE Parameters'!$F$10:$F$11)))),0)/1000 -> 0 | D34: =IF(MIN('Savings Results'!$G:$G)<=D32,(SUMIFS(OFFSET('Savings Results'!$A$1,6,16+MAX('Savings Results'!$G:$G)-MIN('Savings Results'!$G:$G)+MAX('Savings Results'!$J:$J)+D$32-MIN('Savings Results'!$G:$G),2000),OFFSET('Savings Results'!$A$1,6,2,2000),$B$26)/(1/(1-SUM('CE Parameters'!$F$10:$F$11)))),0)/1000 -> 0 | E34: =IF(MIN('Savings Results'!$G:$G)<=E32,(SUMIFS(OFFSET('Savings Results'!$A$1,6,16+MAX('Savings Results'!$G:$G)-MIN('Savings Results'!$G:$G)+MAX('Savings Results'!$J:$J)+E$32-MIN('Savings Results'!$G:$G),2000),OFFSET('Savings Results'!$A$1,6,2,2000),$B$26)/(1/(1-SUM('CE Parameters'!$F$10:$F$11)))),0)/1000 -> 0 | F34: =IF(MIN('Savings Results'!$G:$G)<=F32,(SUMIFS(OFFSET('Savings Results'!$A$1,6,16+MAX('Savings Results'!$G:$G)-MIN('Savings Results'!$G:$G)+MAX('Savings Results'!$J:$J)+F$32-MIN('Savings Results'!$G:$G),2000),OFFSET('Savings Results'!$A$1,6,2,2000),$B$26)/(1/(1-SUM('CE Parameters'!$F$10:$F$11)))),0)/1000 -> 0 | G34: =IF(MIN('Savings Results'!$G:$G)<=G32,(SUMIFS(OFFSET('Savings Results'!$A$1,6,16+MAX('Savings Results'!$G:$G)-MIN('Savings Results'!$G:$G)+MAX('Savings Results'!$J:$J)+G$32-MIN('Savings Results'!$G:$G),2000),OFFSET('Savings Results'!$A$1,6,2,2000),$B$26)/(1/(1-SUM('CE Parameters'!$F$10:$F$11)))),0)/1000 -> 0
A35: Incentive Costs ($) | B35: =SUMIFS('Program Design'!$U:$U,'Program Design'!$D:$D,$B$26,'Program Design'!$J:$J,Sector!B$8) -> 0 | C35: =SUMIFS('Program Design'!$U:$U,'Program Design'!$D:$D,$B$26,'Program Design'!$J:$J,Sector!C$8) -> 0 | D35: =SUMIFS('Program Design'!$U:$U,'Program Design'!$D:$D,$B$26,'Program Design'!$J:$J,Sector!D$8) -> 0 | E35: =SUMIFS('Program Design'!$U:$U,'Program Design'!$D:$D,$B$26,'Program Design'!$J:$J,Sector!E$8) -> 0 | F35: =SUMIFS('Program Design'!$U:$U,'Program Design'!$D:$D,$B$26,'Program Design'!$J:$J,Sector!F$8) -> 0 | G35: =SUMIFS('Program Design'!$U:$U,'Program Design'!$D:$D,$B$26,'Program Design'!$J:$J,Sector!G$8) -> 0
A36: Total Budget ($) | B36: =IFERROR(SUMIF(Budget!$C:$C,"Home Assistance Program (HAP)",INDEX(Budget!$B:$AAO,0,MATCH(Sector!B$8&" Sub-Total",Budget!$B7:$AAO7,0))),0) -> 0 | C36: =IFERROR(SUMIF(Budget!$C:$C,"Home Assistance Program (HAP)",INDEX(Budget!$B:$AAO,0,MATCH(Sector!C$8&" Sub-Total",Budget!$B7:$AAO7,0))),0) -> 0 | D36: =IFERROR(SUMIF(Budget!$C:$C,"Home Assistance Program (HAP)",INDEX(Budget!$B:$AAO,0,MATCH(Sector!D$8&" Sub-Total",Budget!$B7:$AAO7,0))),0) -> 0 | E36: =IFERROR(SUMIF(Budget!$C:$C,"Home Assistance Program (HAP)",INDEX(Budget!$B:$AAO,0,MATCH(Sector!E$8&" Sub-Total",Budget!$B7:$AAO7,0))),0) -> 0 | F36: =IFERROR(SUMIF(Budget!$C:$C,"Home Assistance Program (HAP)",INDEX(Budget!$B:$AAO,0,MATCH(Sector!F$8&" Sub-Total",Budget!$B7:$AAO7,0))),0) -> 0 | G36: =IFERROR(SUMIF(Budget!$C:$C,"Home Assistance Program (HAP)",INDEX(Budget!$B:$AAO,0,MATCH(Sector!G$8&" Sub-Total",Budget!$B7:$AAO7,0))),0) -> 0

Sheet Detail
B1: Detailed CDM Portfolio Summary
B3: TABLE 11:
B4: SUMMARY OF CDM PORTFOLIO COST EFFECTIVENESS
C5: Plan Cost Effectiveness | D5: Implementation Year | E5: TRC | H5: PACT | K5: Levelized Cost
E6: Benefits ($) | F6: Costs ($) | G6: Ratio | H6: Benefits ($) | I6: Costs ($) | J6: Ratio | K6: PV of Lifetime Net Energy Savings (kWh) | L6: Costs ($) | M6: ($/kWh)
D7: 2015 | E7: =SUMIFS('Program Design'!$X:$X,'Program Design'!$J:$J,$D7) -> 13111548.67 | F7: =SUMIFS('Program Design'!$Y:$Y,'Program Design'!$J:$J,$D7)+IFERROR(SUMIFS(INDEX(OFFSET('Budget Inputs'!$A$1,6,1,2000,560),0,MATCH(CONCATENATE($D7," Sub-Total"),OFFSET('Budget Inputs'!$A$1,6,1,1,560),0)),OFFSET('Budget Inputs'!$A$1,6,1,2000,1),"Total")*INDEX(OFFSET('Levelized Avoided Cost Table'!$A$1,7,1,900,20),MATCH(CONCATENATE($D7,"_",1),OFFSET('Levelized Avoided Cost Table'!$A$1,7,1,900,1),0),MATCH("Discount Factor",OFFSET('Levelized Avoided Cost Table'!$A$1,7,1,1,20),0)),0) -> 2755337.095 | G7: =IF(E7=0,"",E7/F7) -> 4.75860057 | H7: =SUMIFS('Program Design'!$AF:$AF,'Program Design'!$J:$J,$D7) -> 11378132.43 | I7: =SUMIFS('Program Design'!$AG:$AG,'Program Design'!$J:$J,$D7)+IFERROR(SUMIFS(INDEX(OFFSET('Budget Inputs'!$A$1,6,1,2000,560),0,MATCH(CONCATENATE($D7," Sub-Total"),OFFSET('Budget Inputs'!$A$1,6,1,1,560),0)),OFFSET('Budget Inputs'!$A$1,6,1,2000,1),"Total")*INDEX(OFFSET('Levelized Avoided Cost Table'!$A$1,7,1,900,20),MATCH(CONCATENATE($D7,"_",1),OFFSET('Levelized Avoided Cost Table'!$A$1,7,1,900,1),0),MATCH("Discount Factor",OFFSET('Levelized Avoided Cost Table'!$A$1,7,1,1,20),0)),0) -> 111618 | J7: =IF(H7=0,"",H7/I7) -> 101.93815 | K7: =SUMIFS('Program Design'!$AS:$AS,'Program Design'!$J:$J,$D7) -> 168327388.9 | L7: =IFERROR(SUMIFS('Program Design'!$AT:$AT,'Program Design'!$J:$J,$D7)+(SUMIFS(INDEX(OFFSET('Budget Inputs'!$A$1,6,1,2000,560),0,MATCH(CONCATENATE($D7," Sub-Total"),OFFSET('Budget Inputs'!$A$1,6,1,1,560),0)),OFFSET('Budget Inputs'!$A$1,6,1,2000,1),"Total")*INDEX(OFFSET('Levelized Avoided Cost Table'!$A$1,7,1,900,20),MATCH(CONCATENATE($D7,"_",1),OFFSET('Levelized Avoided Cost Table'!$A$1,7,1,900,1),0),MATCH("Discount Factor",OFFSET('Levelized Avoided Cost Table'!$A$1,7,1,1,20),0))),0) -> 111618 | M7: =IF(K7=0,"",L7/K7) -> 0.0006631006441
D8: 2016 | E8: =SUMIFS('Program Design'!$X:$X,'Program Design'!$J:$J,$D8) -> 21654449.56 | F8: =SUMIFS('Program Design'!$Y:$Y,'Program Design'!$J:$J,$D8)+IFERROR(SUMIFS(INDEX(OFFSET('Budget Inputs'!$A$1,6,1,2000,560),0,MATCH(CONCATENATE($D8," Sub-Total"),OFFSET('Budget Inputs'!$A$1,6,1,1,560),0)),OFFSET('Budget Inputs'!$A$1,6,1,2000,1),"Total")*INDEX(OFFSET('Levelized Avoided Cost Table'!$A$1,7,1,900,20),MATCH(CONCATENATE($D8,"_",1),OFFSET('Levelized Avoided Cost Table'!$A$1,7,1,900,1),0),MATCH("Discount Factor",OFFSET('Levelized Avoided Cost Table'!$A$1,7,1,1,20),0)),0) -> 12494341.29 | G8: 1.733140551 | H8: =SUMIFS('Program Design'!$AF:$AF,'Program Design'!$J:$J,$D8) -> 18064946.06 | I8: =SUMIFS('Program Design'!$AG:$AG,'Program Design'!$J:$J,$D8)+IFERROR(SUMIFS(INDEX(OFFSET('Budget Inputs'!$A$1,6,1,2000,560),0,MATCH(CONCATENATE($D8," Sub-Total"),OFFSET('Budget Inputs'!$A$1,6,1,1,560),0)),OFFSET('Budget Inputs'!$A$1,6,1,2000,1),"Total")*INDEX(OFFSET('Levelized Avoided Cost Table'!$A$1,7,1,900,20),MATCH(CONCATENATE($D8,"_",1),OFFSET('Levelized Avoided Cost Table'!$A$1,7,1,900,1),0),MATCH("Discount Factor",OFFSET('Levelized Avoided Cost Table'!$A$1,7,1,1,20),0)),0) -> 2383579.882 | J8: 7.578913629 | K8: =SUMIFS('Program Design'!$AS:$AS,'Program Design'!$J:$J,$D8) -> 255137855.2 | L8: =IFERROR(SUMIFS('Program Design'!$AT:$AT,'Program Design'!$J:$J,$D8)+(SUMIFS(INDEX(OFFSET('Budget Inputs'!$A$1,6,1,2000,560),0,MATCH(CONCATENATE($D8," Sub-Total"),OFFSET('Budget Inputs'!$A$1,6,1,1,560),0)),OFFSET('Budget Inputs'!$A$1,6,1,2000,1),"Total")*INDEX(OFFSET('Levelized Avoided Cost Table'!$A$1,7,1,900,20),MATCH(CONCATENATE($D8,"_",1),OFFSET('Levelized Avoided Cost Table'!$A$1,7,1,900,1),0),MATCH("Discount Factor",OFFSET('Levelized Avoided Cost Table'!$A$1,7,1,1,20),0))),0) -> 2383579.882 | M8: 0.009342321547
D9: 2017 | E9: =SUMIFS('Program Design'!$X:$X,'Program Design'!$J:$J,$D9) -> 19297220.33 | F9: =SUMIFS('Program Design'!$Y:$Y,'Program Design'!$J:$J,$D9)+IFERROR(SUMIFS(INDEX(OFFSET('Budget Inputs'!$A$1,6,1,2000,560),0,MATCH(CONCATENATE($D9," Sub-Total"),OFFSET('Budget Inputs'!$A$1,6,1,1,560),0)),OFFSET('Budget Inputs'!$A$1,6,1,2000,1),"Total")*INDEX(OFFSET('Levelized Avoided Cost Table'!$A$1,7,1,900,20),MATCH(CONCATENATE($D9,"_",1),OFFSET('Levelized Avoided Cost Table'!$A$1,7,1,900,1),0),MATCH("Discount Factor",OFFSET('Levelized Avoided Cost Table'!$A$1,7,1,1,20),0)),0) -> 11305229.73 | G9: 1.706928633 | H9: =SUMIFS('Program Design'!$AF:$AF,'Program Design'!$J:$J,$D9) -> 16504893.36 | I9: =SUMIFS('Program Design'!$AG:$AG,'Program Design'!$J:$J,$D9)+IFERROR(SUMIFS(INDEX(OFFSET('Budget Inputs'!$A$1,6,1,2000,560),0,MATCH(CONCATENATE($D9," Sub-Total"),OFFSET('Budget Inputs'!$A$1,6,1,1,560),0)),OFFSET('Budget Inputs'!$A$1,6,1,2000,1),"Total")*INDEX(OFFSET('Levelized Avoided Cost Table'!$A$1,7,1,900,20),MATCH(CONCATENATE($D9,"_",1),OFFSET('Levelized Avoided Cost Table'!$A$1,7,1,900,1),0),MATCH("Discount Factor",OFFSET('Levelized Avoided Cost Table'!$A$1,7,1,1,20),0)),0) -> 7330784.314 | J9: 2.251449866 | K9: =SUMIFS('Program Design'!$AS:$AS,'Program Design'!$J:$J,$D9) -> 212471548.7 | L9: =IFERROR(SUMIFS('Program Design'!$AT:$AT,'Program Design'!$J:$J,$D9)+(SUMIFS(INDEX(OFFSET('Budget Inputs'!$A$1,6,1,2000,560),0,MATCH(CONCATENATE($D9," Sub-Total"),OFFSET('Budget Inputs'!$A$1,6,1,1,560),0)),OFFSET('Budget Inputs'!$A$1,6,1,2000,1),"Total")*INDEX(OFFSET('Levelized Avoided Cost Table'!$A$1,7,1,900,20),MATCH(CONCATENATE($D9,"_",1),OFFSET('Levelized Avoided Cost Table'!$A$1,7,1,900,1),0),MATCH("Discount Factor",OFFSET('Levelized Avoided Cost Table'!$A$1,7,1,1,20),0))),0) -> 7330784.314 | M9: 0.03450242802
D10: 2018 | E10: =SUMIFS('Program Design'!$X:$X,'Program Design'!$J:$J,$D10) -> 38031629.76 | F10: =SUMIFS('Program Design'!$Y:$Y,'Program Design'!$J:$J,$D10)+IFERROR(SUMIFS(INDEX(OFFSET('Budget Inputs'!$A$1,6,1,2000,560),0,MATCH(CONCATENATE($D10," Sub-Total"),OFFSET('Budget Inputs'!$A$1,6,1,1,560),0)),OFFSET('Budget Inputs'!$A$1,6,1,2000,1),"Total")*INDEX(OFFSET('Levelized Avoided Cost Table'!$A$1,7,1,900,20),MATCH(CONCATENATE($D10,"_",1),OFFSET('Levelized Avoided Cost Table'!$A$1,7,1,900,1),0),MATCH("Discount Factor",OFFSET('Levelized Avoided Cost Table'!$A$1,7,1,1,20),0)),0) -> 25015544.27 | G10: 1.5203199 | H10: =SUMIFS('Program Design'!$AF:$AF,'Program Design'!$J:$J,$D10) -> 32318898.57 | I10: =SUMIFS('Program Design'!$AG:$AG,'Program Design'!$J:$J,$D10)+IFERROR(SUMIFS(INDEX(OFFSET('Budget Inputs'!$A$1,6,1,2000,560),0,MATCH(CONCATENATE($D10," Sub-Total"),OFFSET('Budget Inputs'!$A$1,6,1,1,560),0)),OFFSET('Budget Inputs'!$A$1,6,1,2000,1),"Total")*INDEX(OFFSET('Levelized Avoided Cost Table'!$A$1,7,1,900,20),MATCH(CONCATENATE($D10,"_",1),OFFSET('Levelized Avoided Cost Table'!$A$1,7,1,900,1),0),MATCH("Discount Factor",OFFSET('Levelized Avoided Cost Table'!$A$1,7,1,1,20),0)),0) -> 14294113.29 | J10: 2.260993592 | K10: =SUMIFS('Program Design'!$AS:$AS,'Program Design'!$J:$J,$D10) -> 465124882.6 | L10: =IFERROR(SUMIFS('Program Design'!$AT:$AT,'Program Design'!$J:$J,$D10)+(SUMIFS(INDEX(OFFSET('Budget Inputs'!$A$1,6,1,2000,560),0,MATCH(CONCATENATE($D10," Sub-Total"),OFFSET('Budget Inputs'!$A$1,6,1,1,560),0)),OFFSET('Budget Inputs'!$A$1,6,1,2000,1),"Total")*INDEX(OFFSET('Levelized Avoided Cost Table'!$A$1,7,1,900,20),MATCH(CONCATENATE($D10,"_",1),OFFSET('Levelized Avoided Cost Table'!$A$1,7,1,900,1),0),MATCH("Discount Factor",OFFSET('Levelized Avoided Cost Table'!$A$1,7,1,1,20),0))),0) -> 14294113.29 | M10: 0.03073177512
D11: 2019 | E11: =SUMIFS('Program Design'!$X:$X,'Program Design'!$J:$J,$D11) -> 4979094.525 | F11: =SUMIFS('Program Design'!$Y:$Y,'Program Design'!$J:$J,$D11)+IFERROR(SUMIFS(INDEX(OFFSET('Budget Inputs'!$A$1,6,1,2000,560),0,MATCH(CONCATENATE($D11," Sub-Total"),OFFSET('Budget Inputs'!$A$1,6,1,1,560),0)),OFFSET('Budget Inputs'!$A$1,6,1,2000,1),"Total")*INDEX(OFFSET('Levelized Avoided Cost Table'!$A$1,7,1,900,20),MATCH(CONCATENATE($D11,"_",1),OFFSET('Levelized Avoided Cost Table'!$A$1,7,1,900,1),0),MATCH("Discount Factor",OFFSET('Levelized Avoided Cost Table'!$A$1,7,1,1,20),0)),0) -> 2711592.528 | G11: 1.836225198 | H11: =SUMIFS('Program Design'!$AF:$AF,'Program Design'!$J:$J,$D11) -> 4326789.307 | I11: =SUMIFS('Program Design'!$AG:$AG,'Program Design'!$J:$J,$D11)+IFERROR(SUMIFS(INDEX(OFFSET('Budget Inputs'!$A$1,6,1,2000,560),0,MATCH(CONCATENATE($D11," Sub-Total"),OFFSET('Budget Inputs'!$A$1,6,1,1,560),0)),OFFSET('Budget Inputs'!$A$1,6,1,2000,1),"Total")*INDEX(OFFSET('Levelized Avoided Cost Table'!$A$1,7,1,900,20),MATCH(CONCATENATE($D11,"_",1),OFFSET('Levelized Avoided Cost Table'!$A$1,7,1,900,1),0),MATCH("Discount Factor",OFFSET('Levelized Avoided Cost Table'!$A$1,7,1,1,20),0)),0) -> 7994585.037 | J11: 0.5412149957 | K11: =SUMIFS('Program Design'!$AS:$AS,'Program Design'!$J:$J,$D11) -> 57192833.2 | L11: =IFERROR(SUMIFS('Program Design'!$AT:$AT,'Program Design'!$J:$J,$D11)+(SUMIFS(INDEX(OFFSET('Budget Inputs'!$A$1,6,1,2000,560),0,MATCH(CONCATENATE($D11," Sub-Total"),OFFSET('Budget Inputs'!$A$1,6,1,1,560),0)),OFFSET('Budget Inputs'!$A$1,6,1,2000,1),"Total")*INDEX(OFFSET('Levelized Avoided Cost Table'!$A$1,7,1,900,20),MATCH(CONCATENATE($D11,"_",1),OFFSET('Levelized Avoided Cost Table'!$A$1,7,1,900,1),0),MATCH("Discount Factor",OFFSET('Levelized Avoided Cost Table'!$A$1,7,1,1,20),0))),0) -> 7994585.037 | M11: 0.1397829866
D12: 2020 | E12: =SUMIFS('Program Design'!$X:$X,'Program Design'!$J:$J,$D12) -> 54458718.32 | F12: =SUMIFS('Program Design'!$Y:$Y,'Program Design'!$J:$J,$D12)+IFERROR(SUMIFS(INDEX(OFFSET('Budget Inputs'!$A$1,6,1,2000,560),0,MATCH(CONCATENATE($D12," Sub-Total"),OFFSET('Budget Inputs'!$A$1,6,1,1,560),0)),OFFSET('Budget Inputs'!$A$1,6,1,2000,1),"Total")*INDEX(OFFSET('Levelized Avoided Cost Table'!$A$1,7,1,900,20),MATCH(CONCATENATE($D12,"_",1),OFFSET('Levelized Avoided Cost Table'!$A$1,7,1,900,1),0),MATCH("Discount Factor",OFFSET('Levelized Avoided Cost Table'!$A$1,7,1,1,20),0)),0) -> 16887534.44 | G12: 3.224787995 | H12: =SUMIFS('Program Design'!$AF:$AF,'Program Design'!$J:$J,$D12) -> 47355407.23 | I12: =SUMIFS('Program Design'!$AG:$AG,'Program Design'!$J:$J,$D12)+IFERROR(SUMIFS(INDEX(OFFSET('Budget Inputs'!$A$1,6,1,2000,560),0,MATCH(CONCATENATE($D12," Sub-Total"),OFFSET('Budget Inputs'!$A$1,6,1,1,560),0)),OFFSET('Budget Inputs'!$A$1,6,1,2000,1),"Total")*INDEX(OFFSET('Levelized Avoided Cost Table'!$A$1,7,1,900,20),MATCH(CONCATENATE($D12,"_",1),OFFSET('Levelized Avoided Cost Table'!$A$1,7,1,900,1),0),MATCH("Discount Factor",OFFSET('Levelized Avoided Cost Table'!$A$1,7,1,1,20),0)),0) -> 4011924.025 | J12: 11.80366501 | K12: =SUMIFS('Program Design'!$AS:$AS,'Program Design'!$J:$J,$D12) -> 609352794.4 | L12: =IFERROR(SUMIFS('Program Design'!$AT:$AT,'Program Design'!$J:$J,$D12)+(SUMIFS(INDEX(OFFSET('Budget Inputs'!$A$1,6,1,2000,560),0,MATCH(CONCATENATE($D12," Sub-Total"),OFFSET('Budget Inputs'!$A$1,6,1,1,560),0)),OFFSET('Budget Inputs'!$A$1,6,1,2000,1),"Total")*INDEX(OFFSET('Levelized Avoided Cost Table'!$A$1,7,1,900,20),MATCH(CONCATENATE($D12,"_",1),OFFSET('Levelized Avoided Cost Table'!$A$1,7,1,900,1),0),MATCH("Discount Factor",OFFSET('Levelized Avoided Cost Table'!$A$1,7,1,1,20),0))),0) -> 4011924.025 | M12: 0.006583910113
D13: Plan Total | E13: =SUM(E7:E12) -> 151532661.2 | F13: =SUM(F7:F12) -> 71169579.35 | G13: =IF(E13="","",E13/F13) -> 2.129177417 | H13: =SUM(H7:H12) -> 129949067 | I13: =SUM(I7:I12) -> 36126604.55 | J13: =IF(H13="","",H13/I13) -> 3.597046237 | K13: =SUM(K7:K12) -> 1767607303 | L13: =SUM(L7:L12) -> 36126604.55 | M13: =IF(K13="","",L13/K13) -> 0.02043813945
B15: TABLE 12:
B16: SUMMARY OF PERSISTING CDM PORTFOLIO SAVINGS
C17: Plan Persisting Savings (end-user level) | D17: Implementation Year | E17: 2015 | G17: 2016 | I17: 2017 | K17: 2018 | M17: 2019 | O17: 2020 | Q17: 2021 | S17: 2022 | U17: 2023 | W17: 2024 | Y17: 2025 | AA17: 2026 | AC17: 2027 | AE17: 2028 | AG17: 2029 | AI17: 2030 | AK17: 2031 | AM17: 2032
E18: MW | F18: MWh | G18: MW | H18: MWh | I18: MW | J18: MWh | K18: MW | L18: MWh | M18: MW | N18: MWh | O18: MW | P18: MWh | Q18: MW | R18: MWh | S18: MW | T18: MWh | U18: MW | V18: MWh | W18: MW | X18: MWh | Y18: MW | Z18: MWh | AA18: MW | AB18: MWh | AC18: MW | AD18: MWh | AE18: MW | AF18: MWh | AG18: MW | AH18: MWh | AI18: MW | AJ18: MWh | AK18: MW | AL18: MWh | AM18: MW | AN18: MWh
D19: 2015 | E19: =IF(OFFSET('Savings Results'!$A$1,5,16 +E$17-MIN('Savings Results'!$G:$G))=E$17,(SUMIFS(OFFSET('Savings Results'!$A$1,6,16 +E$17-MIN('Savings Results'!$G:$G),2000),OFFSET('Savings Results'!$A$1,6,4,2000),"Dx",OFFSET('Savings Results'!$A$1,6,6,2000),$D19)/(1/(1-SUM('CE Parameters'!$F$10:$F$11))))/1000,0) -> 2.931792973 | F19: =IF(OFFSET('Savings Results'!$A$1,5,16 +MAX('Savings Results'!$G:$G)-MIN('Savings Results'!$G:$G)+MAX('Savings Results'!$J:$J)+E$17-MIN('Savings Results'!$G:$G))=E$17,(SUMIFS(OFFSET('Savings Results'!$A$1,6,16 +MAX('Savings Results'!$G:$G)-MIN('Savings Results'!$G:$G)+MAX('Savings Results'!$J:$J)+E$17-MIN('Savings Results'!$G:$G),2000),OFFSET('Savings Results'!$A$1,6,4,2000),"Dx",OFFSET('Savings Results'!$A$1,6,6,2000),$D19)/(1/(1-SUM('CE Parameters'!$F$10:$F$11))))/1000,0) -> 19051.51741 | G19: =IF(OFFSET('Savings Results'!$A$1,5,16 +G$17-MIN('Savings Results'!$G:$G))=G$17,(SUMIFS(OFFSET('Savings Results'!$A$1,6,16 +G$17-MIN('Savings Results'!$G:$G),2000),OFFSET('Savings Results'!$A$1,6,4,2000),"Dx",OFFSET('Savings Results'!$A$1,6,6,2000),$D19)/(1/(1-SUM('CE Parameters'!$F$10:$F$11))))/1000,0) -> 2.931792973 | H19: =IF(OFFSET('Savings Results'!$A$1,5,16 +MAX('Savings Results'!$G:$G)-MIN('Savings Results'!$G:$G)+MAX('Savings Results'!$J:$J)+G$17-MIN('Savings Results'!$G:$G))=G$17,(SUMIFS(OFFSET('Savings Results'!$A$1,6,16 +MAX('Savings Results'!$G:$G)-MIN('Savings Results'!$G:$G)+MAX('Savings Results'!$J:$J)+G$17-MIN('Savings Results'!$G:$G),2000),OFFSET('Savings Results'!$A$1,6,4,2000),"Dx",OFFSET('Savings Results'!$A$1,6,6,2000),$D19)/(1/(1-SUM('CE Parameters'!$F$10:$F$11))))/1000,0) -> 19051.51741 | I19: =IF(OFFSET('Savings Results'!$A$1,5,16 +I$17-MIN('Savings Results'!$G:$G))=I$17,(SUMIFS(OFFSET('Savings Results'!$A$1,6,16 +I$17-MIN('Savings Results'!$G:$G),2000),OFFSET('Savings Results'!$A$1,6,4,2000),"Dx",OFFSET('Savings Results'!$A$1,6,6,2000),$D19)/(1/(1-SUM('CE Parameters'!$F$10:$F$11))))/1000,0) -> 2.931792973 | J19: =IF(OFFSET('Savings Results'!$A$1,5,16 +MAX('Savings Results'!$G:$G)-MIN('Savings Results'!$G:$G)+MAX('Savings Results'!$J:$J)+I$17-MIN('Savings Results'!$G:$G))=I$17,(SUMIFS(OFFSET('Savings Results'!$A$1,6,16 +MAX('Savings Results'!$G:$G)-MIN('Savings Results'!$G:$G)+MAX('Savings Results'!$J:$J)+I$17-MIN('Savings Results'!$G:$G),2000),OFFSET('Savings Results'!$A$1,6,4,2000),"Dx",OFFSET('Savings Results'!$A$1,6,6,2000),$D19)/(1/(1-SUM('CE Parameters'!$F$10:$F$11))))/1000,0) -> 19051.51741 | K19: =IF(OFFSET('Savings Results'!$A$1,5,16 +K$17-MIN('Savings Results'!$G:$G))=K$17,(SUMIFS(OFFSET('Savings Results'!$A$1,6,16 +K$17-MIN('Savings Results'!$G:$G),2000),OFFSET('Savings Results'!$A$1,6,4,2000),"Dx",OFFSET('Savings Results'!$A$1,6,6,2000),$D19)/(1/(1-SUM('CE Parameters'!$F$10:$F$11))))/1000,0) -> 2.931792973 | L19: =IF(OFFSET('Savings Results'!$A$1,5,16 +MAX('Savings Results'!$G:$G)-MIN('Savings Results'!$G:$G)+MAX('Savings Results'!$J:$J)+K$17-MIN('Savings Results'!$G:$G))=K$17,(SUMIFS(OFFSET('Savings Results'!$A$1,6,16 +MAX('Savings Results'!$G:$G)-MIN('Savings Results'!$G:$G)+MAX('Savings Results'!$J:$J)+K$17-MIN('Savings Results'!$G:$G),2000),OFFSET('Savings Results'!$A$1,6,4,2000),"Dx",OFFSET('Savings Results'!$A$1,6,6,2000),$D19)/(1/(1-SUM('CE Parameters'!$F$10:$F$11))))/1000,0) -> 19051.51741 | M19: =IF(OFFSET('Savings Results'!$A$1,5,16 +M$17-MIN('Savings Results'!$G:$G))=M$17,(SUMIFS(OFFSET('Savings Results'!$A$1,6,16 +M$17-MIN('Savings Results'!$G:$G),2000),OFFSET('Savings Results'!$A$1,6,4,2000),"Dx",OFFSET('Savings Results'!$A$1,6,6,2000),$D19)/(1/(1-SUM('CE Parameters'!$F$10:$F$11))))/1000,0) -> 2.931792973 | N19: =IF(OFFSET('Savings Results'!$A$1,5,16 +MAX('Savings Results'!$G:$G)-MIN('Savings Results'!$G:$G)+MAX('Savings Results'!$J:$J)+M$17-MIN('Savings Results'!$G:$G))=M$17,(SUMIFS(OFFSET('Savings Results'!$A$1,6,16 +MAX('Savings Results'!$G:$G)-MIN('Savings Results'!$G:$G)+MAX('Savings Results'!$J:$J)+M$17-MIN('Savings Results'!$G:$G),2000),OFFSET('Savings Results'!$A$1,6,4,2000),"Dx",OFFSET('Savings Results'!$A$1,6,6,2000),$D19)/(1/(1-SUM('CE Parameters'!$F$10:$F$11))))/1000,0) -> 19051.51741 | O19: =IF(OFFSET('Savings Results'!$A$1,5,16 +O$17-MIN('Savings Results'!$G:$G))=O$17,(SUMIFS(OFFSET('Savings Results'!$A$1,6,16 +O$17-MIN('Savings Results'!$G:$G),2000),OFFSET('Savings Results'!$A$1,6,4,2000),"Dx",OFFSET('Savings Results'!$A$1,6,6,2000),$D19)/(1/(1-SUM('CE Parameters'!$F$10:$F$11))))/1000,0) -> 2.931792973 | P19: =IF(OFFSET('Savings Results'!$A$1,5,16 +MAX('Savings Results'!$G:$G)-MIN('Savings Results'!$G:$G)+MAX('Savings Results'!$J:$J)+O$17-MIN('Savings Results'!$G:$G))=O$17,(SUMIFS(OFFSET('Savings Results'!$A$1,6,16 +MAX('Savings Results'!$G:$G)-MIN('Savings Results'!$G:$G)+MAX('Savings Results'!$J:$J)+O$17-MIN('Savings Results'!$G:$G),2000),OFFSET('Savings Results'!$A$1,6,4,2000),"Dx",OFFSET('Savings Results'!$A$1,6,6,2000),$D19)/(1/(1-SUM('CE Parameters'!$F$10:$F$11))))/1000,0) -> 19051.51741 | Q19: =IF(OFFSET('Savings Results'!$A$1,5,16 +Q$17-MIN('Savings Results'!$G:$G))=Q$17,(SUMIFS(OFFSET('Savings Results'!$A$1,6,16 +Q$17-MIN('Savings Results'!$G:$G),2000),OFFSET('Savings Results'!$A$1,6,4,2000),"Dx",OFFSET('Savings Results'!$A$1,6,6,2000),$D19)/(1/(1-SUM('CE Parameters'!$F$10:$F$11))))/1000,0) -> 2.858792973 | R19: =IF(OFFSET('Savings Results'!$A$1,5,16 +MAX('Savings Results'!$G:$G)-MIN('Savings Results'!$G:$G)+MAX('Savings Results'!$J:$J)+Q$17-MIN('Savings Results'!$G:$G))=Q$17,(SUMIFS(OFFSET('Savings Results'!$A$1,6,16 +MAX('Savings Results'!$G:$G)-MIN('Savings Results'!$G:$G)+MAX('Savings Results'!$J:$J)+Q$17-MIN('Savings Results'!$G:$G),2000),OFFSET('Savings Results'!$A$1,6,4,2000),"Dx",OFFSET('Savings Results'!$A$1,6,6,2000),$D19)/(1/(1-SUM('CE Parameters'!$F$10:$F$11))))/1000,0) -> 18737.18041 | S19: =IF(OFFSET('Savings Results'!$A$1,5,16 +S$17-MIN('Savings Results'!$G:$G))=S$17,(SUMIFS(OFFSET('Savings Results'!$A$1,6,16 +S$17-MIN('Savings Results'!$G:$G),2000),OFFSET('Savings Results'!$A$1,6,4,2000),"Dx",OFFSET('Savings Results'!$A$1,6,6,2000),$D19)/(1/(1-SUM('CE Parameters'!$F$10:$F$11))))/1000,0) -> 2.799792973 | T19: =IF(OFFSET('Savings Results'!$A$1,5,16 +MAX('Savings Results'!$G:$G)-MIN('Savings Results'!$G:$G)+MAX('Savings Results'!$J:$J)+S$17-MIN('Savings Results'!$G:$G))=S$17,(SUMIFS(OFFSET('Savings Results'!$A$1,6,16 +MAX('Savings Results'!$G:$G)-MIN('Savings Results'!$G:$G)+MAX('Savings Results'!$J:$J)+S$17-MIN('Savings Results'!$G:$G),2000),OFFSET('Savings Results'!$A$1,6,4,2000),"Dx",OFFSET('Savings Results'!$A$1,6,6,2000),$D19)/(1/(1-SUM('CE Parameters'!$F$10:$F$11))))/1000,0) -> 17835.10741 | U19: =IF(OFFSET('Savings Results'!$A$1,5,16 +U$17-MIN('Savings Results'!$G:$G))=U$17,(SUMIFS(OFFSET('Savings Results'!$A$1,6,16 +U$17-MIN('Savings Results'!$G:$G),2000),OFFSET('Savings Results'!$A$1,6,4,2000),"Dx",OFFSET('Savings Results'!$A$1,6,6,2000),$D19)/(1/(1-SUM('CE Parameters'!$F$10:$F$11))))/1000,0) -> 2.799792973 | V19: =IF(OFFSET('Savings Results'!$A$1,5,16 +MAX('Savings Results'!$G:$G)-MIN('Savings Results'!$G:$G)+MAX('Savings Results'!$J:$J)+U$17-MIN('Savings Results'!$G:$G))=U$17,(SUMIFS(OFFSET('Savings Results'!$A$1,6,16 +MAX('Savings Results'!$G:$G)-MIN('Savings Results'!$G:$G)+MAX('Savings Results'!$J:$J)+U$17-MIN('Savings Results'!$G:$G),2000),OFFSET('Savings Results'!$A$1,6,4,2000),"Dx",OFFSET('Savings Results'!$A$1,6,6,2000),$D19)/(1/(1-SUM('CE Parameters'!$F$10:$F$11))))/1000,0) -> 17835.10741 | W19: =IF(OFFSET('Savings Results'!$A$1,5,16 +W$17-MIN('Savings Results'!$G:$G))=W$17,(SUMIFS(OFFSET('Savings Results'!$A$1,6,16 +W$17-MIN('Savings Results'!$G:$G),2000),OFFSET('Savings Results'!$A$1,6,4,2000),"Dx",OFFSET('Savings Results'!$A$1,6,6,2000),$D19)/(1/(1-SUM('CE Parameters'!$F$10:$F$11))))/1000,0) -> 2.763792973 | X19: =IF(OFFSET('Savings Results'!$A$1,5,16 +MAX('Savings Results'!$G:$G)-MIN('Savings Results'!$G:$G)+MAX('Savings Results'!$J:$J)+W$17-MIN('Savings Results'!$G:$G))=W$17,(SUMIFS(OFFSET('Savings Results'!$A$1,6,16 +MAX('Savings Results'!$G:$G)-MIN('Savings Results'!$G:$G)+MAX('Savings Results'!$J:$J)+W$17-MIN('Savings Results'!$G:$G),2000),OFFSET('Savings Results'!$A$1,6,4,2000),"Dx",OFFSET('Savings Results'!$A$1,6,6,2000),$D19)/(1/(1-SUM('CE Parameters'!$F$10:$F$11))))/1000,0) -> 17614.25341 | Y19: =IF(OFFSET('Savings Results'!$A$1,5,16 +Y$17-MIN('Savings Results'!$G:$G))=Y$17,(SUMIFS(OFFSET('Savings Results'!$A$1,6,16 +Y$17-MIN('Savings Results'!$G:$G),2000),OFFSET('Savings Results'!$A$1,6,4,2000),"Dx",OFFSET('Savings Results'!$A$1,6,6,2000),$D19)/(1/(1-SUM('CE Parameters'!$F$10:$F$11))))/1000,0) -> 2.667792973 | Z19: =IF(OFFSET('Savings Results'!$A$1,5,16 +MAX('Savings Results'!$G:$G)-MIN('Savings Results'!$G:$G)+MAX('Savings Results'!$J:$J)+Y$17-MIN('Savings Results'!$G:$G))=Y$17,(SUMIFS(OFFSET('Savings Results'!$A$1,6,16 +MAX('Savings Results'!$G:$G)-MIN('Savings Results'!$G:$G)+MAX('Savings Results'!$J:$J)+Y$17-MIN('Savings Results'!$G:$G),2000),OFFSET('Savings Results'!$A$1,6,4,2000),"Dx",OFFSET('Savings Results'!$A$1,6,6,2000),$D19)/(1/(1-SUM('CE Parameters'!$F$10:$F$11))))/1000,0) -> 16190.87041 | AA19: =IF(OFFSET('Savings Results'!$A$1,5,16 +AA$17-MIN('Savings Results'!$G:$G))=AA$17,(SUMIFS(OFFSET('Savings Results'!$A$1,6,16 +AA$17-MIN('Savings Results'!$G:$G),2000),OFFSET('Savings Results'!$A$1,6,4,2000),"Dx",OFFSET('Savings Results'!$A$1,6,6,2000),$D19)/(1/(1-SUM('CE Parameters'!$F$10:$F$11))))/1000,0) -> 0.629 | AB19: =IF(OFFSET('Savings Results'!$A$1,5,16 +MAX('Savings Results'!$G:$G)-MIN('Savings Results'!$G:$G)+MAX('Savings Results'!$J:$J)+AA$17-MIN('Savings Results'!$G:$G))=AA$17,(SUMIFS(OFFSET('Savings Results'!$A$1,6,16 +MAX('Savings Results'!$G:$G)-MIN('Savings Results'!$G:$G)+MAX('Savings Results'!$J:$J)+AA$17-MIN('Savings Results'!$G:$G),2000),OFFSET('Savings Results'!$A$1,6,4,2000),"Dx",OFFSET('Savings Results'!$A$1,6,6,2000),$D19)/(1/(1-SUM('CE Parameters'!$F$10:$F$11))))/1000,0) -> 2500.686 | AC19: =IF(OFFSET('Savings Results'!$A$1,5,16 +AC$17-MIN('Savings Results'!$G:$G))=AC$17,(SUMIFS(OFFSET('Savings Results'!$A$1,6,16 +AC$17-MIN('Savings Results'!$G:$G),2000),OFFSET('Savings Results'!$A$1,6,4,2000),"Dx",OFFSET('Savings Results'!$A$1,6,6,2000),$D19)/(1/(1-SUM('CE Parameters'!$F$10:$F$11))))/1000,0) -> 0.629 | AD19: =IF(OFFSET('Savings Results'!$A$1,5,16 +MAX('Savings Results'!$G:$G)-MIN('Savings Results'!$G:$G)+MAX('Savings Results'!$J:$J)+AC$17-MIN('Savings Results'!$G:$G))=AC$17,(SUMIFS(OFFSET('Savings Results'!$A$1,6,16 +MAX('Savings Results'!$G:$G)-MIN('Savings Results'!$G:$G)+MAX('Savings Results'!$J:$J)+AC$17-MIN('Savings Results'!$G:$G),2000),OFFSET('Savings Results'!$A$1,6,4,2000),"Dx",OFFSET('Savings Results'!$A$1,6,6,2000),$D19)/(1/(1-SUM('CE Parameters'!$F$10:$F$11))))/1000,0) -> 2500.686 | AE19: =IF(OFFSET('Savings Results'!$A$1,5,16 +AE$17-MIN('Savings Results'!$G:$G))=AE$17,(SUMIFS(OFFSET('Savings Results'!$A$1,6,16 +AE$17-MIN('Savings Results'!$G:$G),2000),OFFSET('Savings Results'!$A$1,6,4,2000),"Dx",OFFSET('Savings Results'!$A$1,6,6,2000),$D19)/(1/(1-SUM('CE Parameters'!$F$10:$F$11))))/1000,0) -> 0.626 | AF19: =IF(OFFSET('Savings Results'!$A$1,5,16 +MAX('Savings Results'!$G:$G)-MIN('Savings Results'!$G:$G)+MAX('Savings Results'!$J:$J)+AE$17-MIN('Savings Results'!$G:$G))=AE$17,(SUMIFS(OFFSET('Savings Results'!$A$1,6,16 +MAX('Savings Results'!$G:$G)-MIN('Savings Results'!$G:$G)+MAX('Savings Results'!$J:$J)+AE$17-MIN('Savings Results'!$G:$G),2000),OFFSET('Savings Results'!$A$1,6,4,2000),"Dx",OFFSET('Savings Results'!$A$1,6,6,2000),$D19)/(1/(1-SUM('CE Parameters'!$F$10:$F$11))))/1000,0) -> 2489.859 | AG19: =IF(OFFSET('Savings Results'!$A$1,5,16 +AG$17-MIN('Savings Results'!$G:$G))=AG$17,(SUMIFS(OFFSET('Savings Results'!$A$1,6,16 +AG$17-MIN('Savings Results'!$G:$G),2000),OFFSET('Savings Results'!$A$1,6,4,2000),"Dx",OFFSET('Savings Results'!$A$1,6,6,2000),$D19)/(1/(1-SUM('CE Parameters'!$F$10:$F$11))))/1000,0) -> 0.626 | AH19: =IF(OFFSET('Savings Results'!$A$1,5,16 +MAX('Savings Results'!$G:$G)-MIN('Savings Results'!$G:$G)+MAX('Savings Results'!$J:$J)+AG$17-MIN('Savings Results'!$G:$G))=AG$17,(SUMIFS(OFFSET('Savings Results'!$A$1,6,16 +MAX('Savings Results'!$G:$G)-MIN('Savings Results'!$G:$G)+MAX('Savings Results'!$J:$J)+AG$17-MIN('Savings Results'!$G:$G),2000),OFFSET('Savings Results'!$A$1,6,4,2000),"Dx",OFFSET('Savings Results'!$A$1,6,6,2000),$D19)/(1/(1-SUM('CE Parameters'!$F$10:$F$11))))/1000,0) -> 2489.859 | AI19: =IF(OFFSET('Savings Results'!$A$1,5,16 +AI$17-MIN('Savings Results'!$G:$G))=AI$17,(SUMIFS(OFFSET('Savings Results'!$A$1,6,16 +AI$17-MIN('Savings Results'!$G:$G),2000),OFFSET('Savings Results'!$A$1,6,4,2000),"Dx",OFFSET('Savings Results'!$A$1,6,6,2000),$D19)/(1/(1-SUM('CE Parameters'!$F$10:$F$11))))/1000,0) -> 0.626 | AJ19: =IF(OFFSET('Savings Results'!$A$1,5,16 +MAX('Savings Results'!$G:$G)-MIN('Savings Results'!$G:$G)+MAX('Savings Results'!$J:$J)+AI$17-MIN('Savings Results'!$G:$G))=AI$17,(SUMIFS(OFFSET('Savings Results'!$A$1,6,16 +MAX('Savings Results'!$G:$G)-MIN('Savings Results'!$G:$G)+MAX('Savings Results'!$J:$J)+AI$17-MIN('Savings Results'!$G:$G),2000),OFFSET('Savings Results'!$A$1,6,4,2000),"Dx",OFFSET('Savings Results'!$A$1,6,6,2000),$D19)/(1/(1-SUM('CE Parameters'!$F$10:$F$11))))/1000,0) -> 2489.859 | AK19: =IF(OFFSET('Savings Results'!$A$1,5,16 +AK$17-MIN('Savings Results'!$G:$G))=AK$17,(SUMIFS(OFFSET('Savings Results'!$A$1,6,16 +AK$17-MIN('Savings Results'!$G:$G),2000),OFFSET('Savings Results'!$A$1,6,4,2000),"Dx",OFFSET('Savings Results'!$A$1,6,6,2000),$D19)/(1/(1-SUM('CE Parameters'!$F$10:$F$11))))/1000,0) -> 0.626 | AL19: =IF(OFFSET('Savings Results'!$A$1,5,16 +MAX('Savings Results'!$G:$G)-MIN('Savings Results'!$G:$G)+MAX('Savings Results'!$J:$J)+AK$17-MIN('Savings Results'!$G:$G))=AK$17,(SUMIFS(OFFSET('Savings Results'!$A$1,6,16 +MAX('Savings Results'!$G:$G)-MIN('Savings Results'!$G:$G)+MAX('Savings Results'!$J:$J)+AK$17-MIN('Savings Results'!$G:$G),2000),OFFSET('Savings Results'!$A$1,6,4,2000),"Dx",OFFSET('Savings Results'!$A$1,6,6,2000),$D19)/(1/(1-SUM('CE Parameters'!$F$10:$F$11))))/1000,0) -> 2489.859 | AM19: =IF(OFFSET('Savings Results'!$A$1,5,16 +AM$17-MIN('Savings Results'!$G:$G))=AM$17,(SUMIFS(OFFSET('Savings Results'!$A$1,6,16 +AM$17-MIN('Savings Results'!$G:$G),2000),OFFSET('Savings Results'!$A$1,6,4,2000),"Dx",OFFSET('Savings Results'!$A$1,6,6,2000),$D19)/(1/(1-SUM('CE Parameters'!$F$10:$F$11))))/1000,0) -> 0.626 | AN19: =IF(OFFSET('Savings Results'!$A$1,5,16 +MAX('Savings Results'!$G:$G)-MIN('Savings Results'!$G:$G)+MAX('Savings Results'!$J:$J)+AM$17-MIN('Savings Results'!$G:$G))=AM$17,(SUMIFS(OFFSET('Savings Results'!$A$1,6,16 +MAX('Savings Results'!$G:$G)-MIN('Savings Results'!$G:$G)+MAX('Savings Results'!$J:$J)+AM$17-MIN('Savings Results'!$G:$G),2000),OFFSET('Savings Results'!$A$1,6,4,2000),"Dx",OFFSET('Savings Results'!$A$1,6,6,2000),$D19)/(1/(1-SUM('CE Parameters'!$F$10:$F$11))))/1000,0) -> 2489.859
D20: 2016 | E20: =IF(OFFSET('Savings Results'!$A$1,5,16 +E$17-MIN('Savings Results'!$G:$G))=E$17,(SUMIFS(OFFSET('Savings Results'!$A$1,6,16 +E$17-MIN('Savings Results'!$G:$G),2000),OFFSET('Savings Results'!$A$1,6,4,2000),"Dx",OFFSET('Savings Results'!$A$1,6,6,2000),$D20)/(1/(1-SUM('CE Parameters'!$F$10:$F$11))))/1000,0) -> 0 | F20: =IF(OFFSET('Savings Results'!$A$1,5,16 +MAX('Savings Results'!$G:$G)-MIN('Savings Results'!$G:$G)+MAX('Savings Results'!$J:$J)+E$17-MIN('Savings Results'!$G:$G))=E$17,(SUMIFS(OFFSET('Savings Results'!$A$1,6,16 +MAX('Savings Results'!$G:$G)-MIN('Savings Results'!$G:$G)+MAX('Savings Results'!$J:$J)+E$17-MIN('Savings Results'!$G:$G),2000),OFFSET('Savings Results'!$A$1,6,4,2000),"Dx",OFFSET('Savings Results'!$A$1,6,6,2000),$D20)/(1/(1-SUM('CE Parameters'!$F$10:$F$11))))/1000,0) -> 0 | G20: =IF(OFFSET('Savings Results'!$A$1,5,16 +G$17-MIN('Savings Results'!$G:$G))=G$17,(SUMIFS(OFFSET('Savings Results'!$A$1,6,16 +G$17-MIN('Savings Results'!$G:$G),2000),OFFSET('Savings Results'!$A$1,6,4,2000),"Dx",OFFSET('Savings Results'!$A$1,6,6,2000),$D20)/(1/(1-SUM('CE Parameters'!$F$10:$F$11))))/1000,0) -> 5.622969636 | H20: =IF(OFFSET('Savings Results'!$A$1,5,16 +MAX('Savings Results'!$G:$G)-MIN('Savings Results'!$G:$G)+MAX('Savings Results'!$J:$J)+G$17-MIN('Savings Results'!$G:$G))=G$17,(SUMIFS(OFFSET('Savings Results'!$A$1,6,16 +MAX('Savings Results'!$G:$G)-MIN('Savings Results'!$G:$G)+MAX('Savings Results'!$J:$J)+G$17-MIN('Savings Results'!$G:$G),2000),OFFSET('Savings Results'!$A$1,6,4,2000),"Dx",OFFSET('Savings Results'!$A$1,6,6,2000),$D20)/(1/(1-SUM('CE Parameters'!$F$10:$F$11))))/1000,0) -> 34976.16117 | I20: =IF(OFFSET('Savings Results'!$A$1,5,16 +I$17-MIN('Savings Results'!$G:$G))=I$17,(SUMIFS(OFFSET('Savings Results'!$A$1,6,16 +I$17-MIN('Savings Results'!$G:$G),2000),OFFSET('Savings Results'!$A$1,6,4,2000),"Dx",OFFSET('Savings Results'!$A$1,6,6,2000),$D20)/(1/(1-SUM('CE Parameters'!$F$10:$F$11))))/1000,0) -> 5.622969636 | J20: =IF(OFFSET('Savings Results'!$A$1,5,16 +MAX('Savings Results'!$G:$G)-MIN('Savings Results'!$G:$G)+MAX('Savings Results'!$J:$J)+I$17-MIN('Savings Results'!$G:$G))=I$17,(SUMIFS(OFFSET('Savings Results'!$A$1,6,16 +MAX('Savings Results'!$G:$G)-MIN('Savings Results'!$G:$G)+MAX('Savings Results'!$J:$J)+I$17-MIN('Savings Results'!$G:$G),2000),OFFSET('Savings Results'!$A$1,6,4,2000),"Dx",OFFSET('Savings Results'!$A$1,6,6,2000),$D20)/(1/(1-SUM('CE Parameters'!$F$10:$F$11))))/1000,0) -> 34976.16117 | K20: =IF(OFFSET('Savings Results'!$A$1,5,16 +K$17-MIN('Savings Results'!$G:$G))=K$17,(SUMIFS(OFFSET('Savings Results'!$A$1,6,16 +K$17-MIN('Savings Results'!$G:$G),2000),OFFSET('Savings Results'!$A$1,6,4,2000),"Dx",OFFSET('Savings Results'!$A$1,6,6,2000),$D20)/(1/(1-SUM('CE Parameters'!$F$10:$F$11))))/1000,0) -> 5.622969636 | L20: =IF(OFFSET('Savings Results'!$A$1,5,16 +MAX('Savings Results'!$G:$G)-MIN('Savings Results'!$G:$G)+MAX('Savings Results'!$J:$J)+K$17-MIN('Savings Results'!$G:$G))=K$17,(SUMIFS(OFFSET('Savings Results'!$A$1,6,16 +MAX('Savings Results'!$G:$G)-MIN('Savings Results'!$G:$G)+MAX('Savings Results'!$J:$J)+K$17-MIN('Savings Results'!$G:$G),2000),OFFSET('Savings Results'!$A$1,6,4,2000),"Dx",OFFSET('Savings Results'!$A$1,6,6,2000),$D20)/(1/(1-SUM('CE Parameters'!$F$10:$F$11))))/1000,0) -> 34976.16117 | M20: =IF(OFFSET('Savings Results'!$A$1,5,16 +M$17-MIN('Savings Results'!$G:$G))=M$17,(SUMIFS(OFFSET('Savings Results'!$A$1,6,16 +M$17-MIN('Savings Results'!$G:$G),2000),OFFSET('Savings Results'!$A$1,6,4,2000),"Dx",OFFSET('Savings Results'!$A$1,6,6,2000),$D20)/(1/(1-SUM('CE Parameters'!$F$10:$F$11))))/1000,0) -> 5.622969636 | N20: =IF(OFFSET('Savings Results'!$A$1,5,16 +MAX('Savings Results'!$G:$G)-MIN('Savings Results'!$G:$G)+MAX('Savings Results'!$J:$J)+M$17-MIN('Savings Results'!$G:$G))=M$17,(SUMIFS(OFFSET('Savings Results'!$A$1,6,16 +MAX('Savings Results'!$G:$G)-MIN('Savings Results'!$G:$G)+MAX('Savings Results'!$J:$J)+M$17-MIN('Savings Results'!$G:$G),2000),OFFSET('Savings Results'!$A$1,6,4,2000),"Dx",OFFSET('Savings Results'!$A$1,6,6,2000),$D20)/(1/(1-SUM('CE Parameters'!$F$10:$F$11))))/1000,0) -> 34976.16117 | O20: =IF(OFFSET('Savings Results'!$A$1,5,16 +O$17-MIN('Savings Results'!$G:$G))=O$17,(SUMIFS(OFFSET('Savings Results'!$A$1,6,16 +O$17-MIN('Savings Results'!$G:$G),2000),OFFSET('Savings Results'!$A$1,6,4,2000),"Dx",OFFSET('Savings Results'!$A$1,6,6,2000),$D20)/(1/(1-SUM('CE Parameters'!$F$10:$F$11))))/1000,0) -> 5.574904522 | P20: =IF(OFFSET('Savings Results'!$A$1,5,16 +MAX('Savings Results'!$G:$G)-MIN('Savings Results'!$G:$G)+MAX('Savings Results'!$J:$J)+O$17-MIN('Savings Results'!$G:$G))=O$17,(SUMIFS(OFFSET('Savings Results'!$A$1,6,16 +MAX('Savings Results'!$G:$G)-MIN('Savings Results'!$G:$G)+MAX('Savings Results'!$J:$J)+O$17-MIN('Savings Results'!$G:$G),2000),OFFSET('Savings Results'!$A$1,6,4,2000),"Dx",OFFSET('Savings Results'!$A$1,6,6,2000),$D20)/(1/(1-SUM('CE Parameters'!$F$10:$F$11))))/1000,0) -> 34700.16507 | Q20: =IF(OFFSET('Savings Results'!$A$1,5,16 +Q$17-MIN('Savings Results'!$G:$G))=Q$17,(SUMIFS(OFFSET('Savings Results'!$A$1,6,16 +Q$17-MIN('Savings Results'!$G:$G),2000),OFFSET('Savings Results'!$A$1,6,4,2000),"Dx",OFFSET('Savings Results'!$A$1,6,6,2000),$D20)/(1/(1-SUM('CE Parameters'!$F$10:$F$11))))/1000,0) -> 5.574904522 | R20: =IF(OFFSET('Savings Results'!$A$1,5,16 +MAX('Savings Results'!$G:$G)-MIN('Savings Results'!$G:$G)+MAX('Savings Results'!$J:$J)+Q$17-MIN('Savings Results'!$G:$G))=Q$17,(SUMIFS(OFFSET('Savings Results'!$A$1,6,16 +MAX('Savings Results'!$G:$G)-MIN('Savings Results'!$G:$G)+MAX('Savings Results'!$J:$J)+Q$17-MIN('Savings Results'!$G:$G),2000),OFFSET('Savings Results'!$A$1,6,4,2000),"Dx",OFFSET('Savings Results'!$A$1,6,6,2000),$D20)/(1/(1-SUM('CE Parameters'!$F$10:$F$11))))/1000,0) -> 34700.16507 | S20: =IF(OFFSET('Savings Results'!$A$1,5,16 +S$17-MIN('Savings Results'!$G:$G))=S$17,(SUMIFS(OFFSET('Savings Results'!$A$1,6,16 +S$17-MIN('Savings Results'!$G:$G),2000),OFFSET('Savings Results'!$A$1,6,4,2000),"Dx",OFFSET('Savings Results'!$A$1,6,6,2000),$D20)/(1/(1-SUM('CE Parameters'!$F$10:$F$11))))/1000,0) -> 5.041904522 | T20: =IF(OFFSET('Savings Results'!$A$1,5,16 +MAX('Savings Results'!$G:$G)-MIN('Savings Results'!$G:$G)+MAX('Savings Results'!$J:$J)+S$17-MIN('Savings Results'!$G:$G))=S$17,(SUMIFS(OFFSET('Savings Results'!$A$1,6,16 +MAX('Savings Results'!$G:$G)-MIN('Savings Results'!$G:$G)+MAX('Savings Results'!$J:$J)+S$17-MIN('Savings Results'!$G:$G),2000),OFFSET('Savings Results'!$A$1,6,4,2000),"Dx",OFFSET('Savings Results'!$A$1,6,6,2000),$D20)/(1/(1-SUM('CE Parameters'!$F$10:$F$11))))/1000,0) -> 31776.03107 | U20: =IF(OFFSET('Savings Results'!$A$1,5,16 +U$17-MIN('Savings Results'!$G:$G))=U$17,(SUMIFS(OFFSET('Savings Results'!$A$1,6,16 +U$17-MIN('Savings Results'!$G:$G),2000),OFFSET('Savings Results'!$A$1,6,4,2000),"Dx",OFFSET('Savings Results'!$A$1,6,6,2000),$D20)/(1/(1-SUM('CE Parameters'!$F$10:$F$11))))/1000,0) -> 4.587904522 | V20: =IF(OFFSET('Savings Results'!$A$1,5,16 +MAX('Savings Results'!$G:$G)-MIN('Savings Results'!$G:$G)+MAX('Savings Results'!$J:$J)+U$17-MIN('Savings Results'!$G:$G))=U$17,(SUMIFS(OFFSET('Savings Results'!$A$1,6,16 +MAX('Savings Results'!$G:$G)-MIN('Savings Results'!$G:$G)+MAX('Savings Results'!$J:$J)+U$17-MIN('Savings Results'!$G:$G),2000),OFFSET('Savings Results'!$A$1,6,4,2000),"Dx",OFFSET('Savings Results'!$A$1,6,6,2000),$D20)/(1/(1-SUM('CE Parameters'!$F$10:$F$11))))/1000,0) -> 24779.29507 | W20: =IF(OFFSET('Savings Results'!$A$1,5,16 +W$17-MIN('Savings Results'!$G:$G))=W$17,(SUMIFS(OFFSET('Savings Results'!$A$1,6,16 +W$17-MIN('Savings Results'!$G:$G),2000),OFFSET('Savings Results'!$A$1,6,4,2000),"Dx",OFFSET('Savings Results'!$A$1,6,6,2000),$D20)/(1/(1-SUM('CE Parameters'!$F$10:$F$11))))/1000,0) -> 4.587904522 | X20: =IF(OFFSET('Savings Results'!$A$1,5,16 +MAX('Savings Results'!$G:$G)-MIN('Savings Results'!$G:$G)+MAX('Savings Results'!$J:$J)+W$17-MIN('Savings Results'!$G:$G))=W$17,(SUMIFS(OFFSET('Savings Results'!$A$1,6,16 +MAX('Savings Results'!$G:$G)-MIN('Savings Results'!$G:$G)+MAX('Savings Results'!$J:$J)+W$17-MIN('Savings Results'!$G:$G),2000),OFFSET('Savings Results'!$A$1,6,4,2000),"Dx",OFFSET('Savings Results'!$A$1,6,6,2000),$D20)/(1/(1-SUM('CE Parameters'!$F$10:$F$11))))/1000,0) -> 24779.29507 | Y20: =IF(OFFSET('Savings Results'!$A$1,5,16 +Y$17-MIN('Savings Results'!$G:$G))=Y$17,(SUMIFS(OFFSET('Savings Results'!$A$1,6,16 +Y$17-MIN('Savings Results'!$G:$G),2000),OFFSET('Savings Results'!$A$1,6,4,2000),"Dx",OFFSET('Savings Results'!$A$1,6,6,2000),$D20)/(1/(1-SUM('CE Parameters'!$F$10:$F$11))))/1000,0) -> 2.453344805 | Z20: =IF(OFFSET('Savings Results'!$A$1,5,16 +MAX('Savings Results'!$G:$G)-MIN('Savings Results'!$G:$G)+MAX('Savings Results'!$J:$J)+Y$17-MIN('Savings Results'!$G:$G))=Y$17,(SUMIFS(OFFSET('Savings Results'!$A$1,6,16 +MAX('Savings Results'!$G:$G)-MIN('Savings Results'!$G:$G)+MAX('Savings Results'!$J:$J)+Y$17-MIN('Savings Results'!$G:$G),2000),OFFSET('Savings Results'!$A$1,6,4,2000),"Dx",OFFSET('Savings Results'!$A$1,6,6,2000),$D20)/(1/(1-SUM('CE Parameters'!$F$10:$F$11))))/1000,0) -> 11484.9021 | AA20: =IF(OFFSET('Savings Results'!$A$1,5,16 +AA$17-MIN('Savings Results'!$G:$G))=AA$17,(SUMIFS(OFFSET('Savings Results'!$A$1,6,16 +AA$17-MIN('Savings Results'!$G:$G),2000),OFFSET('Savings Results'!$A$1,6,4,2000),"Dx",OFFSET('Savings Results'!$A$1,6,6,2000),$D20)/(1/(1-SUM('CE Parameters'!$F$10:$F$11))))/1000,0) -> 2.422384805 | AB20: =IF(OFFSET('Savings Results'!$A$1,5,16 +MAX('Savings Results'!$G:$G)-MIN('Savings Results'!$G:$G)+MAX('Savings Results'!$J:$J)+AA$17-MIN('Savings Results'!$G:$G))=AA$17,(SUMIFS(OFFSET('Savings Results'!$A$1,6,16 +MAX('Savings Results'!$G:$G)-MIN('Savings Results'!$G:$G)+MAX('Savings Results'!$J:$J)+AA$17-MIN('Savings Results'!$G:$G),2000),OFFSET('Savings Results'!$A$1,6,4,2000),"Dx",OFFSET('Savings Results'!$A$1,6,6,2000),$D20)/(1/(1-SUM('CE Parameters'!$F$10:$F$11))))/1000,0) -> 11185.6605 | AC20: =IF(OFFSET('Savings Results'!$A$1,5,16 +AC$17-MIN('Savings Results'!$G:$G))=AC$17,(SUMIFS(OFFSET('Savings Results'!$A$1,6,16 +AC$17-MIN('Savings Results'!$G:$G),2000),OFFSET('Savings Results'!$A$1,6,4,2000),"Dx",OFFSET('Savings Results'!$A$1,6,6,2000),$D20)/(1/(1-SUM('CE Parameters'!$F$10:$F$11))))/1000,0) -> 0.5281998046 | AD20: =IF(OFFSET('Savings Results'!$A$1,5,16 +MAX('Savings Results'!$G:$G)-MIN('Savings Results'!$G:$G)+MAX('Savings Results'!$J:$J)+AC$17-MIN('Savings Results'!$G:$G))=AC$17,(SUMIFS(OFFSET('Savings Results'!$A$1,6,16 +MAX('Savings Results'!$G:$G)-MIN('Savings Results'!$G:$G)+MAX('Savings Results'!$J:$J)+AC$17-MIN('Savings Results'!$G:$G),2000),OFFSET('Savings Results'!$A$1,6,4,2000),"Dx",OFFSET('Savings Results'!$A$1,6,6,2000),$D20)/(1/(1-SUM('CE Parameters'!$F$10:$F$11))))/1000,0) -> 1580.523 | AE20: =IF(OFFSET('Savings Results'!$A$1,5,16 +AE$17-MIN('Savings Results'!$G:$G))=AE$17,(SUMIFS(OFFSET('Savings Results'!$A$1,6,16 +AE$17-MIN('Savings Results'!$G:$G),2000),OFFSET('Savings Results'!$A$1,6,4,2000),"Dx",OFFSET('Savings Results'!$A$1,6,6,2000),$D20)/(1/(1-SUM('CE Parameters'!$F$10:$F$11))))/1000,0) -> 0.5281998046 | AF20: =IF(OFFSET('Savings Results'!$A$1,5,16 +MAX('Savings Results'!$G:$G)-MIN('Savings Results'!$G:$G)+MAX('Savings Results'!$J:$J)+AE$17-MIN('Savings Results'!$G:$G))=AE$17,(SUMIFS(OFFSET('Savings Results'!$A$1,6,16 +MAX('Savings Results'!$G:$G)-MIN('Savings Results'!$G:$G)+MAX('Savings Results'!$J:$J)+AE$17-MIN('Savings Results'!$G:$G),2000),OFFSET('Savings Results'!$A$1,6,4,2000),"Dx",OFFSET('Savings Results'!$A$1,6,6,2000),$D20)/(1/(1-SUM('CE Parameters'!$F$10:$F$11))))/1000,0) -> 1580.523 | AG20: =IF(OFFSET('Savings Results'!$A$1,5,16 +AG$17-MIN('Savings Results'!$G:$G))=AG$17,(SUMIFS(OFFSET('Savings Results'!$A$1,6,16 +AG$17-MIN('Savings Results'!$G:$G),2000),OFFSET('Savings Results'!$A$1,6,4,2000),"Dx",OFFSET('Savings Results'!$A$1,6,6,2000),$D20)/(1/(1-SUM('CE Parameters'!$F$10:$F$11))))/1000,0) -> 0.5281998046 | AH20: =IF(OFFSET('Savings Results'!$A$1,5,16 +MAX('Savings Results'!$G:$G)-MIN('Savings Results'!$G:$G)+MAX('Savings Results'!$J:$J)+AG$17-MIN('Savings Results'!$G:$G))=AG$17,(SUMIFS(OFFSET('Savings Results'!$A$1,6,16 +MAX('Savings Results'!$G:$G)-MIN('Savings Results'!$G:$G)+MAX('Savings Results'!$J:$J)+AG$17-MIN('Savings Results'!$G:$G),2000),OFFSET('Savings Results'!$A$1,6,4,2000),"Dx",OFFSET('Savings Results'!$A$1,6,6,2000),$D20)/(1/(1-SUM('CE Parameters'!$F$10:$F$11))))/1000,0) -> 1580.523 | AI20: =IF(OFFSET('Savings Results'!$A$1,5,16 +AI$17-MIN('Savings Results'!$G:$G))=AI$17,(SUMIFS(OFFSET('Savings Results'!$A$1,6,16 +AI$17-MIN('Savings Results'!$G:$G),2000),OFFSET('Savings Results'!$A$1,6,4,2000),"Dx",OFFSET('Savings Results'!$A$1,6,6,2000),$D20)/(1/(1-SUM('CE Parameters'!$F$10:$F$11))))/1000,0) -> 0.52816 | AJ20: =IF(OFFSET('Savings Results'!$A$1,5,16 +MAX('Savings Results'!$G:$G)-MIN('Savings Results'!$G:$G)+MAX('Savings Results'!$J:$J)+AI$17-MIN('Savings Results'!$G:$G))=AI$17,(SUMIFS(OFFSET('Savings Results'!$A$1,6,16 +MAX('Savings Results'!$G:$G)-MIN('Savings Results'!$G:$G)+MAX('Savings Results'!$J:$J)+AI$17-MIN('Savings Results'!$G:$G),2000),OFFSET('Savings Results'!$A$1,6,4,2000),"Dx",OFFSET('Savings Results'!$A$1,6,6,2000),$D20)/(1/(1-SUM('CE Parameters'!$F$10:$F$11))))/1000,0) -> 1579.696 | AK20: =IF(OFFSET('Savings Results'!$A$1,5,16 +AK$17-MIN('Savings Results'!$G:$G))=AK$17,(SUMIFS(OFFSET('Savings Results'!$A$1,6,16 +AK$17-MIN('Savings Results'!$G:$G),2000),OFFSET('Savings Results'!$A$1,6,4,2000),"Dx",OFFSET('Savings Results'!$A$1,6,6,2000),$D20)/(1/(1-SUM('CE Parameters'!$F$10:$F$11))))/1000,0) -> 0.52816 | AL20: =IF(OFFSET('Savings Results'!$A$1,5,16 +MAX('Savings Results'!$G:$G)-MIN('Savings Results'!$G:$G)+MAX('Savings Results'!$J:$J)+AK$17-MIN('Savings Results'!$G:$G))=AK$17,(SUMIFS(OFFSET('Savings Results'!$A$1,6,16 +MAX('Savings Results'!$G:$G)-MIN('Savings Results'!$G:$G)+MAX('Savings Results'!$J:$J)+AK$17-MIN('Savings Results'!$G:$G),2000),OFFSET('Savings Results'!$A$1,6,4,2000),"Dx",OFFSET('Savings Results'!$A$1,6,6,2000),$D20)/(1/(1-SUM('CE Parameters'!$F$10:$F$11))))/1000,0) -> 1579.696 | AM20: =IF(OFFSET('Savings Results'!$A$1,5,16 +AM$17-MIN('Savings Results'!$G:$G))=AM$17,(SUMIFS(OFFSET('Savings Results'!$A$1,6,16 +AM$17-MIN('Savings Results'!$G:$G),2000),OFFSET('Savings Results'!$A$1,6,4,2000),"Dx",OFFSET('Savings Results'!$A$1,6,6,2000),$D20)/(1/(1-SUM('CE Parameters'!$F$10:$F$11))))/1000,0) -> 0.0321 | AN20: =IF(OFFSET('Savings Results'!$A$1,5,16 +MAX('Savings Results'!$G:$G)-MIN('Savings Results'!$G:$G)+MAX('Savings Results'!$J:$J)+AM$17-MIN('Savings Results'!$G:$G))=AM$17,(SUMIFS(OFFSET('Savings Results'!$A$1,6,16 +MAX('Savings Results'!$G:$G)-MIN('Savings Results'!$G:$G)+MAX('Savings Results'!$J:$J)+AM$17-MIN('Savings Results'!$G:$G),2000),OFFSET('Savings Results'!$A$1,6,4,2000),"Dx",OFFSET('Savings Results'!$A$1,6,6,2000),$D20)/(1/(1-SUM('CE Parameters'!$F$10:$F$11))))/1000,0) -> 157.9631
